Workbook

Sheet CALENDARIO PARADAS BUDGET (hidden)
A1: CALENDARIO PARADAS PLANTA PESQUERA - 2018
C3: LUNES | D3: MARTES | E3: MIERCOLES | F3: JUEVES | G3: VIERNES | H3: SABADO | I3: DOMINGO
A4: ENERO | B4: 1 | C4: 2018-01-01 | D4: 2018-01-02 | E4: 2018-01-03 | F4: 2018-01-04 | G4: 2018-01-05 | H4: 2018-01-06 | I4: 2018-01-07
B6: =1+B4 -> 2 | C6: =+C4+7 -> 2018-01-08 | D6: 2018-01-09 | E6: 2018-01-10 | F6: 2018-01-11 | G6: 2018-01-12 | H6: 2018-01-13 | I6: 2018-01-14
B8: =1+B6 -> 3 | C8: =+C6+7 -> 2018-01-15 | D8: 2018-01-16 | E8: 2018-01-17 | F8: 2018-01-18 | G8: 2018-01-19 | H8: 2018-01-20 | I8: 2018-01-21
C9: 1RA VEDA PT: 24 H | D9: 1RA VEDA PT: 24 H | E9: 1RA VEDA PT: 24 H | F9: 1RA VEDA PT: 24 H | G9: 1RA VEDA PT: 24 H | H9: 1RA VEDA PT: 24 H | I9: 1RA VEDA PT: 24 H
B10: =1+B8 -> 4 | C10: =+C8+7 -> 2018-01-22 | D10: 2018-01-23 | E10: 2018-01-24 | F10: 2018-01-25 | G10: 2018-01-26 | H10: 2018-01-27 | I10: 2018-01-28
C11: 1RA VEDA PT: 24 H | D11: 1RA VEDA PT: 24 H | E11: 1RA VEDA PT: 24 H | F11: 1RA VEDA PT: 24 H | G11: 1RA VEDA PT: 24 H | H11: 1RA VEDA PT: 24 H | I11: 1RA VEDA PT: 24 H
A13: FEBRERO | B13: =+B10+1 -> 5 | C13: =+C10+7 -> 2018-01-29 | D13: 2018-01-30 | E13: 2018-01-31 | F13: 2018-02-01 | G13: 2018-02-02 | H13: 2018-02-03 | I13: 2018-02-04
C14: 1RA VEDA PT: 24 H | D14: 1RA VEDA PT: 24 H | E14: 1RA VEDA PT: 24 H | F14: 1RA VEDA PT: 24 H | G14: 1RA VEDA PT: 24 H | H14: 1RA VEDA PT: 24 H | I14: 1RA VEDA PT: 24 H
B15: =1+B13 -> 6 | C15: =+C13+7 -> 2018-02-05 | D15: 2018-02-06 | E15: 2018-02-07 | F15: 2018-02-08 | G15: 2018-02-09 | H15: 2018-02-10 | I15: 2018-02-11
C16: 1RA VEDA PT: 24 H | D16: 1RA VEDA PT: 24 H | E16: 1RA VEDA PT: 24 H | F16: 1RA VEDA PT: 24 H | G16: 1RA VEDA PT: 24 H | H16: 1RA VEDA PT: 24 H | I16: 1RA VEDA PT: 24 H
B17: =1+B15 -> 7 | C17: =+C15+7 -> 2018-02-12 | D17: 2018-02-13 | E17: 2018-02-14 | F17: 2018-02-15 | G17: 2018-02-16 | H17: 2018-02-17 | I17: 2018-02-18
C18: 1RA VEDA PT: 24 H | D18: 1RA VEDA PT: 24 H | E18: 1RA VEDA PT: 24 H | F18: 1RA VEDA PT: 24 H | G18: 1RA VEDA PT: 24 H | H18: 1RA VEDA PT: 24 H | I18: 1RA VEDA PT: 24 H
B19: =1+B17 -> 8 | C19: =+C17+7 -> 2018-02-19 | D19: 2018-02-20 | E19: 2018-02-21 | F19: 2018-02-22 | G19: 2018-02-23 | H19: 2018-02-24 | I19: 2018-02-25
C20: 1RA VEDA PT: 24 H | D20: 1RA VEDA PT: 24 H | E20: 1RA VEDA PT: 24 H | F20: 1RA VEDA PT: 24 H | G20: 1RA VEDA PT: 24 H | H20: 1RA VEDA PT: 24 H | I20: 1RA VEDA PT: 24 H
A22: MARZO | B22: =+B19+1 -> 9 | C22: =+C19+7 -> 2018-02-26 | D22: 2018-02-27 | E22: 2018-02-28 | F22: 2018-03-01 | G22: 2018-03-02 | H22: 2018-03-03 | I22: 2018-03-04
C23: 1RA VEDA PT: 24 H | D23: 1RA VEDA PT: 24 H | E23: 1RA VEDA PT: 24 H | F23: 1RA VEDA PT: 24 H | G23: 1RA VEDA PT: 24 H | H23: 1RA VEDA PT: 24 H | I23: 1RA VEDA PT: 24 H
B24: =1+B22 -> 10 | C24: =+C22+7 -> 2018-03-05 | D24: 2018-03-06 | E24: 2018-03-07 | F24: 2018-03-08 | G24: 2018-03-09 | H24: 2018-03-10 | I24: 2018-03-11
C25: 1RA VEDA PT: 24 H | D25: 1RA VEDA PT: 24 H | E25: 1RA VEDA PT: 24 H | F25: 1RA VEDA PT: 24 H | G25: 1RA VEDA PT: 24 H | H25: 1RA VEDA PT: 24 H | I25: 1RA VEDA PT: 24 H
B26: =1+B24 -> 11 | C26: =+C24+7 -> 2018-03-12 | D26: 2018-03-13 | E26: 2018-03-14 | F26: 2018-03-15 | G26: 2018-03-16 | H26: 2018-03-17 | I26: 2018-03-18
C27: 1RA VEDA PT: 24 H | D27: 1RA VEDA PT: 24 H | E27: 1RA VEDA PT: 24 H | F27: 1RA VEDA PT: 24 H | G27: 1RA VEDA PT: 24 H | H27: 1RA VEDA PT: 24 H | I27: 1RA VEDA PT: 24 H
B28: =1+B26 -> 12 | C28: =+C26+7 -> 2018-03-19 | D28: 2018-03-20 | E28: 2018-03-21 | F28: 2018-03-22 | G28: 2018-03-23 | H28: 2018-03-24 | I28: 2018-03-25
C29: 1RA VEDA PT: 24 H | D29: 1RA VEDA PT: 24 H | E29: 1RA VEDA PT: 24 H | F29: 1RA VEDA PT: 24 H | G29: 1RA VEDA PT: 24 H | H29: 1RA VEDA PT: 24 H | I29: 1RA VEDA PT: 24 H
B30: =1+B28 -> 13 | C30: =+C28+7 -> 2018-03-26 | D30: 2018-03-27 | E30: 2018-03-28 | F30: 2018-03-29 | G30: 2018-03-30 | H30: 2018-03-31 | I30: 2018-04-01
C31: 1RA VEDA PT: 24 H | D31: 1RA VEDA PT: 24 H | E31: 1RA VEDA PT: 24 H | F31: 1RA VEDA PT: 24 H | G31: 1RA VEDA PT: 24 H | H31: 1RA VEDA PT: 24 H | I31: 1RA VEDA PT: 24 H
A33: ABRIL | B33: =+B30+1 -> 14 | C33: =+C30+7 -> 2018-04-02 | D33: 2018-04-03 | E33: 2018-04-04 | F33: 2018-04-05 | G33: 2018-04-06 | H33: 2018-04-07 | I33: 2018-04-08
C34: 1RA VEDA PT: 24 H | D34: 1RA VEDA PT: 24 H | E34: 1RA VEDA PT: 24 H | F34: 1RA VEDA PT: 24 H | G34: 1RA VEDA PT: 24 H | H34: 1RA VEDA PT: 24 H | I34: 1RA VEDA PT: 24 H
B35: =1+B33 -> 15 | C35: =+C33+7 -> 2018-04-09 | D35: 2018-04-10 | E35: 2018-04-11 | F35: 2018-04-12 | G35: 2018-04-13 | H35: 2018-04-14 | I35: 2018-04-15
C36: 1RA VEDA PT: 24 H | D36: 1RA VEDA PT: 24 H | E36: 1RA VEDA PT: 24 H | F36: 1RA VEDA PT: 24 H | G36: 1RA VEDA PT: 24 H | H36: 1RA VEDA PT: 24 H | I36: 1RA VEDA PT: 24 H
B37: =1+B35 -> 16 | C37: =+C35+7 -> 2018-04-16 | D37: 2018-04-17 | E37: 2018-04-18 | F37: 2018-04-19 | G37: 2018-04-20 | H37: 2018-04-21 | I37: 2018-04-22
C38: 1RA VEDA PT: 24 H | D38: 1RA VEDA PT: 24 H | E38: 1RA VEDA PT: 24 H | F38: 1RA VEDA PT: 24 H | G38: 1RA VEDA PT: 24 H | H38: 1RA VEDA PT: 24 H | I38: 1RA VEDA PT: 24 H
B39: =1+B37 -> 17 | C39: =+C37+7 -> 2018-04-23 | D39: 2018-04-24 | E39: 2018-04-25 | F39: 2018-04-26 | G39: 2018-04-27 | H39: 2018-04-28 | I39: 2018-04-29
C40: 1RA VEDA PT: 24 H | D40: 1RA VEDA PT: 24 H | E40: 1RA VEDA PT: 24 H | F40: 1RA VEDA PT: 24 H | G40: 1RA VEDA PT: 24 H | H40: 1RA VEDA PT: 24 H | I40: 1RA VEDA PT: 24 H
A42: MAYO | B42: =+B39+1 -> 18 | C42: =C39+7 -> 2018-04-30 | D42: 2018-05-01 | E42: 2018-05-02 | F42: 2018-05-03 | G42: 2018-05-04 | H42: 2018-05-05 | I42: 2018-05-06
C43: 1RA VEDA PT: 24 H
B44: =1+B42 -> 19 | C44: =+C42+7 -> 2018-05-07 | D44: 2018-05-08 | E44: 2018-05-09 | F44: 2018-05-10 | G44: 2018-05-11 | H44: 2018-05-12 | I44: 2018-05-13
B46: 20 | C46: =+C44+7 -> 2018-05-14 | D46: 2018-05-15 | E46: 2018-05-16 | F46: 2018-05-17 | G46: 2018-05-18 | H46: 2018-05-19 | I46: 2018-05-20
B48: 21 | C48: =+C46+7 -> 2018-05-21 | D48: =+D46+7 -> 2018-05-22 | E48: 2018-05-23 | F48: 2018-05-24 | G48: 2018-05-25 | H48: 2018-05-26 | I48: 2018-05-27
B50: 22 | C50: =+C48+7 -> 2018-05-28 | D50: =+D48+7 -> 2018-05-29 | E50: 2018-05-30 | F50: 2018-05-31 | G50: 2018-06-01 | H50: 2018-06-02 | I50: 2018-06-03
A53: JUNIO | B53: =+B50+1 -> 23 | C53: =+C50+7 -> 2018-06-04 | D53: 2018-06-05 | E53: 2018-06-06 | F53: 2018-06-07 | G53: 2018-06-08 | H53: 2018-06-09 | I53: 2018-06-10
B55: =1+B53 -> 24 | C55: =+C53+7 -> 2018-06-11 | D55: 2018-06-12 | E55: 2018-06-13 | F55: 2018-06-14 | G55: 2018-06-15 | H55: 2018-06-16 | I55: 2018-06-17
B57: =1+B55 -> 25 | C57: =+C55+7 -> 2018-06-18 | D57: 2018-06-19 | E57: 2018-06-20 | F57: 2018-06-21 | G57: 2018-06-22 | H57: 2018-06-23 | I57: 2018-06-24
B59: =1+B57 -> 26 | C59: =+C57+7 -> 2018-06-25 | D59: 2018-06-26 | E59: 2018-06-27 | F59: 2018-06-28 | G59: 2018-06-29 | H59: 2018-06-30 | I59: 2018-07-01
A62: JULIO | B62: =+B59+1 -> 27 | C62: =+C59+7 -> 2018-07-02 | D62: =+D59+7 -> 2018-07-03 | E62: 2018-07-04 | F62: 2018-07-05 | G62: 2018-07-06 | H62: 2018-07-07 | I62: 2018-07-08
B64: =1+B62 -> 28 | C64: =+C62+7 -> 2018-07-09 | D64: 2018-07-10 | E64: 2018-07-11 | F64: 2018-07-12 | G64: 2018-07-13 | H64: 2018-07-14 | I64: 2018-07-15
B66: =1+B64 -> 29 | C66: =+C64+7 -> 2018-07-16 | D66: 2018-07-17 | E66: 2018-07-18 | F66: 2018-07-19 | G66: 2018-07-20 | H66: 2018-07-21 | I66: 2018-07-22
B68: =1+B66 -> 30 | C68: =+C66+7 -> 2018-07-23 | D68: 2018-07-24 | E68: 2018-07-25 | F68: 2018-07-26 | G68: 2018-07-27 | H68: 2018-07-28 | I68: 2018-07-29
A71: AGOSTO | B71: =+B68+1 -> 31 | C71: =+C68+7 -> 2018-07-30 | D71: 2018-07-31 | E71: 2018-08-01 | F71: 2018-08-02 | G71: 2018-08-03 | H71: 2018-08-04 | I71: 2018-08-05
E72: 2DA VEDA PT: 24 H | F72: 2DA VEDA PT: 24 H | G72: 2DA VEDA PT: 24 H | H72: 2DA VEDA PT: 24 H | I72: 2DA VEDA PT: 24 H
B73: =1+B71 -> 32 | C73: =+C71+7 -> 2018-08-06 | D73: 2018-08-07 | E73: 2018-08-08 | F73: 2018-08-09 | G73: 2018-08-10 | H73: 2018-08-11 | I73: 2018-08-12
C74: 2DA VEDA PT: 24 H | D74: 2DA VEDA PT: 24 H | E74: 2DA VEDA PT: 24 H | F74: 2DA VEDA PT: 24 H | G74: 2DA VEDA PT: 24 H | H74: 2DA VEDA PT: 24 H | I74: 2DA VEDA PT: 24 H
B75: 33 | C75: =+C73+7 -> 2018-08-13 | D75: 2018-08-14 | E75: 2018-08-15 | F75: 2018-08-16 | G75: 2018-08-17 | H75: 2018-08-18 | I75: 2018-08-19
C76: 2DA VEDA PT: 24 H | D76: 2DA VEDA PT: 24 H | E76: 2DA VEDA PT: 24 H | F76: 2DA VEDA PT: 24 H | G76: 2DA VEDA PT: 24 H | H76: 2DA VEDA PT: 24 H | I76: 2DA VEDA PT: 24 H
B77: 34 | C77: =+C75+7 -> 2018-08-20 | D77: 2018-08-21 | E77: 2018-08-22 | F77: 2018-08-23 | G77: 2018-08-24 | H77: 2018-08-25 | I77: 2018-08-26
C78: 2DA VEDA PT: 24 H | D78: 2DA VEDA PT: 24 H | E78: 2DA VEDA PT: 24 H | F78: 2DA VEDA PT: 24 H | G78: 2DA VEDA PT: 24 H | H78: 2DA VEDA PT: 24 H | I78: 2DA VEDA PT: 24 H
B79: 35 | C79: =+C77+7 -> 2018-08-27 | D79: 2018-08-28 | E79: 2018-08-29 | F79: 2018-08-30 | G79: 2018-08-31 | H79: 2018-09-01 | I79: 2018-09-02
C80: 2DA VEDA PT: 24 H | D80: 2DA VEDA PT: 24 H | E80: 2DA VEDA PT: 24 H | F80: 2DA VEDA PT: 24 H | G80: 2DA VEDA PT: 24 H | H80: 2DA VEDA PT: 24 H | I80: 2DA VEDA PT: 24 H
A82: SEPTIEMBRE | B82: =+B79+1 -> 36 | C82: =+C79+7 -> 2018-09-03 | D82: 2018-09-04 | E82: 2018-09-05 | F82: 2018-09-06 | G82: 2018-09-07 | H82: 2018-09-08 | I82: 2018-09-09
C83: 2DA VEDA PT: 24 H | D83: 2DA VEDA PT: 24 H | E83: 2DA VEDA PT: 24 H | F83: 2DA VEDA PT: 24 H | G83: 2DA VEDA PT: 24 H | H83: 2DA VEDA PT: 24 H | I83: 2DA VEDA PT: 24 H
B84: =1+B82 -> 37 | C84: =+C82+7 -> 2018-09-10 | D84: 2018-09-11 | E84: 2018-09-12 | F84: 2018-09-13 | G84: 2018-09-14 | H84: 2018-09-15 | I84: 2018-09-16
C85: 2DA VEDA PT: 24 H | D85: 2DA VEDA PT: 24 H | E85: 2DA VEDA PT: 24 H | F85: 2DA VEDA PT: 24 H | G85: 2DA VEDA PT: 24 H | H85: 2DA VEDA PT: 24 H | I85: 2DA VEDA PT: 24 H
B86: =1+B84 -> 38 | C86: =+C84+7 -> 2018-09-17 | D86: 2018-09-18 | E86: 2018-09-19 | F86: 2018-09-20 | G86: 2018-09-21 | H86: 2018-09-22 | I86: 2018-09-23
C87: 2DA VEDA PT: 24 H | D87: 2DA VEDA PT: 24 H | E87: 2DA VEDA PT: 24 H | F87: 2DA VEDA PT: 24 H | G87: 2DA VEDA PT: 24 H | H87: 2DA VEDA PT: 24 H | I87: 2DA VEDA PT: 24 H
B88: =1+B86 -> 39 | C88: =+C86+7 -> 2018-09-24 | D88: 2018-09-25 | E88: 2018-09-26 | F88: 2018-09-27 | G88: 2018-09-28 | H88: 2018-09-29 | I88: 2018-09-30
C89: 2DA VEDA PT: 24 H | D89: 2DA VEDA PT: 24 H | E89: 2DA VEDA PT: 24 H | F89: 2DA VEDA PT: 24 H | G89: 2DA VEDA PT: 24 H | H89: 2DA VEDA PT: 24 H | I89: 2DA VEDA PT: 24 H
A91: OCTUBRE | B91: =+B88+1 -> 40 | C91: =C88+7 -> 2018-10-01 | D91: 2018-10-02 | E91: 2018-10-03 | F91: 2018-10-04 | G91: 2018-10-05 | H91: 2018-10-06 | I91: 2018-10-07
C92: 2DA VEDA PT: 24 H | D92: 2DA VEDA PT: 24 H | E92: 2DA VEDA PT: 24 H | F92: 2DA VEDA PT: 24 H | G92: 2DA VEDA PT: 24 H | H92: 2DA VEDA PT: 24 H | I92: 2DA VEDA PT: 24 H
B93: =1+B91 -> 41 | C93: =+C91+7 -> 2018-10-08 | D93: 2018-10-09 | E93: 2018-10-10 | F93: 2018-10-11 | G93: 2018-10-12 | H93: 2018-10-13 | I93: 2018-10-14
C94: 2DA VEDA PT: 24 H | D94: 2DA VEDA PT: 24 H | E94: 2DA VEDA PT: 24 H | F94: 2DA VEDA PT: 24 H | G94: 2DA VEDA PT: 24 H | H94: 2DA VEDA PT: 24 H | I94: 2DA VEDA PT: 24 H
B95: =1+B93 -> 42 | C95: =+C93+7 -> 2018-10-15 | D95: 2018-10-16 | E95: 2018-10-17 | F95: 2018-10-18 | G95: 2018-10-19 | H95: 2018-10-20 | I95: 2018-10-21
C96: 2DA VEDA PT: 24 H | D96: 2DA VEDA PT: 24 H | E96: 2DA VEDA PT: 24 H | F96: 2DA VEDA PT: 24 H | G96: 2DA VEDA PT: 24 H | H96: 2DA VEDA PT: 24 H | I96: 2DA VEDA PT: 24 H
B97: =1+B95 -> 43 | C97: =+C95+7 -> 2018-10-22 | D97: 2018-10-23 | E97: 2018-10-24 | F97: 2018-10-25 | G97: 2018-10-26 | H97: 2018-10-27 | I97: 2018-10-28
C98: 2DA VEDA PT: 24 H | D98: 2DA VEDA PT: 24 H | E98: 2DA VEDA PT: 24 H | F98: 2DA VEDA PT: 24 H | G98: 2DA VEDA PT: 24 H | H98: 2DA VEDA PT: 24 H | I98: 2DA VEDA PT: 24 H
A100: NOVIEMBRE | B100: =+B97+1 -> 44 | C100: =+C97+7 -> 2018-10-29 | D100: 2018-10-30 | E100: 2018-10-31 | F100: 2018-11-01 | G100: 2018-11-02 | H100: 2018-11-03 | I100: 2018-11-04
C101: 2DA VEDA PT: 24 H | D101: 2DA VEDA PT: 24 H | E101: 2DA VEDA PT: 24 H | F101: 2DA VEDA PT: 24 H | G101: 2DA VEDA PT: 24 H | H101: 2DA VEDA PT: 24 H | I101: 2DA VEDA PT: 24 H
B102: =1+B100 -> 45 | C102: =+C100+7 -> 2018-11-05 | D102: 2018-11-06 | E102: 2018-11-07 | F102: 2018-11-08 | G102: 2018-11-09 | H102: 2018-11-10 | I102: 2018-11-11
C103: 2DA VEDA PT: 24 H | D103: 2DA VEDA PT: 24 H | E103: 2DA VEDA PT: 24 H | F103: 2DA VEDA PT: 24 H | G103: 2DA VEDA PT: 24 H | H103: 2DA VEDA PT: 24 H | I103: 2DA VEDA PT: 24 H
B104: 46 | C104: =+C102+7 -> 2018-11-12 | D104: 2018-11-13 | E104: 2018-11-14 | F104: 2018-11-15 | G104: 2018-11-16 | H104: 2018-11-17 | I104: 2018-11-18
C105: 2DA VEDA PT: 24 H | D105: 2DA VEDA PT: 24 H | E105: 2DA VEDA PT: 24 H | F105: 2DA VEDA PT: 24 H
B106: 47 | C106: =+C104+7 -> 2018-11-19 | D106: 2018-11-20 | E106: 2018-11-21 | F106: 2018-11-22 | G106: 2018-11-23 | H106: 2018-11-24 | I106: 2018-11-25
B108: 48 | C108: =+C106+7 -> 2018-11-26 | D108: 2018-11-27 | E108: 2018-11-28 | F108: 2018-11-29 | G108: 2018-11-30 | H108: 2018-12-01 | I108: 2018-12-02
A111: DICIEMBRE | B111: =+B108+1 -> 49 | C111: =+C108+7 -> 2018-12-03 | D111: 2018-12-04 | E111: 2018-12-05 | F111: 2018-12-06 | G111: 2018-12-07 | H111: 2018-12-08 | I111: 2018-12-09
B113: =1+B111 -> 50 | C113: =+C111+7 -> 2018-12-10 | D113: 2018-12-11 | E113: 2018-12-12 | F113: 2018-12-13 | G113: 2018-12-14 | H113: 2018-12-15 | I113: 2018-12-16
B115: =1+B113 -> 51 | C115: =+C113+7 -> 2018-12-17 | D115: 2018-12-18 | E115: 2018-12-19 | F115: 2018-12-20 | G115: 2018-12-21 | H115: 2018-12-22 | I115: 2018-12-23
B117: =1+B115 -> 52 | C117: =+C115+7 -> 2018-12-24 | D117: 2018-12-25 | E117: 2018-12-26 | F117: 2018-12-27 | G117: 2018-12-28 | H117: 2018-12-29 | I117: 2018-12-30

Sheet CALENDARIO PARADAS REAL (hidden)
A1: CALENDARIO PARADAS PLANTA PESQUERA - 2018
C3: LUNES | D3: MARTES | E3: MIERCOLES | F3: JUEVES | G3: VIERNES | H3: SABADO | I3: DOMINGO
A4: ENERO | B4: 1 | C4: 2018-01-01 | D4: 2018-01-02 | E4: 2018-01-03 | F4: 2018-01-04 | G4: 2018-01-05 | H4: 2018-01-06 | I4: 2018-01-07
B6: =1+B4 -> 2 | C6: =+C4+7 -> 2018-01-08 | D6: 2018-01-09 | E6: 2018-01-10 | F6: 2018-01-11 | G6: 2018-01-12 | H6: 2018-01-13 | I6: 2018-01-14
B8: =1+B6 -> 3 | C8: =+C6+7 -> 2018-01-15 | D8: 2018-01-16 | E8: 2018-01-17 | F8: 2018-01-18 | G8: 2018-01-19 | H8: 2018-01-20 | I8: 2018-01-21
C9: 1RA VEDA PT: 24 H | D9: 1RA VEDA PT: 24 H | E9: 1RA VEDA PT: 24 H | F9: 1RA VEDA PT: 24 H | G9: 1RA VEDA PT: 24 H | H9: 1RA VEDA PT: 24 H | I9: 1RA VEDA PT: 24 H
B10: =1+B8 -> 4 | C10: =+C8+7 -> 2018-01-22 | D10: 2018-01-23 | E10: 2018-01-24 | F10: 2018-01-25 | G10: 2018-01-26 | H10: 2018-01-27 | I10: 2018-01-28
C11: 1RA VEDA PT: 24 H | D11: 1RA VEDA PT: 24 H | E11: 1RA VEDA PT: 24 H | F11: 1RA VEDA PT: 24 H | G11: 1RA VEDA PT: 24 H | H11: 1RA VEDA PT: 24 H | I11: 1RA VEDA PT: 24 H
A13: FEBRERO | B13: =+B10+1 -> 5 | C13: =+C10+7 -> 2018-01-29 | D13: 2018-01-30 | E13: 2018-01-31 | F13: 2018-02-01 | G13: 2018-02-02 | H13: 2018-02-03 | I13: 2018-02-04
C14: 1RA VEDA PT: 24 H | D14: 1RA VEDA PT: 24 H | E14: 1RA VEDA PT: 24 H | F14: 1RA VEDA PT: 24 H | G14: 1RA VEDA PT: 24 H | H14: 1RA VEDA PT: 24 H | I14: 1RA VEDA PT: 24 H
B15: =1+B13 -> 6 | C15: =+C13+7 -> 2018-02-05 | D15: 2018-02-06 | E15: 2018-02-07 | F15: 2018-02-08 | G15: 2018-02-09 | H15: 2018-02-10 | I15: 2018-02-11
C16: 1RA VEDA PT: 24 H | D16: 1RA VEDA PT: 24 H | E16: 1RA VEDA PT: 24 H | F16: 1RA VEDA PT: 24 H | G16: 1RA VEDA PT: 24 H | H16: 1RA VEDA PT: 24 H | I16: 1RA VEDA PT: 24 H
B17: =1+B15 -> 7 | C17: =+C15+7 -> 2018-02-12 | D17: 2018-02-13 | E17: 2018-02-14 | F17: 2018-02-15 | G17: 2018-02-16 | H17: 2018-02-17 | I17: 2018-02-18
C18: 1RA VEDA PT: 24 H | D18: 1RA VEDA PT: 24 H | E18: 1RA VEDA PT: 24 H | F18: 1RA VEDA PT: 24 H | G18: 1RA VEDA PT: 24 H | H18: 1RA VEDA PT: 24 H | I18: 1RA VEDA PT: 24 H
B19: =1+B17 -> 8 | C19: =+C17+7 -> 2018-02-19 | D19: 2018-02-20 | E19: 2018-02-21 | F19: 2018-02-22 | G19: 2018-02-23 | H19: 2018-02-24 | I19: 2018-02-25
C20: 1RA VEDA PT: 24 H | D20: 1RA VEDA PT: 24 H | E20: 1RA VEDA PT: 24 H | F20: 1RA VEDA PT: 24 H | G20: 1RA VEDA PT: 24 H | H20: 1RA VEDA PT: 24 H | I20: 1RA VEDA PT: 24 H
A22: MARZO | B22: =+B19+1 -> 9 | C22: =+C19+7 -> 2018-02-26 | D22: 2018-02-27 | E22: 2018-02-28 | F22: 2018-03-01 | G22: 2018-03-02 | H22: 2018-03-03 | I22: 2018-03-04
C23: 1RA VEDA PT: 24 H | D23: 1RA VEDA PT: 24 H | E23: 1RA VEDA PT: 24 H | F23: 1RA VEDA PT: 24 H | G23: 1RA VEDA PT: 24 H | H23: 1RA VEDA PT: 24 H | I23: 1RA VEDA PT: 24 H
B24: =1+B22 -> 10 | C24: =+C22+7 -> 2018-03-05 | D24: 2018-03-06 | E24: 2018-03-07 | F24: 2018-03-08 | G24: 2018-03-09 | H24: 2018-03-10 | I24: 2018-03-11
C25: 1RA VEDA PT: 24 H | D25: 1RA VEDA PT: 24 H | E25: 1RA VEDA PT: 24 H | F25: 1RA VEDA PT: 24 H | G25: 1RA VEDA PT: 24 H | H25: 1RA VEDA PT: 24 H | I25: 1RA VEDA PT: 24 H
B26: =1+B24 -> 11 | C26: =+C24+7 -> 2018-03-12 | D26: 2018-03-13 | E26: 2018-03-14 | F26: 2018-03-15 | G26: 2018-03-16 | H26: 2018-03-17 | I26: 2018-03-18
C27: 1RA VEDA PT: 24 H | D27: 1RA VEDA PT: 24 H | E27: 1RA VEDA PT: 24 H | F27: 1RA VEDA PT: 24 H | G27: 1RA VEDA PT: 24 H | H27: 1RA VEDA PT: 24 H | I27: 1RA VEDA PT: 24 H
B28: =1+B26 -> 12 | C28: =+C26+7 -> 2018-03-19 | D28: 2018-03-20 | E28: 2018-03-21 | F28: 2018-03-22 | G28: 2018-03-23 | H28: 2018-03-24 | I28: 2018-03-25
C29: 1RA VEDA PT: 24 H | D29: 1RA VEDA PT: 24 H | E29: 1RA VEDA PT: 24 H | F29: 1RA VEDA PT: 24 H | G29: 1RA VEDA PT: 24 H | H29: 1RA VEDA PT: 24 H | I29: 1RA VEDA PT: 24 H
B30: =1+B28 -> 13 | C30: =+C28+7 -> 2018-03-26 | D30: 2018-03-27 | E30: 2018-03-28 | F30: 2018-03-29 | G30: 2018-03-30 | H30: 2018-03-31 | I30: 2018-04-01
C31: 1RA VEDA PT: 24 H | D31: 1RA VEDA PT: 24 H | E31: 1RA VEDA PT: 24 H | F31: 1RA VEDA PT: 24 H | G31: 1RA VEDA PT: 24 H | H31: 1RA VEDA PT: 24 H | I31: 1RA VEDA PT: 24 H
A33: ABRIL | B33: =+B30+1 -> 14 | C33: =+C30+7 -> 2018-04-02 | D33: 2018-04-03 | E33: 2018-04-04 | F33: 2018-04-05 | G33: 2018-04-06 | H33: 2018-04-07 | I33: 2018-04-08
C34: 1RA VEDA PT: 24 H | D34: 1RA VEDA PT: 24 H | E34: 1RA VEDA PT: 24 H | F34: 1RA VEDA PT: 24 H | G34: 1RA VEDA PT: 24 H | H34: 1RA VEDA PT: 24 H | I34: 1RA VEDA PT: 24 H
B35: =1+B33 -> 15 | C35: =+C33+7 -> 2018-04-09 | D35: 2018-04-10 | E35: 2018-04-11 | F35: 2018-04-12 | G35: 2018-04-13 | H35: 2018-04-14 | I35: 2018-04-15
C36: 1RA VEDA PT: 24 H | D36: 1RA VEDA PT: 24 H | E36: 1RA VEDA PT: 24 H | F36: 1RA VEDA PT: 24 H | G36: 1RA VEDA PT: 24 H | H36: 1RA VEDA PT: 24 H | I36: 1RA VEDA PT: 24 H
B37: =1+B35 -> 16 | C37: =+C35+7 -> 2018-04-16 | D37: 2018-04-17 | E37: 2018-04-18 | F37: 2018-04-19 | G37: 2018-04-20 | H37: 2018-04-21 | I37: 2018-04-22
C38: 1RA VEDA PT: 24 H | D38: 1RA VEDA PT: 24 H | E38: 1RA VEDA PT: 24 H | F38: 1RA VEDA PT: 24 H | G38: 1RA VEDA PT: 24 H | H38: 1RA VEDA PT: 24 H | I38: 1RA VEDA PT: 24 H
B39: =1+B37 -> 17 | C39: =+C37+7 -> 2018-04-23 | D39: 2018-04-24 | E39: 2018-04-25 | F39: 2018-04-26 | G39: 2018-04-27 | H39: 2018-04-28 | I39: 2018-04-29
C40: 1RA VEDA PT: 24 H | D40: 1RA VEDA PT: 24 H | E40: 1RA VEDA PT: 24 H | F40: 1RA VEDA PT: 24 H | G40: 1RA VEDA PT: 24 H | H40: 1RA VEDA PT: 24 H | I40: 1RA VEDA PT: 24 H
A42: MAYO | B42: =+B39+1 -> 18 | C42: =C39+7 -> 2018-04-30 | D42: 2018-05-01 | E42: 2018-05-02 | F42: 2018-05-03 | G42: 2018-05-04 | H42: 2018-05-05 | I42: 2018-05-06
C43: 1RA VEDA PT: 24 H
B44: =1+B42 -> 19 | C44: =+C42+7 -> 2018-05-07 | D44: 2018-05-08 | E44: 2018-05-09 | F44: 2018-05-10 | G44: 2018-05-11 | H44: 2018-05-12 | I44: 2018-05-13
B46: 20 | C46: =+C44+7 -> 2018-05-14 | D46: 2018-05-15 | E46: 2018-05-16 | F46: 2018-05-17 | G46: 2018-05-18 | H46: 2018-05-19 | I46: 2018-05-20
B48: 21 | C48: =+C46+7 -> 2018-05-21 | D48: =+D46+7 -> 2018-05-22 | E48: 2018-05-23 | F48: 2018-05-24 | G48: 2018-05-25 | H48: 2018-05-26 | I48: 2018-05-27
B50: 22 | C50: =+C48+7 -> 2018-05-28 | D50: =+D48+7 -> 2018-05-29 | E50: 2018-05-30 | F50: 2018-05-31 | G50: 2018-06-01 | H50: 2018-06-02 | I50: 2018-06-03
A53: JUNIO | B53: =+B50+1 -> 23 | C53: =+C50+7 -> 2018-06-04 | D53: 2018-06-05 | E53: 2018-06-06 | F53: 2018-06-07 | G53: 2018-06-08 | H53: 2018-06-09 | I53: 2018-06-10
B55: =1+B53 -> 24 | C55: =+C53+7 -> 2018-06-11 | D55: 2018-06-12 | E55: 2018-06-13 | F55: 2018-06-14 | G55: 2018-06-15 | H55: 2018-06-16 | I55: 2018-06-17
B57: =1+B55 -> 25 | C57: =+C55+7 -> 2018-06-18 | D57: 2018-06-19 | E57: 2018-06-20 | F57: 2018-06-21 | G57: 2018-06-22 | H57: 2018-06-23 | I57: 2018-06-24
B59: =1+B57 -> 26 | C59: =+C57+7 -> 2018-06-25 | D59: 2018-06-26 | E59: 2018-06-27 | F59: 2018-06-28 | G59: 2018-06-29 | H59: 2018-06-30 | I59: 2018-07-01
A62: JULIO | B62: =+B59+1 -> 27 | C62: =+C59+7 -> 2018-07-02 | D62: =+D59+7 -> 2018-07-03 | E62: 2018-07-04 | F62: 2018-07-05 | G62: 2018-07-06 | H62: 2018-07-07 | I62: 2018-07-08
B64: =1+B62 -> 28 | C64: =+C62+7 -> 2018-07-09 | D64: 2018-07-10 | E64: 2018-07-11 | F64: 2018-07-12 | G64: 2018-07-13 | H64: 2018-07-14 | I64: 2018-07-15
B66: =1+B64 -> 29 | C66: =+C64+7 -> 2018-07-16 | D66: 2018-07-17 | E66: 2018-07-18 | F66: 2018-07-19 | G66: 2018-07-20 | H66: 2018-07-21 | I66: 2018-07-22
B68: =1+B66 -> 30 | C68: =+C66+7 -> 2018-07-23 | D68: 2018-07-24 | E68: 2018-07-25 | F68: 2018-07-26 | G68: 2018-07-27 | H68: 2018-07-28 | I68: 2018-07-29
A71: AGOSTO | B71: =+B68+1 -> 31 | C71: =+C68+7 -> 2018-07-30 | D71: 2018-07-31 | E71: 2018-08-01 | F71: 2018-08-02 | G71: 2018-08-03 | H71: 2018-08-04 | I71: 2018-08-05
E72: 2DA VEDA PT: 24 H | F72: 2DA VEDA PT: 24 H | G72: 2DA VEDA PT: 24 H | H72: 2DA VEDA PT: 24 H | I72: 2DA VEDA PT: 24 H
B73: =1+B71 -> 32 | C73: =+C71+7 -> 2018-08-06 | D73: 2018-08-07 | E73: 2018-08-08 | F73: 2018-08-09 | G73: 2018-08-10 | H73: 2018-08-11 | I73: 2018-08-12
C74: 2DA VEDA PT: 24 H | D74: 2DA VEDA PT: 24 H | E74: 2DA VEDA PT: 24 H | F74: 2DA VEDA PT: 24 H | G74: 2DA VEDA PT: 24 H | H74: 2DA VEDA PT: 24 H | I74: 2DA VEDA PT: 24 H
B75: 33 | C75: =+C73+7 -> 2018-08-13 | D75: 2018-08-14 | E75: 2018-08-15 | F75: 2018-08-16 | G75: 2018-08-17 | H75: 2018-08-18 | I75: 2018-08-19
C76: 2DA VEDA PT: 24 H | D76: 2DA VEDA PT: 24 H | E76: 2DA VEDA PT: 24 H | F76: 2DA VEDA PT: 24 H | G76: 2DA VEDA PT: 24 H | H76: 2DA VEDA PT: 24 H | I76: 2DA VEDA PT: 24 H
B77: 34 | C77: =+C75+7 -> 2018-08-20 | D77: 2018-08-21 | E77: 2018-08-22 | F77: 2018-08-23 | G77: 2018-08-24 | H77: 2018-08-25 | I77: 2018-08-26
C78: 2DA VEDA PT: 24 H | D78: 2DA VEDA PT: 24 H | E78: 2DA VEDA PT: 24 H | F78: 2DA VEDA PT: 24 H | G78: 2DA VEDA PT: 24 H | H78: 2DA VEDA PT: 24 H | I78: 2DA VEDA PT: 24 H
B79: 35 | C79: =+C77+7 -> 2018-08-27 | D79: 2018-08-28 | E79: 2018-08-29 | F79: 2018-08-30 | G79: 2018-08-31 | H79: 2018-09-01 | I79: 2018-09-02
C80: 2DA VEDA PT: 24 H | D80: 2DA VEDA PT: 24 H | E80: 2DA VEDA PT: 24 H | F80: 2DA VEDA PT: 24 H | G80: 2DA VEDA PT: 24 H | H80: 2DA VEDA PT: 24 H | I80: 2DA VEDA PT: 24 H
A82: SEPTIEMBRE | B82: =+B79+1 -> 36 | C82: =+C79+7 -> 2018-09-03 | D82: 2018-09-04 | E82: 2018-09-05 | F82: 2018-09-06 | G82: 2018-09-07 | H82: 2018-09-08 | I82: 2018-09-09
C83: 2DA VEDA PT: 24 H | D83: 2DA VEDA PT: 24 H | E83: 2DA VEDA PT: 24 H | F83: 2DA VEDA PT: 24 H | G83: 2DA VEDA PT: 24 H | H83: 2DA VEDA PT: 24 H | I83: 2DA VEDA PT: 24 H
B84: =1+B82 -> 37 | C84: =+C82+7 -> 2018-09-10 | D84: 2018-09-11 | E84: 2018-09-12 | F84: 2018-09-13 | G84: 2018-09-14 | H84: 2018-09-15 | I84: 2018-09-16
C85: 2DA VEDA PT: 24 H | D85: 2DA VEDA PT: 24 H | E85: 2DA VEDA PT: 24 H | F85: 2DA VEDA PT: 24 H | G85: 2DA VEDA PT: 24 H | H85: 2DA VEDA PT: 24 H | I85: 2DA VEDA PT: 24 H
B86: =1+B84 -> 38 | C86: =+C84+7 -> 2018-09-17 | D86: 2018-09-18 | E86: 2018-09-19 | F86: 2018-09-20 | G86: 2018-09-21 | H86: 2018-09-22 | I86: 2018-09-23
C87: 2DA VEDA PT: 24 H | D87: 2DA VEDA PT: 24 H | E87: 2DA VEDA PT: 24 H | F87: 2DA VEDA PT: 24 H | G87: 2DA VEDA PT: 24 H | H87: 2DA VEDA PT: 24 H | I87: 2DA VEDA PT: 24 H
B88: =1+B86 -> 39 | C88: =+C86+7 -> 2018-09-24 | D88: 2018-09-25 | E88: 2018-09-26 | F88: 2018-09-27 | G88: 2018-09-28 | H88: 2018-09-29 | I88: 2018-09-30
C89: 2DA VEDA PT: 24 H | D89: 2DA VEDA PT: 24 H | E89: 2DA VEDA PT: 24 H | F89: 2DA VEDA PT: 24 H | G89: 2DA VEDA PT: 24 H | H89: 2DA VEDA PT: 24 H | I89: 2DA VEDA PT: 24 H
A91: OCTUBRE | B91: =+B88+1 -> 40 | C91: =C88+7 -> 2018-10-01 | D91: 2018-10-02 | E91: 2018-10-03 | F91: 2018-10-04 | G91: 2018-10-05 | H91: 2018-10-06 | I91: 2018-10-07
C92: 2DA VEDA PT: 24 H | D92: 2DA VEDA PT: 24 H | E92: 2DA VEDA PT: 24 H | F92: 2DA VEDA PT: 24 H | G92: 2DA VEDA PT: 24 H | H92: 2DA VEDA PT: 24 H | I92: 2DA VEDA PT: 24 H
B93: =1+B91 -> 41 | C93: =+C91+7 -> 2018-10-08 | D93: 2018-10-09 | E93: 2018-10-10 | F93: 2018-10-11 | G93: 2018-10-12 | H93: 2018-10-13 | I93: 2018-10-14
C94: 2DA VEDA PT: 24 H | D94: 2DA VEDA PT: 24 H | E94: 2DA VEDA PT: 24 H | F94: 2DA VEDA PT: 24 H | G94: 2DA VEDA PT: 24 H | H94: 2DA VEDA PT: 24 H | I94: 2DA VEDA PT: 24 H
B95: =1+B93 -> 42 | C95: =+C93+7 -> 2018-10-15 | D95: 2018-10-16 | E95: 2018-10-17 | F95: 2018-10-18 | G95: 2018-10-19 | H95: 2018-10-20 | I95: 2018-10-21
C96: 2DA VEDA PT: 24 H | D96: 2DA VEDA PT: 24 H | E96: 2DA VEDA PT: 24 H | F96: 2DA VEDA PT: 24 H | G96: 2DA VEDA PT: 24 H | H96: 2DA VEDA PT: 24 H | I96: 2DA VEDA PT: 24 H
B97: =1+B95 -> 43 | C97: =+C95+7 -> 2018-10-22 | D97: 2018-10-23 | E97: 2018-10-24 | F97: 2018-10-25 | G97: 2018-10-26 | H97: 2018-10-27 | I97: 2018-10-28
C98: 2DA VEDA PT: 24 H | D98: 2DA VEDA PT: 24 H | E98: 2DA VEDA PT: 24 H | F98: 2DA VEDA PT: 24 H | G98: 2DA VEDA PT: 24 H | H98: 2DA VEDA PT: 24 H | I98: 2DA VEDA PT: 24 H
A100: NOVIEMBRE | B100: =+B97+1 -> 44 | C100: =+C97+7 -> 2018-10-29 | D100: 2018-10-30 | E100: 2018-10-31 | F100: 2018-11-01 | G100: 2018-11-02 | H100: 2018-11-03 | I100: 2018-11-04
C101: 2DA VEDA PT: 24 H | D101: 2DA VEDA PT: 24 H | E101: 2DA VEDA PT: 24 H | F101: 2DA VEDA PT: 24 H | G101: 2DA VEDA PT: 24 H | H101: 2DA VEDA PT: 24 H | I101: 2DA VEDA PT: 24 H
B102: =1+B100 -> 45 | C102: =+C100+7 -> 2018-11-05 | D102: 2018-11-06 | E102: 2018-11-07 | F102: 2018-11-08 | G102: 2018-11-09 | H102: 2018-11-10 | I102: 2018-11-11
C103: 2DA VEDA PT: 24 H | D103: 2DA VEDA PT: 24 H | E103: 2DA VEDA PT: 24 H | F103: 2DA VEDA PT: 24 H | G103: 2DA VEDA PT: 24 H | H103: 2DA VEDA PT: 24 H | I103: 2DA VEDA PT: 24 H
B104: 46 | C104: =+C102+7 -> 2018-11-12 | D104: 2018-11-13 | E104: 2018-11-14 | F104: 2018-11-15 | G104: 2018-11-16 | H104: 2018-11-17 | I104: 2018-11-18
C105: 2DA VEDA PT: 24 H | D105: 2DA VEDA PT: 24 H | E105: 2DA VEDA PT: 24 H | F105: 2DA VEDA PT: 24 H
B106: 47 | C106: =+C104+7 -> 2018-11-19 | D106: 2018-11-20 | E106: 2018-11-21 | F106: 2018-11-22 | G106: 2018-11-23 | H106: 2018-11-24 | I106: 2018-11-25
B108: 48 | C108: =+C106+7 -> 2018-11-26 | D108: 2018-11-27 | E108: 2018-11-28 | F108: 2018-11-29 | G108: 2018-11-30 | H108: 2018-12-01 | I108: 2018-12-02
A111: DICIEMBRE | B111: =+B108+1 -> 49 | C111: =+C108+7 -> 2018-12-03 | D111: 2018-12-04 | E111: 2018-12-05 | F111: 2018-12-06 | G111: 2018-12-07 | H111: 2018-12-08 | I111: 2018-12-09
B113: =1+B111 -> 50 | C113: =+C111+7 -> 2018-12-10 | D113: 2018-12-11 | E113: 2018-12-12 | F113: 2018-12-13 | G113: 2018-12-14 | H113: 2018-12-15 | I113: 2018-12-16
B115: =1+B113 -> 51 | C115: =+C113+7 -> 2018-12-17 | D115: 2018-12-18 | E115: 2018-12-19 | F115: 2018-12-20 | G115: 2018-12-21 | H115: 2018-12-22 | I115: 2018-12-23
B117: =1+B115 -> 52 | C117: =+C115+7 -> 2018-12-24 | D117: 2018-12-25 | E117: 2018-12-26 | F117: 2018-12-27 | G117: 2018-12-28 | H117: 2018-12-29 | I117: 2018-12-30

Sheet CALENDARIO PARADAS FORECAST (hidden)
A1: =+'CALENDARIO PARADAS BUDGET'!A1:I1 -> CALENDARIO PARADAS PLANTA PESQUERA - 2018
C3: LUNES | D3: MARTES | E3: MIERCOLES | F3: JUEVES | G3: VIERNES | H3: SABADO | I3: DOMINGO
A4: ENERO | B4: 1 | C4: 2018-01-01 | D4: 2018-01-02 | E4: 2018-01-03 | F4: 2018-01-04 | G4: 2018-01-05 | H4: 2018-01-06 | I4: 2018-01-07
B6: =1+B4 -> 2 | C6: =+C4+7 -> 2018-01-08 | D6: 2018-01-09 | E6: 2018-01-10 | F6: 2018-01-11 | G6: 2018-01-12 | H6: 2018-01-13 | I6: 2018-01-14
B8: =1+B6 -> 3 | C8: =+C6+7 -> 2018-01-15 | D8: 2018-01-16 | E8: 2018-01-17 | F8: 2018-01-18 | G8: 2018-01-19 | H8: 2018-01-20 | I8: 2018-01-21
C9: 1RA VEDA PT: 24 H | D9: 1RA VEDA PT: 24 H | E9: 1RA VEDA PT: 24 H | F9: 1RA VEDA PT: 24 H | G9: 1RA VEDA PT: 24 H | H9: 1RA VEDA PT: 24 H | I9: 1RA VEDA PT: 24 H
B10: =1+B8 -> 4 | C10: =+C8+7 -> 2018-01-22 | D10: 2018-01-23 | E10: 2018-01-24 | F10: 2018-01-25 | G10: 2018-01-26 | H10: 2018-01-27 | I10: 2018-01-28
C11: 1RA VEDA PT: 24 H | D11: 1RA VEDA PT: 24 H | E11: 1RA VEDA PT: 24 H | F11: 1RA VEDA PT: 24 H | G11: 1RA VEDA PT: 24 H | H11: 1RA VEDA PT: 24 H | I11: 1RA VEDA PT: 24 H
A13: FEBRERO | B13: =+B10+1 -> 5 | C13: =+C10+7 -> 2018-01-29 | D13: 2018-01-30 | E13: 2018-01-31 | F13: 2018-02-01 | G13: 2018-02-02 | H13: 2018-02-03 | I13: 2018-02-04
C14: 1RA VEDA PT: 24 H | D14: 1RA VEDA PT: 24 H | E14: 1RA VEDA PT: 24 H | F14: 1RA VEDA PT: 24 H | G14: 1RA VEDA PT: 24 H | H14: 1RA VEDA PT: 24 H | I14: 1RA VEDA PT: 24 H
B15: =1+B13 -> 6 | C15: =+C13+7 -> 2018-02-05 | D15: 2018-02-06 | E15: 2018-02-07 | F15: 2018-02-08 | G15: 2018-02-09 | H15: 2018-02-10 | I15: 2018-02-11
C16: 1RA VEDA PT: 24 H | D16: 1RA VEDA PT: 24 H | E16: 1RA VEDA PT: 24 H | F16: 1RA VEDA PT: 24 H | G16: 1RA VEDA PT: 24 H | H16: 1RA VEDA PT: 24 H | I16: 1RA VEDA PT: 24 H
B17: =1+B15 -> 7 | C17: =+C15+7 -> 2018-02-12 | D17: 2018-02-13 | E17: 2018-02-14 | F17: 2018-02-15 | G17: 2018-02-16 | H17: 2018-02-17 | I17: 2018-02-18
C18: 1RA VEDA PT: 24 H | D18: 1RA VEDA PT: 24 H | E18: 1RA VEDA PT: 24 H | F18: 1RA VEDA PT: 24 H | G18: 1RA VEDA PT: 24 H | H18: 1RA VEDA PT: 24 H | I18: 1RA VEDA PT: 24 H
B19: =1+B17 -> 8 | C19: =+C17+7 -> 2018-02-19 | D19: 2018-02-20 | E19: 2018-02-21 | F19: 2018-02-22 | G19: 2018-02-23 | H19: 2018-02-24 | I19: 2018-02-25
C20: 1RA VEDA PT: 24 H | D20: 1RA VEDA PT: 24 H | E20: 1RA VEDA PT: 24 H | F20: 1RA VEDA PT: 24 H | G20: 1RA VEDA PT: 24 H | H20: 1RA VEDA PT: 24 H | I20: 1RA VEDA PT: 24 H
A22: MARZO | B22: =+B19+1 -> 9 | C22: =+C19+7 -> 2018-02-26 | D22: 2018-02-27 | E22: 2018-02-28 | F22: 2018-03-01 | G22: 2018-03-02 | H22: 2018-03-03 | I22: 2018-03-04
C23: 1RA VEDA PT: 24 H | D23: 1RA VEDA PT: 24 H | E23: 1RA VEDA PT: 24 H | F23: 1RA VEDA PT: 24 H | G23: 1RA VEDA PT: 24 H | H23: 1RA VEDA PT: 24 H | I23: 1RA VEDA PT: 24 H
B24: =1+B22 -> 10 | C24: =+C22+7 -> 2018-03-05 | D24: 2018-03-06 | E24: 2018-03-07 | F24: 2018-03-08 | G24: 2018-03-09 | H24: 2018-03-10 | I24: 2018-03-11
C25: 1RA VEDA PT: 24 H | D25: 1RA VEDA PT: 24 H | E25: 1RA VEDA PT: 24 H | F25: 1RA VEDA PT: 24 H | G25: 1RA VEDA PT: 24 H | H25: 1RA VEDA PT: 24 H | I25: 1RA VEDA PT: 24 H
B26: =1+B24 -> 11 | C26: =+C24+7 -> 2018-03-12 | D26: 2018-03-13 | E26: 2018-03-14 | F26: 2018-03-15 | G26: 2018-03-16 | H26: 2018-03-17 | I26: 2018-03-18
C27: 1RA VEDA PT: 24 H | D27: 1RA VEDA PT: 24 H | E27: 1RA VEDA PT: 24 H | F27: 1RA VEDA PT: 24 H | G27: 1RA VEDA PT: 24 H | H27: 1RA VEDA PT: 24 H | I27: 1RA VEDA PT: 24 H
B28: =1+B26 -> 12 | C28: =+C26+7 -> 2018-03-19 | D28: 2018-03-20 | E28: 2018-03-21 | F28: 2018-03-22 | G28: 2018-03-23 | H28: 2018-03-24 | I28: 2018-03-25
C29: 1RA VEDA PT: 24 H | D29: 1RA VEDA PT: 24 H | E29: 1RA VEDA PT: 24 H | F29: 1RA VEDA PT: 24 H | G29: 1RA VEDA PT: 24 H | H29: 1RA VEDA PT: 24 H | I29: 1RA VEDA PT: 24 H
B30: =1+B28 -> 13 | C30: =+C28+7 -> 2018-03-26 | D30: 2018-03-27 | E30: 2018-03-28 | F30: 2018-03-29 | G30: 2018-03-30 | H30: 2018-03-31 | I30: 2018-04-01
C31: 1RA VEDA PT: 24 H | D31: 1RA VEDA PT: 24 H | E31: 1RA VEDA PT: 24 H | F31: 1RA VEDA PT: 24 H | G31: 1RA VEDA PT: 24 H | H31: 1RA VEDA PT: 24 H | I31: 1RA VEDA PT: 24 H
A33: ABRIL | B33: =+B30+1 -> 14 | C33: =+C30+7 -> 2018-04-02 | D33: 2018-04-03 | E33: 2018-04-04 | F33: 2018-04-05 | G33: 2018-04-06 | H33: 2018-04-07 | I33: 2018-04-08
C34: 1RA VEDA PT: 24 H | D34: 1RA VEDA PT: 24 H | E34: 1RA VEDA PT: 24 H | F34: 1RA VEDA PT: 24 H | G34: 1RA VEDA PT: 24 H | H34: 1RA VEDA PT: 24 H | I34: 1RA VEDA PT: 24 H
B35: =1+B33 -> 15 | C35: =+C33+7 -> 2018-04-09 | D35: 2018-04-10 | E35: 2018-04-11 | F35: 2018-04-12 | G35: 2018-04-13 | H35: 2018-04-14 | I35: 2018-04-15
C36: 1RA VEDA PT: 24 H | D36: 1RA VEDA PT: 24 H | E36: 1RA VEDA PT: 24 H | F36: 1RA VEDA PT: 24 H | G36: 1RA VEDA PT: 24 H | H36: 1RA VEDA PT: 24 H | I36: 1RA VEDA PT: 24 H
B37: =1+B35 -> 16 | C37: =+C35+7 -> 2018-04-16 | D37: 2018-04-17 | E37: 2018-04-18 | F37: 2018-04-19 | G37: 2018-04-20 | H37: 2018-04-21 | I37: 2018-04-22
C38: 1RA VEDA PT: 24 H | D38: 1RA VEDA PT: 24 H | E38: 1RA VEDA PT: 24 H | F38: 1RA VEDA PT: 24 H | G38: 1RA VEDA PT: 24 H | H38: 1RA VEDA PT: 24 H | I38: 1RA VEDA PT: 24 H
B39: =1+B37 -> 17 | C39: =+C37+7 -> 2018-04-23 | D39: 2018-04-24 | E39: 2018-04-25 | F39: 2018-04-26 | G39: 2018-04-27 | H39: 2018-04-28 | I39: 2018-04-29
C40: 1RA VEDA PT: 24 H | D40: 1RA VEDA PT: 24 H | E40: 1RA VEDA PT: 24 H | F40: 1RA VEDA PT: 24 H | G40: 1RA VEDA PT: 24 H | H40: 1RA VEDA PT: 24 H | I40: 1RA VEDA PT: 24 H
A42: MAYO | B42: =+B39+1 -> 18 | C42: =C39+7 -> 2018-04-30 | D42: 2018-05-01 | E42: 2018-05-02 | F42: 2018-05-03 | G42: 2018-05-04 | H42: 2018-05-05 | I42: 2018-05-06
C43: 1RA VEDA PT: 24 H
B44: =1+B42 -> 19 | C44: =+C42+7 -> 2018-05-07 | D44: 2018-05-08 | E44: 2018-05-09 | F44: 2018-05-10 | G44: 2018-05-11 | H44: 2018-05-12 | I44: 2018-05-13
B46: 20 | C46: =+C44+7 -> 2018-05-14 | D46: 2018-05-15 | E46: 2018-05-16 | F46: 2018-05-17 | G46: 2018-05-18 | H46: 2018-05-19 | I46: 2018-05-20
B48: 21 | C48: =+C46+7 -> 2018-05-21 | D48: =+D46+7 -> 2018-05-22 | E48: 2018-05-23 | F48: 2018-05-24 | G48: 2018-05-25 | H48: 2018-05-26 | I48: 2018-05-27
B50: 22 | C50: =+C48+7 -> 2018-05-28 | D50: =+D48+7 -> 2018-05-29 | E50: 2018-05-30 | F50: 2018-05-31 | G50: 2018-06-01 | H50: 2018-06-02 | I50: 2018-06-03
A53: JUNIO | B53: =+B50+1 -> 23 | C53: =+C50+7 -> 2018-06-04 | D53: 2018-06-05 | E53: 2018-06-06 | F53: 2018-06-07 | G53: 2018-06-08 | H53: 2018-06-09 | I53: 2018-06-10
B55: =1+B53 -> 24 | C55: =+C53+7 -> 2018-06-11 | D55: 2018-06-12 | E55: 2018-06-13 | F55: 2018-06-14 | G55: 2018-06-15 | H55: 2018-06-16 | I55: 2018-06-17
B57: =1+B55 -> 25 | C57: =+C55+7 -> 2018-06-18 | D57: 2018-06-19 | E57: 2018-06-20 | F57: 2018-06-21 | G57: 2018-06-22 | H57: 2018-06-23 | I57: 2018-06-24
B59: =1+B57 -> 26 | C59: =+C57+7 -> 2018-06-25 | D59: 2018-06-26 | E59: 2018-06-27 | F59: 2018-06-28 | G59: 2018-06-29 | H59: 2018-06-30 | I59: 2018-07-01
A62: JULIO | B62: =+B59+1 -> 27 | C62: =+C59+7 -> 2018-07-02 | D62: =+D59+7 -> 2018-07-03 | E62: 2018-07-04 | F62: 2018-07-05 | G62: 2018-07-06 | H62: 2018-07-07 | I62: 2018-07-08
B64: =1+B62 -> 28 | C64: =+C62+7 -> 2018-07-09 | D64: 2018-07-10 | E64: 2018-07-11 | F64: 2018-07-12 | G64: 2018-07-13 | H64: 2018-07-14 | I64: 2018-07-15
B66: =1+B64 -> 29 | C66: =+C64+7 -> 2018-07-16 | D66: 2018-07-17 | E66: 2018-07-18 | F66: 2018-07-19 | G66: 2018-07-20 | H66: 2018-07-21 | I66: 2018-07-22
B68: =1+B66 -> 30 | C68: =+C66+7 -> 2018-07-23 | D68: 2018-07-24 | E68: 2018-07-25 | F68: 2018-07-26 | G68: 2018-07-27 | H68: 2018-07-28 | I68: 2018-07-29
A71: AGOSTO | B71: =+B68+1 -> 31 | C71: =+C68+7 -> 2018-07-30 | D71: 2018-07-31 | E71: 2018-08-01 | F71: 2018-08-02 | G71: 2018-08-03 | H71: 2018-08-04 | I71: 2018-08-05
E72: 2DA VEDA PT: 24 H | F72: 2DA VEDA PT: 24 H | G72: 2DA VEDA PT: 24 H | H72: 2DA VEDA PT: 24 H | I72: 2DA VEDA PT: 24 H
B73: =1+B71 -> 32 | C73: =+C71+7 -> 2018-08-06 | D73: 2018-08-07 | E73: 2018-08-08 | F73: 2018-08-09 | G73: 2018-08-10 | H73: 2018-08-11 | I73: 2018-08-12
C74: 2DA VEDA PT: 24 H | D74: 2DA VEDA PT: 24 H | E74: 2DA VEDA PT: 24 H | F74: 2DA VEDA PT: 24 H | G74: 2DA VEDA PT: 24 H | H74: 2DA VEDA PT: 24 H | I74: 2DA VEDA PT: 24 H
B75: 33 | C75: =+C73+7 -> 2018-08-13 | D75: 2018-08-14 | E75: 2018-08-15 | F75: 2018-08-16 | G75: 2018-08-17 | H75: 2018-08-18 | I75: 2018-08-19
C76: 2DA VEDA PT: 24 H | D76: 2DA VEDA PT: 24 H | E76: 2DA VEDA PT: 24 H | F76: 2DA VEDA PT: 24 H | G76: 2DA VEDA PT: 24 H | H76: 2DA VEDA PT: 24 H | I76: 2DA VEDA PT: 24 H
B77: 34 | C77: =+C75+7 -> 2018-08-20 | D77: 2018-08-21 | E77: 2018-08-22 | F77: 2018-08-23 | G77: 2018-08-24 | H77: 2018-08-25 | I77: 2018-08-26
C78: 2DA VEDA PT: 24 H | D78: 2DA VEDA PT: 24 H | E78: 2DA VEDA PT: 24 H | F78: 2DA VEDA PT: 24 H | G78: 2DA VEDA PT: 24 H | H78: 2DA VEDA PT: 24 H | I78: 2DA VEDA PT: 24 H
B79: 35 | C79: =+C77+7 -> 2018-08-27 | D79: 2018-08-28 | E79: 2018-08-29 | F79: 2018-08-30 | G79: 2018-08-31 | H79: 2018-09-01 | I79: 2018-09-02
C80: 2DA VEDA PT: 24 H | D80: 2DA VEDA PT: 24 H | E80: 2DA VEDA PT: 24 H | F80: 2DA VEDA PT: 24 H | G80: 2DA VEDA PT: 24 H | H80: 2DA VEDA PT: 24 H | I80: 2DA VEDA PT: 24 H
A82: SEPTIEMBRE | B82: =+B79+1 -> 36 | C82: =+C79+7 -> 2018-09-03 | D82: 2018-09-04 | E82: 2018-09-05 | F82: 2018-09-06 | G82: 2018-09-07 | H82: 2018-09-08 | I82: 2018-09-09
C83: 2DA VEDA PT: 24 H | D83: 2DA VEDA PT: 24 H | E83: 2DA VEDA PT: 24 H | F83: 2DA VEDA PT: 24 H | G83: 2DA VEDA PT: 24 H | H83: 2DA VEDA PT: 24 H | I83: 2DA VEDA PT: 24 H
B84: =1+B82 -> 37 | C84: =+C82+7 -> 2018-09-10 | D84: 2018-09-11 | E84: 2018-09-12 | F84: 2018-09-13 | G84: 2018-09-14 | H84: 2018-09-15 | I84: 2018-09-16
C85: 2DA VEDA PT: 24 H | D85: 2DA VEDA PT: 24 H | E85: 2DA VEDA PT: 24 H | F85: 2DA VEDA PT: 24 H | G85: 2DA VEDA PT: 24 H | H85: 2DA VEDA PT: 24 H | I85: 2DA VEDA PT: 24 H
B86: =1+B84 -> 38 | C86: =+C84+7 -> 2018-09-17 | D86: 2018-09-18 | E86: 2018-09-19 | F86: 2018-09-20 | G86: 2018-09-21 | H86: 2018-09-22 | I86: 2018-09-23
C87: 2DA VEDA PT: 24 H | D87: 2DA VEDA PT: 24 H | E87: 2DA VEDA PT: 24 H | F87: 2DA VEDA PT: 24 H | G87: 2DA VEDA PT: 24 H | H87: 2DA VEDA PT: 24 H | I87: 2DA VEDA PT: 24 H
B88: =1+B86 -> 39 | C88: =+C86+7 -> 2018-09-24 | D88: 2018-09-25 | E88: 2018-09-26 | F88: 2018-09-27 | G88: 2018-09-28 | H88: 2018-09-29 | I88: 2018-09-30
C89: 2DA VEDA PT: 24 H | D89: 2DA VEDA PT: 24 H | E89: 2DA VEDA PT: 24 H | F89: 2DA VEDA PT: 24 H | G89: 2DA VEDA PT: 24 H | H89: 2DA VEDA PT: 24 H | I89: 2DA VEDA PT: 24 H
A91: OCTUBRE | B91: =+B88+1 -> 40 | C91: =C88+7 -> 2018-10-01 | D91: 2018-10-02 | E91: 2018-10-03 | F91: 2018-10-04 | G91: 2018-10-05 | H91: 2018-10-06 | I91: 2018-10-07
C92: 2DA VEDA PT: 24 H | D92: 2DA VEDA PT: 24 H | E92: 2DA VEDA PT: 24 H | F92: 2DA VEDA PT: 24 H | G92: 2DA VEDA PT: 24 H | H92: 2DA VEDA PT: 24 H | I92: 2DA VEDA PT: 24 H
B93: =1+B91 -> 41 | C93: =+C91+7 -> 2018-10-08 | D93: 2018-10-09 | E93: 2018-10-10 | F93: 2018-10-11 | G93: 2018-10-12 | H93: 2018-10-13 | I93: 2018-10-14
C94: 2DA VEDA PT: 24 H | D94: 2DA VEDA PT: 24 H | E94: 2DA VEDA PT: 24 H | F94: 2DA VEDA PT: 24 H | G94: 2DA VEDA PT: 24 H | H94: 2DA VEDA PT: 24 H | I94: 2DA VEDA PT: 24 H
B95: =1+B93 -> 42 | C95: =+C93+7 -> 2018-10-15 | D95: 2018-10-16 | E95: 2018-10-17 | F95: 2018-10-18 | G95: 2018-10-19 | H95: 2018-10-20 | I95: 2018-10-21
C96: 2DA VEDA PT: 24 H | D96: 2DA VEDA PT: 24 H | E96: 2DA VEDA PT: 24 H | F96: 2DA VEDA PT: 24 H | G96: 2DA VEDA PT: 24 H | H96: 2DA VEDA PT: 24 H | I96: 2DA VEDA PT: 24 H
B97: =1+B95 -> 43 | C97: =+C95+7 -> 2018-10-22 | D97: 2018-10-23 | E97: 2018-10-24 | F97: 2018-10-25 | G97: 2018-10-26 | H97: 2018-10-27 | I97: 2018-10-28
C98: 2DA VEDA PT: 24 H | D98: 2DA VEDA PT: 24 H | E98: 2DA VEDA PT: 24 H | F98: 2DA VEDA PT: 24 H | G98: 2DA VEDA PT: 24 H | H98: 2DA VEDA PT: 24 H | I98: 2DA VEDA PT: 24 H
A100: NOVIEMBRE | B100: =+B97+1 -> 44 | C100: =+C97+7 -> 2018-10-29 | D100: 2018-10-30 | E100: 2018-10-31 | F100: 2018-11-01 | G100: 2018-11-02 | H100: 2018-11-03 | I100: 2018-11-04
C101: 2DA VEDA PT: 24 H | D101: 2DA VEDA PT: 24 H | E101: 2DA VEDA PT: 24 H | F101: 2DA VEDA PT: 24 H | G101: 2DA VEDA PT: 24 H | H101: 2DA VEDA PT: 24 H | I101: 2DA VEDA PT: 24 H
B102: =1+B100 -> 45 | C102: =+C100+7 -> 2018-11-05 | D102: 2018-11-06 | E102: 2018-11-07 | F102: 2018-11-08 | G102: 2018-11-09 | H102: 2018-11-10 | I102: 2018-11-11
C103: 2DA VEDA PT: 24 H | D103: 2DA VEDA PT: 24 H | E103: 2DA VEDA PT: 24 H | F103: 2DA VEDA PT: 24 H | G103: 2DA VEDA PT: 24 H | H103: 2DA VEDA PT: 24 H | I103: 2DA VEDA PT: 24 H
B104: 46 | C104: =+C102+7 -> 2018-11-12 | D104: 2018-11-13 | E104: 2018-11-14 | F104: 2018-11-15 | G104: 2018-11-16 | H104: 2018-11-17 | I104: 2018-11-18
C105: 2DA VEDA PT: 24 H | D105: 2DA VEDA PT: 24 H | E105: 2DA VEDA PT: 24 H | F105: 2DA VEDA PT: 24 H
B106: 47 | C106: =+C104+7 -> 2018-11-19 | D106: 2018-11-20 | E106: 2018-11-21 | F106: 2018-11-22 | G106: 2018-11-23 | H106: 2018-11-24 | I106: 2018-11-25
B108: 48 | C108: =+C106+7 -> 2018-11-26 | D108: 2018-11-27 | E108: 2018-11-28 | F108: 2018-11-29 | G108: 2018-11-30 | H108: 2018-12-01 | I108: 2018-12-02
A111: DICIEMBRE | B111: =+B108+1 -> 49 | C111: =+C108+7 -> 2018-12-03 | D111: 2018-12-04 | E111: 2018-12-05 | F111: 2018-12-06 | G111: 2018-12-07 | H111: 2018-12-08 | I111: 2018-12-09
B113: =1+B111 -> 50 | C113: =+C111+7 -> 2018-12-10 | D113: 2018-12-11 | E113: 2018-12-12 | F113: 2018-12-13 | G113: 2018-12-14 | H113: 2018-12-15 | I113: 2018-12-16
B115: =1+B113 -> 51 | C115: =+C113+7 -> 2018-12-17 | D115: 2018-12-18 | E115: 2018-12-19 | F115: 2018-12-20 | G115: 2018-12-21 | H115: 2018-12-22 | I115: 2018-12-23
B117: =1+B115 -> 52 | C117: =+C115+7 -> 2018-12-24 | D117: 2018-12-25 | E117: 2018-12-26 | F117: 2018-12-27 | G117: 2018-12-28 | H117: 2018-12-29 | I117: 2018-12-30

Sheet ANDON PROY. (hidden)
C1: CALENDARIO 2021
C2: ANDON Planeamiento Planta Concentradora
A4: MES | B4: SEMANA | C4: L | D4: M | E4: M | F4: J | G4: V | H4: S | I4: D
A5: ENERO | G5: 1 | H5: 2 | I5: 3
B6: S1 | C6: Previos parada | D6: Previos parada | E6: Previos parada | F6: Previos parada | G6: Previos parada | H6: Previos parada | I6: Previos parada
B7: S2 | C7: Previos parada | D7: Parada de Planta | E7: Parada de Planta | F7: Parada de Planta | G7: Parada de Planta | H7: Parada de Planta | I7: Parada de Planta
B8: S3 | C8: Parada de Planta | D8: Parada de Planta | E8: Parada de Planta | F8: Parada de Planta | G8: Parada de Planta | H8: Parada de Planta | I8: Parada de Planta
B9: S4 | C9: Parada de Planta | D9: Parada de Planta | E9: 27 | F9: 28 | G9: 29 | H9: 30 | I9: 31
A10: FEBRERO | B10: S5 | C10: 1 | D10: 2 | E10: 3 | F10: 4 | G10: 5 | H10: 6 | I10: 7
B11: S6 | C11: 8 | D11: 9 | E11: 10 | F11: 11 | G11: 12 | H11: 13 | I11: 14
B12: S7 | C12: 15 | D12: 16 | E12: 17 | F12: Previos parada | G12: Previos parada | H12: Previos parada | I12: Previos parada
B13: S8 | C13: Previos parada | D13: Previos parada | E13: Previos parada | F13: Previos parada | G13: Parada de Planta | H13: Parada de Planta | I13: Parada de Planta
A14: MARZO | B14: S9 | C14: Parada de Planta | D14: Parada de Planta | E14: Parada de Planta | F14: Parada de Planta | G14: Parada de Planta | H14: Parada de Planta | I14: Parada de Planta | O14: =3*24 -> 72
B15: S10 | C15: Parada de Planta | D15: Parada de Planta | E15: Parada de Planta | F15: Parada de Planta | G15: Parada de Planta | H15: 13 | I15: 14
B16: S11 | C16: 15 | D16: 16 | E16: 17 | F16: 18 | G16: 19 | H16: 20 | I16: 21
B17: S12 | C17: 22 | D17: 23 | E17: 24 | F17: 25 | G17: 26 | H17: 27 | I17: 28
B18: S13 | C18: 29 | D18: 30 | E18: 31 | F18: 1 | G18: 2 | H18: 3 | I18: 4
A19: ABRIL | B19: S14 | C19: 5 | D19: 6 | E19: 7 | F19: 8 | G19: 9 | H19: 10 | I19: 11
B20: S15 | C20: 12 | D20: 13 | E20: 14 | F20: 15 | G20: 16 | H20: 17 | I20: 18
B21: S16 | C21: 19 | D21: 20 | E21: Parada de Planta | F21: Parada de Planta | G21: Parada de Planta | H21: Parada de Planta | I21: Parada de Planta
B22: S17 | C22: Parada de Planta | D22: Parada de Planta | E22: Parada de Planta | F22: Parada de Planta | G22: 30 | H22: 1 | I22: 2
A23: MAYO | B23: S18 | C23: 3 | D23: 4 | E23: 5 | F23: 6 | G23: 7 | H23: 8 | I23: 9
B24: S19 | C24: 10 | D24: 11 | E24: 12 | F24: 13 | G24: 14 | H24: 15 | I24: 16
B25: S20 | C25: 17 | D25: 18 | E25: 19 | F25: 20 | G25: 21 | H25: 22 | I25: 23
B26: S21 | C26: 24 | D26: 25 | E26: Previos parada | F26: Previos parada | G26: Previos parada | H26: Parada de Planta | I26: Parada de Planta
B27: S22 | C27: Parada de Planta | D27: Parada de Planta | E27: Parada de Planta | F27: Parada de Planta | G27: Parada de Planta | H27: Parada de Planta | I27: Parada de Planta
A28: JUNIO | B28: S23 | C28: Parada de Planta | D28: Parada de Planta | E28: Parada de Planta | F28: Parada de Planta | G28: Parada de Planta | H28: Parada de Planta | I28: 13
B29: S24 | C29: 14 | D29: 15 | E29: 16 | F29: 17 | G29: 18 | H29: 19 | I29: 20
B30: S25 | C30: 21 | D30: 22 | E30: 23 | F30: 24 | G30: 25 | H30: 26 | I30: 27
B31: S26 | C31: 28 | D31: 29 | E31: 30 | F31: 1 | G31: 2 | H31: 3 | I31: 4
A32: JULIO | B32: S27 | C32: Previos parada | D32: Previos parada | E32: Previos parada | F32: Previos parada | G32: Previos parada | H32: Previos parada | I32: Previos parada
B33: S28 | C33: Previos parada | D33: Parada de Planta | E33: Parada de Planta | F33: Parada de Planta | G33: Parada de Planta | H33: Parada de Planta | I33: Parada de Planta
B34: S29 | C34: Parada de Planta | D34: Parada de Planta | E34: Parada de Planta | F34: Parada de Planta | G34: Parada de Planta | H34: Parada de Planta | I34: Parada de Planta
B35: S30 | C35: Parada de Planta | D35: Parada de Planta | E35: 28 | F35: 29 | G35: 30 | H35: 31 | I35: 1
A36: AGOSTO | B36: S31 | C36: 2 | D36: 3 | E36: 4 | F36: 5 | G36: 6 | H36: 7 | I36: 8
B37: S32 | C37: 9 | D37: 10 | E37: 11 | F37: 12 | G37: 13 | H37: 14 | I37: 15
B38: S33 | C38: 16 | D38: 17 | E38: 18 | F38: Previos parada | G38: Previos parada | H38: Previos parada | I38: Previos parada
B39: S34 | C39: Previos parada | D39: Previos parada | E39: Previos parada | F39: Previos parada | G39: Parada de Planta | H39: Parada de Planta | I39: Parada de Planta
B40: S35 | C40: Parada de Planta | D40: Parada de Planta | E40: Parada de Planta | F40: Parada de Planta | G40: Parada de Planta | H40: Parada de Planta | I40: Parada de Planta
A41: SETIEMBRE | B41: S36 | C41: Parada de Planta | D41: Parada de Planta | E41: Parada de Planta | F41: Parada de Planta | G41: Parada de Planta | H41: 11 | I41: 12
B42: S37 | C42: 13 | D42: 14 | E42: 15 | F42: 16 | G42: 17 | H42: 18 | I42: 19
B43: S38 | C43: 20 | D43: 21 | E43: 22 | F43: 23 | G43: 24 | H43: 25 | I43: 26
B44: S39 | C44: 27 | D44: 28 | E44: 29 | F44: 30 | G44: 1 | H44: 2 | I44: Previos parada
A45: OCTUBRE | B45: S40 | C45: Previos parada | D45: Previos parada | E45: Previos parada | F45: Previos parada | G45: Previos parada | H45: Previos parada | I45: Previos parada
B46: S41 | C46: Parada de Planta | D46: Parada de Planta | E46: Parada de Planta | F46: Parada de Planta | G46: Parada de Planta | H46: Parada de Planta | I46: Parada de Planta
B47: S42 | C47: Parada de Planta | D47: Parada de Planta | E47: Parada de Planta | F47: Parada de Planta | G47: Parada de Planta | H47: Parada de Planta | I47: Parada de Planta
B48: S43 | C48: Parada de Planta | D48: 26 | E48: 27 | F48: 28 | G48: 29 | H48: 30 | I48: 31
A49: NOVIEMBRE | B49: S44 | C49: 1 | D49: 2 | E49: 3 | F49: 4 | G49: 5 | H49: 6 | I49: 7
B50: S45 | C50: 8 | D50: 9 | E50: 10 | F50: 11 | G50: 12 | H50: 13 | I50: 14
B51: S46 | C51: 15 | D51: 16 | E51: Previos parada | F51: Previos parada | G51: Previos parada | H51: Previos parada | I51: Previos parada
B52: S47 | C52: Previos parada | D52: Previos parada | E52: Previos parada | F52: Parada de Planta | G52: Parada de Planta | H52: Parada de Planta | I52: Parada de Planta
B53: S48 | C53: Parada de Planta | D53: Parada de Planta | E53: Parada de Planta | F53: Parada de Planta | G53: Parada de Planta | H53: Parada de Planta | I53: Parada de Planta
A54: DICIEMBRE | B54: S49 | C54: Parada de Planta | D54: Parada de Planta | E54: Parada de Planta | F54: Parada de Planta | G54: 10 | H54: 11 | I54: 12 | J54: =4*24 -> 96
B55: S50 | C55: 13 | D55: 14 | E55: 15 | F55: 16 | G55: 17 | H55: 18 | I55: 19
B56: S51 | C56: 20 | D56: 21 | E56: 22 | F56: 23 | G56: 24 | H56: 25 | I56: 26
B57: S52 | C57: 27 | D57: 28 | E57: 29 | F57: 30 | G57: 31
N59: =144/48 -> 3

Sheet ANDON
C1: CALENDARIO 2024
C2: ANDON Planeamiento Planta Concentradora
A4: MES | B4: SEMANA | C4: L | D4: M | E4: M | F4: J | G4: V | H4: S | I4: D
A5: ENERO | B5: S1 | C5: Previos parada | D5: Parada de Planta | E5: Parada de Planta | F5: Parada de Planta | G5: 5 | H5: 6 | I5: 7
B6: S2 | C6: 8 | D6: 9 | E6: 10 | F6: 11 | G6: 12 | H6: 13 | I6: 14
B7: S3 | C7: 15 | D7: 16 | E7: 17 | F7: 18 | G7: 19 | H7: 20 | I7: 21
B8: S4 | C8: 22 | D8: 23 | E8: 24 | F8: 25 | G8: 26 | H8: 27 | I8: 28
A9: FEBRERO | B9: S5 | C9: 29 | D9: 30 | E9: 31 | F9: 1 | G9: 2 | H9: 3 | I9: 4
B10: S6 | C10: 5 | D10: 6 | E10: 7 | F10: 8 | G10: 9 | H10: 10 | I10: 11
B11: S7 | C11: 12 | D11: 13 | E11: 14 | F11: 15 | G11: 16 | H11: 17 | I11: 18
B12: S8 | C12: 19 | D12: 20 | E12: 21 | F12: 22 | G12: 23 | H12: 24 | I12: 25
A13: MARZO | B13: S9 | C13: 26 | D13: 27 | E13: 28 | F13: 29 | G13: 1 | H13: 2 | I13: 3
B14: S10 | C14: 4 | D14: 5 | E14: 6 | F14: 7 | G14: 8 | H14: 9 | I14: 10 | O14: =3*24 -> 72
B15: S11 | C15: 11 | D15: 12 | E15: 13 | F15: 14 | G15: 15 | H15: 16 | I15: 17
B16: S12 | C16: 18 | D16: 19 | E16: 20 | F16: 21 | G16: 22 | H16: 23 | I16: 24
B17: S13 | C17: 25 | D17: 26 | E17: 27 | F17: 28 | G17: 29 | H17: 30 | I17: 31
A18: ABRIL | B18: S14 | C18: 1 | D18: 2 | E18: 3 | F18: 4 | G18: 5 | H18: 6 | I18: 7
B19: S15 | C19: 8 | D19: 9 | E19: 10 | F19: 11 | G19: 12 | H19: 13 | I19: 14
B20: S16 | C20: 15 | D20: 16 | E20: 17 | F20: 18 | G20: 19 | H20: 20 | I20: 21
B21: S17 | C21: 22 | D21: 23 | E21: 24 | F21: 25 | G21: 26 | H21: 27 | I21: 28
A22: MAYO | B22: S18 | C22: 29 | D22: 30 | E22: 1 | F22: 2 | G22: 3 | H22: 4 | I22: 5
B23: S19 | C23: 6 | D23: 7 | E23: 8 | F23: 9 | G23: 10 | H23: 11 | I23: 12
B24: S20 | C24: 13 | D24: 14 | E24: 15 | F24: 16 | G24: 17 | H24: 18 | I24: 19
B25: S21 | C25: 20 | D25: 21 | E25: 22 | F25: 23 | G25: 24 | H25: 25 | I25: 26
A26: JUNIO | B26: S22 | C26: 27 | D26: 28 | E26: 29 | F26: 30 | G26: 31 | H26: 1 | I26: 2
B27: S23 | C27: 3 | D27: 4 | E27: 5 | F27: 6 | G27: 7 | H27: 8 | I27: 9
B28: S24 | C28: 10 | D28: 11 | E28: 12 | F28: 13 | G28: 14 | H28: 15 | I28: 16
B29: S25 | C29: 17 | D29: 18 | E29: 19 | F29: 20 | G29: 21 | H29: 22 | I29: 23
B30: S26 | C30: 24 | D30: 25 | E30: 26 | F30: 27 | G30: 28 | H30: 29 | I30: 30
A31: JULIO | B31: S27 | C31: 1 | D31: 2 | E31: 3 | F31: 4 | G31: 5 | H31: 6 | I31: 7
B32: S28 | C32: 8 | D32: 9 | E32: 10 | F32: 11 | G32: 12 | H32: 13 | I32: 14
B33: S29 | C33: 15 | D33: 16 | E33: 17 | F33: 18 | G33: 19 | H33: 20 | I33: 21
B34: S30 | C34: 22 | D34: 23 | E34: 24 | F34: 25 | G34: 26 | H34: 27 | I34: 28
A35: AGOSTO | B35: S31 | C35: 29 | D35: 30 | E35: 31 | F35: 1 | G35: 2 | H35: 3 | I35: 4
B36: S32 | C36: 5 | D36: 6 | E36: 7 | F36: 8 | G36: 9 | H36: 10 | I36: 11
B37: S33 | C37: 12 | D37: 13 | E37: 14 | F37: 15 | G37: 16 | H37: 17 | I37: 18
B38: S34 | C38: 19 | D38: 20 | E38: 21 | F38: 22 | G38: 23 | H38: 24 | I38: 25
B39: S35 | C39: 26 | D39: 27 | E39: 28 | F39: 29 | G39: 30 | H39: 31 | I39: 1
A40: SETIEMBRE | B40: S36 | C40: 2 | D40: 3 | E40: 4 | F40: 5 | G40: 6 | H40: 7 | I40: 8
B41: S37 | C41: 9 | D41: 10 | E41: 11 | F41: 12 | G41: 13 | H41: 14 | I41: 15
B42: S38 | C42: 16 | D42: 17 | E42: 18 | F42: 19 | G42: 20 | H42: 21 | I42: 22
B43: S39 | C43: 23 | D43: 24 | E43: 25 | F43: 26 | G43: 27 | H43: 28 | I43: 29
A44: OCTUBRE | B44: S40 | C44: 30 | D44: 1 | E44: 2 | F44: 3 | G44: 4 | H44: 5 | I44: 6
B45: S41 | C45: 7 | D45: 8 | E45: 9 | F45: 10 | G45: 11 | H45: 12 | I45: 13
B46: S42 | C46: 14 | D46: 15 | E46: 16 | F46: 17 | G46: 18 | H46: 19 | I46: 20
B47: S43 | C47: 21 | D47: 22 | E47: 23 | F47: 24 | G47: 25 | H47: 26 | I47: 27
A48: NOVIEMBRE | B48: S44 | C48: 28 | D48: 29 | E48: 30 | F48: 31 | G48: 1 | H48: 2 | I48: 3
B49: S45 | C49: 4 | D49: 5 | E49: 6 | F49: 7 | G49: 8 | H49: 9 | I49: 10
B50: S46 | C50: 11 | D50: 12 | E50: 13 | F50: 14 | G50: 15 | H50: 16 | I50: 17
B51: S47 | C51: 18 | D51: 19 | E51: 20 | F51: 21 | G51: 22 | H51: 23 | I51: 24
B52: S48 | C52: 25 | D52: 26 | E52: 27 | F52: 28 | G52: 29 | H52: 30 | I52: 1
A53: DICIEMBRE | B53: S49 | C53: 2 | D53: 3 | E53: 4 | F53: 5 | G53: 6 | H53: 7 | I53: 8
B54: S50 | C54: 9 | D54: 10 | E54: 11 | F54: 12 | G54: 13 | H54: 14 | I54: 15
B55: S51 | C55: 16 | D55: 17 | E55: 18 | F55: 19 | G55: 20 | H55: 21 | I55: 22
B56: S52 | C56: 23 | D56: 24 | E56: 25 | F56: 26 | G56: 27 | H56: 28 | I56: 29
N58: =144/48 -> 3

Sheet ANDON PROY
C1: CALENDARIO 2024
C2: ANDON Planeamiento Planta Concentradora
A4: MES | B4: SEMANA | C4: L | D4: M | E4: M | F4: J | G4: V | H4: S | I4: D
A5: ENERO | B5: S1 | C5: Previos parada | D5: Parada de Planta | E5: Parada de Planta | F5: Parada de Planta | G5: 5 | H5: 6 | I5: 7
B6: S2 | C6: 8 | D6: 9 | E6: 10 | F6: 11 | G6: 12 | H6: 13 | I6: 14
B7: S3 | C7: 15 | D7: 16 | E7: 17 | F7: 18 | G7: 19 | H7: 20 | I7: 21
B8: S4 | C8: 22 | D8: 23 | E8: 24 | F8: 25 | G8: 26 | H8: 27 | I8: 28
A9: FEBRERO | B9: S5 | C9: 29 | D9: 30 | E9: 31 | F9: 1 | G9: 2 | H9: 3 | I9: 4
B10: S6 | C10: 5 | D10: 6 | E10: 7 | F10: 8 | G10: 9 | H10: 10 | I10: 11
B11: S7 | C11: 12 | D11: 13 | E11: 14 | F11: 15 | G11: 16 | H11: 17 | I11: 18
B12: S8 | C12: 19 | D12: 20 | E12: 21 | F12: 22 | G12: 23 | H12: 24 | I12: 25
A13: MARZO | B13: S9 | C13: 26 | D13: 27 | E13: 28 | F13: 29 | G13: 1 | H13: 2 | I13: 3
B14: S10 | C14: 4 | D14: 5 | E14: 6 | F14: 7 | G14: 8 | H14: 9 | I14: 10 | O14: =3*24 -> 72
B15: S11 | C15: 11 | D15: 12 | E15: 13 | F15: 14 | G15: 15 | H15: 16 | I15: 17
B16: S12 | C16: 18 | D16: 19 | E16: 20 | F16: 21 | G16: 22 | H16: 23 | I16: 24
B17: S13 | C17: 25 | D17: 26 | E17: 27 | F17: 28 | G17: 29 | H17: 30 | I17: 31
A18: ABRIL | B18: S14 | C18: 1 | D18: 2 | E18: 3 | F18: 4 | G18: 5 | H18: 6 | I18: 7
B19: S15 | C19: 8 | D19: 9 | E19: 10 | F19: 11 | G19: 12 | H19: 13 | I19: 14
B20: S16 | C20: 15 | D20: 16 | E20: 17 | F20: 18 | G20: 19 | H20: 20 | I20: 21
B21: S17 | C21: 22 | D21: 23 | E21: 24 | F21: 25 | G21: 26 | H21: 27 | I21: 28
A22: MAYO | B22: S18 | C22: 29 | D22: 30 | E22: 1 | F22: 2 | G22: 3 | H22: 4 | I22: 5
B23: S19 | C23: 6 | D23: 7 | E23: 8 | F23: 9 | G23: 10 | H23: 11 | I23: 12
B24: S20 | C24: 13 | D24: 14 | E24: 15 | F24: 16 | G24: 17 | H24: 18 | I24: 19
B25: S21 | C25: 20 | D25: 21 | E25: 22 | F25: 23 | G25: 24 | H25: 25 | I25: 26
A26: JUNIO | B26: S22 | C26: 27 | D26: 28 | E26: 29 | F26: 30 | G26: 31 | H26: 1 | I26: 2
B27: S23 | C27: 3 | D27: 4 | E27: 5 | F27: 6 | G27: 7 | H27: 8 | I27: 9
B28: S24 | C28: 10 | D28: 11 | E28: 12 | F28: 13 | G28: 14 | H28: 15 | I28: 16
B29: S25 | C29: 17 | D29: 18 | E29: 19 | F29: 20 | G29: 21 | H29: 22 | I29: 23
B30: S26 | C30: 24 | D30: 25 | E30: 26 | F30: 27 | G30: 28 | H30: 29 | I30: 30
A31: JULIO | B31: S27 | C31: 1 | D31: 2 | E31: 3 | F31: 4 | G31: 5 | H31: 6 | I31: 7
B32: S28 | C32: 8 | D32: 9 | E32: 10 | F32: 11 | G32: 12 | H32: 13 | I32: 14
B33: S29 | C33: 15 | D33: 16 | E33: 17 | F33: 18 | G33: 19 | H33: 20 | I33: 21
B34: S30 | C34: 22 | D34: 23 | E34: 24 | F34: 25 | G34: 26 | H34: 27 | I34: 28
A35: AGOSTO | B35: S31 | C35: 29 | D35: 30 | E35: 31 | F35: 1 | G35: 2 | H35: 3 | I35: 4
B36: S32 | C36: 5 | D36: 6 | E36: 7 | F36: 8 | G36: 9 | H36: 10 | I36: 11
B37: S33 | C37: 12 | D37: 13 | E37: 14 | F37: 15 | G37: 16 | H37: 17 | I37: 18
B38: S34 | C38: 19 | D38: 20 | E38: 21 | F38: 22 | G38: 23 | H38: 24 | I38: 25
B39: S35 | C39: 26 | D39: 27 | E39: 28 | F39: 29 | G39: 30 | H39: 31 | I39: 1
A40: SETIEMBRE | B40: S36 | C40: 2 | D40: 3 | E40: 4 | F40: 5 | G40: 6 | H40: 7 | I40: 8
B41: S37 | C41: 9 | D41: 10 | E41: 11 | F41: 12 | G41: 13 | H41: 14 | I41: 15
B42: S38 | C42: 16 | D42: 17 | E42: 18 | F42: 19 | G42: 20 | H42: 21 | I42: 22
B43: S39 | C43: 23 | D43: 24 | E43: 25 | F43: 26 | G43: 27 | H43: 28 | I43: 29
A44: OCTUBRE | B44: S40 | C44: 30 | D44: 1 | E44: 2 | F44: 3 | G44: 4 | H44: 5 | I44: 6
B45: S41 | C45: 7 | D45: 8 | E45: 9 | F45: 10 | G45: 11 | H45: 12 | I45: 13
B46: S42 | C46: 14 | D46: 15 | E46: 16 | F46: 17 | G46: 18 | H46: 19 | I46: 20
B47: S43 | C47: 21 | D47: 22 | E47: 23 | F47: 24 | G47: 25 | H47: 26 | I47: 27
A48: NOVIEMBRE | B48: S44 | C48: 28 | D48: 29 | E48: 30 | F48: 31 | G48: 1 | H48: 2 | I48: 3
B49: S45 | C49: 4 | D49: 5 | E49: 6 | F49: 7 | G49: 8 | H49: 9 | I49: 10
B50: S46 | C50: 11 | D50: 12 | E50: 13 | F50: 14 | G50: 15 | H50: 16 | I50: 17
B51: S47 | C51: 18 | D51: 19 | E51: 20 | F51: 21 | G51: 22 | H51: 23 | I51: 24
B52: S48 | C52: 25 | D52: 26 | E52: 27 | F52: 28 | G52: 29 | H52: 30 | I52: 1
A53: DICIEMBRE | B53: S49 | C53: 2 | D53: 3 | E53: 4 | F53: 5 | G53: 6 | H53: 7 | I53: 8
B54: S50 | C54: 9 | D54: 10 | E54: 11 | F54: 12 | G54: 13 | H54: 14 | I54: 15
B55: S51 | C55: 16 | D55: 17 | E55: 18 | F55: 19 | G55: 20 | H55: 21 | I55: 22
B56: S52 | C56: 23 | D56: 24 | E56: 25 | F56: 26 | G56: 27 | H56: 28 | I56: 29
N58: =144/48 -> 3

Sheet ANDON PROY V1 (hidden)
C1: CALENDARIO 2023
C2: ANDON Planeamiento Planta Concentradora
A4: MES | B4: SEMANA | C4: L | D4: M | E4: M | F4: J | G4: V | H4: S | I4: D
A5: ENERO | H5: 1 | I5: Previos parada
B6: S1 | C6: Previos parada | D6: Previos parada | E6: Previos parada | F6: Parada de Planta | G6: Parada de Planta | H6: Parada de Planta | I6: Parada de Planta
B7: S2 | C7: Parada de Planta | D7: Parada de Planta | E7: Parada de Planta | F7: Parada de Planta | G7: 14 | H7: 15 | I7: 16
B8: S3 | C8: 17 | D8: 18 | E8: 19 | F8: 20 | G8: 21 | H8: 22 | I8: 23
B9: S4 | C9: 24 | D9: 25 | E9: 26 | F9: 27 | G9: Previos parada | H9: Previos parada | I9: Previos parada
A10: FEBRERO | B10: S5 | C10: Previos parada | D10: Parada de Planta | E10: Parada de Planta | F10: Parada de Planta | G10: Parada de Planta | H10: 5 | I10: 6
B11: S6 | C11: 7 | D11: 8 | E11: 9 | F11: 10 | G11: 11 | H11: 12 | I11: 13
B12: S7 | C12: 14 | D12: 15 | E12: 16 | F12: 17 | G12: 18 | H12: 19 | I12: 20
B13: S8 | C13: 21 | D13: 22 | E13: 23 | F13: 24 | G13: Previos parada | H13: Previos parada | I13: Previos parada
A14: MARZO | B14: S9 | C14: Previos parada | D14: Parada de Planta | E14: Parada de Planta | F14: Parada de Planta | G14: Parada de Planta | H14: Parada de Planta | I14: 6 | O14: =3*24 -> 72
B15: S10 | C15: 7 | D15: 8 | E15: 9 | F15: 10 | G15: 11 | H15: 12 | I15: 13
B16: S11 | C16: 14 | D16: 15 | E16: 16 | F16: 17 | G16: 18 | H16: 19 | I16: 20
B17: S12 | C17: 21 | D17: 22 | E17: 23 | F17: 24 | G17: 25 | H17: 26 | I17: 27
B18: S13 | C18: Previos parada | D18: Previos parada | E18: Previos parada | F18: Previos parada | G18: Parada de Planta | H18: Parada de Planta | I18: Parada de Planta
A19: ABRIL | B19: S14 | C19: Parada de Planta | D19: Parada de Planta | E19: 6 | F19: 7 | G19: 8 | H19: 9 | I19: 10
B20: S15 | C20: 11 | D20: 12 | E20: 13 | F20: 14 | G20: 15 | H20: 16 | I20: 17
B21: S16 | C21: 18 | D21: 19 | E21: 20 | F21: 21 | G21: 22 | H21: 23 | I21: 24
B22: S17 | C22: 25 | D22: 26 | E22: Previos parada | F22: Previos parada | G22: Previos parada | H22: Previos parada | I22: Parada de Planta
A23: MAYO | B23: S18 | C23: Parada de Planta | D23: Parada de Planta | E23: Parada de Planta | F23: Parada de Planta | G23: 6 | H23: 7 | I23: 8
B24: S19 | C24: 9 | D24: 10 | E24: 11 | F24: 12 | G24: 13 | H24: 14 | I24: 15
B25: S20 | C25: 16 | D25: 17 | E25: 18 | F25: 19 | G25: 20 | H25: 21 | I25: 22
B26: S21 | C26: 23 | D26: 24 | E26: 25 | F26: 26 | G26: 27 | H26: Previos parada | I26: Previos parada
B27: S22 | C27: Previos parada | D27: Previos parada | E27: Parada de Planta | F27: Parada de Planta | G27: Parada de Planta | H27: Parada de Planta | I27: Parada de Planta
A28: JUNIO | B28: S23 | C28: 6 | D28: 7 | E28: 8 | F28: 9 | G28: 10 | H28: 11 | I28: 12
B29: S24 | C29: 13 | D29: 14 | E29: 15 | F29: 16 | G29: 17 | H29: 18 | I29: 19
B30: S25 | C30: 20 | D30: 21 | E30: 22 | F30: 23 | G30: 24 | H30: 25 | I30: 26
B31: S26 | C31: Previos parada | D31: Previos parada | E31: Previos parada | F31: Previos parada | G31: Parada de Planta | H31: Parada de Planta | I31: Parada de Planta
A32: JULIO | B32: S27 | C32: Parada de Planta | D32: Parada de Planta | E32: 6 | F32: 7 | G32: 8 | H32: 9 | I32: 10
B33: S28 | C33: 11 | D33: 12 | E33: 13 | F33: 14 | G33: 15 | H33: 16 | I33: 17
B34: S29 | C34: 18 | D34: 19 | E34: 20 | F34: 21 | G34: 22 | H34: 23 | I34: 24
B35: S30 | C35: 25 | D35: 26 | E35: 27 | F35: Previos parada | G35: Previos parada | H35: Previos parada | I35: Previos parada
A36: AGOSTO | B36: S31 | C36: Parada de Planta | D36: Parada de Planta | E36: Parada de Planta | F36: Parada de Planta | G36: Parada de Planta | H36: 6 | I36: 7
B37: S32 | C37: 8 | D37: 9 | E37: 10 | F37: 11 | G37: 12 | H37: 13 | I37: 14
B38: S33 | C38: 15 | D38: 16 | E38: 17 | F38: 18 | G38: 19 | H38: 20 | I38: 21
B39: S34 | C39: 22 | D39: 23 | E39: 24 | F39: 25 | G39: 26 | H39: 27 | I39: Previos parada
B40: S35 | C40: Previos parada | D40: Previos parada | E40: Previos parada | F40: Parada de Planta | G40: Parada de Planta | H40: Parada de Planta | I40: Parada de Planta
A41: SETIEMBRE | B41: S36 | C41: Parada de Planta | D41: 6 | E41: 7 | F41: 8 | G41: 9 | H41: 10 | I41: 11
B42: S37 | C42: 12 | D42: 13 | E42: 14 | F42: 15 | G42: 16 | H42: 17 | I42: 18
B43: S38 | C43: 19 | D43: 20 | E43: 21 | F43: 22 | G43: 23 | H43: 24 | I43: 25
B44: S39 | C44: 26 | D44: Previos parada | E44: Previos parada | F44: Previos parada | G44: Previos parada | H44: Parada de Planta | I44: Parada de Planta
A45: OCTUBRE | B45: S40 | C45: Parada de Planta | D45: Parada de Planta | E45: Parada de Planta | F45: 6 | G45: 7 | H45: 8 | I45: 9
B46: S41 | C46: 10 | D46: 11 | E46: 12 | F46: 13 | G46: 14 | H46: 15 | I46: 16
B47: S42 | C47: 17 | D47: 18 | E47: 19 | F47: 20 | G47: 21 | H47: 22 | I47: 23
B48: S43 | C48: 24 | D48: 25 | E48: 26 | F48: 27 | G48: Previos parada | H48: Previos parada | I48: Previos parada
A49: NOVIEMBRE | B49: S44 | C49: Previos parada | D49: Parada de Planta | E49: Parada de Planta | F49: Parada de Planta | G49: Parada de Planta | H49: Parada de Planta | I49: 6
B50: S45 | C50: 7 | D50: 8 | E50: 9 | F50: 10 | G50: 11 | H50: 12 | I50: 13
B51: S46 | C51: 14 | D51: 15 | E51: 16 | F51: 17 | G51: 18 | H51: 19 | I51: 20
B52: S47 | C52: 21 | D52: 22 | E52: 23 | F52: 24 | G52: 25 | H52: 26 | I52: Previos parada
B53: S48 | C53: Previos parada | D53: Previos parada | E53: Previos parada | F53: Parada de Planta | G53: Parada de Planta | H53: Parada de Planta | I53: Parada de Planta
A54: DICIEMBRE | B54: S49 | C54: Parada de Planta | D54: 6 | E54: 7 | F54: 8 | G54: 9 | H54: 10 | I54: 11
B55: S50 | C55: 12 | D55: 13 | E55: 14 | F55: 15 | G55: 16 | H55: 17 | I55: 18
B56: S51 | C56: 19 | D56: 20 | E56: 21 | F56: 22 | G56: 23 | H56: 24 | I56: 25
B57: S52 | C57: 26 | D57: 27 | E57: 28 | F57: 29 | G57: 30 | H57: 31 | I57: 1
N59: =144/48 -> 3

Sheet ANDON REAL
C1: CALENDARIO 2024
C2: ANDON Planeamiento Planta Concentradora
A4: MES | B4: SEMANA | C4: L | D4: M | E4: M | F4: J | G4: V | H4: S | I4: D
A5: ENERO | B5: S1 | C5: Previos parada | D5: Parada de Planta | E5: Parada de Planta | F5: Parada de Planta | G5: 5 | H5: 6 | I5: 7
B6: S2 | C6: 8 | D6: 9 | E6: 10 | F6: 11 | G6: 12 | H6: 13 | I6: 14
B7: S3 | C7: 15 | D7: 16 | E7: 17 | F7: 18 | G7: 19 | H7: 20 | I7: 21
B8: S4 | C8: 22 | D8: 23 | E8: 24 | F8: 25 | G8: 26 | H8: 27 | I8: 28
A9: FEBRERO | B9: S5 | C9: 29 | D9: 30 | E9: 31 | F9: 1 | G9: 2 | H9: 3 | I9: 4
B10: S6 | C10: 5 | D10: 6 | E10: 7 | F10: 8 | G10: 9 | H10: 10 | I10: 11
B11: S7 | C11: 12 | D11: 13 | E11: 14 | F11: 15 | G11: 16 | H11: 17 | I11: 18
B12: S8 | C12: 19 | D12: 20 | E12: 21 | F12: 22 | G12: 23 | H12: 24 | I12: 25
A13: MARZO | B13: S9 | C13: 26 | D13: 27 | E13: 28 | F13: 29 | G13: 1 | H13: 2 | I13: 3
B14: S10 | C14: 4 | D14: 5 | E14: 6 | F14: 7 | G14: 8 | H14: 9 | I14: 10 | O14: =3*24 -> 72
B15: S11 | C15: 11 | D15: 12 | E15: 13 | F15: 14 | G15: 15 | H15: 16 | I15: 17
B16: S12 | C16: 18 | D16: 19 | E16: 20 | F16: 21 | G16: 22 | H16: 23 | I16: 24
B17: S13 | C17: 25 | D17: 26 | E17: 27 | F17: 28 | G17: 29 | H17: 30 | I17: 31
A18: ABRIL | B18: S14 | C18: 1 | D18: 2 | E18: 3 | F18: 4 | G18: 5 | H18: 6 | I18: 7
B19: S15 | C19: 8 | D19: 9 | E19: 10 | F19: 11 | G19: 12 | H19: 13 | I19: 14
B20: S16 | C20: 15 | D20: 16 | E20: 17 | F20: 18 | G20: 19 | H20: 20 | I20: 21
B21: S17 | C21: 22 | D21: 23 | E21: 24 | F21: 25 | G21: 26 | H21: 27 | I21: 28
A22: MAYO | B22: S18 | C22: 29 | D22: 30 | E22: 1 | F22: 2 | G22: 3 | H22: 4 | I22: 5
B23: S19 | C23: 6 | D23: 7 | E23: 8 | F23: 9 | G23: 10 | H23: 11 | I23: 12
B24: S20 | C24: 13 | D24: 14 | E24: 15 | F24: 16 | G24: 17 | H24: 18 | I24: 19
B25: S21 | C25: 20 | D25: 21 | E25: 22 | F25: 23 | G25: 24 | H25: 25 | I25: 26
A26: JUNIO | B26: S22 | C26: 27 | D26: 28 | E26: 29 | F26: 30 | G26: 31 | H26: 1 | I26: 2
B27: S23 | C27: 3 | D27: 4 | E27: 5 | F27: 6 | G27: 7 | H27: 8 | I27: 9
B28: S24 | C28: 10 | D28: 11 | E28: 12 | F28: 13 | G28: 14 | H28: 15 | I28: 16
B29: S25 | C29: 17 | D29: 18 | E29: 19 | F29: 20 | G29: 21 | H29: 22 | I29: 23
B30: S26 | C30: 24 | D30: 25 | E30: 26 | F30: 27 | G30: 28 | H30: 29 | I30: 30
A31: JULIO | B31: S27 | C31: 1 | D31: 2 | E31: 3 | F31: 4 | G31: 5 | H31: 6 | I31: 7
B32: S28 | C32: 8 | D32: 9 | E32: 10 | F32: 11 | G32: 12 | H32: 13 | I32: 14
B33: S29 | C33: 15 | D33: 16 | E33: 17 | F33: 18 | G33: 19 | H33: 20 | I33: 21
B34: S30 | C34: 22 | D34: 23 | E34: 24 | F34: 25 | G34: 26 | H34: 27 | I34: 28
A35: AGOSTO | B35: S31 | C35: 29 | D35: 30 | E35: 31 | F35: 1 | G35: 2 | H35: 3 | I35: 4
B36: S32 | C36: 5 | D36: 6 | E36: 7 | F36: 8 | G36: 9 | H36: 10 | I36: 11
B37: S33 | C37: 12 | D37: 13 | E37: 14 | F37: 15 | G37: 16 | H37: 17 | I37: 18
B38: S34 | C38: 19 | D38: 20 | E38: 21 | F38: 22 | G38: 23 | H38: 24 | I38: 25
B39: S35 | C39: 26 | D39: 27 | E39: 28 | F39: 29 | G39: 30 | H39: 31 | I39: 1
A40: SETIEMBRE | B40: S36 | C40: 2 | D40: 3 | E40: 4 | F40: 5 | G40: 6 | H40: 7 | I40: 8
B41: S37 | C41: 9 | D41: 10 | E41: 11 | F41: 12 | G41: 13 | H41: 14 | I41: 15
B42: S38 | C42: 16 | D42: 17 | E42: 18 | F42: 19 | G42: 20 | H42: 21 | I42: 22
B43: S39 | C43: 23 | D43: 24 | E43: 25 | F43: 26 | G43: 27 | H43: 28 | I43: 29
A44: OCTUBRE | B44: S40 | C44: 30 | D44: 1 | E44: 2 | F44: 3 | G44: 4 | H44: 5 | I44: 6
B45: S41 | C45: 7 | D45: 8 | E45: 9 | F45: 10 | G45: 11 | H45: 12 | I45: 13
B46: S42 | C46: 14 | D46: 15 | E46: 16 | F46: 17 | G46: 18 | H46: 19 | I46: 20
B47: S43 | C47: 21 | D47: 22 | E47: 23 | F47: 24 | G47: 25 | H47: 26 | I47: 27
A48: NOVIEMBRE | B48: S44 | C48: 28 | D48: 29 | E48: 30 | F48: 31 | G48: 1 | H48: 2 | I48: 3
B49: S45 | C49: 4 | D49: 5 | E49: 6 | F49: 7 | G49: 8 | H49: 9 | I49: 10
B50: S46 | C50: 11 | D50: 12 | E50: 13 | F50: 14 | G50: 15 | H50: 16 | I50: 17
B51: S47 | C51: 18 | D51: 19 | E51: 20 | F51: 21 | G51: 22 | H51: 23 | I51: 24
B52: S48 | C52: 25 | D52: 26 | E52: 27 | F52: 28 | G52: 29 | H52: 30 | I52: 1
A53: DICIEMBRE | B53: S49 | C53: 2 | D53: 3 | E53: 4 | F53: 5 | G53: 6 | H53: 7 | I53: 8
B54: S50 | C54: 9 | D54: 10 | E54: 11 | F54: 12 | G54: 13 | H54: 14 | I54: 15
B55: S51 | C55: 16 | D55: 17 | E55: 18 | F55: 19 | G55: 20 | H55: 21 | I55: 22
B56: S52 | C56: 23 | D56: 24 | E56: 25 | F56: 26 | G56: 27 | H56: 28 | I56: 29
N58: =144/48 -> 3

Sheet PLAN ACTIVIDADES PARADAS
E1: ACTIVIDADES DE PARADAS TOTALES PLANTA CONCENTRADORAS x 52 SEMANAS - 2024
BM2: 2015 | DV2: 2016 | GE2: 2017 | IN2: 2018
E3: BUDGET PLANNING AND MAINTENANCE CONCENTRATING PLANT | M3: 2024 | BM3: ENERO | BR3: FEBRERO | BW3: MARZO | CB3: ABRIL | CG3: MAYO | CL3: JUNIO | CQ3: JULIO | CV3: AGOSTO | DA3: SEPTIEMBRE | DG3: OCTUBRE | DL3: NOVIEMBRE | DQ3: DICIEMBRE | DV3: ENERO | EA3: FEBRERO | EF3: MARZO | EK3: ABRIL | EP3: MAYO | EU3: JUNIO | EZ3: JULIO | FE3: AGOSTO | FJ3: SEPTIEMBRE | FP3: OCTUBRE | FU3: NOVIEMBRE | FZ3: DICIEMBRE | GE3: ENERO | GJ3: FEBRERO | GO3: MARZO | GT3: ABRIL | GY3: MAYO | HD3: JUNIO | HI3: JULIO | HN3: AGOSTO | HS3: SEPTIEMBRE | HY3: OCTUBRE | ID3: NOVIEMBRE | II3: DICIEMBRE | IN3: ENERO | IS3: FEBRERO | IX3: MARZO | JC3: ABRIL | JH3: MAYO | JM3: JUNIO | JR3: JULIO | JW3: AGOSTO | KB3: SEPTIEMBRE | KH3: OCTUBRE | KM3: NOVIEMBRE | KR3: DICIEMBRE
E4: HUANZALA | M4: ENERO | Q4: FEBRERO | U4: MARZO | Z4: ABRIL | AD4: MAYO | AH4: JUNIO | AM4: JULIO | AQ4: AGOSTO | AV4: SEPTIEMBRE | AZ4: OCTUBRE | BD4: NOVIEMBRE | BI4: DICIEMBRE | BM4: 1 | BN4: 2 | BO4: 3 | BP4: 4 | BQ4: 5 | BR4: 5 | BS4: 6 | BT4: 7 | BU4: 8 | BV4: 9 | BW4: 9 | BX4: 10 | BY4: 11 | BZ4: 12 | CA4: 13 | CB4: 14 | CC4: 15 | CD4: 16 | CE4: 17 | CF4: 18 | CG4: 18 | CH4: 19 | CI4: 20 | CJ4: 21 | CK4: 22 | CL4: 22 | CM4: 23 | CN4: 24 | CO4: 25 | CP4: 26 | CQ4: 27 | CR4: 28 | CS4: 29 | CT4: 30 | CU4: 31 | CV4: 31 | CW4: 32 | CX4: 33 | CY4: 34 | CZ4: 35 | DA4: 35 | DB4: 36 | DC4: 37 | DD4: 38 | DE4: 39 | DF4: 40 | DG4: 40 | DH4: 41 | DI4: 42 | DJ4: 43 | DK4: 44 | DL4: 44 | DM4: 45 | DN4: 46 | DO4: 47 | DP4: 48 | DQ4: 48 | DR4: 49 | DS4: 50 | DT4: 51 | DU4: 52 | DV4: 1 | DW4: 2 | DX4: 3 | DY4: 4 | DZ4: 5 | EA4: 5 | EB4: 6 | EC4: 7 | ED4: 8 | EE4: 9 | EF4: 9 | EG4: 10 | EH4: 11 | EI4: 12 | EJ4: 13 | EK4: 14 | EL4: 15 | EM4: 16 | EN4: 17 | EO4: 18 | EP4: 18 | EQ4: 19 | ER4: 20 | ES4: 21 | ET4: 22 | EU4: 22 | EV4: 23 | EW4: 24 | EX4: 25 | EY4: 26 | EZ4: 27 | FA4: 28 | FB4: 29 | FC4: 30 | FD4: 31 | FE4: 31 | FF4: 32 | FG4: 33 | FH4: 34 | FI4: 35 | FJ4: 35 | FK4: 36 | FL4: 37 | FM4: 38 | FN4: 39 | FO4: 40 | FP4: 40 | FQ4: 41 | FR4: 42 | FS4: 43 | FT4: 44 | FU4: 44 | FV4: 45 | FW4: 46 | FX4: 47 | FY4: 48 | FZ4: 48 | GA4: 49 | GB4: 50 | GC4: 51 | GD4: 52 | GE4: 1 | GF4: 2 | GG4: 3 | GH4: 4 | GI4: 5 | GJ4: 5 | GK4: 6 | GL4: 7 | GM4: 8 | GN4: 9 | GO4: 9 | GP4: 10 | GQ4: 11 | GR4: 12 | GS4: 13 | GT4: 14 | GU4: 15 | GV4: 16 | GW4: 17 | GX4: 18 | GY4: 18 | GZ4: 19 | HA4: 20 | HB4: 21 | HC4: 22 | HD4: 22 | HE4: 23 | HF4: 24 | HG4: 25 | HH4: 26 | HI4: 27 | HJ4: 28 | HK4: 29 | HL4: 30 | HM4: 31 | HN4: 31 | HO4: 32 | HP4: 33 | HQ4: 34 | HR4: 35 | HS4: 35 | HT4: 36 | HU4: 37 | HV4: 38 | HW4: 39 | HX4: 40 | HY4: 40 | HZ4: 41 | IA4: 42 | IB4: 43 | IC4: 44 | ID4: 44 | IE4: 45 | IF4: 46 | IG4: 47 | IH4: 48 | II4: 48 | IJ4: 49 | IK4: 50 | IL4: 51 | IM4: 52 | IN4: 1 | IO4: 2 | IP4: 3 | IQ4: 4 | IR4: 5 | IS4: 5 | IT4: 6 | IU4: 7 | IV4: 8 | IW4: 9 | IX4: 9 | IY4: 10 | IZ4: 11 | JA4: 12 | JB4: 13 | JC4: 14 | JD4: 15 | JE4: 16 | JF4: 17 | JG4: 18 | JH4: 18 | JI4: 19 | JJ4: 20 | JK4: 21 | JL4: 22 | JM4: 22 | JN4: 23 | JO4: 24 | JP4: 25 | JQ4: 26 | JR4: 27 | JS4: 28 | JT4: 29 | JU4: 30 | JV4: 31 | JW4: 31 | JX4: 32 | JY4: 33 | JZ4: 34 | KA4: 35 | KB4: 35 | KC4: 36 | KD4: 37 | KE4: 38 | KF4: 39 | KG4: 40 | KH4: 40 | KI4: 41 | KJ4: 42 | KK4: 43 | KL4: 44 | KM4: 44 | KN4: 45 | KO4: 46 | KP4: 47 | KQ4: 48 | KR4: 48 | KS4: 49 | KT4: 50 | KU4: 51 | KV4: 52
M5: 1 | N5: =M5+1 -> 2 | O5: =N5+1 -> 3 | P5: =O5+1 -> 4 | Q5: 5 | R5: 6 | S5: 7 | T5: 8 | U5: 9 | V5: 10 | W5: 11 | X5: =W5+1 -> 12 | Y5: =X5+1 -> 13 | Z5: 14 | AA5: 15 | AB5: 16 | AC5: =AB5+1 -> 17 | AD5: =AC5+1 -> 18 | AE5: 19 | AF5: 20 | AG5: 21 | AH5: =AG5+1 -> 22 | AI5: 23 | AJ5: 24 | AK5: 25 | AL5: 26 | AM5: 27 | AN5: 28 | AO5: 29 | AP5: 30 | AQ5: 31 | AR5: 32 | AS5: 33 | AT5: 34 | AU5: 35 | AV5: 36 | AW5: 37 | AX5: 38 | AY5: 39 | AZ5: 40 | BA5: 41 | BB5: 42 | BC5: 43 | BD5: 44 | BE5: 45 | BF5: 46 | BG5: 47 | BH5: 48 | BI5: 49 | BJ5: 50 | BK5: 51 | BL5: 52
A6: PLANTA BENEFICIO HUANZALA | M6: 01ENE24 - 28ENE24 | Q6: 29ENE24 - 25FEB24 | U6: 26FEB24 - 31MAR24 | Z6: 01ABR24 - 28ABR24 | AD6: 29ABR24 - 26MAY24 | AI6: 27MAY24 - 30JUN24 | AM6: 01JUL24 - 28JUL23 | AQ6: 29JUL24 - 25AGO24 | AV6: 26AGO24 - 29SET24 | AZ6: 30SET24 - 27OCT24 | BD6: 28OCT24 - 24NOV24 | BI6: 24NOV24 - 29DIC24
A7: PARADA TOTAL | H7: H PRD | J7: SEM | M7: =MAX(M9:M5000) -> 0 | N7: =MAX(N9:N5000) -> 144 | O7: =MAX(O9:O5000) -> 168 | P7: 48 | Q7: 0 | R7: 0 | S7: 0 | T7: 72 | U7: 168 | V7: 120 | W7: 0 | X7: 0 | Y7: 0 | Z7: 0 | AA7: 168 | AB7: 168 | AC7: 24 | AD7: 0 | AE7: 0 | AF7: 0 | AG7: 96 | AH7: 96 | AI7: 0 | AJ7: 0 | AL7: 0 | AM7: 24 | AN7: 168 | AO7: 168 | AP7: 0 | AQ7: 0 | AR7: 0 | AS7: 0 | AT7: 120 | AU7: 168 | AV7: 72 | AW7: 0 | AX7: 0 | AY7: 0 | AZ7: 48 | BA7: 168 | BB7: 144 | BC7: 0 | BD7: 0 | BE7: 0 | BF7: 0 | BG7: 144 | BH7: 168 | BI7: 48 | BJ7: 0 | BK7: 0 | BL7: 0 | BM7: 0 | BN7: 0 | BO7: 0 | BP7: 0 | BQ7: 0 | BR7: 0 | BS7: 0 | BT7: 0 | BU7: 0 | BV7: 0 | BW7: 0 | BX7: 0 | BY7: 0 | BZ7: =MAX(BZ9:BZ5000) -> 0 | CA7: 0 | CB7: 0 | CC7: 0 | CD7: 0 | CE7: 0 | CF7: 0 | CG7: 0 | CH7: 0 | CI7: 0 | CJ7: 0 | CK7: 0 | CL7: 0 | CM7: 0 | CN7: 0 | CO7: 0 | CP7: 0 | CQ7: 0 | CR7: 0 | CS7: 0 | CT7: 0 | CU7: 0 | CV7: 0 | CW7: 0 | CX7: 0 | CY7: 0 | CZ7: 0 | DA7: 0 | DB7: 0 | DC7: 0 | DD7: 0 | DE7: 0 | DF7: 0 | DG7: 0 | DH7: 0 | DI7: 0 | DJ7: 0 | DK7: 0 | DL7: 0 | DM7: 0 | DN7: 0 | DO7: 0 | DP7: 0 | DQ7: 0 | DR7: 0 | DS7: 0 | DT7: 0 | DU7: 0 | DV7: 0 | DW7: 0 | DX7: 0 | DY7: 0 | DZ7: 0 | EA7: 0 | EB7: 0 | EC7: 0 | ED7: 0 | EE7: 0 | EF7: 0 | EG7: 0 | EH7: 0 | EI7: 0 | EJ7: 0 | EK7: 0 | EL7: =MAX(EL9:EL5000) -> 0 | EM7: 0 | EN7: 0 | EO7: 0 | EP7: 0 | EQ7: 0 | ER7: 0 | ES7: 0 | ET7: 0 | EU7: 0 | EV7: 0 | EW7: 0 | EX7: 0 | EY7: 0 | EZ7: 0 | FA7: 0 | FB7: 0 | FC7: 0 | FD7: 0 | FE7: 0 | FF7: 0 | FG7: 0 | FH7: 0 | FI7: 0 | FJ7: 0 | FK7: 0 | FL7: 0 | FM7: 0 | FN7: 0 | FO7: 0 | FP7: 0 | FQ7: 0 | FR7: 0 | FS7: 0 | FT7: 0 | FU7: 0 | FV7: 0 | FW7: 0 | FX7: 0 | FY7: 0 | FZ7: 0 | GA7: 0 | GB7: 0 | GC7: 0 | GD7: 0 | GE7: 0 | GF7: 0 | GG7: 0 | GH7: 0 | GI7: 0 | GJ7: 0 | GK7: 0 | GL7: 0 | GM7: 0 | GN7: 0 | GO7: 0 | GP7: 0 | GQ7: 0 | GR7: 0 | GS7: 0 | GT7: 0 | GU7: 0 | GV7: 0 | GW7: 0 | GX7: =MAX(GX9:GX5000) -> 0 | GY7: 0 | GZ7: 0 | HA7: 0 | HB7: 0 | HC7: 0 | HD7: 0 | HE7: 0 | HF7: 0 | HG7: 0 | HH7: 0 | HI7: 0 | HJ7: 0 | HK7: 0 | HL7: 0 | HM7: 0 | HN7: 0 | HO7: 0 | HP7: 0 | HQ7: 0 | HR7: 0 | HS7: 0 | HT7: 0 | HU7: 0 | HV7: 0 | HW7: 0 | HX7: 0 | HY7: 0 | HZ7: 0 | IA7: 0 | IB7: 0 | IC7: 0 | ID7: 0 | IE7: 0 | IF7: 0 | IG7: 0 | IH7: 0 | II7: 0 | IJ7: 0 | IK7: 0 | IL7: 0 | IM7: 0 | IN7: 0 | IO7: 0 | IP7: 0 | IQ7: 0 | IR7: 0 | IS7: 0 | IT7: 0 | IU7: 0 | IV7: 0 | IW7: 0 | IX7: 0 | IY7: 0 | IZ7: 0 | JA7: 0 | JB7: 0 | JC7: 0 | JD7: 0 | JE7: 0 | JF7: 0 | JG7: 0 | JH7: 0 | JI7: 0 | JJ7: =MAX(JJ9:JJ5000) -> 0 | JK7: 0 | JL7: 0 | JM7: 0 | JN7: 0 | JO7: 0 | JP7: 0 | JQ7: 0 | JR7: 0 | JS7: 0 | JT7: 0 | JU7: 0 | JV7: 0 | JW7: 0 | JX7: 0 | JY7: 0 | JZ7: 0 | KA7: 0 | KB7: 0 | KC7: 0 | KD7: 0 | KE7: 0 | KF7: 0 | KG7: 0 | KH7: 0 | KI7: 0 | KJ7: 0 | KK7: 0 | KL7: 0 | KM7: 0 | KN7: 0 | KO7: 0 | KP7: 0 | KQ7: 0 | KR7: 0 | KS7: 0 | KT7: 0 | KU7: 0 | KV7: 0 | KW7: 0 | KX7: 0 | KY7: 0 | KZ7: 0 | LA7: 0
A8: ITEM | B8: CLASE1 | C8: CLASE | D8: AREA1 | E8: AREA | F8: EQUIPO | G8: DESCRIPCION DE LA ACTIVIDAD | H8: TIEMPO | I8: UNID. | J8: FREC. | K8: UNID. | L8: TIPO | M8: =+M5 -> 1 | N8: =+N5 -> 2 | O8: 3 | P8: 4 | Q8: 5 | R8: 6 | S8: 7 | T8: 8 | U8: 9 | V8: 10 | W8: 11 | X8: 12 | Y8: 13 | Z8: 14 | AA8: 15 | AB8: 16 | AC8: 17 | AD8: 18 | AE8: 19 | AF8: 20 | AG8: 21 | AH8: 22 | AI8: 23 | AJ8: 24 | AL8: 26 | AM8: 27 | AN8: 28 | AO8: 29 | AP8: 30 | AQ8: 31 | AR8: 32 | AS8: 33 | AT8: 34 | AU8: 35 | AV8: 36 | AW8: 37 | AX8: 38 | AY8: 39 | AZ8: 40 | BA8: 41 | BB8: 42 | BC8: 43 | BD8: 44 | BE8: 45 | BF8: 46 | BG8: 47 | BH8: 48 | BI8: 49 | BJ8: 50 | BK8: 51 | BL8: 52 | BN8: A | BP8: A | BS8: A | BU8: C | BX8: A | BZ8: A | CC8: A | CE8: A | CH8: A | CJ8: E | CM8: A | CO8: A | CR8: A | CT8: A | CW8: A | CY8: C | DB8: A | DD8: A | DH8: A | DJ8: A | DM8: A | DO8: C | DR8: A | DT8: A | DW8: A | DY8: A | EB8: A | ED8: C | EG8: A | EI8: A | EL8: A | EN8: A | EQ8: A | ES8: E | EV8: A | EX8: A | FA8: A | FC8: A | FF8: A | FH8: C | FK8: A | FM8: A | FQ8: A | FS8: A | FV8: A | FX8: C | GA8: A | GC8: A | GF8: A | GH8: A | GK8: A | GM8: C | GP8: A | GR8: A | GU8: A | GW8: A | GZ8: A | HB8: E | HE8: A | HG8: A | HJ8: A | HL8: A | HO8: A | HQ8: C | HT8: A | HV8: A | HZ8: A | IB8: A | IE8: A | IG8: C | IJ8: A | IL8: A | IO8: A | IQ8: A | IT8: A | IV8: C | IY8: A | JA8: A | JD8: A | JF8: A | JI8: A | JK8: E | JN8: A | JP8: A | JS8: A | JU8: A | JX8: A | JZ8: C | KC8: A | KE8: A | KI8: A | KK8: A | KN8: A | KP8: C | KS8: A | KU8: A
A9: 1 | B9: =CONCATENATE(C9,D9) -> OPEXMCH | C9: OPEXM | D9: CH | E9: CHANCADORA Y TRITURADORA | F9: bomba de lubricacion Chancadora secundaria sanvick | G9: CAMBIO DE RODAMIENTOS DELANTERO | H9: 5 | I9: Hra | J9: 62.5 | K9: DIA | L9: H | N9: =+H9 -> 5 | O9: =H9 -> 5 | P9: =H9 -> 5 | T9: =H9 -> 5 | U9: =H9 -> 5 | V9: =H9 -> 5 | AA9: =H9 -> 5 | AB9: =H9 -> 5 | AC9: =H9 -> 5 | AG9: =H9 -> 5 | AH9: =H9 -> 5 | AM9: =H9 -> 5 | AN9: =H9 -> 5 | AO9: =H9 -> 5 | AT9: =H9 -> 5 | AU9: 5 | AV9: =H9 -> 5 | AZ9: =H9 -> 5 | BA9: =H9 -> 5 | BB9: =H9*3 -> 15 | BG9: =H9*3 -> 15 | BH9: =H9 -> 5 | BI9: =H9 -> 5
A10: =+A9+1 -> 2 | B10: OPEXMCH | C10: OPEXM | D10: CH | E10: CHANCADORA Y TRITURADORA | F10: bomba de lubricacion Chancadora secundaria sanvick | G10: CAMBIO DE RODAMIENTOS POSTERIOR | H10: 5 | I10: Hra | J10: 62.5 | K10: DIA | L10: C | N10: =+H10 -> 5 | O10: =H10 -> 5 | P10: =H10 -> 5 | T10: =H10 -> 5 | U10: =H10 -> 5 | V10: =H10 -> 5 | AA10: =H10 -> 5 | AB10: =H10 -> 5 | AC10: =H10 -> 5 | AG10: =H10 -> 5 | AH10: =H10 -> 5 | AM10: =H10 -> 5 | AN10: =H10 -> 5 | AO10: =H10 -> 5 | AT10: =H10 -> 5 | AU10: =H10 -> 5 | AV10: =H10 -> 5 | AZ10: =H10 -> 5 | BA10: =H10 -> 5 | BB10: =H10*3 -> 15 | BG10: =H10*3 -> 15 | BH10: =H10 -> 5 | BI10: =H10 -> 5
A11: 3 | B11: OPEXMCH | C11: OPEXM | D11: CH | E11: CHANCADORA Y TRITURADORA | F11: bomba de lubricacion Chancadora secundaria sanvick | G11: LIMPIEZA DE ARROLLAMIENTO | H11: 5 | I11: Hra | J11: 62.5 | K11: DIA | L11: C | N11: 5 | O11: 5 | P11: 5 | T11: 5 | U11: 5 | V11: 5 | AA11: 5 | AB11: 5 | AC11: 5 | AG11: 5 | AH11: 5 | AM11: 5 | AN11: 5 | AO11: 5 | AT11: 5 | AU11: 5 | AV11: 5 | AZ11: 5 | BA11: 5 | BB11: 15 | BG11: 15 | BH11: 5 | BI11: 5
A12: 4 | B12: OPEXMCH | C12: OPEXM | D12: CH | E12: CHANCADORA Y TRITURADORA | F12: bomba de lubricacion chancadora Terciario sanvick | G12: CAMBIO DE RODAMIENTOS DELANTERO | H12: 5 | I12: Hra | J12: 62.5 | K12: DIA | L12: C | N12: 5 | O12: 5 | P12: 5 | T12: 5 | U12: 5 | V12: 5 | AA12: 5 | AB12: 5 | AC12: 5 | AG12: 5 | AH12: 5 | AM12: 5 | AN12: 5 | AO12: 5 | AT12: 5 | AU12: 5 | AV12: 5 | AZ12: 5 | BA12: 5 | BB12: 15 | BG12: 15 | BH12: 5 | BI12: 5
A13: 5 | B13: OPEXMCH | C13: OPEXM | D13: CH | E13: CHANCADORA Y TRITURADORA | F13: bomba de lubricacion chancadora Terciario sanvick | G13: CAMBIO DE RODAMIENTOS POSTERIOR | H13: 5 | I13: Hra | J13: 62.5 | K13: DIA | L13: C | N13: 5 | O13: 5 | P13: 5 | T13: 5 | U13: 5 | V13: 5 | AA13: 5 | AB13: 5 | AC13: 5 | AG13: 5 | AH13: 5 | AM13: 5 | AN13: 5 | AO13: 5 | AT13: 5 | AU13: 5 | AV13: 5 | AZ13: 5 | BA13: 5 | BB13: 15 | BG13: 15 | BH13: 5 | BI13: 5
A14: 6 | B14: OPEXMCH | C14: OPEXM | D14: CH | E14: CHANCADORA Y TRITURADORA | F14: bomba de lubricacion chancadora Terciario sanvick | G14: LIMPIEZA DE ARROLLAMIENTO | H14: 5 | I14: Hra | J14: 62.5 | K14: DIA | L14: D | N14: 5 | O14: 5 | P14: 5 | T14: 5 | U14: 5 | V14: 5 | AA14: 5 | AB14: 5 | AC14: 5 | AG14: 5 | AH14: 5 | AM14: 5 | AN14: 5 | AO14: 5 | AT14: 5 | AU14: 5 | AV14: 5 | AZ14: 5 | BA14: 5 | BB14: 15 | BG14: 15 | BH14: 5 | BI14: 5
A15: 7 | B15: OPEXMCH | C15: OPEXM | D15: CH | E15: CHANCADORA Y TRITURADORA | F15: BOMBA VERTICAL DE 2.5 ALTA EFICIENCIA DE CHANCADO PRIMARIO | G15: CAMBIO DE CANASTILLA INFERIOR | H15: 4 | I15: Hra | J15: 336 | K15: DIA | L15: C | N15: 4 | O15: 4 | P15: 4 | T15: 4 | U15: 4 | V15: 4 | AA15: 4 | AB15: 4 | AC15: 4 | AG15: 4 | AH15: 4 | AM15: 4 | AN15: 4 | AO15: 4 | AT15: 4 | AU15: 4 | AV15: 4 | AZ15: 4 | BA15: 4 | BB15: 12 | BG15: 12 | BH15: 4 | BI15: 4
A16: 8 | B16: OPEXMCH | C16: OPEXM | D16: CH | E16: CHANCADORA Y TRITURADORA | F16: BOMBA VERTICAL DE 2.5 ALTA EFICIENCIA DE CHANCADO PRIMARIO | G16: CAMBIO DE CANASTILLA SUPERIOR | H16: 4 | I16: Hra | J16: 336 | K16: DIA | L16: C | N16: 4 | O16: 4 | P16: 4 | T16: 4 | U16: 4 | V16: 4 | AA16: 4 | AB16: 4 | AC16: 4 | AG16: 4 | AH16: 4 | AM16: 4 | AN16: 4 | AO16: 4 | AT16: 4 | AU16: 4 | AV16: 4 | AZ16: 4 | BA16: 4 | BB16: 12 | BG16: 12 | BH16: 4 | BI16: 4
A17: 9 | B17: OPEXMCH | C17: OPEXM | D17: CH | E17: CHANCADORA Y TRITURADORA | F17: BOMBA VERTICAL DE 2.5 ALTA EFICIENCIA DE CHANCADO PRIMARIO | G17: CAMBIO DE COVER BOMBA 2.5 ALTA EFICIENCIA | H17: 4 | I17: Hra | J17: 168 | K17: DIA | L17: C | N17: 4 | O17: 4 | P17: 4 | T17: 4 | U17: 4 | V17: 4 | AA17: 4 | AB17: 4 | AC17: 4 | AG17: 4 | AH17: 4 | AM17: 4 | AN17: 4 | AO17: 4 | AT17: 4 | AU17: 4 | AV17: 4 | AZ17: 4 | BA17: 4 | BB17: 12 | BG17: 12 | BH17: 4 | BI17: 4
A18: 10 | B18: OPEXMCH | C18: OPEXM | D18: CH | E18: CHANCADORA Y TRITURADORA | F18: BOMBA VERTICAL DE 2.5 ALTA EFICIENCIA DE CHANCADO PRIMARIO | G18: CAMBIO DE DISCHARGE PIPE | H18: 4 | I18: Hra | J18: 1344 | K18: DIA | L18: C | N18: 4 | O18: 4 | P18: 4 | T18: 4 | U18: 4 | V18: 4 | AA18: 4 | AB18: 4 | AC18: 4 | AG18: 4 | AH18: 4 | AM18: 4 | AN18: 4 | AO18: 4 | AT18: 4 | AU18: 4 | AV18: 4 | AZ18: 4 | BA18: 4 | BB18: 12 | BG18: 12 | BH18: 4 | BI18: 4
A19: 11 | B19: OPEXMCH | C19: OPEXM | D19: CH | E19: CHANCADORA Y TRITURADORA | F19: BOMBA VERTICAL DE 2.5 ALTA EFICIENCIA DE CHANCADO PRIMARIO | G19: CAMBIO DE EJE 2 1/2" X 48 BOMBA VERTICAL ALTA EFICIENCIA NP 15 | H19: 4 | I19: Hra | J19: 1344 | K19: DIA | L19: F | N19: 4 | O19: 4 | P19: 4 | T19: 4 | U19: 4 | V19: 4 | AA19: 4 | AB19: 4 | AC19: 4 | AG19: 4 | AH19: 4 | AM19: 4 | AN19: 4 | AO19: 4 | AT19: 4 | AU19: 4 | AV19: 4 | AZ19: 4 | BA19: 4 | BB19: 12 | BG19: 12 | BH19: 4 | BI19: 4
A20: 12 | B20: OPEXMCH | C20: OPEXM | D20: CH | E20: CHANCADORA Y TRITURADORA | F20: BOMBA VERTICAL DE 2.5 ALTA EFICIENCIA DE CHANCADO PRIMARIO | G20: CAMBIO DE IMPULSOR BOMBA 2.5 ALTA EFICIENCIA | H20: 4 | I20: Hra | J20: 168 | K20: DIA | L20: C | N20: 4 | O20: 4 | P20: 4 | T20: 4 | U20: 4 | V20: 4 | AA20: 4 | AB20: 4 | AC20: 4 | AG20: 4 | AH20: 4 | AM20: 4 | AN20: 4 | AO20: 4 | AT20: 4 | AU20: 4 | AV20: 4 | AZ20: 4 | BA20: 4 | BB20: 12 | BG20: 12 | BH20: 4 | BI20: 4
A21: 13 | B21: OPEXMCH | C21: OPEXM | D21: CH | E21: CHANCADORA Y TRITURADORA | F21: BOMBA VERTICAL DE 2.5 ALTA EFICIENCIA DE CHANCADO PRIMARIO | G21: CAMBIO DE MANGUITO HA-2311 (1 5/16") | H21: 4 | I21: Hra | J21: 672 | K21: DIA | L21: D | N21: 4 | O21: 4 | P21: 4 | T21: 4 | U21: 4 | V21: 4 | AA21: 4 | AB21: 4 | AC21: 4 | AG21: 4 | AH21: 4 | AM21: 4 | AN21: 4 | AO21: 4 | AT21: 4 | AU21: 4 | AV21: 4 | AZ21: 4 | BA21: 4 | BB21: 12 | BG21: 12 | BH21: 4 | BI21: 4
A22: 14 | B22: OPEXMCH | C22: OPEXM | D22: CH | E22: CHANCADORA Y TRITURADORA | F22: BOMBA VERTICAL DE 2.5 ALTA EFICIENCIA DE CHANCADO PRIMARIO | G22: CAMBIO DE MANGUITO HA-2313 (2 5/16") | H22: 4 | I22: Hra | J22: 672 | K22: DIA | L22: G | N22: 4 | O22: 4 | P22: 4 | T22: 4 | U22: 4 | V22: 4 | AA22: 4 | AB22: 4 | AC22: 4 | AG22: 4 | AH22: 4 | AM22: 4 | AN22: 4 | AO22: 4 | AT22: 4 | AU22: 4 | AV22: 4 | AZ22: 4 | BA22: 4 | BB22: 12 | BG22: 12 | BH22: 4 | BI22: 4
A23: 15 | B23: OPEXMCH | C23: OPEXM | D23: CH | E23: CHANCADORA Y TRITURADORA | F23: BOMBA VERTICAL DE 2.5 ALTA EFICIENCIA DE CHANCADO PRIMARIO | G23: CAMBIO DE PUM CASING BOMBA 2.5 ALTA EFICIENCIA | H23: 4 | I23: Hra | J23: 168 | K23: DIA | L23: C | N23: 4 | O23: 4 | P23: 4 | T23: 4 | U23: 4 | V23: 4 | AA23: 4 | AB23: 4 | AC23: 4 | AG23: 4 | AH23: 4 | AM23: 4 | AN23: 4 | AO23: 4 | AT23: 4 | AU23: 4 | AV23: 4 | AZ23: 4 | BA23: 4 | BB23: 12 | BG23: 12 | BH23: 4 | BI23: 4
A24: 16 | B24: OPEXMCH | C24: OPEXM | D24: CH | E24: CHANCADORA Y TRITURADORA | F24: BOMBA VERTICAL DE 2.5 ALTA EFICIENCIA DE CHANCADO PRIMARIO | G24: CAMBIO DE RETEN INFERIOR (55.56X82.55X11.11) | H24: 4 | I24: Hra | J24: 336 | K24: DIA | L24: C | N24: 4 | O24: 4 | P24: 4 | T24: 4 | U24: 4 | V24: 4 | AA24: 4 | AB24: 4 | AC24: 4 | AG24: 4 | AH24: 4 | AM24: 4 | AN24: 4 | AO24: 4 | AT24: 4 | AU24: 4 | AV24: 4 | AZ24: 4 | BA24: 4 | BB24: 12 | BG24: 12 | BH24: 4 | BI24: 4
A25: 17 | B25: OPEXMCH | C25: OPEXM | D25: CH | E25: CHANCADORA Y TRITURADORA | F25: BOMBA VERTICAL DE 2.5 ALTA EFICIENCIA DE CHANCADO PRIMARIO | G25: CAMBIO DE RETEN SUPERIOR CR-19359 (2020220014 RETEN 19359 BV-2.5-022) | H25: 4 | I25: Hra | J25: 336 | K25: DIA | L25: D | N25: 4 | O25: 4 | P25: 4 | T25: 4 | U25: 4 | V25: 4 | AA25: 4 | AB25: 4 | AC25: 4 | AG25: 4 | AH25: 4 | AM25: 4 | AN25: 4 | AO25: 4 | AT25: 4 | AU25: 4 | AV25: 4 | AZ25: 4 | BA25: 4 | BB25: 12 | BG25: 12 | BH25: 4 | BI25: 4
A26: 18 | B26: OPEXMCH | C26: OPEXM | D26: CH | E26: CHANCADORA Y TRITURADORA | F26: BOMBA VERTICAL DE 2.5 ALTA EFICIENCIA DE CHANCADO PRIMARIO | G26: CAMBIO DE RODAMIENTO 22311 KCJW | H26: 4 | I26: Hra | J26: 336 | K26: DIA | L26: D | N26: 4 | O26: 4 | P26: 4 | T26: 4 | U26: 4 | V26: 4 | AA26: 4 | AB26: 4 | AC26: 4 | AG26: 4 | AH26: 4 | AM26: 4 | AN26: 4 | AO26: 4 | AT26: 4 | AU26: 4 | AV26: 4 | AZ26: 4 | BA26: 4 | BB26: 12 | BG26: 12 | BH26: 4 | BI26: 4
A27: 19 | B27: OPEXMCH | C27: OPEXM | D27: CH | E27: CHANCADORA Y TRITURADORA | F27: BOMBA VERTICAL DE 2.5 ALTA EFICIENCIA DE CHANCADO PRIMARIO | G27: CAMBIO DE RODAMIENTO 22313 KCJW | H27: 4 | I27: Hra | J27: 336 | K27: DIA | L27: C | N27: 4 | O27: 4 | P27: 4 | T27: 4 | U27: 4 | V27: 4 | AA27: 4 | AB27: 4 | AC27: 4 | AG27: 4 | AH27: 4 | AM27: 4 | AN27: 4 | AO27: 4 | AT27: 4 | AU27: 4 | AV27: 4 | AZ27: 4 | BA27: 4 | BB27: 12 | BG27: 12 | BH27: 4 | BI27: 4
A28: 20 | B28: OPEXMCH | C28: OPEXM | D28: CH | E28: CHANCADORA Y TRITURADORA | F28: BOMBA VERTICAL DE 2.5 ALTA EFICIENCIA DE CHANCADO PRIMARIO | G28: CAMBIO DE RODAMIENTO 22313 KCJW | H28: 4 | I28: Hra | J28: 672 | K28: DIA | L28: C | N28: 4 | O28: 4 | P28: 4 | T28: 4 | U28: 4 | V28: 4 | AA28: 4 | AB28: 4 | AC28: 4 | AG28: 4 | AH28: 4 | AM28: 4 | AN28: 4 | AO28: 4 | AT28: 4 | AU28: 4 | AV28: 4 | AZ28: 4 | BA28: 4 | BB28: 12 | BG28: 12 | BH28: 4 | BI28: 4
A29: 21 | B29: OPEXMCH | C29: OPEXM | D29: CH | E29: CHANCADORA Y TRITURADORA | F29: CADENA ALIMENTADORA ( APRON FEEDER) QA1548 | G29: MANTTO DE CADENA APRON FEEDER | H29: 5 | I29: Hra | J29: 1620 | K29: DIA | L29: D | N29: 5 | O29: 5 | P29: 5 | T29: 5 | U29: 5 | V29: 5 | AA29: 5 | AB29: 5 | AC29: 5 | AG29: 5 | AH29: 5 | AM29: 5 | AN29: 5 | AO29: 5 | AT29: 5 | AU29: 5 | AV29: 5 | AZ29: 5 | BA29: 5 | BB29: 15 | BG29: 15 | BH29: 5 | BI29: 5
A30: 22 | B30: OPEXMCH | C30: OPEXM | D30: CH | E30: CHANCADORA Y TRITURADORA | F30: CADENA ALIMENTADORA ( APRON FEEDER) QA1548 | G30: MANTTO DE CADENA APRON FEEDER | H30: 5 | I30: Hra | J30: 2046.3125 | K30: DIA | L30: D | N30: 5 | O30: 5 | P30: 5 | T30: 5 | U30: 5 | V30: 5 | AA30: 5 | AB30: 5 | AC30: 5 | AG30: 5 | AH30: 5 | AM30: 5 | AN30: 5 | AO30: 5 | AT30: 5 | AU30: 5 | AV30: 5 | AZ30: 5 | BA30: 5 | BB30: 15 | BG30: 15 | BH30: 5 | BI30: 5
A31: 23 | B31: OPEXMCH | C31: OPEXM | D31: CH | E31: CHANCADORA Y TRITURADORA | F31: CADENA ALIMENTADORA ( APRON FEEDER) QA1548 | G31: MANTTO DE CADENA APRON FEEDER | H31: 5 | I31: Hra | J31: 5400 | K31: DIA | L31: C | N31: 5 | O31: 5 | P31: 5 | T31: 5 | U31: 5 | V31: 5 | AA31: 5 | AB31: 5 | AC31: 5 | AG31: 5 | AH31: 5 | AM31: 5 | AN31: 5 | AO31: 5 | AT31: 5 | AU31: 5 | AV31: 5 | AZ31: 5 | BA31: 5 | BB31: 15 | BG31: 15 | BH31: 5 | BI31: 5
A32: 24 | B32: OPEXMCH | C32: OPEXM | D32: CH | E32: CHANCADORA Y TRITURADORA | F32: Cedazo # 01 - Vibratorio de alta frecuencia YOKAYAMI | G32: CAMBIO DE MALLA | H32: 6 | I32: Hra | J32: 130.9090909 | K32: DIA | L32: C | N32: 6 | O32: 6 | P32: 6 | T32: 6 | U32: 6 | V32: 6 | AA32: 6 | AB32: 6 | AC32: 6 | AG32: 6 | AH32: 6 | AM32: 6 | AN32: 6 | AO32: 6 | AT32: 6 | AU32: 6 | AV32: 6 | AZ32: 6 | BA32: 6 | BB32: 18 | BG32: 18 | BH32: 6 | BI32: 6
A33: 25 | B33: OPEXMCH | C33: OPEXM | D33: CH | E33: CHANCADORA Y TRITURADORA | F33: Cedazo # 02 - Vibratorio Simplicity 7x14 | G33: CAMBIO DE MALLA | H33: 6 | I33: Hra | J33: 65.45454545 | K33: DIA | L33: E | N33: 6 | O33: 6 | P33: 6 | T33: 6 | U33: 6 | V33: 6 | AA33: 6 | AB33: 6 | AC33: 6 | AG33: 6 | AH33: 6 | AM33: 6 | AN33: 6 | AO33: 6 | AT33: 6 | AU33: 6 | AV33: 6 | AZ33: 6 | BA33: 6 | BB33: 18 | BG33: 18 | BH33: 6 | BI33: 6
A34: 26 | B34: OPEXMCH | C34: OPEXM | D34: CH | E34: CHANCADORA Y TRITURADORA | F34: Cedazo # 02 - Vibratorio Simplicity 7x14 | G34: CAMBIO DE MALLA | H34: 6 | I34: Hra | J34: 130.9090909 | K34: DIA | L34: E | N34: 6 | O34: 6 | P34: 6 | T34: 6 | U34: 6 | V34: 6 | AA34: 6 | AB34: 6 | AC34: 6 | AG34: 6 | AH34: 6 | AM34: 6 | AN34: 6 | AO34: 6 | AT34: 6 | AU34: 6 | AV34: 6 | AZ34: 6 | BA34: 6 | BB34: 18 | BG34: 18 | BH34: 6 | BI34: 6
A35: 27 | B35: OPEXMCH | C35: OPEXM | D35: CH | E35: CHANCADORA Y TRITURADORA | F35: Cedazo # 02 - Vibratorio Simplicity 7x14 | G35: CAMBIO DE MALLA | H35: 6 | I35: Hra | J35: 261.8181818 | K35: DIA | L35: E | N35: 6 | O35: 6 | P35: 6 | T35: 6 | U35: 6 | V35: 6 | AA35: 6 | AB35: 6 | AC35: 6 | AG35: 6 | AH35: 6 | AM35: 6 | AN35: 6 | AO35: 6 | AT35: 6 | AU35: 6 | AV35: 6 | AZ35: 6 | BA35: 6 | BB35: 18 | BG35: 18 | BH35: 6 | BI35: 6
A36: 28 | B36: OPEXMCH | C36: OPEXM | D36: CH | E36: CHANCADORA Y TRITURADORA | F36: Cedazo # 02 - Vibratorio Simplicity 7x14 | G36: CAMBIO DE MALLA | H36: 6 | I36: Hra | J36: 523.6363636 | K36: DIA | L36: C | N36: 6 | O36: 6 | P36: 6 | T36: 6 | U36: 6 | V36: 6 | AA36: 6 | AB36: 6 | AC36: 6 | AG36: 6 | AH36: 6 | AM36: 6 | AN36: 6 | AO36: 6 | AT36: 6 | AU36: 6 | AV36: 6 | AZ36: 6 | BA36: 6 | BB36: 18 | BG36: 18 | BH36: 6 | BI36: 6
A37: 29 | B37: OPEXMCH | C37: OPEXM | D37: CH | E37: CHANCADORA Y TRITURADORA | F37: CHANCADORA PRIMARIA OTSUKA FS4840 | G37: CAMBIO DE 1151 FORRO LATERAL SUPER. DERE./IZQUI. (JGO X 02 PZAS) | H37: 4.5 | I37: Hra | J37: 1282.5 | K37: DIA | L37: C | N37: 4.5 | O37: 4.5 | P37: 4.5 | T37: 4.5 | U37: 4.5 | V37: 4.5 | AA37: 4.5 | AB37: 4.5 | AC37: 4.5 | AG37: 4.5 | AH37: 4.5 | AM37: 4.5 | AN37: 4.5 | AO37: 4.5 | AT37: 4.5 | AU37: 4.5 | AV37: 4.5 | AZ37: 4.5 | BA37: 4.5 | BB37: 13.5 | BG37: 13.5 | BH37: 4.5 | BI37: 4.5
A38: 30 | B38: OPEXMCH | C38: OPEXM | D38: CH | E38: CHANCADORA Y TRITURADORA | F38: CHANCADORA PRIMARIA OTSUKA FS4840 | G38: CAMBIO DE 1161 FORRO LATERAL INFER. DERE./IZQUI. (JGO X 02 PZAS) | H38: 4.5 | I38: Hra | J38: 1282.5 | K38: DIA | L38: C | N38: 4.5 | O38: 4.5 | P38: 4.5 | T38: 4.5 | U38: 4.5 | V38: 4.5 | AA38: 4.5 | AB38: 4.5 | AC38: 4.5 | AG38: 4.5 | AH38: 4.5 | AM38: 4.5 | AN38: 4.5 | AO38: 4.5 | AT38: 4.5 | AU38: 4.5 | AV38: 4.5 | AZ38: 4.5 | BA38: 4.5 | BB38: 13.5 | BG38: 13.5 | BH38: 4.5 | BI38: 4.5
A39: 31 | B39: OPEXMCH | C39: OPEXM | D39: CH | E39: CHANCADORA Y TRITURADORA | F39: CHANCADORA PRIMARIA OTSUKA FS4840 | G39: CAMBIO DE 1191 FIXED JAW PLATE (M-1796-01) | H39: 2.5 | I39: Hra | J39: 641.25 | K39: DIA | L39: C | N39: 2.5 | O39: 2.5 | P39: 2.5 | T39: 2.5 | U39: 2.5 | V39: 2.5 | AA39: 2.5 | AB39: 2.5 | AC39: 2.5 | AG39: 2.5 | AH39: 2.5 | AM39: 2.5 | AN39: 2.5 | AO39: 2.5 | AT39: 2.5 | AU39: 2.5 | AV39: 72 | AZ39: 2.5 | BA39: 2.5 | BB39: 7.5 | BG39: 7.5 | BH39: 2.5 | BI39: 2.5
A40: 32 | B40: OPEXMCH | C40: OPEXM | D40: CH | E40: CHANCADORA Y TRITURADORA | F40: CHANCADORA PRIMARIA OTSUKA FS4840 | G40: CAMBIO DE 2059-1 SQUARE HEAD BOLT M48X650X130MM | H40: 2.5 | I40: Hra | J40: 1282.5 | K40: DIA | L40: C | N40: 2.5 | O40: 2.5 | P40: 2.5 | T40: 2.5 | U40: 2.5 | V40: 2.5 | AA40: 2.5 | AB40: 2.5 | AC40: 2.5 | AG40: 2.5 | AH40: 2.5 | AM40: 2.5 | AN40: 2.5 | AO40: 2.5 | AT40: 2.5 | AU40: 2.5 | AV40: 2.5 | AZ40: 2.5 | BA40: 2.5 | BB40: 7.5 | BG40: 7.5 | BH40: 2.5 | BI40: 2.5
A41: 33 | B41: OPEXMCH | C41: OPEXM | D41: CH | E41: CHANCADORA Y TRITURADORA | F41: CHANCADORA PRIMARIA OTSUKA FS4840 | G41: CAMBIO DE 2059-2 SQUARE BOLTS M-48X700X130 | H41: 2.5 | I41: Hra | J41: 641.25 | K41: DIA | L41: C | N41: 2.5 | O41: 2.5 | P41: 2.5 | T41: 2.5 | U41: 2.5 | V41: 2.5 | AA41: 2.5 | AB41: 2.5 | AC41: 2.5 | AG41: 2.5 | AH41: 2.5 | AM41: 2.5 | AN41: 2.5 | AO41: 2.5 | AT41: 2.5 | AU41: 2.5 | AV41: 2.5 | AZ41: 2.5 | BA41: 2.5 | BB41: 7.5 | BG41: 7.5 | BH41: 2.5 | BI41: 2.5
A42: 34 | B42: OPEXMCH | C42: OPEXM | D42: CH | E42: CHANCADORA Y TRITURADORA | F42: CHANCADORA PRIMARIA OTSUKA FS4840 | G42: CAMBIO DE 2059-3 SQUARE LOWER BOLT M48 X 940 X 130 CON DOBLE TUERCA | H42: 2.5 | I42: Hra | J42: 641.25 | K42: DIA | L42: C | N42: 2.5 | O42: 2.5 | P42: 2.5 | T42: 2.5 | U42: 2.5 | V42: 2.5 | AA42: 2.5 | AB42: 2.5 | AC42: 2.5 | AG42: 2.5 | AH42: 2.5 | AM42: 2.5 | AN42: 2.5 | AO42: 2.5 | AT42: 2.5 | AU42: 2.5 | AV42: 2.5 | AZ42: 2.5 | BA42: 2.5 | BB42: 7.5 | BG42: 7.5 | BH42: 2.5 | BI42: 2.5
A43: 35 | B43: OPEXMCH | C43: OPEXM | D43: CH | E43: CHANCADORA Y TRITURADORA | F43: CHANCADORA PRIMARIA OTSUKA FS4840 | G43: CAMBIO DE 2059-3 SQUARE LOWER BOLT M48X940X130MM | H43: 2.5 | I43: Hra | J43: 641.25 | K43: DIA | L43: D | N43: 2.5 | O43: 2.5 | P43: 2.5 | T43: 2.5 | U43: 2.5 | V43: 2.5 | AA43: 2.5 | AB43: 2.5 | AC43: 2.5 | AG43: 2.5 | AH43: 2.5 | AM43: 2.5 | AN43: 2.5 | AO43: 2.5 | AT43: 2.5 | AU43: 2.5 | AV43: 2.5 | AZ43: 2.5 | BA43: 2.5 | BB43: 7.5 | BG43: 7.5 | BH43: 2.5 | BI43: 2.5
A44: 36 | B44: OPEXMCH | C44: OPEXM | D44: CH | E44: CHANCADORA Y TRITURADORA | F44: CHANCADORA PRIMARIA OTSUKA FS4840 | G44: CAMBIO DE 2061 JAW PLATE STOPPER | H44: 6.5 | I44: Hra | J44: 2565 | K44: DIA | L44: C | N44: 6.5 | O44: 6.5 | P44: 6.5 | T44: 6.5 | U44: 6.5 | V44: 6.5 | AA44: 6.5 | AB44: 6.5 | AC44: 6.5 | AG44: 6.5 | AH44: 6.5 | AM44: 6.5 | AN44: 6.5 | AO44: 6.5 | AT44: 6.5 | AU44: 6.5 | AV44: 6.5 | AZ44: 6.5 | BA44: 6.5 | BB44: 19.5 | BG44: 19.5 | BH44: 6.5 | BI44: 6.5
A45: 37 | B45: OPEXMCH | C45: OPEXM | D45: CH | E45: CHANCADORA Y TRITURADORA | F45: CHANCADORA PRIMARIA OTSUKA FS4840 | G45: CAMBIO DE 2081 MOVABLE JAW PLATE (M-1796-02) | H45: 2.5 | I45: Hra | J45: 641.25 | K45: DIA | L45: F | N45: 2.5 | O45: 2.5 | P45: 2.5 | T45: 2.5 | U45: 2.5 | V45: 2.5 | AA45: 2.5 | AB45: 2.5 | AC45: 2.5 | AG45: 2.5 | AH45: 2.5 | AM45: 2.5 | AN45: 2.5 | AO45: 2.5 | AT45: 2.5 | AU45: 2.5 | AV45: 72 | AZ45: 2.5 | BA45: 2.5 | BB45: 7.5 | BG45: 7.5 | BH45: 2.5 | BI45: 2.5
A46: 38 | B46: OPEXMCH | C46: OPEXM | D46: CH | E46: CHANCADORA Y TRITURADORA | F46: CHANCADORA PRIMARIA OTSUKA FS4840 | G46: CAMBIO DE 3029 ROLLERBEARING SKF22356C3(FRAME) | H46: 12 | I46: Hra | J46: 20520 | K46: DIA | L46: C | N46: 12 | O46: 12 | P46: 12 | T46: 12 | U46: 12 | V46: 12 | AA46: 12 | AB46: 12 | AC46: 12 | AG46: 12 | AH46: 12 | AM46: 12 | AN46: 12 | AO46: 12 | AT46: 12 | AU46: 12 | AV46: 12 | AZ46: 12 | BA46: 12 | BB46: 36 | BG46: 36 | BH46: 12 | BI46: 12
A47: 39 | B47: OPEXMCH | C47: OPEXM | D47: CH | E47: CHANCADORA Y TRITURADORA | F47: CHANCADORA PRIMARIA OTSUKA FS4840 | G47: CAMBIO DE 3061 LABYRINTH COLLAR | H47: 18 | I47: Hra | J47: 20520 | K47: DIA | L47: D | N47: 18 | O47: 18 | P47: 18 | T47: 18 | U47: 18 | V47: 18 | AA47: 18 | AB47: 18 | AC47: 18 | AG47: 18 | AH47: 18 | AM47: 18 | AN47: 18 | AO47: 18 | AT47: 18 | AU47: 18 | AV47: 18 | AZ47: 18 | BA47: 18 | BB47: 54 | BG47: 54 | BH47: 18 | BI47: 18
A48: 40 | B48: OPEXMCH | C48: OPEXM | D48: CH | E48: CHANCADORA Y TRITURADORA | F48: CHANCADORA PRIMARIA OTSUKA FS4840 | G48: CAMBIO DE 3161 LABYRINTH COLLAR INNER SIDE | H48: 18 | I48: Hra | J48: 20520 | K48: DIA | L48: D | N48: 18 | O48: 18 | P48: 18 | T48: 18 | U48: 18 | V48: 18 | AA48: 18 | AB48: 18 | AC48: 18 | AG48: 18 | AH48: 18 | AM48: 18 | AN48: 18 | AO48: 18 | AT48: 18 | AU48: 18 | AV48: 18 | AZ48: 18 | BA48: 18 | BB48: 54 | BG48: 54 | BH48: 18 | BI48: 18
A49: 41 | B49: OPEXMCH | C49: OPEXM | D49: CH | E49: CHANCADORA Y TRITURADORA | F49: CHANCADORA PRIMARIA OTSUKA FS4840 | G49: CAMBIO DE 4021 TOGGLE HEAD | H49: 12 | I49: Hra | J49: 1282.5 | K49: DIA | L49: C | N49: 12 | O49: 12 | P49: 12 | T49: 12 | U49: 12 | V49: 12 | AA49: 12 | AB49: 12 | AC49: 12 | AG49: 12 | AH49: 12 | AM49: 12 | AN49: 12 | AO49: 12 | AT49: 12 | AU49: 12 | AV49: 12 | AZ49: 12 | BA49: 12 | BB49: 36 | BG49: 36 | BH49: 12 | BI49: 12
A50: 42 | B50: OPEXMCH | C50: OPEXM | D50: CH | E50: CHANCADORA Y TRITURADORA | F50: CHANCADORA PRIMARIA OTSUKA FS4840 | G50: CAMBIO DE 4021-2 TOGGLE SEAT | H50: 12 | I50: Hra | J50: 1282.5 | K50: DIA | L50: C | N50: 12 | O50: 12 | P50: 12 | T50: 12 | U50: 12 | V50: 12 | AA50: 12 | AB50: 12 | AC50: 12 | AG50: 12 | AH50: 12 | AM50: 12 | AN50: 12 | AO50: 12 | AT50: 12 | AU50: 12 | AV50: 12 | AZ50: 12 | BA50: 12 | BB50: 36 | BG50: 36 | BH50: 12 | BI50: 12
A51: 43 | B51: OPEXMCH | C51: OPEXM | D51: CH | E51: CHANCADORA Y TRITURADORA | F51: CHANCADORA PRIMARIA OTSUKA FS4840 | G51: CAMBIO DE 4241 TENSION ROD. M-48X1040 | H51: 2.5 | I51: Hra | J51: 641.25 | K51: DIA | L51: D | N51: 2.5 | O51: 2.5 | P51: 2.5 | T51: 2.5 | U51: 2.5 | V51: 2.5 | AA51: 2.5 | AB51: 2.5 | AC51: 2.5 | AG51: 2.5 | AH51: 2.5 | AM51: 2.5 | AN51: 2.5 | AO51: 2.5 | AT51: 2.5 | AU51: 2.5 | AV51: 2.5 | AZ51: 2.5 | BA51: 2.5 | BB51: 7.5 | BG51: 7.5 | BH51: 2.5 | BI51: 2.5
A52: 44 | B52: OPEXMCH | C52: OPEXM | D52: CH | E52: CHANCADORA Y TRITURADORA | F52: CHANCADORA PRIMARIA OTSUKA FS4840 | G52: CAMBIO DE 4251 SPRING F/TENSION ORD | H52: 2.5 | I52: Hra | J52: 641.25 | K52: DIA | L52: D | N52: 2.5 | O52: 2.5 | P52: 2.5 | T52: 2.5 | U52: 2.5 | V52: 2.5 | AA52: 2.5 | AB52: 2.5 | AC52: 2.5 | AG52: 2.5 | AH52: 2.5 | AM52: 2.5 | AN52: 2.5 | AO52: 2.5 | AT52: 2.5 | AU52: 2.5 | AV52: 2.5 | AZ52: 2.5 | BA52: 2.5 | BB52: 7.5 | BG52: 7.5 | BH52: 2.5 | BI52: 2.5
A53: 45 | B53: OPEXMCH | C53: OPEXM | D53: CH | E53: CHANCADORA Y TRITURADORA | F53: CHANCADORA PRIMARIA OTSUKA FS4840 | G53: CAMBIO DE 4331 TOGGLE BLOCK SPRING | H53: 6.5 | I53: Hra | J53: 2565 | K53: DIA | L53: C | N53: 6.5 | O53: 6.5 | P53: 6.5 | T53: 6.5 | U53: 6.5 | V53: 6.5 | AA53: 6.5 | AB53: 6.5 | AC53: 6.5 | AG53: 6.5 | AH53: 6.5 | AM53: 6.5 | AN53: 6.5 | AO53: 6.5 | AT53: 6.5 | AU53: 6.5 | AV53: 6.5 | AZ53: 6.5 | BA53: 6.5 | BB53: 19.5 | BG53: 19.5 | BH53: 6.5 | BI53: 6.5
A54: 46 | B54: OPEXMCH | C54: OPEXM | D54: CH | E54: CHANCADORA Y TRITURADORA | F54: CHANCADORA PRIMARIA OTSUKA FS4840 | G54: CAMBIO DE 442793201 RING | H54: 2.5 | I54: Hra | J54: 1282.5 | K54: DIA | L54: C | N54: 2.5 | O54: 2.5 | P54: 2.5 | T54: 2.5 | U54: 2.5 | V54: 2.5 | AA54: 2.5 | AB54: 2.5 | AC54: 2.5 | AG54: 2.5 | AH54: 2.5 | AM54: 2.5 | AN54: 2.5 | AO54: 2.5 | AT54: 2.5 | AU54: 2.5 | AV54: 2.5 | AZ54: 2.5 | BA54: 2.5 | BB54: 7.5 | BG54: 7.5 | BH54: 2.5 | BI54: 2.5
A55: 47 | B55: OPEXMCH | C55: OPEXM | D55: CH | E55: CHANCADORA Y TRITURADORA | F55: CHANCADORA PRIMARIA OTSUKA FS4840 | G55: CAMBIO DE 900064800 ADAPTER G1BXG3/4B | H55: 3 | I55: Hra | J55: 1282.5 | K55: DIA | L55: D | N55: 3 | O55: 3 | P55: 3 | T55: 3 | U55: 3 | V55: 3 | AA55: 3 | AB55: 3 | AC55: 3 | AG55: 3 | AH55: 3 | AM55: 3 | AN55: 3 | AO55: 3 | AT55: 3 | AU55: 3 | AV55: 3 | AZ55: 3 | BA55: 3 | BB55: 9 | BG55: 9 | BH55: 3 | BI55: 3
A56: 48 | B56: OPEXMCH | C56: OPEXM | D56: CH | E56: CHANCADORA Y TRITURADORA | F56: CHANCADORA PRIMARIA OTSUKA FS4840 | G56: CAMBIO DE 900065500 ADAPTER G3/4BXG3/4B | H56: 3 | I56: Hra | J56: 1282.5 | K56: DIA | L56: D | N56: 3 | O56: 3 | P56: 3 | T56: 3 | U56: 3 | V56: 3 | AA56: 3 | AB56: 3 | AC56: 3 | AG56: 3 | AH56: 3 | AM56: 3 | AN56: 3 | AO56: 3 | AT56: 3 | AU56: 3 | AV56: 3 | AZ56: 3 | BA56: 3 | BB56: 9 | BG56: 9 | BH56: 3 | BI56: 3
A57: 49 | B57: OPEXMCH | C57: OPEXM | D57: CH | E57: CHANCADORA Y TRITURADORA | F57: CHANCADORA PRIMARIA OTSUKA FS4840 | G57: CAMBIO DE BOLT F/CHECK PLATE M42X170X100MM P1059 | H57: 2.5 | I57: Hra | J57: 641.25 | K57: DIA | L57: C | N57: 2.5 | O57: 2.5 | P57: 2.5 | T57: 2.5 | U57: 2.5 | V57: 2.5 | AA57: 2.5 | AB57: 2.5 | AC57: 2.5 | AG57: 2.5 | AH57: 2.5 | AM57: 2.5 | AN57: 2.5 | AO57: 2.5 | AT57: 2.5 | AU57: 2.5 | AV57: 2.5 | AZ57: 2.5 | BA57: 2.5 | BB57: 7.5 | BG57: 7.5 | BH57: 2.5 | BI57: 2.5
A58: 50 | B58: OPEXMCH | C58: OPEXM | D58: CH | E58: CHANCADORA Y TRITURADORA | F58: CHANCADORA PRIMARIA OTSUKA FS4840 | G58: CAMBIO DE COIL SPRING F/BOLT JAW FIXED MOVABLE | H58: 2.5 | I58: Hra | J58: 1282.5 | K58: DIA | L58: C | N58: 2.5 | O58: 2.5 | P58: 2.5 | T58: 2.5 | U58: 2.5 | V58: 2.5 | AA58: 2.5 | AB58: 2.5 | AC58: 2.5 | AG58: 2.5 | AH58: 2.5 | AM58: 2.5 | AN58: 2.5 | AO58: 2.5 | AT58: 2.5 | AU58: 2.5 | AV58: 2.5 | AZ58: 2.5 | BA58: 2.5 | BB58: 7.5 | BG58: 7.5 | BH58: 2.5 | BI58: 2.5
A59: 51 | B59: OPEXMCH | C59: OPEXM | D59: CH | E59: CHANCADORA Y TRITURADORA | F59: CHANCADORA PRIMARIA OTSUKA FS4840 | G59: CAMBIO DE E-405 V-BELTS | H59: 3.5 | I59: Hra | J59: 2565 | K59: DIA | L59: E | N59: 3.5 | O59: 3.5 | P59: 3.5 | T59: 3.5 | U59: 3.5 | V59: 3.5 | AA59: 3.5 | AB59: 3.5 | AC59: 3.5 | AG59: 3.5 | AH59: 3.5 | AM59: 3.5 | AN59: 3.5 | AO59: 3.5 | AT59: 3.5 | AU59: 3.5 | AV59: 3.5 | AZ59: 3.5 | BA59: 3.5 | BB59: 10.5 | BG59: 10.5 | BH59: 3.5 | BI59: 3.5
A60: 52 | B60: OPEXMCH | C60: OPEXM | D60: CH | E60: CHANCADORA Y TRITURADORA | F60: CHANCADORA PRIMARIA OTSUKA FS4840 | G60: CAMBIO DE PIN DE TENSION ROD | H60: 4.5 | I60: Hra | J60: 1282.5 | K60: DIA | L60: E | N60: 4.5 | O60: 4.5 | P60: 4.5 | T60: 4.5 | U60: 4.5 | V60: 4.5 | AA60: 4.5 | AB60: 4.5 | AC60: 4.5 | AG60: 4.5 | AH60: 4.5 | AM60: 4.5 | AN60: 4.5 | AO60: 4.5 | AT60: 4.5 | AU60: 4.5 | AV60: 4.5 | AZ60: 4.5 | BA60: 4.5 | BB60: 13.5 | BG60: 13.5 | BH60: 4.5 | BI60: 4.5
A61: 53 | B61: OPEXMCH | C61: OPEXM | D61: CH | E61: CHANCADORA Y TRITURADORA | F61: CHANCADORA SECUNDARIA SANDVIK CONE CRUSHER CH430 | G61: CAMBIO DE 442.8017-01 DUST SEAL RING | H61: 3.5 | I61: Hra | J61: 285 | K61: DIA | L61: E | N61: 3.5 | O61: 3.5 | P61: 3.5 | T61: 3.5 | U61: 3.5 | V61: 3.5 | AA61: 3.5 | AB61: 3.5 | AC61: 3.5 | AG61: 3.5 | AH61: 3.5 | AM61: 3.5 | AN61: 3.5 | AO61: 3.5 | AT61: 3.5 | AU61: 3.5 | AV61: 3.5 | AZ61: 3.5 | BA61: 3.5 | BB61: 10.5 | BG61: 10.5 | BH61: 3.5 | BI61: 3.5
A62: 54 | B62: OPEXMCH | C62: OPEXM | D62: CH | E62: CHANCADORA Y TRITURADORA | F62: CHANCADORA SECUNDARIA SANDVIK CONE CRUSHER CH430 | G62: CAMBIO DE 442647001 SEAL RING (CHANCAD. SANDV) | H62: 2.5 | I62: Hra | J62: 142.5 | K62: DIA | L62: C | N62: 2.5 | O62: 2.5 | P62: 2.5 | T62: 2.5 | U62: 2.5 | V62: 2.5 | AA62: 2.5 | AB62: 2.5 | AC62: 2.5 | AG62: 2.5 | AH62: 2.5 | AM62: 2.5 | AN62: 2.5 | AO62: 2.5 | AT62: 2.5 | AU62: 2.5 | AV62: 2.5 | AZ62: 2.5 | BA62: 2.5 | BB62: 7.5 | BG62: 7.5 | BH62: 2.5 | BI62: 2.5
A63: 55 | B63: OPEXMCH | C63: OPEXM | D63: CH | E63: CHANCADORA Y TRITURADORA | F63: CHANCADORA SECUNDARIA SANDVIK CONE CRUSHER CH430 | G63: CAMBIO DE 442647301 SPIDER BUSHING | H63: 12 | I63: Hra | J63: 285 | K63: DIA | L63: C | N63: 12 | O63: 12 | P63: 12 | T63: 12 | U63: 12 | V63: 12 | AA63: 12 | AB63: 12 | AC63: 12 | AG63: 12 | AH63: 12 | AM63: 12 | AN63: 12 | AO63: 12 | AT63: 12 | AU63: 12 | AV63: 12 | AZ63: 12 | BA63: 12 | BB63: 36 | BG63: 36 | BH63: 12 | BI63: 12
A64: 56 | B64: OPEXMCH | C64: OPEXM | D64: CH | E64: CHANCADORA Y TRITURADORA | F64: CHANCADORA SECUNDARIA SANDVIK CONE CRUSHER CH430 | G64: CAMBIO DE 442789201 HYDR.CYL. BUSCHING | H64: 6 | I64: Hra | J64: 1140 | K64: DIA | L64: C | N64: 6 | O64: 6 | P64: 6 | T64: 6 | U64: 6 | V64: 6 | AA64: 6 | AB64: 6 | AC64: 6 | AG64: 6 | AH64: 6 | AM64: 6 | AN64: 6 | AO64: 6 | AT64: 6 | AU64: 6 | AV64: 6 | AZ64: 6 | BA64: 6 | BB64: 18 | BG64: 18 | BH64: 6 | BI64: 6
A65: 57 | B65: OPEXMCH | C65: OPEXM | D65: CH | E65: CHANCADORA Y TRITURADORA | F65: CHANCADORA SECUNDARIA SANDVIK CONE CRUSHER CH430 | G65: CAMBIO DE 442789301 PISTON WEARING PL | H65: 6 | I65: Hra | J65: 285 | K65: DIA | L65: D | N65: 6 | O65: 6 | P65: 6 | T65: 6 | U65: 6 | V65: 6 | AA65: 6 | AB65: 6 | AC65: 6 | AG65: 6 | AH65: 6 | AM65: 6 | AN65: 6 | AO65: 6 | AT65: 6 | AU65: 6 | AV65: 6 | AZ65: 6 | BA65: 6 | BB65: 18 | BG65: 18 | BH65: 6 | BI65: 6
A66: 58 | B66: OPEXMCH | C66: OPEXM | D66: CH | E66: CHANCADORA Y TRITURADORA | F66: CHANCADORA SECUNDARIA SANDVIK CONE CRUSHER CH430 | G66: CAMBIO DE 442789401 STEP WASHER | H66: 3.5 | I66: Hra | J66: 285 | K66: DIA | L66: C | N66: 3.5 | O66: 3.5 | P66: 3.5 | T66: 3.5 | U66: 3.5 | V66: 3.5 | AA66: 3.5 | AB66: 3.5 | AC66: 3.5 | AG66: 3.5 | AH66: 3.5 | AM66: 3.5 | AN66: 3.5 | AO66: 3.5 | AT66: 3.5 | AU66: 3.5 | AV66: 3.5 | AZ66: 3.5 | BA66: 3.5 | BB66: 10.5 | BG66: 10.5 | BH66: 3.5 | BI66: 3.5
A67: 59 | B67: OPEXMCH | C67: OPEXM | D67: CH | E67: CHANCADORA Y TRITURADORA | F67: CHANCADORA SECUNDARIA SANDVIK CONE CRUSHER CH430 | G67: CAMBIO DE 442789501 MAIN SHAFT STEP | H67: 6 | I67: Hra | J67: 285 | K67: DIA | L67: C | N67: 6 | O67: 6 | P67: 6 | T67: 6 | U67: 6 | V67: 6 | AA67: 6 | AB67: 6 | AC67: 6 | AG67: 6 | AH67: 6 | AM67: 6 | AN67: 6 | AO67: 6 | AT67: 6 | AU67: 6 | AV67: 6 | AZ67: 6 | BA67: 6 | BB67: 18 | BG67: 18 | BH67: 6 | BI67: 6
A68: 60 | B68: OPEXMCH | C68: OPEXM | D68: CH | E68: CHANCADORA Y TRITURADORA | F68: CHANCADORA SECUNDARIA SANDVIK CONE CRUSHER CH430 | G68: CAMBIO DE 442791101 BURNING RING | H68: 2 | I68: Hra | J68: 142.5 | K68: DIA | L68: C | N68: 2 | O68: 2 | P68: 2 | T68: 2 | U68: 2 | V68: 2 | AA68: 2 | AB68: 2 | AC68: 2 | AG68: 2 | AH68: 2 | AM68: 2 | AN68: 2 | AO68: 2 | AT68: 2 | AU68: 2 | AV68: 2 | AZ68: 2 | BA68: 2 | BB68: 6 | BG68: 6 | BH68: 2 | BI68: 2
A69: 61 | B69: OPEXMCH | C69: OPEXM | D69: CH | E69: CHANCADORA Y TRITURADORA | F69: CHANCADORA SECUNDARIA SANDVIK CONE CRUSHER CH430 | G69: CAMBIO DE 442791200 HEAD NUT WITH BUR | H69: 3.5 | I69: Hra | J69: 570 | K69: DIA | L69: C | N69: 3.5 | O69: 3.5 | P69: 3.5 | T69: 3.5 | U69: 3.5 | V69: 3.5 | AA69: 3.5 | AB69: 3.5 | AC69: 3.5 | AG69: 3.5 | AH69: 3.5 | AM69: 3.5 | AN69: 3.5 | AO69: 3.5 | AT69: 3.5 | AU69: 3.5 | AV69: 3.5 | AZ69: 3.5 | BA69: 3.5 | BB69: 10.5 | BG69: 10.5 | BH69: 3.5 | BI69: 3.5
A70: 62 | B70: OPEXMCH | C70: OPEXM | D70: CH | E70: CHANCADORA Y TRITURADORA | F70: CHANCADORA SECUNDARIA SANDVIK CONE CRUSHER CH430 | G70: CAMBIO DE 442791301 MAIN SHAFT SLEEVE | H70: 6 | I70: Hra | J70: 285 | K70: DIA | L70: C | N70: 6 | O70: 6 | P70: 6 | T70: 6 | U70: 6 | V70: 6 | AA70: 6 | AB70: 6 | AC70: 6 | AG70: 6 | AH70: 6 | AM70: 6 | AN70: 6 | AO70: 6 | AT70: 6 | AU70: 6 | AV70: 6 | AZ70: 6 | BA70: 6 | BB70: 18 | BG70: 18 | BH70: 6 | BI70: 6
A71: 63 | B71: OPEXMCH | C71: OPEXM | D71: CH | E71: CHANCADORA Y TRITURADORA | F71: CHANCADORA SECUNDARIA SANDVIK CONE CRUSHER CH430 | G71: CAMBIO DE 442791401 PROTECTION OF WEARING DOWN FOR ARM | H71: 4.5 | I71: Hra | J71: 570 | K71: DIA | L71: C | N71: 4.5 | O71: 4.5 | P71: 4.5 | T71: 4.5 | U71: 4.5 | V71: 4.5 | AA71: 4.5 | AB71: 4.5 | AC71: 4.5 | AG71: 4.5 | AH71: 4.5 | AM71: 4.5 | AN71: 4.5 | AO71: 4.5 | AT71: 4.5 | AU71: 4.5 | AV71: 4.5 | AZ71: 4.5 | BA71: 4.5 | BB71: 13.5 | BG71: 13.5 | BH71: 4.5 | BI71: 4.5
A72: 64 | B72: OPEXMCH | C72: OPEXM | D72: CH | E72: CHANCADORA Y TRITURADORA | F72: CHANCADORA SECUNDARIA SANDVIK CONE CRUSHER CH430 | G72: CAMBIO DE 442791501 PROTECTION OF WEARING DWN IN BOX OF NECKLACE | H72: 4.5 | I72: Hra | J72: 570 | K72: DIA | L72: C | N72: 4.5 | O72: 4.5 | P72: 4.5 | T72: 4.5 | U72: 4.5 | V72: 4.5 | AA72: 4.5 | AB72: 4.5 | AC72: 4.5 | AG72: 4.5 | AH72: 4.5 | AM72: 4.5 | AN72: 4.5 | AO72: 4.5 | AT72: 4.5 | AU72: 4.5 | AV72: 4.5 | AZ72: 4.5 | BA72: 4.5 | BB72: 13.5 | BG72: 13.5 | BH72: 4.5 | BI72: 4.5
A73: 65 | B73: =CONCATENATE(C73,D73) -> OPEXMCH | C73: OPEXM | D73: CH | E73: CHANCADORA Y TRITURADORA | F73: CHANCADORA SECUNDARIA SANDVIK CONE CRUSHER CH430 | G73: CAMBIO DE 442793101 SEAL RING INNER | H73: 3 | I73: Hra | J73: 1140 | K73: DIA | L73: C | N73: 3 | O73: 3 | P73: 3 | T73: 3 | U73: 3 | V73: 3 | AA73: 3 | AB73: 3 | AC73: 3 | AG73: 3 | AH73: 3 | AM73: 3 | AN73: 3 | AO73: 3 | AT73: 3 | AU73: 3 | AV73: 3 | AZ73: 3 | BA73: 3 | BB73: 9 | BG73: 9 | BH73: 3 | BI73: 3
A74: =+A73+1 -> 66 | B74: OPEXMCH | C74: OPEXM | D74: CH | E74: CHANCADORA Y TRITURADORA | F74: CHANCADORA SECUNDARIA SANDVIK CONE CRUSHER CH430 | G74: CAMBIO DE 442793401 GASKET | H74: 3 | I74: Hra | J74: 570 | K74: DIA | L74: C | N74: =+H74 -> 3 | O74: =H74 -> 3 | P74: =H74 -> 3 | T74: =H74 -> 3 | U74: =H74 -> 3 | V74: =H74 -> 3 | AA74: =H74 -> 3 | AB74: =H74 -> 3 | AC74: =H74 -> 3 | AG74: =H74 -> 3 | AH74: =H74 -> 3 | AM74: =H74 -> 3 | AN74: =H74 -> 3 | AO74: =H74 -> 3 | AT74: =H74 -> 3 | AU74: =H74 -> 3 | AV74: =H74 -> 3 | AZ74: =H74 -> 3 | BA74: =H74 -> 3 | BB74: =H74*3 -> 9 | BG74: =H74*3 -> 9 | BH74: =H74 -> 3 | BI74: =H74 -> 3
A75: 67 | B75: OPEXMCH | C75: OPEXM | D75: CH | E75: CHANCADORA Y TRITURADORA | F75: CHANCADORA SECUNDARIA SANDVIK CONE CRUSHER CH430 | G75: CAMBIO DE 442797601 SPIDER CAP | H75: 6 | I75: Hra | J75: 1140 | K75: DIA | L75: C | N75: 6 | O75: 6 | P75: 6 | T75: 6 | U75: 6 | V75: 6 | AA75: 6 | AB75: 6 | AC75: 6 | AG75: 6 | AH75: 6 | AM75: 6 | AN75: 6 | AO75: 6 | AT75: 6 | AU75: 6 | AV75: 6 | AZ75: 6 | BA75: 6 | BB75: 18 | BG75: 18 | BH75: 6 | BI75: 6
A76: 68 | B76: OPEXMCH | C76: OPEXM | D76: CH | E76: CHANCADORA Y TRITURADORA | F76: CHANCADORA SECUNDARIA SANDVIK CONE CRUSHER CH430 | G76: CAMBIO DE 442798600 FEED HOPPER CONE LH | H76: 4 | I76: Hra | J76: 570 | K76: DIA | L76: C | N76: 4 | O76: 4 | P76: 4 | T76: 4 | U76: 4 | V76: 4 | AA76: 4 | AB76: 4 | AC76: 4 | AG76: 4 | AH76: 4 | AM76: 4 | AN76: 4 | AO76: 4 | AT76: 4 | AU76: 4 | AV76: 4 | AZ76: 4 | BA76: 4 | BB76: 12 | BG76: 12 | BH76: 4 | BI76: 4
A77: 69 | B77: OPEXMCH | C77: OPEXM | D77: CH | E77: CHANCADORA Y TRITURADORA | F77: CHANCADORA SECUNDARIA SANDVIK CONE CRUSHER CH430 | G77: CAMBIO DE 442798690 FEED HOPPER CONE RH | H77: 4 | I77: Hra | J77: 570 | K77: DIA | L77: G | N77: 4 | O77: 4 | P77: 4 | T77: 4 | U77: 4 | V77: 4 | AA77: 4 | AB77: 4 | AC77: 4 | AG77: 4 | AH77: 4 | AM77: 4 | AN77: 4 | AO77: 4 | AT77: 4 | AU77: 4 | AV77: 4 | AZ77: 4 | BA77: 4 | BB77: 12 | BG77: 12 | BH77: 4 | BI77: 4
A78: 70 | B78: OPEXMCH | C78: OPEXM | D78: CH | E78: CHANCADORA Y TRITURADORA | F78: CHANCADORA SECUNDARIA SANDVIK CONE CRUSHER CH430 | G78: CAMBIO DE 442798901 MANTLE B (CHANCAD. SANDV) | H78: 6 | I78: Hra | J78: 142.5 | K78: DIA | L78: G | N78: 6 | O78: 6 | P78: 6 | T78: 6 | U78: 6 | V78: 6 | AA78: 6 | AB78: 6 | AC78: 6 | AG78: 6 | AH78: 6 | AM78: 6 | AN78: 6 | AO78: 6 | AT78: 6 | AU78: 6 | AV78: 6 | AZ78: 6 | BA78: 6 | BB78: 18 | BG78: 18 | BH78: 6 | BI78: 6
A79: 71 | B79: OPEXMCH | C79: OPEXM | D79: CH | E79: CHANCADORA Y TRITURADORA | F79: CHANCADORA SECUNDARIA SANDVIK CONE CRUSHER CH430 | G79: CAMBIO DE 442802101 RETAINER | H79: 6 | I79: Hra | J79: 1140 | K79: DIA | L79: D | N79: 6 | O79: 6 | P79: 6 | T79: 6 | U79: 6 | V79: 6 | AA79: 6 | AB79: 6 | AC79: 6 | AG79: 6 | AH79: 6 | AM79: 6 | AN79: 6 | AO79: 6 | AT79: 6 | AU79: 6 | AV79: 6 | AZ79: 6 | BA79: 6 | BB79: 18 | BG79: 18 | BH79: 6 | BI79: 6
A80: 72 | B80: OPEXMCH | C80: OPEXM | D80: CH | E80: CHANCADORA Y TRITURADORA | F80: CHANCADORA SECUNDARIA SANDVIK CONE CRUSHER CH430 | G80: CAMBIO DE 442802201 SCRAPER | H80: 5.5 | I80: Hra | J80: 1140 | K80: DIA | L80: C | N80: 5.5 | O80: 5.5 | P80: 5.5 | T80: 5.5 | U80: 5.5 | V80: 5.5 | AA80: 5.5 | AB80: 5.5 | AC80: 5.5 | AG80: 5.5 | AH80: 5.5 | AM80: 5.5 | AN80: 5.5 | AO80: 5.5 | AT80: 5.5 | AU80: 5.5 | AV80: 5.5 | AZ80: 5.5 | BA80: 5.5 | BB80: 16.5 | BG80: 16.5 | BH80: 5.5 | BI80: 5.5
A81: 73 | B81: OPEXMCH | C81: OPEXM | D81: CH | E81: CHANCADORA Y TRITURADORA | F81: CHANCADORA SECUNDARIA SANDVIK CONE CRUSHER CH430 | G81: CAMBIO DE 442824901 CONCAVE EC-EC2 | H81: 8 | I81: Hra | J81: 142.5 | K81: DIA | L81: C | N81: 8 | O81: 8 | P81: 8 | T81: 8 | U81: 8 | V81: 8 | AA81: 8 | AB81: 8 | AC81: 8 | AG81: 8 | AH81: 8 | AM81: 8 | AN81: 8 | AO81: 8 | AT81: 8 | AU81: 8 | AV81: 8 | AZ81: 8 | BA81: 8 | BB81: 24 | BG81: 24 | BH81: 8 | BI81: 8
A82: 74 | B82: OPEXMCH | C82: OPEXM | D82: CH | E82: CHANCADORA Y TRITURADORA | F82: CHANCADORA SECUNDARIA SANDVIK CONE CRUSHER CH430 | G82: CAMBIO DE 442886401 WEARING DOWN PLATE | H82: 3 | I82: Hra | J82: 570 | K82: DIA | L82: C | N82: 3 | O82: 3 | P82: 3 | T82: 3 | U82: 3 | V82: 3 | AA82: 3 | AB82: 3 | AC82: 3 | AG82: 3 | AH82: 3 | AM82: 3 | AN82: 3 | AO82: 3 | AT82: 3 | AU82: 3 | AV82: 3 | AZ82: 3 | BA82: 3 | BB82: 9 | BG82: 9 | BH82: 3 | BI82: 3
A83: 75 | B83: OPEXMCH | C83: OPEXM | D83: CH | E83: CHANCADORA Y TRITURADORA | F83: CHANCADORA SECUNDARIA SANDVIK CONE CRUSHER CH430 | G83: CAMBIO DE 442886501 WEARING DOWN PLATE | H83: 3 | I83: Hra | J83: 570 | K83: DIA | L83: C | N83: 3 | O83: 3 | P83: 3 | T83: 3 | U83: 3 | V83: 3 | AA83: 3 | AB83: 3 | AC83: 3 | AG83: 3 | AH83: 3 | AM83: 3 | AN83: 3 | AO83: 3 | AT83: 3 | AU83: 3 | AV83: 3 | AZ83: 3 | BA83: 3 | BB83: 9 | BG83: 9 | BH83: 3 | BI83: 3
A84: 76 | B84: OPEXMCH | C84: OPEXM | D84: CH | E84: CHANCADORA Y TRITURADORA | F84: CHANCADORA SECUNDARIA SANDVIK CONE CRUSHER CH430 | G84: CAMBIO DE 442886601 WEARING PLATE | H84: 3 | I84: Hra | J84: 570 | K84: DIA | L84: D | N84: 3 | O84: 3 | P84: 3 | T84: 3 | U84: 3 | V84: 3 | AA84: 3 | AB84: 3 | AC84: 3 | AG84: 3 | AH84: 3 | AM84: 3 | AN84: 3 | AO84: 168 | AT84: 3 | AU84: 3 | AV84: 3 | AZ84: 3 | BA84: 3 | BB84: 9 | BG84: 9 | BH84: 3 | BI84: 3
A85: 77 | B85: OPEXMCH | C85: OPEXM | D85: CH | E85: CHANCADORA Y TRITURADORA | F85: CHANCADORA SECUNDARIA SANDVIK CONE CRUSHER CH430 | G85: CAMBIO DE 442886701 WEARING PLATE | H85: 3 | I85: Hra | J85: 570 | K85: DIA | L85: C | N85: 3 | O85: 3 | P85: 3 | T85: 3 | U85: 3 | V85: 3 | AA85: 3 | AB85: 3 | AC85: 3 | AG85: 3 | AH85: 3 | AM85: 3 | AN85: 3 | AO85: 3 | AT85: 3 | AU85: 3 | AV85: 3 | AZ85: 3 | BA85: 3 | BB85: 9 | BG85: 9 | BH85: 3 | BI85: 3
A86: 78 | B86: OPEXMCH | C86: OPEXM | D86: CH | E86: CHANCADORA Y TRITURADORA | F86: CHANCADORA SECUNDARIA SANDVIK CONE CRUSHER CH430 | G86: CAMBIO DE 442886801 WEARING PLATE | H86: 3 | I86: Hra | J86: 570 | K86: DIA | L86: D | N86: 3 | O86: 3 | P86: 3 | T86: 3 | U86: 3 | V86: 3 | AA86: 3 | AB86: 3 | AC86: 3 | AG86: 3 | AH86: 3 | AM86: 3 | AN86: 3 | AO86: 3 | AT86: 3 | AU86: 3 | AV86: 3 | AZ86: 3 | BA86: 3 | BB86: 9 | BG86: 9 | BH86: 3 | BI86: 3
A87: 79 | B87: OPEXMCH | C87: OPEXM | D87: CH | E87: CHANCADORA Y TRITURADORA | F87: CHANCADORA SECUNDARIA SANDVIK CONE CRUSHER CH430 | G87: CAMBIO DE 442886901 WEARING PLATE | H87: 3 | I87: Hra | J87: 570 | K87: DIA | L87: D | N87: 3 | O87: 3 | P87: 3 | T87: 3 | U87: 3 | V87: 3 | AA87: 3 | AB87: 3 | AC87: 3 | AG87: 3 | AH87: 3 | AM87: 3 | AN87: 3 | AO87: 3 | AT87: 3 | AU87: 3 | AV87: 3 | AZ87: 3 | BA87: 3 | BB87: 9 | BG87: 9 | BH87: 3 | BI87: 3
A88: 80 | B88: OPEXMCH | C88: OPEXM | D88: CH | E88: CHANCADORA Y TRITURADORA | F88: CHANCADORA SECUNDARIA SANDVIK CONE CRUSHER CH430 | G88: CAMBIO DE 4428870 BOTTOM SHELL LINERS KIT PARENT NO | H88: 2 | I88: Hra | J88: 285 | K88: DIA | L88: C | N88: 2 | O88: 2 | P88: 2 | T88: 2 | U88: 2 | V88: 2 | AA88: 2 | AB88: 2 | AC88: 2 | AG88: 2 | AH88: 2 | AM88: 2 | AN88: 2 | AO88: 2 | AT88: 2 | AU88: 2 | AV88: 2 | AZ88: 2 | BA88: 2 | BB88: 6 | BG88: 6 | BH88: 2 | BI88: 2
A89: 81 | B89: OPEXMCH | C89: OPEXM | D89: CH | E89: CHANCADORA Y TRITURADORA | F89: CHANCADORA SECUNDARIA SANDVIK CONE CRUSHER CH430 | G89: CAMBIO DE 442993601 PINION SHAFT | H89: 6 | I89: Hra | J89: 1140 | K89: DIA | L89: D | N89: 6 | O89: 6 | P89: 6 | T89: 6 | U89: 6 | V89: 6 | AA89: 6 | AB89: 6 | AC89: 6 | AG89: 6 | AH89: 6 | AM89: 6 | AN89: 6 | AO89: 6 | AT89: 6 | AU89: 6 | AV89: 6 | AZ89: 6 | BA89: 6 | BB89: 18 | BG89: 18 | BH89: 6 | BI89: 6
A90: 82 | B90: OPEXMCH | C90: OPEXM | D90: CH | E90: CHANCADORA Y TRITURADORA | F90: CHANCADORA SECUNDARIA SANDVIK CONE CRUSHER CH430 | G90: CAMBIO DE 4524188001 ECCENTRIC WEARING PLATE | H90: 3 | I90: Hra | J90: 1140 | K90: DIA | L90: D | N90: 3 | O90: 3 | P90: 3 | T90: 3 | U90: 3 | V90: 3 | AA90: 3 | AB90: 3 | AC90: 3 | AG90: 3 | AH90: 3 | AM90: 3 | AN90: 3 | AO90: 3 | AT90: 3 | AU90: 3 | AV90: 3 | AZ90: 3 | BA90: 3 | BB90: 9 | BG90: 9 | BH90: 3 | BI90: 3
A91: 83 | B91: OPEXMCH | C91: OPEXM | D91: CH | E91: CHANCADORA Y TRITURADORA | F91: CHANCADORA SECUNDARIA SANDVIK CONE CRUSHER CH430 | G91: CAMBIO DE 4524190001 BOTTOM SHELL BUSHING | H91: 4 | I91: Hra | J91: 1140 | K91: DIA | L91: C | N91: 4 | O91: 4 | P91: 4 | T91: 4 | U91: 4 | V91: 4 | AA91: 4 | AB91: 4 | AC91: 4 | AG91: 4 | AH91: 4 | AM91: 4 | AN91: 4 | AO91: 4 | AT91: 4 | AU91: 4 | AV91: 4 | AZ91: 4 | BA91: 4 | BB91: 12 | BG91: 12 | BH91: 4 | BI91: 4
A92: 84 | B92: OPEXMCH | C92: OPEXM | D92: CH | E92: CHANCADORA Y TRITURADORA | F92: CHANCADORA SECUNDARIA SANDVIK CONE CRUSHER CH430 | G92: CAMBIO DE 4524191001 ECCENTRIC BUSCHING THROW 16+19+22 | H92: 7 | I92: Hra | J92: 1140 | K92: DIA | L92: C | N92: 7 | O92: 7 | P92: 7 | T92: 7 | U92: 7 | V92: 7 | AA92: 7 | AB92: 7 | AC92: 7 | AG92: 7 | AH92: 7 | AM92: 7 | AN92: 7 | AO92: 7 | AT92: 7 | AU92: 7 | AV92: 7 | AZ92: 7 | BA92: 7 | BB92: 21 | BG92: 21 | BH92: 7 | BI92: 7
A93: 85 | B93: OPEXMCH | C93: OPEXM | D93: CH | E93: CHANCADORA Y TRITURADORA | F93: CHANCADORA SECUNDARIA SANDVIK CONE CRUSHER CH430 | G93: CAMBIO DE 4524193001 ECCENTRIC BUSHING THROW 29+32+34+36 | H93: 7 | I93: Hra | J93: 1140 | K93: DIA | L93: D | N93: 7 | O93: 7 | P93: 7 | T93: 7 | U93: 7 | V93: 7 | AA93: 7 | AB93: 7 | AC93: 7 | AG93: 7 | AH93: 7 | AM93: 7 | AN93: 7 | AO93: 7 | AT93: 7 | AU93: 7 | AV93: 7 | AZ93: 7 | BA93: 7 | BB93: 21 | BG93: 21 | BH93: 7 | BI93: 7
A94: 86 | B94: OPEXMCH | C94: OPEXM | D94: CH | E94: CHANCADORA Y TRITURADORA | F94: CHANCADORA SECUNDARIA SANDVIK CONE CRUSHER CH430 | G94: CAMBIO DE 4525542901 FILTER KIT CH/CS420/CS430 | H94: 1.5 | I94: Hra | J94: 71.25 | K94: DIA | L94: D | N94: 1.5 | O94: 1.5 | P94: 1.5 | T94: 1.5 | U94: 1.5 | V94: 1.5 | AA94: 1.5 | AB94: 1.5 | AC94: 1.5 | AG94: 1.5 | AH94: 1.5 | AM94: 1.5 | AN94: 1.5 | AO94: 1.5 | AT94: 1.5 | AU94: 1.5 | AV94: 1.5 | AZ94: 1.5 | BA94: 1.5 | BB94: 4.5 | BG94: 4.5 | BH94: 1.5 | BI94: 1.5
A95: 87 | B95: OPEXMCH | C95: OPEXM | D95: CH | E95: CHANCADORA Y TRITURADORA | F95: CHANCADORA SECUNDARIA SANDVIK CONE CRUSHER CH430 | G95: CAMBIO DE 4525574901 EA REPAIR KIT PINION SHAFT HOUSING | H95: 6 | I95: Hra | J95: 1140 | K95: DIA | L95: C | N95: 6 | O95: 6 | P95: 6 | T95: 6 | U95: 6 | V95: 6 | AA95: 6 | AB95: 6 | AC95: 6 | AG95: 6 | AH95: 6 | AM95: 6 | AN95: 6 | AO95: 6 | AT95: 6 | AU95: 6 | AV95: 6 | AZ95: 6 | BA95: 6 | BB95: 18 | BG95: 18 | BH95: 6 | BI95: 6
A96: 88 | B96: OPEXMCH | C96: OPEXM | D96: CH | E96: CHANCADORA Y TRITURADORA | F96: CHANCADORA SECUNDARIA SANDVIK CONE CRUSHER CH430 | G96: CAMBIO DE 4525777901 BOTTOMSHELL ARM LINER KIT CH / CS 430 | H96: 5.5 | I96: Hra | J96: 285 | K96: DIA | L96: C | N96: 5.5 | O96: 5.5 | P96: 5.5 | T96: 5.5 | U96: 5.5 | V96: 5.5 | AA96: 5.5 | AB96: 5.5 | AC96: 5.5 | AG96: 5.5 | AH96: 5.5 | AM96: 5.5 | AN96: 5.5 | AO96: 5.5 | AT96: 5.5 | AU96: 5.5 | AV96: 5.5 | AZ96: 5.5 | BA96: 5.5 | BB96: 16.5 | BG96: 16.5 | BH96: 5.5 | BI96: 5.5
A97: 89 | B97: OPEXMCH | C97: OPEXM | D97: CH | E97: CHANCADORA Y TRITURADORA | F97: CHANCADORA SECUNDARIA SANDVIK CONE CRUSHER CH430 | G97: CAMBIO DE 4525791901 FASTENER KIT CONCAVE CH430 | H97: 3 | I97: Hra | J97: 570 | K97: DIA | L97: D | N97: 3 | O97: 3 | P97: 3 | T97: 3 | U97: 3 | V97: 3 | AA97: 3 | AB97: 3 | AC97: 3 | AG97: 3 | AH97: 3 | AM97: 3 | AN97: 3 | AO97: 3 | AT97: 3 | AU97: 3 | AV97: 3 | AZ97: 3 | BA97: 3 | BB97: 9 | BG97: 9 | BH97: 3 | BI97: 3
A98: 90 | B98: OPEXMCH | C98: OPEXM | D98: CH | E98: CHANCADORA Y TRITURADORA | F98: CHANCADORA SECUNDARIA SANDVIK CONE CRUSHER CH430 | G98: CAMBIO DE 4525797901 LOCATING BAR KIT CH/ CS430 | H98: 3.5 | I98: Hra | J98: 1140 | K98: DIA | L98: C | N98: 3.5 | O98: 3.5 | P98: 3.5 | T98: 3.5 | U98: 3.5 | V98: 3.5 | AA98: 3.5 | AB98: 3.5 | AC98: 3.5 | AG98: 3.5 | AH98: 3.5 | AM98: 3.5 | AN98: 3.5 | AO98: 3.5 | AT98: 3.5 | AU98: 3.5 | AV98: 3.5 | AZ98: 3.5 | BA98: 3.5 | BB98: 10.5 | BG98: 10.5 | BH98: 3.5 | BI98: 3.5
A99: 91 | B99: OPEXMCH | C99: OPEXM | D99: CH | E99: CHANCADORA Y TRITURADORA | F99: CHANCADORA SECUNDARIA SANDVIK CONE CRUSHER CH430 | G99: CAMBIO DE 873.0833-00 O-RING 379, 3 X 5, 7 SMS 1586 | H99: 6 | I99: Hra | J99: 1140 | K99: DIA | L99: C | N99: 6 | O99: 6 | P99: 6 | T99: 6 | U99: 6 | V99: 6 | AA99: 6 | AB99: 6 | AC99: 6 | AG99: 6 | AH99: 6 | AM99: 6 | AN99: 6 | AO99: 6 | AT99: 6 | AU99: 6 | AV99: 6 | AZ99: 6 | BA99: 6 | BB99: 18 | BG99: 18 | BH99: 6 | BI99: 6
A100: 92 | B100: OPEXMCH | C100: OPEXM | D100: CH | E100: CHANCADORA Y TRITURADORA | F100: CHANCADORA SECUNDARIA SANDVIK CONE CRUSHER CH430 | G100: CAMBIO DE 873111200 SEALING COMPOUND ( CHANCAD. SANDV) 2440450 | H100: 2.5 | I100: Hra | J100: 142.5 | K100: DIA | L100: C | N100: 2.5 | O100: 2.5 | P100: 2.5 | T100: 2.5 | U100: 2.5 | V100: 2.5 | AA100: 2.5 | AB100: 2.5 | AC100: 2.5 | AG100: 2.5 | AH100: 2.5 | AM100: 2.5 | AN100: 2.5 | AO100: 2.5 | AT100: 2.5 | AU100: 2.5 | AV100: 2.5 | AZ100: 2.5 | BA100: 2.5 | BB100: 7.5 | BG100: 7.5 | BH100: 2.5 | BI100: 2.5
A101: 93 | B101: OPEXMCH | C101: OPEXM | D101: CH | E101: CHANCADORA Y TRITURADORA | F101: CHANCADORA SECUNDARIA SANDVIK CONE CRUSHER CH430 | G101: CAMBIO DE 906-0140-00 LUBRICATING OIL PUMP | H101: 6.5 | I101: Hra | J101: 570 | K101: DIA | L101: C | N101: 6.5 | O101: 6.5 | P101: 6.5 | T101: 6.5 | U101: 6.5 | V101: 6.5 | AA101: 6.5 | AB101: 6.5 | AC101: 6.5 | AG101: 6.5 | AH101: 6.5 | AM101: 6.5 | AN101: 6.5 | AO101: 6.5 | AT101: 6.5 | AU101: 6.5 | AV101: 6.5 | AZ101: 6.5 | BA101: 6.5 | BB101: 19.5 | BG101: 19.5 | BH101: 6.5 | BI101: 6.5
A102: 94 | B102: OPEXMCH | C102: OPEXM | D102: CH | E102: CHANCADORA Y TRITURADORA | F102: CHANCADORA SECUNDARIA SANDVIK CONE CRUSHER CH430 | G102: CAMBIO DE 912.0139-00 FILTER CARTRIDGE | H102: 1.5 | I102: Hra | J102: 142.5 | K102: DIA | L102: D | N102: 1.5 | O102: 1.5 | P102: 1.5 | T102: 1.5 | U102: 1.5 | V102: 1.5 | AA102: 1.5 | AB102: 1.5 | AC102: 1.5 | AG102: 1.5 | AH102: 1.5 | AM102: 1.5 | AN102: 1.5 | AO102: 1.5 | AT102: 1.5 | AU102: 1.5 | AV102: 1.5 | AZ102: 1.5 | BA102: 1.5 | BB102: 4.5 | BG102: 4.5 | BH102: 1.5 | BI102: 1.5
A103: 95 | B103: OPEXMCH | C103: OPEXM | D103: CH | E103: CHANCADORA Y TRITURADORA | F103: CHANCADORA SECUNDARIA SANDVIK CONE CRUSHER CH430 | G103: CAMBIO DE 912015500 FILTER CARTRIDGE | H103: 1.5 | I103: Hra | J103: 142.5 | K103: DIA | L103: D | N103: 1.5 | O103: 1.5 | P103: 1.5 | T103: 1.5 | U103: 1.5 | V103: 1.5 | AA103: 1.5 | AB103: 1.5 | AC103: 1.5 | AG103: 1.5 | AH103: 1.5 | AM103: 1.5 | AN103: 1.5 | AO103: 1.5 | AT103: 1.5 | AU103: 1.5 | AV103: 1.5 | AZ103: 1.5 | BA103: 1.5 | BB103: 4.5 | BG103: 4.5 | BH103: 1.5 | BI103: 1.5
A104: 96 | B104: OPEXMCH | C104: OPEXM | D104: CH | E104: CHANCADORA Y TRITURADORA | F104: CHANCADORA SECUNDARIA SANDVIK CONE CRUSHER CH430 | G104: CAMBIO DE ARM SHIELD | H104: 5.5 | I104: Hra | J104: 285 | K104: DIA | L104: D | N104: 5.5 | O104: 5.5 | P104: 5.5 | T104: 5.5 | U104: 5.5 | V104: 5.5 | AA104: 5.5 | AB104: 5.5 | AC104: 5.5 | AG104: 5.5 | AH104: 5.5 | AM104: 5.5 | AN104: 5.5 | AO104: 5.5 | AT104: 5.5 | AU104: 5.5 | AV104: 5.5 | AZ104: 5.5 | BA104: 5.5 | BB104: 16.5 | BG104: 16.5 | BH104: 5.5 | BI104: 5.5
A105: 97 | B105: OPEXMCH | C105: OPEXM | D105: CH | E105: CHANCADORA Y TRITURADORA | F105: CHANCADORA SECUNDARIA SANDVIK CONE CRUSHER CH430 | G105: CAMBIO DE DOWEL PIN | H105: 4 | I105: Hra | J105: 570 | K105: DIA | L105: C | N105: 4 | O105: 4 | P105: 4 | T105: 4 | U105: 4 | V105: 4 | AA105: 4 | AB105: 4 | AC105: 4 | AG105: 4 | AH105: 4 | AM105: 4 | AN105: 4 | AO105: 4 | AT105: 4 | AU105: 4 | AV105: 4 | AZ105: 4 | BA105: 4 | BB105: 12 | BG105: 12 | BH105: 4 | BI105: 4
A106: 98 | B106: OPEXMCH | C106: OPEXM | D106: CH | E106: CHANCADORA Y TRITURADORA | F106: CHANCADORA SECUNDARIA SANDVIK CONE CRUSHER CH430 | G106: CAMBIO DE DUST SEAL RETAINING RING | H106: 3 | I106: Hra | J106: 1140 | K106: DIA | L106: C | N106: 3 | O106: 3 | P106: 3 | T106: 3 | U106: 3 | V106: 3 | AA106: 3 | AB106: 3 | AC106: 3 | AG106: 3 | AH106: 3 | AM106: 3 | AN106: 3 | AO106: 3 | AT106: 3 | AU106: 3 | AV106: 3 | AZ106: 3 | BA106: 3 | BB106: 9 | BG106: 9 | BH106: 3 | BI106: 3
A107: 99 | B107: OPEXMCH | C107: OPEXM | D107: CH | E107: CHANCADORA Y TRITURADORA | F107: CHANCADORA SECUNDARIA SANDVIK CONE CRUSHER CH430 | G107: CAMBIO DE HYDROSET PUMP ASS. | H107: 6 | I107: Hra | J107: 570 | K107: DIA | L107: C | N107: 6 | O107: 6 | P107: 6 | T107: 6 | U107: 6 | V107: 6 | AA107: 6 | AB107: 6 | AC107: 6 | AG107: 6 | AH107: 6 | AM107: 6 | AN107: 6 | AO107: 6 | AT107: 6 | AU107: 6 | AV107: 6 | AZ107: 6 | BA107: 6 | BB107: 18 | BG107: 18 | BH107: 6 | BI107: 6
A108: 100 | B108: OPEXMCH | C108: OPEXM | D108: CH | E108: CHANCADORA Y TRITURADORA | F108: CHANCADORA SECUNDARIA SANDVIK CONE CRUSHER CH430 | G108: CAMBIO DE INNER HEAD NUT | H108: 6 | I108: Hra | J108: 1140 | K108: DIA | L108: C | N108: 6 | O108: 6 | P108: 6 | T108: 6 | U108: 6 | V108: 6 | AA108: 6 | AB108: 6 | AC108: 6 | AG108: 6 | AH108: 6 | AM108: 6 | AN108: 6 | AO108: 6 | AT108: 6 | AU108: 6 | AV108: 6 | AZ108: 6 | BA108: 6 | BB108: 18 | BG108: 18 | BH108: 6 | BI108: 6
A109: 101 | B109: OPEXMCH | C109: OPEXM | D109: CH | E109: CHANCADORA Y TRITURADORA | F109: CHANCADORA SECUNDARIA SANDVIK CONE CRUSHER CH430 | G109: CAMBIO DE LUBRICATION PUMP ASS. | H109: 6.5 | I109: Hra | J109: 570 | K109: DIA | L109: C | N109: 6.5 | O109: 6.5 | P109: 6.5 | T109: 6.5 | U109: 6.5 | V109: 6.5 | AA109: 6.5 | AB109: 6.5 | AC109: 6.5 | AG109: 6.5 | AH109: 6.5 | AM109: 6.5 | AN109: 6.5 | AO109: 6.5 | AT109: 6.5 | AU109: 6.5 | AV109: 6.5 | AZ109: 6.5 | BA109: 6.5 | BB109: 19.5 | BG109: 19.5 | BH109: 6.5 | BI109: 6.5
A110: 102 | B110: OPEXMCH | C110: OPEXM | D110: CH | E110: CHANCADORA Y TRITURADORA | F110: CHANCADORA SECUNDARIA SANDVIK CONE CRUSHER CH430 | G110: CAMBIO DE MAINSHAFT ASS.EXCL. MANTLE | H110: 8 | I110: Hra | J110: 4560 | K110: DIA | L110: C | N110: 8 | O110: 8 | P110: 8 | T110: 8 | U110: 8 | V110: 8 | AA110: 8 | AB110: 8 | AC110: 8 | AG110: 8 | AH110: 8 | AM110: 8 | AN110: 8 | AO110: 8 | AT110: 8 | AU110: 8 | AV110: 8 | AZ110: 8 | BA110: 8 | BB110: 24 | BG110: 24 | BH110: 8 | BI110: 8
A111: 103 | B111: OPEXMCH | C111: OPEXM | D111: CH | E111: CHANCADORA Y TRITURADORA | F111: CHANCADORA SECUNDARIA SANDVIK CONE CRUSHER CH430 | G111: CAMBIO DE PINIONSHAFT HOUSING ASS. EXCL.PULLEY | H111: 8 | I111: Hra | J111: 4560 | K111: DIA | L111: C | N111: 8 | O111: 8 | P111: 8 | T111: 8 | U111: 8 | V111: 8 | AA111: 8 | AB111: 8 | AC111: 8 | AG111: 8 | AH111: 8 | AM111: 8 | AN111: 8 | AO111: 8 | AT111: 8 | AU111: 8 | AV111: 8 | AZ111: 8 | BA111: 8 | BB111: 24 | BG111: 24 | BH111: 8 | BI111: 8
A112: 104 | B112: OPEXMCH | C112: OPEXM | D112: CH | E112: CHANCADORA Y TRITURADORA | F112: CHANCADORA SECUNDARIA SANDVIK CONE CRUSHER CH430 | G112: CAMBIO DE RODAMIENTOS DELANTERO | H112: 5 | I112: Hra | J112: 250 | K112: DIA | L112: C | N112: 5 | O112: 5 | P112: 5 | T112: 5 | U112: 5 | V112: 5 | AA112: 5 | AB112: 5 | AC112: 5 | AG112: 5 | AH112: 5 | AM112: 5 | AN112: 5 | AO112: 5 | AT112: 5 | AU112: 5 | AV112: 5 | AZ112: 5 | BA112: 5 | BB112: 15 | BG112: 15 | BH112: 5 | BI112: 5
A113: 105 | B113: OPEXMCH | C113: OPEXM | D113: CH | E113: CHANCADORA Y TRITURADORA | F113: CHANCADORA SECUNDARIA SANDVIK CONE CRUSHER CH430 | G113: CAMBIO DE RODAMIENTOS POSTERIOR | H113: 5 | I113: Hra | J113: 250 | K113: DIA | L113: C | N113: 5 | O113: 5 | P113: 5 | T113: 5 | U113: 5 | V113: 5 | AA113: 5 | AB113: 5 | AC113: 5 | AG113: 5 | AH113: 5 | AM113: 5 | AN113: 5 | AO113: 5 | AT113: 5 | AU113: 5 | AV113: 5 | AZ113: 5 | BA113: 5 | BB113: 15 | BG113: 15 | BH113: 5 | BI113: 5
A114: 106 | B114: OPEXMCH | C114: OPEXM | D114: CH | E114: CHANCADORA Y TRITURADORA | F114: CHANCADORA SECUNDARIA SANDVIK CONE CRUSHER CH430 | G114: CAMBIO DE SPIDER BUSHING | H114: 3.5 | I114: Hra | J114: 570 | K114: DIA | L114: C | N114: 3.5 | O114: 3.5 | P114: 3.5 | T114: 3.5 | U114: 3.5 | V114: 3.5 | AA114: 3.5 | AB114: 3.5 | AC114: 3.5 | AG114: 3.5 | AH114: 3.5 | AM114: 3.5 | AN114: 3.5 | AO114: 3.5 | AT114: 3.5 | AU114: 3.5 | AV114: 3.5 | AZ114: 3.5 | BA114: 3.5 | BB114: 10.5 | BG114: 10.5 | BH114: 3.5 | BI114: 3.5
A115: 107 | B115: OPEXMCH | C115: OPEXM | D115: CH | E115: CHANCADORA Y TRITURADORA | F115: CHANCADORA SECUNDARIA SANDVIK CONE CRUSHER CH430 | G115: CAMBIO DE STEP BEARING SET | H115: 5.5 | I115: Hra | J115: 1140 | K115: DIA | L115: C | N115: 5.5 | O115: 5.5 | P115: 5.5 | T115: 5.5 | U115: 5.5 | V115: 5.5 | AA115: 5.5 | AB115: 5.5 | AC115: 5.5 | AG115: 5.5 | AH115: 5.5 | AM115: 5.5 | AN115: 5.5 | AO115: 5.5 | AT115: 5.5 | AU115: 5.5 | AV115: 5.5 | AZ115: 5.5 | BA115: 5.5 | BB115: 16.5 | BG115: 16.5 | BH115: 5.5 | BI115: 5.5
A116: 108 | B116: OPEXMCH | C116: OPEXM | D116: CH | E116: CHANCADORA Y TRITURADORA | F116: CHANCADORA SECUNDARIA SANDVIK CONE CRUSHER CH430 | G116: CAMBIO DE TOP SHELL ASS. EXCL. CONCAVE | H116: 4 | I116: Hra | J116: 4560 | K116: DIA | L116: D | N116: 4 | O116: 4 | P116: 4 | T116: 4 | U116: 4 | V116: 4 | AA116: 4 | AB116: 4 | AC116: 4 | AG116: 4 | AH116: 4 | AM116: 4 | AN116: 4 | AO116: 4 | AT116: 4 | AU116: 4 | AV116: 4 | AZ116: 4 | BA116: 4 | BB116: 12 | BG116: 12 | BH116: 4 | BI116: 4
A117: 109 | B117: OPEXMCH | C117: OPEXM | D117: CH | E117: CHANCADORA Y TRITURADORA | F117: CHANCADORA SECUNDARIA SANDVIK CONE CRUSHER CH430 | G117: ENGRASE DE EQUIPOS | H117: 2 | I117: Hra | J117: 71.25 | K117: DIA | L117: D | N117: 2 | O117: 2 | P117: 2 | T117: 2 | U117: 2 | V117: 2 | AA117: 2 | AB117: 2 | AC117: 2 | AG117: 2 | AH117: 2 | AM117: 2 | AN117: 2 | AO117: 2 | AT117: 2 | AU117: 2 | AV117: 2 | AZ117: 2 | BA117: 2 | BB117: 6 | BG117: 6 | BH117: 2 | BI117: 2
A118: 110 | B118: OPEXMCH | C118: OPEXM | D118: CH | E118: CHANCADORA Y TRITURADORA | F118: CHANCADORA SECUNDARIA SANDVIK CONE CRUSHER CH430 | G118: LIMPIEZA DE ARROLLAMIENTO | H118: 5 | I118: Hra | J118: 62.5 | K118: DIA | L118: C | N118: 5 | O118: 5 | P118: 5 | T118: 5 | U118: 5 | V118: 5 | AA118: 5 | AB118: 5 | AC118: 5 | AG118: 5 | AH118: 5 | AM118: 5 | AN118: 5 | AO118: 5 | AT118: 5 | AU118: 5 | AV118: 5 | AZ118: 5 | BA118: 5 | BB118: 15 | BG118: 15 | BH118: 5 | BI118: 5
A119: 111 | B119: OPEXMCH | C119: OPEXM | D119: CH | E119: CHANCADORA Y TRITURADORA | F119: CHANCADORA TERCIARIA SANDVIK H3800 | G119: CAMBIO DE 3090-1 ESPACIADOR DE CONTRA EJE | H119: 1.5 | I119: Hra | J119: 2280 | K119: DIA | L119: C | N119: 1.5 | O119: 1.5 | P119: 1.5 | T119: 1.5 | U119: 1.5 | V119: 1.5 | AA119: 1.5 | AB119: 1.5 | AC119: 1.5 | AG119: 1.5 | AH119: 1.5 | AM119: 1.5 | AN119: 1.5 | AO119: 1.5 | AT119: 1.5 | AU119: 1.5 | AV119: 1.5 | AZ119: 1.5 | BA119: 1.5 | BB119: 4.5 | BG119: 4.5 | BH119: 1.5 | BI119: 1.5
A120: 112 | B120: OPEXMCH | C120: OPEXM | D120: CH | E120: CHANCADORA Y TRITURADORA | F120: CHANCADORA TERCIARIA SANDVIK H3800 | G120: CAMBIO DE 442 7984 01 ARM SHIELD | H120: 5.5 | I120: Hra | J120: 285 | K120: DIA | L120: C | N120: 5.5 | O120: 5.5 | P120: 5.5 | T120: 5.5 | U120: 5.5 | V120: 5.5 | AA120: 5.5 | AB120: 5.5 | AC120: 5.5 | AG120: 5.5 | AH120: 5.5 | AM120: 5.5 | AN120: 5.5 | AO120: 5.5 | AT120: 5.5 | AU120: 5.5 | AV120: 5.5 | AZ120: 5.5 | BA120: 5.5 | BB120: 16.5 | BG120: 16.5 | BH120: 5.5 | BI120: 5.5
A121: 113 | B121: OPEXMCH | C121: OPEXM | D121: CH | E121: CHANCADORA Y TRITURADORA | F121: CHANCADORA TERCIARIA SANDVIK H3800 | G121: CAMBIO DE 442.8017-01 DUST SEAL RING | H121: 3.5 | I121: Hra | J121: 285 | K121: DIA | L121: C | N121: 3.5 | O121: 3.5 | P121: 3.5 | T121: 3.5 | U121: 3.5 | V121: 3.5 | AA121: 3.5 | AB121: 3.5 | AC121: 3.5 | AG121: 3.5 | AH121: 3.5 | AM121: 3.5 | AN121: 3.5 | AO121: 3.5 | AT121: 3.5 | AU121: 3.5 | AV121: 3.5 | AZ121: 3.5 | BA121: 3.5 | BB121: 10.5 | BG121: 10.5 | BH121: 3.5 | BI121: 3.5
A122: 114 | B122: OPEXMCH | C122: OPEXM | D122: CH | E122: CHANCADORA Y TRITURADORA | F122: CHANCADORA TERCIARIA SANDVIK H3800 | G122: CAMBIO DE 442647001 SEAL RING (CHANCAD. SANDV) | H122: 2.5 | I122: Hra | J122: 142.5 | K122: DIA | L122: C | N122: 2.5 | O122: 2.5 | P122: 2.5 | T122: 2.5 | U122: 2.5 | V122: 2.5 | AA122: 2.5 | AB122: 2.5 | AC122: 2.5 | AG122: 2.5 | AH122: 2.5 | AM122: 2.5 | AN122: 2.5 | AO122: 2.5 | AT122: 2.5 | AU122: 2.5 | AV122: 2.5 | AZ122: 2.5 | BA122: 2.5 | BB122: 7.5 | BG122: 7.5 | BH122: 2.5 | BI122: 2.5
A123: 115 | B123: OPEXMCH | C123: OPEXM | D123: CH | E123: CHANCADORA Y TRITURADORA | F123: CHANCADORA TERCIARIA SANDVIK H3800 | G123: CAMBIO DE 442647301 SPIDER BUSHING | H123: 12 | I123: Hra | J123: 285 | K123: DIA | L123: D | N123: 12 | O123: 12 | P123: 12 | T123: 12 | U123: 12 | V123: 12 | AA123: 12 | AB123: 12 | AC123: 12 | AG123: 12 | AH123: 12 | AM123: 12 | AN123: 12 | AO123: 12 | AT123: 12 | AU123: 12 | AV123: 12 | AZ123: 12 | BA123: 12 | BB123: 36 | BG123: 36 | BH123: 12 | BI123: 12
A124: 116 | B124: OPEXMCH | C124: OPEXM | D124: CH | E124: CHANCADORA Y TRITURADORA | F124: CHANCADORA TERCIARIA SANDVIK H3800 | G124: CAMBIO DE 442719301 OIL SEAL REING (CHANCAD. SANDV) | H124: 3.5 | I124: Hra | J124: 285 | K124: DIA | L124: D | N124: 3.5 | O124: 3.5 | P124: 3.5 | T124: 3.5 | U124: 3.5 | V124: 3.5 | AA124: 3.5 | AB124: 3.5 | AC124: 3.5 | AG124: 3.5 | AH124: 3.5 | AM124: 3.5 | AN124: 3.5 | AO124: 3.5 | AT124: 3.5 | AU124: 3.5 | AV124: 3.5 | AZ124: 3.5 | BA124: 3.5 | BB124: 10.5 | BG124: 10.5 | BH124: 3.5 | BI124: 3.5
A125: 117 | B125: OPEXMCH | C125: OPEXM | D125: CH | E125: CHANCADORA Y TRITURADORA | F125: CHANCADORA TERCIARIA SANDVIK H3800 | G125: CAMBIO DE 442789301 PISTON WEARING PL | H125: 6 | I125: Hra | J125: 285 | K125: DIA | L125: D | N125: 6 | O125: 6 | P125: 6 | T125: 6 | U125: 6 | V125: 6 | AA125: 6 | AB125: 6 | AC125: 6 | AG125: 6 | AH125: 6 | AM125: 6 | AN125: 6 | AO125: 6 | AT125: 6 | AU125: 6 | AV125: 6 | AZ125: 6 | BA125: 6 | BB125: 18 | BG125: 18 | BH125: 6 | BI125: 6
A126: 118 | B126: OPEXMCH | C126: OPEXM | D126: CH | E126: CHANCADORA Y TRITURADORA | F126: CHANCADORA TERCIARIA SANDVIK H3800 | G126: CAMBIO DE 442789401 STEP WASHER | H126: 3.5 | I126: Hra | J126: 285 | K126: DIA | L126: C | N126: 3.5 | O126: 3.5 | P126: 3.5 | T126: 3.5 | U126: 3.5 | V126: 3.5 | AA126: 3.5 | AB126: 3.5 | AC126: 3.5 | AG126: 3.5 | AH126: 3.5 | AM126: 3.5 | AN126: 3.5 | AO126: 3.5 | AT126: 3.5 | AU126: 3.5 | AV126: 3.5 | AZ126: 3.5 | BA126: 3.5 | BB126: 10.5 | BG126: 10.5 | BH126: 3.5 | BI126: 3.5
A127: 119 | B127: OPEXMCH | C127: OPEXM | D127: CH | E127: CHANCADORA Y TRITURADORA | F127: CHANCADORA TERCIARIA SANDVIK H3800 | G127: CAMBIO DE 442789501 MAIN SHAFT STEP | H127: 6 | I127: Hra | J127: 285 | K127: DIA | L127: C | N127: 6 | O127: 6 | P127: 6 | T127: 6 | U127: 6 | V127: 6 | AA127: 6 | AB127: 6 | AC127: 6 | AG127: 6 | AH127: 6 | AM127: 6 | AN127: 6 | AO127: 6 | AT127: 6 | AU127: 6 | AV127: 6 | AZ127: 6 | BA127: 6 | BB127: 18 | BG127: 18 | BH127: 6 | BI127: 6
A128: 120 | B128: OPEXMCH | C128: OPEXM | D128: CH | E128: CHANCADORA Y TRITURADORA | F128: CHANCADORA TERCIARIA SANDVIK H3800 | G128: CAMBIO DE 442791101 BURNING RING | H128: 2 | I128: Hra | J128: 142.5 | K128: DIA | L128: C | N128: 2 | O128: 2 | P128: 2 | T128: 2 | U128: 2 | V128: 2 | AA128: 2 | AB128: 2 | AC128: 2 | AG128: 2 | AH128: 2 | AM128: 2 | AN128: 2 | AO128: 2 | AT128: 2 | AU128: 2 | AV128: 2 | AZ128: 2 | BA128: 2 | BB128: 6 | BG128: 6 | BH128: 2 | BI128: 2
A129: 121 | B129: OPEXMCH | C129: OPEXM | D129: CH | E129: CHANCADORA Y TRITURADORA | F129: CHANCADORA TERCIARIA SANDVIK H3800 | G129: CAMBIO DE 442791200 HEAD NUT WITH BUR | H129: 3.5 | I129: Hra | J129: 570 | K129: DIA | L129: F | N129: 3.5 | O129: 3.5 | P129: 3.5 | T129: 3.5 | U129: 3.5 | V129: 3.5 | AA129: 3.5 | AB129: 3.5 | AC129: 3.5 | AG129: 3.5 | AH129: 3.5 | AM129: 3.5 | AN129: 3.5 | AO129: 3.5 | AT129: 3.5 | AU129: 3.5 | AV129: 3.5 | AZ129: 3.5 | BA129: 3.5 | BB129: 10.5 | BG129: 10.5 | BH129: 3.5 | BI129: 3.5
A130: 122 | B130: OPEXMCH | C130: OPEXM | D130: CH | E130: CHANCADORA Y TRITURADORA | F130: CHANCADORA TERCIARIA SANDVIK H3800 | G130: CAMBIO DE 442791301 MAIN SHAFT SLEEVE | H130: 6 | I130: Hra | J130: 285 | K130: DIA | L130: C | N130: 6 | O130: 6 | P130: 6 | T130: 6 | U130: 6 | V130: 6 | AA130: 6 | AB130: 6 | AC130: 6 | AG130: 6 | AH130: 6 | AM130: 6 | AN130: 6 | AO130: 6 | AT130: 6 | AU130: 6 | AV130: 6 | AZ130: 6 | BA130: 6 | BB130: 18 | BG130: 18 | BH130: 6 | BI130: 6
A131: 123 | B131: OPEXMCH | C131: OPEXM | D131: CH | E131: CHANCADORA Y TRITURADORA | F131: CHANCADORA TERCIARIA SANDVIK H3800 | G131: CAMBIO DE 442791401 PROTECTION OF WEARING DOWN FOR ARM | H131: 4.5 | I131: Hra | J131: 570 | K131: DIA | L131: D | N131: 4.5 | O131: 4.5 | P131: 4.5 | T131: 4.5 | U131: 4.5 | V131: 4.5 | AA131: 4.5 | AB131: 4.5 | AC131: 4.5 | AG131: 4.5 | AH131: 4.5 | AM131: 4.5 | AN131: 4.5 | AO131: 4.5 | AT131: 4.5 | AU131: 4.5 | AV131: 4.5 | AZ131: 4.5 | BA131: 4.5 | BB131: 13.5 | BG131: 13.5 | BH131: 4.5 | BI131: 4.5
A132: 124 | B132: OPEXMCH | C132: OPEXM | D132: CH | E132: CHANCADORA Y TRITURADORA | F132: CHANCADORA TERCIARIA SANDVIK H3800 | G132: CAMBIO DE 442791501 PROTECTION OF WEARING DWN IN BOX OF NECKLACE | H132: 4.5 | I132: Hra | J132: 570 | K132: DIA | L132: C | N132: 4.5 | O132: 4.5 | P132: 4.5 | T132: 4.5 | U132: 4.5 | V132: 4.5 | AA132: 4.5 | AB132: 4.5 | AC132: 4.5 | AG132: 4.5 | AH132: 4.5 | AM132: 4.5 | AN132: 4.5 | AO132: 4.5 | AT132: 4.5 | AU132: 4.5 | AV132: 4.5 | AZ132: 4.5 | BA132: 4.5 | BB132: 13.5 | BG132: 13.5 | BH132: 4.5 | BI132: 4.5
A133: 125 | B133: OPEXMCH | C133: OPEXM | D133: CH | E133: CHANCADORA Y TRITURADORA | F133: CHANCADORA TERCIARIA SANDVIK H3800 | G133: CAMBIO DE 4427925-01 EXCENTRIC BUSHING 29+32+34+36 | H133: 6 | I133: Hra | J133: 1140 | K133: DIA | L133: C | N133: 6 | O133: 6 | P133: 6 | T133: 6 | U133: 6 | V133: 6 | AA133: 6 | AB133: 6 | AC133: 6 | AG133: 6 | AH133: 6 | AM133: 6 | AN133: 6 | AO133: 6 | AT133: 6 | AU133: 6 | AV133: 6 | AZ133: 6 | BA133: 6 | BB133: 18 | BG133: 18 | BH133: 6 | BI133: 6
A134: 126 | B134: OPEXMCH | C134: OPEXM | D134: CH | E134: CHANCADORA Y TRITURADORA | F134: CHANCADORA TERCIARIA SANDVIK H3800 | G134: CAMBIO DE 442792901 DUST COLLAR | H134: 4 | I134: Hra | J134: 1140 | K134: DIA | L134: C | N134: 4 | O134: 4 | P134: 4 | T134: 4 | U134: 4 | V134: 4 | AA134: 4 | AB134: 4 | AC134: 4 | AG134: 4 | AH134: 4 | AM134: 4 | AN134: 4 | AO134: 4 | AT134: 4 | AU134: 4 | AV134: 4 | AZ134: 4 | BA134: 4 | BB134: 12 | BG134: 12 | BH134: 4 | BI134: 4
A135: 127 | B135: OPEXMCH | C135: OPEXM | D135: CH | E135: CHANCADORA Y TRITURADORA | F135: CHANCADORA TERCIARIA SANDVIK H3800 | G135: CAMBIO DE 442793401 GASKET | H135: 3 | I135: Hra | J135: 570 | K135: DIA | L135: C | N135: 3 | O135: 3 | P135: 3 | T135: 3 | U135: 3 | V135: 3 | AA135: 3 | AB135: 3 | AC135: 3 | AG135: 3 | AH135: 3 | AM135: 3 | AN135: 3 | AO135: 3 | AT135: 3 | AU135: 3 | AV135: 3 | AZ135: 3 | BA135: 3 | BB135: 9 | BG135: 9 | BH135: 3 | BI135: 3
A136: 128 | B136: OPEXMCH | C136: OPEXM | D136: CH | E136: CHANCADORA Y TRITURADORA | F136: CHANCADORA TERCIARIA SANDVIK H3800 | G136: CAMBIO DE 4427935-01 BOTTOM SHELL BUSHING | H136: 4 | I136: Hra | J136: 1140 | K136: DIA | L136: C | N136: 4 | O136: 4 | P136: 4 | T136: 4 | U136: 4 | V136: 4 | AA136: 4 | AB136: 4 | AC136: 4 | AG136: 4 | AH136: 4 | AM136: 4 | AN136: 4 | AO136: 4 | AT136: 4 | AU136: 4 | AV136: 4 | AZ136: 4 | BA136: 4 | BB136: 12 | BG136: 12 | BH136: 4 | BI136: 4
A137: 129 | B137: =CONCATENATE(C137,D137) -> OPEXMCH | C137: OPEXM | D137: CH | E137: CHANCADORA Y TRITURADORA | F137: CHANCADORA TERCIARIA SANDVIK H3800 | G137: CAMBIO DE 442797601 SPIDER CAP | H137: 12 | I137: Hra | J137: 285 | K137: DIA | L137: C | N137: 12 | O137: 12 | P137: 12 | T137: 12 | U137: 12 | V137: 12 | AA137: 12 | AB137: 12 | AC137: 12 | AG137: 12 | AH137: 12 | AM137: 12 | AN137: 12 | AO137: 12 | AT137: 12 | AU137: 12 | AV137: 12 | AZ137: 12 | BA137: 12 | BB137: 36 | BG137: 36 | BH137: 12 | BI137: 12
A138: =+A137+1 -> 130 | B138: OPEXMCH | C138: OPEXM | D138: CH | E138: CHANCADORA Y TRITURADORA | F138: CHANCADORA TERCIARIA SANDVIK H3800 | G138: CAMBIO DE 442798600 FEED HOPPER CONE LH | H138: 4 | I138: Hra | J138: 570 | K138: DIA | L138: D | N138: =+H138 -> 4 | O138: =H138 -> 4 | P138: =H138 -> 4 | T138: =H138 -> 4 | U138: =H138 -> 4 | V138: =H138 -> 4 | AA138: =H138 -> 4 | AB138: =H138 -> 4 | AC138: =H138 -> 4 | AG138: =H138 -> 4 | AH138: =H138 -> 4 | AM138: =H138 -> 4 | AN138: =H138 -> 4 | AO138: =H138 -> 4 | AT138: =H138 -> 4 | AU138: =H138 -> 4 | AV138: =H138 -> 4 | AZ138: =H138 -> 4 | BA138: =H138 -> 4 | BB138: =H138*3 -> 12 | BG138: =H138*3 -> 12 | BH138: =H138 -> 4 | BI138: =H138 -> 4
A139: 131 | B139: OPEXMCH | C139: OPEXM | D139: CH | E139: CHANCADORA Y TRITURADORA | F139: CHANCADORA TERCIARIA SANDVIK H3800 | G139: CAMBIO DE 442798690 FEED HOPPER CONE RH | H139: 4 | I139: Hra | J139: 570 | K139: DIA | L139: D | N139: 4 | O139: 4 | P139: 4 | T139: 4 | U139: 4 | V139: 4 | AA139: 4 | AB139: 4 | AC139: 4 | AG139: 4 | AH139: 4 | AM139: 4 | AN139: 4 | AO139: 4 | AT139: 4 | AU139: 4 | AV139: 4 | AZ139: 4 | BA139: 4 | BB139: 12 | BG139: 12 | BH139: 4 | BI139: 4
A140: 132 | B140: OPEXMCH | C140: OPEXM | D140: CH | E140: CHANCADORA Y TRITURADORA | F140: CHANCADORA TERCIARIA SANDVIK H3800 | G140: CAMBIO DE 442798901 MANTLE B (CHANCAD. SANDV) | H140: 6 | I140: Hra | J140: 142.5 | K140: DIA | L140: C | N140: 6 | O140: 6 | P140: 6 | T140: 6 | U140: 6 | V140: 6 | AA140: 6 | AB140: 6 | AC140: 6 | AG140: 6 | AH140: 6 | AM140: 6 | AN140: 6 | AO140: 6 | AT140: 6 | AU140: 6 | AV140: 6 | AZ140: 6 | BA140: 6 | BB140: 18 | BG140: 18 | BH140: 6 | BI140: 6
A141: 133 | B141: OPEXMCH | C141: OPEXM | D141: CH | E141: CHANCADORA Y TRITURADORA | F141: CHANCADORA TERCIARIA SANDVIK H3800 | G141: CAMBIO DE 442802201 SCRAPER | H141: 5.5 | I141: Hra | J141: 1140 | K141: DIA | L141: D | N141: 5.5 | O141: 5.5 | P141: 5.5 | T141: 5.5 | U141: 5.5 | V141: 5.5 | AA141: 5.5 | AB141: 5.5 | AC141: 5.5 | AG141: 5.5 | AH141: 5.5 | AM141: 5.5 | AN141: 5.5 | AO141: 5.5 | AT141: 5.5 | AU141: 5.5 | AV141: 5.5 | AZ141: 5.5 | BA141: 5.5 | BB141: 16.5 | BG141: 16.5 | BH141: 5.5 | BI141: 5.5
A142: 134 | B142: OPEXMCH | C142: OPEXM | D142: CH | E142: CHANCADORA Y TRITURADORA | F142: CHANCADORA TERCIARIA SANDVIK H3800 | G142: CAMBIO DE 442886401 WEARING DOWN PLATE | H142: 3 | I142: Hra | J142: 570 | K142: DIA | L142: C | N142: 3 | O142: 3 | P142: 3 | T142: 3 | U142: 3 | V142: 3 | AA142: 3 | AB142: 3 | AC142: 3 | AG142: 3 | AH142: 3 | AM142: 3 | AN142: 3 | AO142: 3 | AT142: 3 | AU142: 3 | AV142: 3 | AZ142: 3 | BA142: 3 | BB142: 9 | BG142: 9 | BH142: 3 | BI142: 3
A143: 135 | B143: OPEXMCH | C143: OPEXM | D143: CH | E143: CHANCADORA Y TRITURADORA | F143: CHANCADORA TERCIARIA SANDVIK H3800 | G143: CAMBIO DE 442886501 WEARING DOWN PLATE | H143: 3 | I143: Hra | J143: 570 | K143: DIA | L143: D | N143: 3 | O143: 3 | P143: 3 | T143: 3 | U143: 3 | V143: 3 | AA143: 3 | AB143: 3 | AC143: 3 | AG143: 3 | AH143: 3 | AM143: 3 | AN143: 3 | AO143: 3 | AT143: 3 | AU143: 3 | AV143: 3 | AZ143: 3 | BA143: 3 | BB143: 9 | BG143: 9 | BH143: 3 | BI143: 3
A144: 136 | B144: OPEXMCH | C144: OPEXM | D144: CH | E144: CHANCADORA Y TRITURADORA | F144: CHANCADORA TERCIARIA SANDVIK H3800 | G144: CAMBIO DE 442886601 WEARING PLATE | H144: 3 | I144: Hra | J144: 570 | K144: DIA | L144: C | N144: 3 | O144: 3 | P144: 3 | T144: 3 | U144: 3 | V144: 3 | AA144: 3 | AB144: 3 | AC144: 3 | AG144: 3 | AH144: 3 | AM144: 3 | AN144: 3 | AO144: 3 | AT144: 120 | AU144: 3 | AV144: 3 | AZ144: 3 | BA144: 3 | BB144: 9 | BG144: 9 | BH144: 3 | BI144: 3
A145: 137 | B145: OPEXMCH | C145: OPEXM | D145: CH | E145: CHANCADORA Y TRITURADORA | F145: CHANCADORA TERCIARIA SANDVIK H3800 | G145: CAMBIO DE 442886701 WEARING PLATE | H145: 3 | I145: Hra | J145: 570 | K145: DIA | L145: G | N145: 3 | O145: 3 | P145: 3 | T145: 3 | U145: 3 | V145: 3 | AA145: 3 | AB145: 3 | AC145: 3 | AG145: 3 | AH145: 3 | AM145: 3 | AN145: 3 | AO145: 3 | AT145: 3 | AU145: 3 | AV145: 3 | AZ145: 3 | BA145: 3 | BB145: 9 | BG145: 9 | BH145: 3 | BI145: 3
A146: 138 | B146: OPEXMCH | C146: OPEXM | D146: CH | E146: CHANCADORA Y TRITURADORA | F146: CHANCADORA TERCIARIA SANDVIK H3800 | G146: CAMBIO DE 442886801 WEARING PLATE | H146: 3 | I146: Hra | J146: 570 | K146: DIA | L146: C | N146: 3 | O146: 3 | P146: 3 | T146: 3 | U146: 3 | V146: 3 | AA146: 3 | AB146: 3 | AC146: 3 | AG146: 3 | AH146: 3 | AM146: 3 | AN146: 3 | AO146: 3 | AT146: 3 | AU146: 3 | AV146: 3 | AZ146: 3 | BA146: 3 | BB146: 9 | BG146: 9 | BH146: 3 | BI146: 3
A147: 139 | B147: OPEXMCH | C147: OPEXM | D147: CH | E147: CHANCADORA Y TRITURADORA | F147: CHANCADORA TERCIARIA SANDVIK H3800 | G147: CAMBIO DE 442886901 WEARING PLATE | H147: 3 | I147: Hra | J147: 570 | K147: DIA | L147: C | N147: 3 | O147: 3 | P147: 3 | T147: 3 | U147: 3 | V147: 3 | AA147: 3 | AB147: 3 | AC147: 3 | AG147: 3 | AH147: 3 | AM147: 3 | AN147: 3 | AO147: 3 | AT147: 3 | AU147: 3 | AV147: 3 | AZ147: 3 | BA147: 3 | BB147: 9 | BG147: 9 | BH147: 3 | BI147: 3
A148: 140 | B148: OPEXMCH | C148: OPEXM | D148: CH | E148: CHANCADORA Y TRITURADORA | F148: CHANCADORA TERCIARIA SANDVIK H3800 | G148: CAMBIO DE 4521216001 CONCAVE MF M1 | H148: 8 | I148: Hra | J148: 142.5 | K148: DIA | L148: D | N148: 8 | O148: 8 | P148: 8 | T148: 8 | U148: 8 | V148: 8 | AA148: 8 | AB148: 8 | AC148: 8 | AG148: 8 | AH148: 8 | AM148: 8 | AN148: 8 | AO148: 8 | AT148: 8 | AU148: 8 | AV148: 8 | AZ148: 8 | BA148: 8 | BB148: 24 | BG148: 24 | BH148: 8 | BI148: 8
A149: 141 | B149: OPEXMCH | C149: OPEXM | D149: CH | E149: CHANCADORA Y TRITURADORA | F149: CHANCADORA TERCIARIA SANDVIK H3800 | G149: CAMBIO DE 840103400 SCREW | H149: 2.5 | I149: Hra | J149: 142.5 | K149: DIA | L149: D | N149: 2.5 | O149: 2.5 | P149: 2.5 | T149: 2.5 | U149: 2.5 | V149: 2.5 | AA149: 2.5 | AB149: 2.5 | AC149: 2.5 | AG149: 2.5 | AH149: 2.5 | AM149: 2.5 | AN149: 2.5 | AO149: 2.5 | AT149: 2.5 | AU149: 2.5 | AV149: 2.5 | AZ149: 2.5 | BA149: 2.5 | BB149: 7.5 | BG149: 7.5 | BH149: 2.5 | BI149: 2.5
A150: 142 | B150: OPEXMCH | C150: OPEXM | D150: CH | E150: CHANCADORA Y TRITURADORA | F150: CHANCADORA TERCIARIA SANDVIK H3800 | G150: CAMBIO DE 847001600 WASHER | H150: 1.5 | I150: Hra | J150: 142.5 | K150: DIA | L150: D | N150: 1.5 | O150: 1.5 | P150: 1.5 | T150: 1.5 | U150: 1.5 | V150: 1.5 | AA150: 1.5 | AB150: 1.5 | AC150: 1.5 | AG150: 1.5 | AH150: 1.5 | AM150: 1.5 | AN150: 1.5 | AO150: 1.5 | AT150: 1.5 | AU150: 1.5 | AV150: 1.5 | AZ150: 1.5 | BA150: 1.5 | BB150: 4.5 | BG150: 4.5 | BH150: 1.5 | BI150: 1.5
A151: 143 | B151: OPEXMCH | C151: OPEXM | D151: CH | E151: CHANCADORA Y TRITURADORA | F151: CHANCADORA TERCIARIA SANDVIK H3800 | G151: CAMBIO DE 863003200 DISC SPRING 71X36X4 | H151: 2 | I151: Hra | J151: 285 | K151: DIA | L151: D | N151: 2 | O151: 2 | P151: 2 | T151: 2 | U151: 2 | V151: 2 | AA151: 2 | AB151: 2 | AC151: 2 | AG151: 2 | AH151: 2 | AM151: 2 | AN151: 2 | AO151: 2 | AT151: 2 | AU151: 2 | AV151: 2 | AZ151: 2 | BA151: 2 | BB151: 6 | BG151: 6 | BH151: 2 | BI151: 2
A152: 144 | B152: OPEXMCH | C152: OPEXM | D152: CH | E152: CHANCADORA Y TRITURADORA | F152: CHANCADORA TERCIARIA SANDVIK H3800 | G152: CAMBIO DE 868079000 RODAMIENTO 22219E/C3 | H152: 2.5 | I152: Hra | J152: 285 | K152: DIA | L152: C | N152: 2.5 | O152: 2.5 | P152: 2.5 | T152: 2.5 | U152: 2.5 | V152: 2.5 | AA152: 2.5 | AB152: 2.5 | AC152: 2.5 | AG152: 2.5 | AH152: 2.5 | AM152: 2.5 | AN152: 2.5 | AO152: 2.5 | AT152: 2.5 | AU152: 2.5 | AV152: 2.5 | AZ152: 2.5 | BA152: 2.5 | BB152: 7.5 | BG152: 7.5 | BH152: 2.5 | BI152: 2.5
A153: 145 | B153: OPEXMCH | C153: OPEXM | D153: CH | E153: CHANCADORA Y TRITURADORA | F153: CHANCADORA TERCIARIA SANDVIK H3800 | G153: CAMBIO DE 873.0833-00 O-RING 379, 3 X 5, 7 SMS 1586 | H153: 6 | I153: Hra | J153: 1140 | K153: DIA | L153: C | N153: 6 | O153: 6 | P153: 6 | T153: 6 | U153: 6 | V153: 6 | AA153: 6 | AB153: 6 | AC153: 6 | AG153: 6 | AH153: 6 | AM153: 6 | AN153: 6 | AO153: 6 | AT153: 6 | AU153: 6 | AV153: 6 | AZ153: 6 | BA153: 6 | BB153: 18 | BG153: 18 | BH153: 6 | BI153: 6
A154: 146 | B154: OPEXMCH | C154: OPEXM | D154: CH | E154: CHANCADORA Y TRITURADORA | F154: CHANCADORA TERCIARIA SANDVIK H3800 | G154: CAMBIO DE 873111200 SEALING COMPOUND ( CHANCAD. SANDV) 2440450 | H154: 2.5 | I154: Hra | J154: 142.5 | K154: DIA | L154: D | N154: 2.5 | O154: 2.5 | P154: 2.5 | T154: 2.5 | U154: 2.5 | V154: 2.5 | AA154: 2.5 | AB154: 2.5 | AC154: 2.5 | AG154: 2.5 | AH154: 2.5 | AM154: 2.5 | AN154: 2.5 | AO154: 2.5 | AT154: 2.5 | AU154: 2.5 | AV154: 2.5 | AZ154: 2.5 | BA154: 2.5 | BB154: 7.5 | BG154: 7.5 | BH154: 2.5 | BI154: 2.5
A155: 147 | B155: OPEXMCH | C155: OPEXM | D155: CH | E155: CHANCADORA Y TRITURADORA | F155: CHANCADORA TERCIARIA SANDVIK H3800 | G155: CAMBIO DE 906-0140-00 LUBRICATING OIL PUMP | H155: 6.5 | I155: Hra | J155: 570 | K155: DIA | L155: C | N155: 6.5 | O155: 6.5 | P155: 6.5 | T155: 6.5 | U155: 6.5 | V155: 6.5 | AA155: 6.5 | AB155: 6.5 | AC155: 6.5 | AG155: 6.5 | AH155: 6.5 | AM155: 6.5 | AN155: 6.5 | AO155: 6.5 | AT155: 6.5 | AU155: 6.5 | AV155: 6.5 | AZ155: 6.5 | BA155: 6.5 | BB155: 19.5 | BG155: 19.5 | BH155: 6.5 | BI155: 6.5
A156: 148 | B156: OPEXMCH | C156: OPEXM | D156: CH | E156: CHANCADORA Y TRITURADORA | F156: CHANCADORA TERCIARIA SANDVIK H3800 | G156: CAMBIO DE 912.0139-00 FILTER CARTRIDGE | H156: 1.5 | I156: Hra | J156: 142.5 | K156: DIA | L156: F | N156: 1.5 | O156: 1.5 | P156: 1.5 | T156: 1.5 | U156: 1.5 | V156: 1.5 | AA156: 1.5 | AB156: 1.5 | AC156: 1.5 | AG156: 1.5 | AH156: 1.5 | AM156: 1.5 | AN156: 1.5 | AO156: 1.5 | AT156: 1.5 | AU156: 1.5 | AV156: 1.5 | AZ156: 1.5 | BA156: 1.5 | BB156: 4.5 | BG156: 4.5 | BH156: 1.5 | BI156: 1.5
A157: 149 | B157: OPEXMCH | C157: OPEXM | D157: CH | E157: CHANCADORA Y TRITURADORA | F157: CHANCADORA TERCIARIA SANDVIK H3800 | G157: CAMBIO DE 912015500 FILTER CARTRIDGE | H157: 1.5 | I157: Hra | J157: 142.5 | K157: DIA | L157: C | N157: 1.5 | O157: 1.5 | P157: 1.5 | T157: 1.5 | U157: 1.5 | V157: 1.5 | AA157: 1.5 | AB157: 1.5 | AC157: 1.5 | AG157: 1.5 | AH157: 1.5 | AM157: 1.5 | AN157: 1.5 | AO157: 1.5 | AT157: 1.5 | AU157: 1.5 | AV157: 1.5 | AZ157: 1.5 | BA157: 1.5 | BB157: 4.5 | BG157: 4.5 | BH157: 1.5 | BI157: 1.5
A158: 150 | B158: OPEXMCH | C158: OPEXM | D158: CH | E158: CHANCADORA Y TRITURADORA | F158: CHANCADORA TERCIARIA SANDVIK H3800 | G158: CAMBIO DE CFW-F2 BAF SF SLO.5 DRWX7 18-30-6/4.5 RETEN | H158: 3.5 | I158: Hra | J158: 570 | K158: DIA | L158: C | N158: 3.5 | O158: 3.5 | P158: 3.5 | T158: 3.5 | U158: 3.5 | V158: 3.5 | AA158: 3.5 | AB158: 3.5 | AC158: 3.5 | AG158: 3.5 | AH158: 3.5 | AM158: 3.5 | AN158: 3.5 | AO158: 3.5 | AT158: 3.5 | AU158: 3.5 | AV158: 3.5 | AZ158: 3.5 | BA158: 3.5 | BB158: 10.5 | BG158: 10.5 | BH158: 3.5 | BI158: 3.5
A159: 151 | B159: OPEXMCH | C159: OPEXM | D159: CH | E159: CHANCADORA Y TRITURADORA | F159: CHANCADORA TERCIARIA SANDVIK H3800 | G159: CAMBIO DE FILTRO | H159: 4 | I159: Hra | J159: 142.5 | K159: DIA | L159: D | N159: 4 | O159: 4 | P159: 4 | T159: 4 | U159: 4 | V159: 4 | AA159: 4 | AB159: 4 | AC159: 4 | AG159: 4 | AH159: 4 | AM159: 4 | AN159: 4 | AO159: 4 | AT159: 4 | AU159: 4 | AV159: 4 | AZ159: 4 | BA159: 4 | BB159: 12 | BG159: 12 | BH159: 4 | BI159: 4
A160: 152 | B160: OPEXMCH | C160: OPEXM | D160: CH | E160: CHANCADORA Y TRITURADORA | F160: CHANCADORA TERCIARIA SANDVIK H3800 | G160: CAMBIO DE FILTRO DEL HIDROSET | H160: 4 | I160: Hra | J160: 142.5 | K160: DIA | L160: C | N160: 4 | O160: 4 | P160: 4 | T160: 4 | U160: 4 | V160: 4 | AA160: 4 | AB160: 4 | AC160: 4 | AG160: 4 | AH160: 4 | AM160: 4 | AN160: 4 | AO160: 4 | AT160: 4 | AU160: 4 | AV160: 4 | AZ160: 4 | BA160: 4 | BB160: 12 | BG160: 12 | BH160: 4 | BI160: 4
A161: 153 | B161: OPEXMCH | C161: OPEXM | D161: CH | E161: CHANCADORA Y TRITURADORA | F161: CHANCADORA TERCIARIA SANDVIK H3800 | G161: CAMBIO DE FILTRO DEL LUBRICADOR | H161: 4 | I161: Hra | J161: 142.5 | K161: DIA | L161: C | N161: 4 | O161: 4 | P161: 4 | T161: 4 | U161: 4 | V161: 4 | AA161: 4 | AB161: 4 | AC161: 4 | AG161: 4 | AH161: 4 | AM161: 4 | AN161: 4 | AO161: 4 | AT161: 4 | AU161: 4 | AV161: 4 | AZ161: 4 | BA161: 4 | BB161: 12 | BG161: 12 | BH161: 4 | BI161: 4
A162: 154 | B162: OPEXMCH | C162: OPEXM | D162: CH | E162: CHANCADORA Y TRITURADORA | F162: CHANCADORA TERCIARIA SANDVIK H3800 | G162: CAMBIO DE RODAMIENTOS DELANTERO | H162: 5 | I162: Hra | J162: 250 | K162: DIA | L162: C | N162: 5 | O162: 5 | P162: 5 | T162: 5 | U162: 5 | V162: 5 | AA162: 5 | AB162: 5 | AC162: 5 | AG162: 5 | AH162: 5 | AM162: 5 | AN162: 5 | AO162: 5 | AT162: 5 | AU162: 5 | AV162: 5 | AZ162: 5 | BA162: 5 | BB162: 15 | BG162: 15 | BH162: 5 | BI162: 5
A163: 155 | B163: OPEXMCH | C163: OPEXM | D163: CH | E163: CHANCADORA Y TRITURADORA | F163: CHANCADORA TERCIARIA SANDVIK H3800 | G163: CAMBIO DE RODAMIENTOS POSTERIOR | H163: 5 | I163: Hra | J163: 250 | K163: DIA | L163: C | N163: 5 | O163: 5 | P163: 5 | T163: 5 | U163: 5 | V163: 5 | AA163: 5 | AB163: 5 | AC163: 5 | AG163: 5 | AH163: 5 | AM163: 5 | AN163: 5 | AO163: 5 | AT163: 5 | AU163: 5 | AV163: 5 | AZ163: 5 | BA163: 5 | BB163: 15 | BG163: 15 | BH163: 5 | BI163: 5
A164: 156 | B164: OPEXMCH | C164: OPEXM | D164: CH | E164: CHANCADORA Y TRITURADORA | F164: CHANCADORA TERCIARIA SANDVIK H3800 | G164: ENGRASE DE EQUIPOS | H164: 2 | I164: Hra | J164: 71.25 | K164: DIA | L164: D | N164: 2 | O164: 2 | P164: 2 | T164: 2 | U164: 2 | V164: 2 | AA164: 2 | AB164: 2 | AC164: 2 | AG164: 2 | AH164: 2 | AM164: 2 | AN164: 2 | AO164: 2 | AT164: 2 | AU164: 2 | AV164: 2 | AZ164: 2 | BA164: 2 | BB164: 6 | BG164: 6 | BH164: 2 | BI164: 2
A165: 157 | B165: OPEXMCH | C165: OPEXM | D165: CH | E165: CHANCADORA Y TRITURADORA | F165: CHANCADORA TERCIARIA SANDVIK H3800 | G165: LIMPIEZA DE ARROLLAMIENTO | H165: 5 | I165: Hra | J165: 31.25 | K165: DIA | L165: D | N165: 5 | O165: 5 | P165: 5 | T165: 5 | U165: 5 | V165: 5 | AA165: 5 | AB165: 5 | AC165: 5 | AG165: 5 | AH165: 5 | AM165: 5 | AN165: 5 | AO165: 5 | AT165: 5 | AU165: 5 | AV165: 5 | AZ165: 5 | BA165: 5 | BB165: 15 | BG165: 15 | BH165: 5 | BI165: 5
A166: 158 | B166: OPEXMCH | C166: OPEXM | D166: CH | E166: CHANCADORA Y TRITURADORA | F166: COMPRENSORA SULLAIR LS12-60H/A/SUL y tanque de aire comprimido | G166: CAMBIO DE RODAMIENTOS DELANTERO | H166: 5 | I166: Hra | J166: 500 | K166: DIA | L166: C | N166: 5 | O166: 5 | P166: 5 | T166: 5 | U166: 5 | V166: 5 | AA166: 5 | AB166: 5 | AC166: 5 | AG166: 5 | AH166: 5 | AM166: 5 | AN166: 5 | AO166: 5 | AT166: 5 | AU166: 5 | AV166: 5 | AZ166: 5 | BA166: 5 | BB166: 15 | BG166: 15 | BH166: 5 | BI166: 5
A167: 159 | B167: OPEXMCH | C167: OPEXM | D167: CH | E167: CHANCADORA Y TRITURADORA | F167: COMPRENSORA SULLAIR LS12-60H/A/SUL y tanque de aire comprimido | G167: CAMBIO DE RODAMIENTOS POSTERIOR | H167: 5 | I167: Hra | J167: 500 | K167: DIA | L167: C | N167: 5 | O167: 5 | P167: 5 | T167: 5 | U167: 5 | V167: 5 | AA167: 5 | AB167: 5 | AC167: 5 | AG167: 5 | AH167: 5 | AM167: 5 | AN167: 5 | AO167: 5 | AT167: 5 | AU167: 5 | AV167: 5 | AZ167: 5 | BA167: 5 | BB167: 15 | BG167: 15 | BH167: 5 | BI167: 5
A168: 160 | B168: OPEXMCH | C168: OPEXM | D168: CH | E168: CHANCADORA Y TRITURADORA | F168: COMPRENSORA SULLAIR LS12-60H/A/SUL y tanque de aire comprimido | G168: LIMPIEZA DE ARROLLAMIENTO | H168: 5 | I168: Hra | J168: 200 | K168: DIA | L168: C | N168: 5 | O168: 5 | P168: 5 | T168: 5 | U168: 5 | V168: 5 | AA168: 5 | AB168: 5 | AC168: 5 | AG168: 5 | AH168: 5 | AM168: 5 | AN168: 5 | AO168: 5 | AT168: 5 | AU168: 5 | AV168: 5 | AZ168: 5 | BA168: 5 | BB168: 15 | BG168: 15 | BH168: 5 | BI168: 5
A169: 161 | B169: OPEXMCH | C169: OPEXM | D169: CH | E169: CHANCADORA Y TRITURADORA | F169: COMPRESORA GARDEN DENVER EXTRACTOR DE POLVO PRIMARIO | G169: CAMBIO DE FILTRO DE ACEITE | H169: 4 | I169: Hra | J169: 228 | K169: DIA | L169: D | N169: 4 | O169: 4 | P169: 4 | T169: 4 | U169: 4 | V169: 4 | AA169: 4 | AB169: 4 | AC169: 4 | AG169: 4 | AH169: 4 | AM169: 4 | AN169: 4 | AO169: 4 | AT169: 4 | AU169: 4 | AV169: 4 | AZ169: 4 | BA169: 4 | BB169: 12 | BG169: 12 | BH169: 4 | BI169: 4
A170: 162 | B170: OPEXMCH | C170: OPEXM | D170: CH | E170: CHANCADORA Y TRITURADORA | F170: COMPRESORA GARDEN DENVER EXTRACTOR DE POLVO PRIMARIO | G170: CAMBIO DE FILTRO DE AIRE | H170: 4 | I170: Hra | J170: 228 | K170: DIA | L170: D | N170: 4 | O170: 4 | P170: 4 | T170: 4 | U170: 4 | V170: 4 | AA170: 4 | AB170: 4 | AC170: 4 | AG170: 4 | AH170: 4 | AM170: 4 | AN170: 4 | AO170: 4 | AT170: 4 | AU170: 4 | AV170: 4 | AZ170: 4 | BA170: 4 | BB170: 12 | BG170: 12 | BH170: 4 | BI170: 4
A171: 163 | B171: OPEXMCH | C171: OPEXM | D171: CH | E171: CHANCADORA Y TRITURADORA | F171: COMPRESORA GARDEN DENVER EXTRACTOR DE POLVO PRIMARIO | G171: CAMBIO DE SEPARADOR DE KIT | H171: 2 | I171: Hra | J171: 228 | K171: DIA | L171: C | N171: 2 | O171: 2 | P171: 2 | T171: 2 | U171: 2 | V171: 2 | AA171: 2 | AB171: 2 | AC171: 2 | AG171: 2 | AH171: 2 | AM171: 2 | AN171: 2 | AO171: 2 | AT171: 2 | AU171: 2 | AV171: 2 | AZ171: 2 | BA171: 2 | BB171: 6 | BG171: 6 | BH171: 2 | BI171: 2
A172: 164 | B172: OPEXMCH | C172: OPEXM | D172: CH | E172: CHANCADORA Y TRITURADORA | F172: COMPRESORA SULLAIR 10B-40HP/AC/STD CELDAS WENCO | G172: CAMBIO DE FILTRO DE ACEITE | H172: 4 | I172: Hra | J172: 288 | K172: DIA | L172: C | N172: 4 | O172: 4 | P172: 4 | T172: 4 | U172: 4 | V172: 4 | AA172: 4 | AB172: 4 | AC172: 4 | AG172: 4 | AH172: 4 | AM172: 4 | AN172: 4 | AO172: 4 | AT172: 4 | AU172: 4 | AV172: 4 | AZ172: 4 | BA172: 4 | BB172: 12 | BG172: 12 | BH172: 4 | BI172: 4
A173: 165 | B173: OPEXMCH | C173: OPEXM | D173: CH | E173: CHANCADORA Y TRITURADORA | F173: COMPRESORA SULLAIR 10B-40HP/AC/STD CELDAS WENCO | G173: CAMBIO DE FILTRO DE AGUA | H173: 4 | I173: Hra | J173: 288 | K173: DIA | L173: C | N173: 4 | O173: 4 | P173: 4 | T173: 4 | U173: 4 | V173: 4 | AA173: 4 | AB173: 4 | AC173: 4 | AG173: 4 | AH173: 4 | AM173: 4 | AN173: 4 | AO173: 4 | AT173: 4 | AU173: 4 | AV173: 4 | AZ173: 4 | BA173: 4 | BB173: 12 | BG173: 12 | BH173: 4 | BI173: 4
A174: 166 | B174: OPEXMCH | C174: OPEXM | D174: CH | E174: CHANCADORA Y TRITURADORA | F174: COMPRESORA SULLAIR 10B-40HP/AC/STD CELDAS WENCO | G174: CAMBIO DE FILTRO DE AIRE | H174: 4 | I174: Hra | J174: 288 | K174: DIA | L174: C | N174: 4 | O174: 4 | P174: 4 | T174: 4 | U174: 4 | V174: 4 | AA174: 4 | AB174: 4 | AC174: 4 | AG174: 4 | AH174: 4 | AM174: 4 | AN174: 4 | AO174: 4 | AT174: 4 | AU174: 4 | AV174: 4 | AZ174: 4 | BA174: 4 | BB174: 12 | BG174: 12 | BH174: 4 | BI174: 4
A175: 167 | B175: OPEXMCH | C175: OPEXM | D175: CH | E175: CHANCADORA Y TRITURADORA | F175: COMPRESORA SULLAIR 10B-40HP/AC/STD CELDAS WENCO | G175: CAMBIO DE FILTRO DE ELEMENTO | H175: 4 | I175: Hra | J175: 288 | K175: DIA | L175: D | N175: 4 | O175: 4 | P175: 4 | T175: 4 | U175: 4 | V175: 4 | AA175: 4 | AB175: 4 | AC175: 4 | AG175: 4 | AH175: 4 | AM175: 4 | AN175: 4 | AO175: 4 | AT175: 4 | AU175: 4 | AV175: 4 | AZ175: 4 | BA175: 4 | BB175: 12 | BG175: 12 | BH175: 4 | BI175: 4
A176: 168 | B176: OPEXMCH | C176: OPEXM | D176: CH | E176: CHANCADORA Y TRITURADORA | F176: COMPRESORA SULLAIR 10B-40HP/AC/STD CELDAS WENCO | G176: CAMBIO DE FILTRO ELEMENTO SEPARADOR | H176: 4 | I176: Hra | J176: 288 | K176: DIA | L176: D | N176: 4 | O176: 4 | P176: 4 | T176: 4 | U176: 4 | V176: 4 | AA176: 4 | AB176: 4 | AC176: 4 | AG176: 4 | AH176: 4 | AM176: 4 | AN176: 4 | AO176: 4 | AT176: 4 | AU176: 4 | AV176: 4 | AZ176: 4 | BA176: 4 | BB176: 12 | BG176: 12 | BH176: 4 | BI176: 4
A177: 169 | B177: OPEXMCH | C177: OPEXM | D177: CH | E177: CHANCADORA Y TRITURADORA | F177: COMPRESORA SULLAIR LS12 -60H/A/SUL | G177: CAMBIO DE ELEMENTO DE FILTRO | H177: 4 | I177: Hra | J177: 201.6 | K177: DIA | L177: C | N177: 4 | O177: 4 | P177: 4 | T177: 4 | U177: 4 | V177: 4 | AA177: 4 | AB177: 4 | AC177: 4 | AG177: 4 | AH177: 4 | AM177: 4 | AN177: 4 | AO177: 4 | AT177: 4 | AU177: 4 | AV177: 4 | AZ177: 4 | BA177: 4 | BB177: 12 | BG177: 12 | BH177: 4 | BI177: 4
A178: 170 | B178: OPEXMCH | C178: OPEXM | D178: CH | E178: CHANCADORA Y TRITURADORA | F178: COMPRESORA SULLAIR LS12 -60H/A/SUL | G178: CAMBIO DE FILTRO DE AIRE | H178: 4 | I178: Hra | J178: 201.6 | K178: DIA | L178: C | N178: 4 | O178: 4 | P178: 4 | T178: 4 | U178: 4 | V178: 4 | AA178: 4 | AB178: 4 | AC178: 4 | AG178: 4 | AH178: 4 | AM178: 4 | AN178: 4 | AO178: 4 | AT178: 4 | AU178: 4 | AV178: 4 | AZ178: 4 | BA178: 4 | BB178: 12 | BG178: 12 | BH178: 4 | BI178: 4
A179: 171 | B179: OPEXMCH | C179: OPEXM | D179: CH | E179: CHANCADORA Y TRITURADORA | F179: COMPRESORA SULLAIR LS12 -60H/A/SUL | G179: CAMBIO DE FILTRO SEPARADOR DE AGUA | H179: 4 | I179: Hra | J179: 201.6 | K179: DIA | L179: C | N179: 4 | O179: 4 | P179: 4 | T179: 4 | U179: 4 | V179: 4 | AA179: 4 | AB179: 4 | AC179: 4 | AG179: 4 | AH179: 4 | AM179: 4 | AN179: 4 | AO179: 4 | AT179: 4 | AU179: 4 | AV179: 4 | AZ179: 4 | BA179: 4 | BB179: 12 | BG179: 12 | BH179: 4 | BI179: 4
A180: 172 | B180: OPEXMCH | C180: OPEXM | D180: CH | E180: CHANCADORA Y TRITURADORA | F180: COMPRESORA SULLAIR LS12 -60H/A/SUL | G180: CAMBIO DE FILTRO SEPARADOR PRIMARIO | H180: 4 | I180: Hra | J180: 201.6 | K180: DIA | L180: C | N180: 4 | O180: 4 | P180: 4 | T180: 4 | U180: 4 | V180: 4 | AA180: 4 | AB180: 4 | AC180: 4 | AG180: 4 | AH180: 4 | AM180: 4 | AN180: 4 | AO180: 4 | AT180: 4 | AU180: 4 | AV180: 4 | AZ180: 4 | BA180: 4 | BB180: 12 | BG180: 12 | BH180: 4 | BI180: 4
A181: 173 | B181: OPEXMCH | C181: OPEXM | D181: CH | E181: CHANCADORA Y TRITURADORA | F181: COMPRESORA SULLAIR LS12 -60H/A/SUL | G181: CAMBIO DE FILTRO SEPARADOR SECUNDARIO | H181: 4 | I181: Hra | J181: 201.6 | K181: DIA | L181: D | N181: 4 | O181: 4 | P181: 4 | T181: 4 | U181: 4 | V181: 4 | AA181: 4 | AB181: 4 | AC181: 4 | AG181: 4 | AH181: 4 | AM181: 4 | AN181: 4 | AO181: 4 | AT181: 4 | AU181: 4 | AV181: 4 | AZ181: 4 | BA181: 4 | BB181: 12 | BG181: 12 | BH181: 4 | BI181: 4
A182: 174 | B182: OPEXMCH | C182: OPEXM | D182: CH | E182: CHANCADORA Y TRITURADORA | F182: estractor de polvo zona chancado secundario | G182: CAMBIO DE RODAMIENTOS DELANTERO | H182: 5 | I182: Hra | J182: 62.5 | K182: DIA | L182: D | N182: 5 | O182: 5 | P182: 5 | T182: 5 | U182: 5 | V182: 5 | AA182: 5 | AB182: 5 | AC182: 5 | AG182: 5 | AH182: 5 | AM182: 5 | AN182: 5 | AO182: 5 | AT182: 5 | AU182: 5 | AV182: 5 | AZ182: 5 | BA182: 5 | BB182: 15 | BG182: 15 | BH182: 5 | BI182: 5
A183: 175 | B183: OPEXMCH | C183: OPEXM | D183: CH | E183: CHANCADORA Y TRITURADORA | F183: estractor de polvo zona chancado secundario | G183: CAMBIO DE RODAMIENTOS POSTERIOR | H183: 5 | I183: Hra | J183: 62.5 | K183: DIA | L183: D | N183: 5 | O183: 5 | P183: 5 | T183: 5 | U183: 5 | V183: 5 | AA183: 5 | AB183: 5 | AC183: 5 | AG183: 5 | AH183: 5 | AM183: 5 | AN183: 5 | AO183: 5 | AT183: 5 | AU183: 5 | AV183: 5 | AZ183: 5 | BA183: 5 | BB183: 15 | BG183: 15 | BH183: 5 | BI183: 5
A184: 176 | B184: OPEXMCH | C184: OPEXM | D184: CH | E184: CHANCADORA Y TRITURADORA | F184: estractor de polvo zona chancado secundario | G184: ENGRASE DE EQUIPOS | H184: 5 | I184: Hra | J184: 15.625 | K184: DIA | L184: D | N184: 5 | O184: 5 | P184: 5 | T184: 5 | U184: 5 | V184: 5 | AA184: 5 | AB184: 5 | AC184: 5 | AG184: 5 | AH184: 5 | AM184: 5 | AN184: 5 | AO184: 5 | AT184: 5 | AU184: 5 | AV184: 5 | AZ184: 5 | BA184: 5 | BB184: 15 | BG184: 15 | BH184: 5 | BI184: 5
A185: 177 | B185: OPEXMCH | C185: OPEXM | D185: CH | E185: CHANCADORA Y TRITURADORA | F185: estractor de polvo zona chancado secundario | G185: LIMPIEZA DE ARROLLAMIENTO | H185: 5 | I185: Hra | J185: 62.5 | K185: DIA | L185: D | N185: 5 | O185: 5 | P185: 5 | T185: 5 | U185: 5 | V185: 5 | AA185: 5 | AB185: 5 | AC185: 5 | AG185: 5 | AH185: 5 | AM185: 5 | AN185: 5 | AO185: 5 | AT185: 5 | AU185: 5 | AV185: 5 | AZ185: 5 | BA185: 5 | BB185: 15 | BG185: 15 | BH185: 5 | BI185: 5
A186: 178 | B186: OPEXMCH | C186: OPEXM | D186: CH | E186: CHANCADORA Y TRITURADORA | F186: Extractor de polvo Zona Chancado secundario(BOMBA) | G186: CAMBIO DE RODAMIENTOS DELANTERO | H186: 5 | I186: Hra | J186: 62.5 | K186: DIA | L186: D | N186: 5 | O186: 5 | P186: 5 | T186: 5 | U186: 5 | V186: 5 | AA186: 5 | AB186: 5 | AC186: 5 | AG186: 5 | AH186: 5 | AM186: 5 | AN186: 5 | AO186: 5 | AT186: 5 | AU186: 5 | AV186: 5 | AZ186: 5 | BA186: 5 | BB186: 15 | BG186: 15 | BH186: 5 | BI186: 5
A187: 179 | B187: OPEXMCH | C187: OPEXM | D187: CH | E187: CHANCADORA Y TRITURADORA | F187: Extractor de polvo Zona Chancado secundario(BOMBA) | G187: CAMBIO DE RODAMIENTOS POSTERIOR | H187: 5 | I187: Hra | J187: 62.5 | K187: DIA | L187: D | N187: 5 | O187: 5 | P187: 5 | T187: 5 | U187: 5 | V187: 5 | AA187: 5 | AB187: 5 | AC187: 5 | AG187: 5 | AH187: 5 | AM187: 5 | AN187: 5 | AO187: 5 | AT187: 5 | AU187: 5 | AV187: 5 | AZ187: 5 | BA187: 5 | BB187: 15 | BG187: 15 | BH187: 5 | BI187: 5
A188: 180 | B188: OPEXMCH | C188: OPEXM | D188: CH | E188: CHANCADORA Y TRITURADORA | F188: Extractor de polvo Zona Chancado secundario(BOMBA) | G188: LIMPIEZA DE ARROLLAMIENTO | H188: 5 | I188: Hra | J188: 62.5 | K188: DIA | L188: D | N188: 5 | O188: 5 | P188: 5 | T188: 5 | U188: 5 | V188: 5 | AA188: 5 | AB188: 5 | AC188: 5 | AG188: 5 | AH188: 5 | AM188: 5 | AN188: 5 | AO188: 5 | AT188: 5 | AU188: 5 | AV188: 5 | AZ188: 5 | BA188: 5 | BB188: 15 | BG188: 15 | BH188: 5 | BI188: 5
A189: 181 | B189: OPEXMCH | C189: OPEXM | D189: CH | E189: CHANCADORA Y TRITURADORA | F189: Extractor de polvo Zona Chancado secundario(BOMBA) | G189: MANTENIMIENTO EXTRACTOR | H189: 12 | I189: Hra | J189: 90 | K189: DIA | L189: C | N189: 12 | O189: 12 | P189: 12 | T189: 12 | U189: 12 | V189: 12 | AA189: 12 | AB189: 12 | AC189: 12 | AG189: 12 | AH189: 12 | AM189: 12 | AN189: 12 | AO189: 12 | AT189: 12 | AU189: 12 | AV189: 12 | AZ189: 12 | BA189: 12 | BB189: 36 | BG189: 36 | BH189: 12 | BI189: 12
A190: 182 | B190: OPEXMCH | C190: OPEXM | D190: CH | E190: CHANCADORA Y TRITURADORA | F190: Extractor de polvo Zona Chancado secundario(BOMBA) | G190: MANTENIMIENTO EXTRACTOR | H190: 12 | I190: Hra | J190: 180 | K190: DIA | L190: C | N190: 12 | O190: 12 | P190: 12 | T190: 12 | U190: 12 | V190: 12 | AA190: 12 | AB190: 12 | AC190: 12 | AG190: 12 | AH190: 12 | AM190: 12 | AN190: 12 | AO190: 12 | AT190: 12 | AU190: 12 | AV190: 12 | AZ190: 12 | BA190: 12 | BB190: 36 | BG190: 36 | BH190: 12 | BI190: 12
A191: 183 | B191: OPEXMCH | C191: OPEXM | D191: CH | E191: CHANCADORA Y TRITURADORA | F191: Extractor de polvo Zona Chancado secundario(BOMBA) | G191: MANTENIMIENTO EXTRACTOR | H191: 12 | I191: Hra | J191: 360 | K191: DIA | L191: C | N191: 12 | O191: 12 | P191: 12 | T191: 12 | U191: 12 | V191: 12 | AA191: 12 | AB191: 12 | AC191: 12 | AG191: 12 | AH191: 12 | AM191: 12 | AN191: 12 | AO191: 12 | AT191: 12 | AU191: 12 | AV191: 12 | AZ191: 12 | BA191: 12 | BB191: 36 | BG191: 36 | BH191: 12 | BI191: 12
A192: 184 | B192: OPEXMCH | C192: OPEXM | D192: CH | E192: CHANCADORA Y TRITURADORA | F192: Faja Transportadora 4A de 30" x longitud de 14m | G192: CAMBIO DE 30-2 POLINES SIMPLE C/DISCO DE JEBE | H192: 1.5 | I192: Hra | J192: 168 | K192: DIA | L192: G | N192: 1.5 | O192: 1.5 | P192: 1.5 | T192: 1.5 | U192: 1.5 | V192: 1.5 | AA192: 1.5 | AB192: 1.5 | AC192: 1.5 | AG192: 1.5 | AH192: 1.5 | AM192: 1.5 | AN192: 1.5 | AO192: 1.5 | AT192: 1.5 | AU192: 1.5 | AV192: 1.5 | AZ192: 1.5 | BA192: 1.5 | BB192: 4.5 | BG192: 4.5 | BH192: 1.5 | BI192: 1.5
A193: 185 | B193: OPEXMCH | C193: OPEXM | D193: CH | E193: CHANCADORA Y TRITURADORA | F193: Faja Transportadora 4A de 30" x longitud de 14m | G193: CAMBIO DE BALL BEARING FYH-UK-313-K | H193: 2 | I193: Hra | J193: 672 | K193: DIA | L193: C | N193: 2 | O193: 2 | P193: 2 | T193: 2 | U193: 2 | V193: 2 | AA193: 2 | AB193: 2 | AC193: 2 | AG193: 2 | AH193: 2 | AM193: 2 | AN193: 2 | AO193: 2 | AT193: 2 | AU193: 2 | AV193: 2 | AZ193: 2 | BA193: 2 | BB193: 6 | BG193: 6 | BH193: 2 | BI193: 2
A194: 186 | B194: OPEXMCH | C194: OPEXM | D194: CH | E194: CHANCADORA Y TRITURADORA | F194: Faja Transportadora 4A de 30" x longitud de 14m | G194: CAMBIO DE BANDA TRANSPORTADORA DE 30 | H194: 12 | I194: Hra | J194: 336 | K194: DIA | L194: C | N194: 12 | O194: 12 | P194: 12 | T194: 12 | U194: 12 | V194: 12 | AA194: 12 | AB194: 12 | AC194: 12 | AG194: 12 | AH194: 12 | AM194: 12 | AN194: 12 | AO194: 12 | AT194: 12 | AU194: 12 | AV194: 12 | AZ194: 12 | BA194: 12 | BB194: 36 | BG194: 36 | BH194: 12 | BI194: 12
A195: 187 | B195: OPEXMCH | C195: OPEXM | D195: CH | E195: CHANCADORA Y TRITURADORA | F195: Faja Transportadora 4A de 30" x longitud de 14m | G195: CAMBIO DE CHAIN WHEEL RS 100 CNT 17 X 45MM | H195: 3 | I195: Hra | J195: 672 | K195: DIA | L195: D | N195: 3 | O195: 3 | P195: 3 | T195: 3 | U195: 3 | V195: 3 | AA195: 3 | AB195: 3 | AC195: 3 | AG195: 3 | AH195: 3 | AM195: 3 | AN195: 3 | AO195: 3 | AT195: 3 | AU195: 3 | AV195: 3 | AZ195: 3 | BA195: 3 | BB195: 9 | BG195: 9 | BH195: 3 | BI195: 3
A196: 188 | B196: OPEXMCH | C196: OPEXM | D196: CH | E196: CHANCADORA Y TRITURADORA | F196: Faja Transportadora 4A de 30" x longitud de 14m | G196: CAMBIO DE CHAIN WHEEL RS-100-1C-NT-24X60MM. | H196: 3 | I196: Hra | J196: 672 | K196: DIA | L196: G | N196: 3 | O196: 3 | P196: 3 | T196: 3 | U196: 3 | V196: 3 | AA196: 3 | AB196: 3 | AC196: 3 | AG196: 3 | AH196: 3 | AM196: 3 | AN196: 3 | AO196: 3 | AT196: 3 | AU196: 3 | AV196: 3 | AZ196: 3 | BA196: 3 | BB196: 9 | BG196: 9 | BH196: 3 | BI196: 3
A197: 189 | B197: OPEXMCH | C197: OPEXM | D197: CH | E197: CHANCADORA Y TRITURADORA | F197: Faja Transportadora 4A de 30" x longitud de 14m | G197: CAMBIO DE MANGUITO H2313 (EJE 60 MM) | H197: 2 | I197: Hra | J197: 672 | K197: DIA | L197: C | N197: 2 | O197: 2 | P197: 2 | T197: 2 | U197: 2 | V197: 2 | AA197: 2 | AB197: 2 | AC197: 2 | AG197: 2 | AH197: 2 | AM197: 2 | AN197: 2 | AO197: 2 | AT197: 2 | AU197: 2 | AV197: 2 | AZ197: 2 | BA197: 2 | BB197: 6 | BG197: 6 | BH197: 2 | BI197: 2
A198: 190 | B198: OPEXMCH | C198: OPEXM | D198: CH | E198: CHANCADORA Y TRITURADORA | F198: Faja Transportadora 4A de 30" x longitud de 14m | G198: CAMBIO DE PILLOW BLOCK UKP 313 | H198: 4.5 | I198: Hra | J198: 672 | K198: DIA | L198: C | N198: 4.5 | O198: 4.5 | P198: 4.5 | T198: 4.5 | U198: 4.5 | V198: 4.5 | AA198: 4.5 | AB198: 4.5 | AC198: 4.5 | AG198: 4.5 | AH198: 4.5 | AM198: 4.5 | AN198: 4.5 | AO198: 4.5 | AT198: 4.5 | AU198: 4.5 | AV198: 4.5 | AZ198: 4.5 | BA198: 4.5 | BB198: 13.5 | BG198: 13.5 | BH198: 4.5 | BI198: 4.5
A199: 191 | B199: OPEXMCH | C199: OPEXM | D199: CH | E199: CHANCADORA Y TRITURADORA | F199: Faja Transportadora 4A de 30" x longitud de 14m | G199: CAMBIO DE POLEA MATRIZ ENJEBADO 420X660X60X1280MM | H199: 8 | I199: Hra | J199: 1344 | K199: DIA | L199: C | N199: 8 | O199: 8 | P199: 8 | T199: 8 | U199: 8 | V199: 8 | AA199: 8 | AB199: 8 | AC199: 8 | AG199: 8 | AH199: 8 | AM199: 8 | AN199: 8 | AO199: 8 | AT199: 8 | AU199: 8 | AV199: 8 | AZ199: 8 | BA199: 8 | BB199: 24 | BG199: 24 | BH199: 8 | BI199: 8
A200: 192 | B200: OPEXMCH | C200: OPEXM | D200: CH | E200: CHANCADORA Y TRITURADORA | F200: Faja Transportadora 4A de 30" x longitud de 14m | G200: CAMBIO DE POLINES D/CARGA TRIPLE IMPACTO D/JEBE 30 | H200: 1.5 | I200: Hra | J200: 168 | K200: DIA | L200: C | N200: 1.5 | O200: 1.5 | P200: 1.5 | T200: 1.5 | U200: 1.5 | V200: 1.5 | AA200: 1.5 | AB200: 1.5 | AC200: 1.5 | AG200: 1.5 | AH200: 1.5 | AM200: 1.5 | AN200: 1.5 | AO200: 1.5 | AT200: 1.5 | AU200: 1.5 | AV200: 1.5 | AZ200: 1.5 | BA200: 1.5 | BB200: 4.5 | BG200: 4.5 | BH200: 1.5 | BI200: 1.5
... 2050 more rows

Sheet PROYECCION ACTIVIDADES PARADAS
E1: ACTIVIDADES DE PARADAS TOTALES PLANTA CONCENTRADORAS x 52 SEMANAS - 2024
BM2: 2015 | DV2: 2016 | GE2: 2017 | IN2: 2018
E3: BUDGET PLANNING AND MAINTENANCE CONCENTRATING PLANT | M3: 2024 | BM3: ENERO | BR3: FEBRERO | BW3: MARZO | CB3: ABRIL | CG3: MAYO | CL3: JUNIO | CQ3: JULIO | CV3: AGOSTO | DA3: SEPTIEMBRE | DG3: OCTUBRE | DL3: NOVIEMBRE | DQ3: DICIEMBRE | DV3: ENERO | EA3: FEBRERO | EF3: MARZO | EK3: ABRIL | EP3: MAYO | EU3: JUNIO | EZ3: JULIO | FE3: AGOSTO | FJ3: SEPTIEMBRE | FP3: OCTUBRE | FU3: NOVIEMBRE | FZ3: DICIEMBRE | GE3: ENERO | GJ3: FEBRERO | GO3: MARZO | GT3: ABRIL | GY3: MAYO | HD3: JUNIO | HI3: JULIO | HN3: AGOSTO | HS3: SEPTIEMBRE | HY3: OCTUBRE | ID3: NOVIEMBRE | II3: DICIEMBRE | IN3: ENERO | IS3: FEBRERO | IX3: MARZO | JC3: ABRIL | JH3: MAYO | JM3: JUNIO | JR3: JULIO | JW3: AGOSTO | KB3: SEPTIEMBRE | KH3: OCTUBRE | KM3: NOVIEMBRE | KR3: DICIEMBRE
E4: HUANZALA | M4: ENERO | Q4: FEBRERO | U4: MARZO | Z4: ABRIL | AD4: MAYO | AI4: JUNIO | AM4: JULIO | AQ4: AGOSTO | AV4: SEPTIEMBRE | AZ4: OCTUBRE | BD4: NOVIEMBRE | BI4: DICIEMBRE | BM4: 1 | BN4: 2 | BO4: 3 | BP4: 4 | BQ4: 5 | BR4: 5 | BS4: 6 | BT4: 7 | BU4: 8 | BV4: 9 | BW4: 9 | BX4: 10 | BY4: 11 | BZ4: 12 | CA4: 13 | CB4: 14 | CC4: 15 | CD4: 16 | CE4: 17 | CF4: 18 | CG4: 18 | CH4: 19 | CI4: 20 | CJ4: 21 | CK4: 22 | CL4: 22 | CM4: 23 | CN4: 24 | CO4: 25 | CP4: 26 | CQ4: 27 | CR4: 28 | CS4: 29 | CT4: 30 | CU4: 31 | CV4: 31 | CW4: 32 | CX4: 33 | CY4: 34 | CZ4: 35 | DA4: 35 | DB4: 36 | DC4: 37 | DD4: 38 | DE4: 39 | DF4: 40 | DG4: 40 | DH4: 41 | DI4: 42 | DJ4: 43 | DK4: 44 | DL4: 44 | DM4: 45 | DN4: 46 | DO4: 47 | DP4: 48 | DQ4: 48 | DR4: 49 | DS4: 50 | DT4: 51 | DU4: 52 | DV4: 1 | DW4: 2 | DX4: 3 | DY4: 4 | DZ4: 5 | EA4: 5 | EB4: 6 | EC4: 7 | ED4: 8 | EE4: 9 | EF4: 9 | EG4: 10 | EH4: 11 | EI4: 12 | EJ4: 13 | EK4: 14 | EL4: 15 | EM4: 16 | EN4: 17 | EO4: 18 | EP4: 18 | EQ4: 19 | ER4: 20 | ES4: 21 | ET4: 22 | EU4: 22 | EV4: 23 | EW4: 24 | EX4: 25 | EY4: 26 | EZ4: 27 | FA4: 28 | FB4: 29 | FC4: 30 | FD4: 31 | FE4: 31 | FF4: 32 | FG4: 33 | FH4: 34 | FI4: 35 | FJ4: 35 | FK4: 36 | FL4: 37 | FM4: 38 | FN4: 39 | FO4: 40 | FP4: 40 | FQ4: 41 | FR4: 42 | FS4: 43 | FT4: 44 | FU4: 44 | FV4: 45 | FW4: 46 | FX4: 47 | FY4: 48 | FZ4: 48 | GA4: 49 | GB4: 50 | GC4: 51 | GD4: 52 | GE4: 1 | GF4: 2 | GG4: 3 | GH4: 4 | GI4: 5 | GJ4: 5 | GK4: 6 | GL4: 7 | GM4: 8 | GN4: 9 | GO4: 9 | GP4: 10 | GQ4: 11 | GR4: 12 | GS4: 13 | GT4: 14 | GU4: 15 | GV4: 16 | GW4: 17 | GX4: 18 | GY4: 18 | GZ4: 19 | HA4: 20 | HB4: 21 | HC4: 22 | HD4: 22 | HE4: 23 | HF4: 24 | HG4: 25 | HH4: 26 | HI4: 27 | HJ4: 28 | HK4: 29 | HL4: 30 | HM4: 31 | HN4: 31 | HO4: 32 | HP4: 33 | HQ4: 34 | HR4: 35 | HS4: 35 | HT4: 36 | HU4: 37 | HV4: 38 | HW4: 39 | HX4: 40 | HY4: 40 | HZ4: 41 | IA4: 42 | IB4: 43 | IC4: 44 | ID4: 44 | IE4: 45 | IF4: 46 | IG4: 47 | IH4: 48 | II4: 48 | IJ4: 49 | IK4: 50 | IL4: 51 | IM4: 52 | IN4: 1 | IO4: 2 | IP4: 3 | IQ4: 4 | IR4: 5 | IS4: 5 | IT4: 6 | IU4: 7 | IV4: 8 | IW4: 9 | IX4: 9 | IY4: 10 | IZ4: 11 | JA4: 12 | JB4: 13 | JC4: 14 | JD4: 15 | JE4: 16 | JF4: 17 | JG4: 18 | JH4: 18 | JI4: 19 | JJ4: 20 | JK4: 21 | JL4: 22 | JM4: 22 | JN4: 23 | JO4: 24 | JP4: 25 | JQ4: 26 | JR4: 27 | JS4: 28 | JT4: 29 | JU4: 30 | JV4: 31 | JW4: 31 | JX4: 32 | JY4: 33 | JZ4: 34 | KA4: 35 | KB4: 35 | KC4: 36 | KD4: 37 | KE4: 38 | KF4: 39 | KG4: 40 | KH4: 40 | KI4: 41 | KJ4: 42 | KK4: 43 | KL4: 44 | KM4: 44 | KN4: 45 | KO4: 46 | KP4: 47 | KQ4: 48 | KR4: 48 | KS4: 49 | KT4: 50 | KU4: 51 | KV4: 52
M5: 1 | N5: =M5+1 -> 2 | O5: =N5+1 -> 3 | P5: =O5+1 -> 4 | Q5: 5 | R5: 6 | S5: 7 | T5: 8 | U5: 9 | V5: 10 | W5: 11 | X5: =W5+1 -> 12 | Y5: =X5+1 -> 13 | Z5: 14 | AA5: 15 | AB5: 16 | AC5: =AB5+1 -> 17 | AD5: =AC5+1 -> 18 | AE5: 19 | AF5: 20 | AG5: 21 | AH5: 22 | AI5: 23 | AJ5: 24 | AK5: =AJ5+1 -> 25 | AL5: =AK5+1 -> 26 | AM5: 27 | AN5: 28 | AO5: 29 | AP5: 30 | AQ5: =AP5+1 -> 31 | AR5: 32 | AS5: 33 | AT5: =AS5+1 -> 34 | AU5: =AT5+1 -> 35 | AV5: 36 | AW5: 37 | AX5: 38 | AY5: 39 | AZ5: 40 | BA5: 41 | BB5: 42 | BC5: 43 | BD5: =BC5+1 -> 44 | BE5: 45 | BF5: 46 | BG5: =BF5+1 -> 47 | BH5: =BG5+1 -> 48 | BI5: 49 | BJ5: 50 | BK5: 51 | BL5: 52
A6: PLANTA BENEFICIO HUANZALA | M6: 01ENE24 - 28ENE24 | Q6: 29ENE24 - 25FEB24 | U6: 26FEB24 - 31MAR24 | Z6: 01ABR24 - 28ABR24 | AD6: 29ABR24 - 26MAY24 | AI6: 27MAY24 - 30JUN24 | AM6: 01JUL24 - 28JUL23 | AQ6: 29JUL24 - 25AGO24 | AV6: 26AGO24 - 29SET24 | AZ6: 30SET24 - 27OCT24 | BD6: 28OCT24 - 24NOV24 | BI6: 24NOV24 - 29DIC24
A7: PARADA TOTAL | H7: H PRD | J7: SEM | M7: =MAX(M9:M5000) -> 0 | N7: =MAX(N9:N5000) -> 144 | O7: 168 | P7: 48 | Q7: 0 | R7: 0 | S7: 0 | T7: 65.5 | U7: 168 | V7: 120 | W7: 0 | X7: 0 | Y7: 0 | Z7: 0 | AA7: 0 | AB7: 120 | AC7: 96 | AD7: 0 | AE7: 0 | AF7: 0 | AG7: 39.5 | AH7: 168 | AI7: 168 | AJ7: 24 | AK7: 0 | AL7: 0 | AM7: 168 | AN7: 120 | AO7: 0 | AP7: 0 | AQ7: 72 | AR7: 168 | AS7: 48 | AT7: 0 | AU7: 0 | AV7: 144 | AW7: 144 | AX7: 0 | AY7: 0 | AZ7: 48 | BA7: 168 | BB7: 72 | BC7: 0 | BD7: 0 | BE7: 120 | BF7: 168 | BG7: 0 | BH7: 0 | BI7: 24 | BJ7: 168 | BK7: 96 | BL7: 0 | BM7: 0 | BN7: 0 | BO7: 0 | BP7: 0 | BQ7: 0 | BR7: 0 | BS7: 0 | BT7: 0 | BU7: 0 | BV7: 0 | BW7: 0 | BX7: 0 | BY7: 0 | BZ7: =MAX(BZ9:BZ5000) -> 0 | CA7: 0 | CB7: 0 | CC7: 0 | CD7: 0 | CE7: 0 | CF7: 0 | CG7: 0 | CH7: 0 | CI7: 0 | CJ7: 0 | CK7: 0 | CL7: 0 | CM7: 0 | CN7: 0 | CO7: 0 | CP7: 0 | CQ7: 0 | CR7: 0 | CS7: 0 | CT7: 0 | CU7: 0 | CV7: 0 | CW7: 0 | CX7: 0 | CY7: 0 | CZ7: 0 | DA7: 0 | DB7: 0 | DC7: 0 | DD7: 0 | DE7: 0 | DF7: 0 | DG7: 0 | DH7: 0 | DI7: 0 | DJ7: 0 | DK7: 0 | DL7: 0 | DM7: 0 | DN7: 0 | DO7: 0 | DP7: 0 | DQ7: 0 | DR7: 0 | DS7: 0 | DT7: 0 | DU7: 0 | DV7: 0 | DW7: 0 | DX7: 0 | DY7: 0 | DZ7: 0 | EA7: 0 | EB7: 0 | EC7: 0 | ED7: 0 | EE7: 0 | EF7: 0 | EG7: 0 | EH7: 0 | EI7: 0 | EJ7: 0 | EK7: 0 | EL7: =MAX(EL9:EL5000) -> 0 | EM7: 0 | EN7: 0 | EO7: 0 | EP7: 0 | EQ7: 0 | ER7: 0 | ES7: 0 | ET7: 0 | EU7: 0 | EV7: 0 | EW7: 0 | EX7: 0 | EY7: 0 | EZ7: 0 | FA7: 0 | FB7: 0 | FC7: 0 | FD7: 0 | FE7: 0 | FF7: 0 | FG7: 0 | FH7: 0 | FI7: 0 | FJ7: 0 | FK7: 0 | FL7: 0 | FM7: 0 | FN7: 0 | FO7: 0 | FP7: 0 | FQ7: 0 | FR7: 0 | FS7: 0 | FT7: 0 | FU7: 0 | FV7: 0 | FW7: 0 | FX7: 0 | FY7: 0 | FZ7: 0 | GA7: 0 | GB7: 0 | GC7: 0 | GD7: 0 | GE7: 0 | GF7: 0 | GG7: 0 | GH7: 0 | GI7: 0 | GJ7: 0 | GK7: 0 | GL7: 0 | GM7: 0 | GN7: 0 | GO7: 0 | GP7: 0 | GQ7: 0 | GR7: 0 | GS7: 0 | GT7: 0 | GU7: 0 | GV7: 0 | GW7: 0 | GX7: =MAX(GX9:GX5000) -> 0 | GY7: 0 | GZ7: 0 | HA7: 0 | HB7: 0 | HC7: 0 | HD7: 0 | HE7: 0 | HF7: 0 | HG7: 0 | HH7: 0 | HI7: 0 | HJ7: 0 | HK7: 0 | HL7: 0 | HM7: 0 | HN7: 0 | HO7: 0 | HP7: 0 | HQ7: 0 | HR7: 0 | HS7: 0 | HT7: 0 | HU7: 0 | HV7: 0 | HW7: 0 | HX7: 0 | HY7: 0 | HZ7: 0 | IA7: 0 | IB7: 0 | IC7: 0 | ID7: 0 | IE7: 0 | IF7: 0 | IG7: 0 | IH7: 0 | II7: 0 | IJ7: 0 | IK7: 0 | IL7: 0 | IM7: 0 | IN7: 0 | IO7: 0 | IP7: 0 | IQ7: 0 | IR7: 0 | IS7: 0 | IT7: 0 | IU7: 0 | IV7: 0 | IW7: 0 | IX7: 0 | IY7: 0 | IZ7: 0 | JA7: 0 | JB7: 0 | JC7: 0 | JD7: 0 | JE7: 0 | JF7: 0 | JG7: 0 | JH7: 0 | JI7: 0 | JJ7: =MAX(JJ9:JJ5000) -> 0 | JK7: 0 | JL7: 0 | JM7: 0 | JN7: 0 | JO7: 0 | JP7: 0 | JQ7: 0 | JR7: 0 | JS7: 0 | JT7: 0 | JU7: 0 | JV7: 0 | JW7: 0 | JX7: 0 | JY7: 0 | JZ7: 0 | KA7: 0 | KB7: 0 | KC7: 0 | KD7: 0 | KE7: 0 | KF7: 0 | KG7: 0 | KH7: 0 | KI7: 0 | KJ7: 0 | KK7: 0 | KL7: 0 | KM7: 0 | KN7: 0 | KO7: 0 | KP7: 0 | KQ7: 0 | KR7: 0 | KS7: 0 | KT7: 0 | KU7: 0 | KV7: 0 | KW7: 0 | KX7: 0 | KY7: 0 | KZ7: 0 | LA7: 0
A8: ITEM | B8: CLASE1 | C8: CLASE | D8: AREA1 | E8: AREA | F8: EQUIPO | G8: DESCRIPCION DE LA ACTIVIDAD | H8: TIEMPO | I8: UNID. | J8: FREC. | K8: UNID. | L8: TIPO | M8: =+M5 -> 1 | N8: =+N5 -> 2 | O8: 3 | P8: 4 | Q8: 5 | R8: 6 | S8: 7 | T8: 8 | U8: 9 | V8: 10 | W8: 11 | X8: 12 | Y8: 13 | Z8: 14 | AA8: 15 | AB8: 16 | AC8: 17 | AD8: 18 | AE8: 19 | AF8: 20 | AG8: 21 | AH8: 22 | AI8: 23 | AJ8: 24 | AK8: 25 | AL8: 26 | AM8: 27 | AN8: 28 | AO8: 29 | AP8: 30 | AQ8: 31 | AR8: 32 | AS8: 33 | AT8: 34 | AU8: 35 | AV8: 36 | AW8: 37 | AX8: 38 | AY8: 39 | AZ8: 40 | BA8: 41 | BB8: 42 | BC8: 43 | BD8: 44 | BE8: 45 | BF8: 46 | BG8: 47 | BH8: 48 | BI8: 49 | BJ8: 50 | BK8: 51 | BL8: 52 | BN8: A | BP8: A | BS8: A | BU8: C | BX8: A | BZ8: A | CC8: A | CE8: A | CH8: A | CJ8: E | CM8: A | CO8: A | CR8: A | CT8: A | CW8: A | CY8: C | DB8: A | DD8: A | DH8: A | DJ8: A | DM8: A | DO8: C | DR8: A | DT8: A | DW8: A | DY8: A | EB8: A | ED8: C | EG8: A | EI8: A | EL8: A | EN8: A | EQ8: A | ES8: E | EV8: A | EX8: A | FA8: A | FC8: A | FF8: A | FH8: C | FK8: A | FM8: A | FQ8: A | FS8: A | FV8: A | FX8: C | GA8: A | GC8: A | GF8: A | GH8: A | GK8: A | GM8: C | GP8: A | GR8: A | GU8: A | GW8: A | GZ8: A | HB8: E | HE8: A | HG8: A | HJ8: A | HL8: A | HO8: A | HQ8: C | HT8: A | HV8: A | HZ8: A | IB8: A | IE8: A | IG8: C | IJ8: A | IL8: A | IO8: A | IQ8: A | IT8: A | IV8: C | IY8: A | JA8: A | JD8: A | JF8: A | JI8: A | JK8: E | JN8: A | JP8: A | JS8: A | JU8: A | JX8: A | JZ8: C | KC8: A | KE8: A | KI8: A | KK8: A | KN8: A | KP8: C | KS8: A | KU8: A
A9: 1 | B9: =CONCATENATE(C9,D9) -> OPEXMCH | C9: OPEXM | D9: CH | E9: CHANCADORA Y TRITURADORA | F9: bomba de lubricacion Chancadora secundaria sanvick | G9: CAMBIO DE RODAMIENTOS DELANTERO | H9: 5 | I9: Hra | J9: 62.5 | K9: DIA | L9: H | N9: =+H9 -> 5 | O9: =H9 -> 5 | P9: =H9 -> 5 | T9: =H9 -> 5 | U9: =H9 -> 5 | V9: =H9 -> 5 | AB9: =H9 -> 5 | AC9: 5 | AG9: =H9 -> 5 | AH9: =H9 -> 5 | AI9: =H9 -> 5 | AJ9: 5 | AM9: 5 | AN9: 5 | AQ9: 5 | AR9: 5 | AS9: 5 | AV9: 5 | AW9: 15 | AZ9: 15 | BA9: 5 | BB9: 5 | BE9: 15 | BF9: 5 | BI9: 5 | BJ9: 5 | BK9: 5
A10: =+A9+1 -> 2 | B10: OPEXMCH | C10: OPEXM | D10: CH | E10: CHANCADORA Y TRITURADORA | F10: bomba de lubricacion Chancadora secundaria sanvick | G10: CAMBIO DE RODAMIENTOS POSTERIOR | H10: 5 | I10: Hra | J10: 62.5 | K10: DIA | L10: C | N10: =+H10 -> 5 | O10: =H10 -> 5 | P10: =H10 -> 5 | T10: =H10 -> 5 | U10: =H10 -> 5 | V10: =H10 -> 5 | AB10: =H10 -> 5 | AC10: =H10 -> 5 | AG10: =H10 -> 5 | AH10: =H10 -> 5 | AI10: =H10 -> 5 | AJ10: 5 | AM10: 5 | AN10: 5 | AQ10: 5 | AR10: 5 | AS10: 5 | AV10: 5 | AW10: 15 | AZ10: 15 | BA10: 5 | BB10: 5 | BE10: 15 | BF10: 5 | BI10: 5 | BJ10: 5 | BK10: 5
A11: 3 | B11: OPEXMCH | C11: OPEXM | D11: CH | E11: CHANCADORA Y TRITURADORA | F11: bomba de lubricacion Chancadora secundaria sanvick | G11: LIMPIEZA DE ARROLLAMIENTO | H11: 5 | I11: Hra | J11: 62.5 | K11: DIA | L11: C | N11: 5 | O11: 5 | P11: 5 | T11: 5 | U11: 5 | V11: 5 | AB11: 5 | AC11: 5 | AG11: 5 | AH11: 5 | AI11: 5 | AJ11: 5 | AM11: 5 | AN11: 5 | AQ11: 5 | AR11: 5 | AS11: 5 | AV11: 5 | AW11: 15 | AZ11: 15 | BA11: 5 | BB11: 5 | BE11: 15 | BF11: 5 | BI11: 5 | BJ11: 5 | BK11: 5
A12: 4 | B12: OPEXMCH | C12: OPEXM | D12: CH | E12: CHANCADORA Y TRITURADORA | F12: bomba de lubricacion chancadora Terciario sanvick | G12: CAMBIO DE RODAMIENTOS DELANTERO | H12: 5 | I12: Hra | J12: 62.5 | K12: DIA | L12: C | N12: 5 | O12: 5 | P12: 5 | T12: 5 | U12: 5 | V12: 5 | AB12: 5 | AC12: 5 | AG12: 5 | AH12: 5 | AI12: 5 | AJ12: 5 | AM12: 5 | AN12: 5 | AQ12: 5 | AR12: 5 | AS12: 5 | AV12: 5 | AW12: 15 | AZ12: 15 | BA12: 5 | BB12: 5 | BE12: 15 | BF12: 5 | BI12: 5 | BJ12: 5 | BK12: 5
A13: 5 | B13: OPEXMCH | C13: OPEXM | D13: CH | E13: CHANCADORA Y TRITURADORA | F13: bomba de lubricacion chancadora Terciario sanvick | G13: CAMBIO DE RODAMIENTOS POSTERIOR | H13: 5 | I13: Hra | J13: 62.5 | K13: DIA | L13: C | N13: 5 | O13: 5 | P13: 5 | T13: 5 | U13: 5 | V13: 5 | AB13: 5 | AC13: 5 | AG13: 5 | AH13: 5 | AI13: 5 | AJ13: 5 | AM13: 5 | AN13: 5 | AQ13: 5 | AR13: 5 | AS13: 5 | AV13: 5 | AW13: 15 | AZ13: 15 | BA13: 5 | BB13: 5 | BE13: 15 | BF13: 5 | BI13: 5 | BJ13: 5 | BK13: 5
A14: 6 | B14: OPEXMCH | C14: OPEXM | D14: CH | E14: CHANCADORA Y TRITURADORA | F14: bomba de lubricacion chancadora Terciario sanvick | G14: LIMPIEZA DE ARROLLAMIENTO | H14: 5 | I14: Hra | J14: 62.5 | K14: DIA | L14: D | N14: 5 | O14: 5 | P14: 5 | T14: 5 | U14: 5 | V14: 5 | AB14: 5 | AC14: 5 | AG14: 5 | AH14: 5 | AI14: 5 | AJ14: 5 | AM14: 5 | AN14: 5 | AQ14: 5 | AR14: 5 | AS14: 5 | AV14: 5 | AW14: 15 | AZ14: 15 | BA14: 5 | BB14: 5 | BE14: 15 | BF14: 5 | BI14: 5 | BJ14: 5 | BK14: 5
A15: 7 | B15: OPEXMCH | C15: OPEXM | D15: CH | E15: CHANCADORA Y TRITURADORA | F15: BOMBA VERTICAL DE 2.5 ALTA EFICIENCIA DE CHANCADO PRIMARIO | G15: CAMBIO DE CANASTILLA INFERIOR | H15: 4 | I15: Hra | J15: 336 | K15: DIA | L15: C | N15: 4 | O15: 4 | P15: 4 | T15: 4 | U15: 4 | V15: 4 | AB15: 4 | AC15: 4 | AG15: 4 | AH15: 4 | AI15: 4 | AJ15: 4 | AM15: 4 | AN15: 4 | AQ15: 4 | AR15: 4 | AS15: 4 | AV15: 4 | AW15: 12 | AZ15: 12 | BA15: 4 | BB15: 4 | BE15: 12 | BF15: 4 | BI15: 4 | BJ15: 4 | BK15: 4
A16: 8 | B16: OPEXMCH | C16: OPEXM | D16: CH | E16: CHANCADORA Y TRITURADORA | F16: BOMBA VERTICAL DE 2.5 ALTA EFICIENCIA DE CHANCADO PRIMARIO | G16: CAMBIO DE CANASTILLA SUPERIOR | H16: 4 | I16: Hra | J16: 336 | K16: DIA | L16: C | N16: 4 | O16: 4 | P16: 4 | T16: 4 | U16: 4 | V16: 4 | AB16: 4 | AC16: 4 | AG16: 4 | AH16: 4 | AI16: 4 | AJ16: 4 | AM16: 4 | AN16: 4 | AQ16: 4 | AR16: 4 | AS16: 4 | AV16: 4 | AW16: 12 | AZ16: 12 | BA16: 4 | BB16: 4 | BE16: 12 | BF16: 4 | BI16: 4 | BJ16: 4 | BK16: 4
A17: 9 | B17: OPEXMCH | C17: OPEXM | D17: CH | E17: CHANCADORA Y TRITURADORA | F17: BOMBA VERTICAL DE 2.5 ALTA EFICIENCIA DE CHANCADO PRIMARIO | G17: CAMBIO DE COVER BOMBA 2.5 ALTA EFICIENCIA | H17: 4 | I17: Hra | J17: 168 | K17: DIA | L17: C | N17: 4 | O17: 4 | P17: 4 | T17: 4 | U17: 4 | V17: 4 | AB17: 4 | AC17: 4 | AG17: 4 | AH17: 4 | AI17: 4 | AJ17: 4 | AM17: 4 | AN17: 4 | AQ17: 4 | AR17: 4 | AS17: 4 | AV17: 4 | AW17: 12 | AZ17: 12 | BA17: 4 | BB17: 4 | BE17: 12 | BF17: 4 | BI17: 4 | BJ17: 4 | BK17: 4
A18: 10 | B18: OPEXMCH | C18: OPEXM | D18: CH | E18: CHANCADORA Y TRITURADORA | F18: BOMBA VERTICAL DE 2.5 ALTA EFICIENCIA DE CHANCADO PRIMARIO | G18: CAMBIO DE DISCHARGE PIPE | H18: 4 | I18: Hra | J18: 1344 | K18: DIA | L18: C | N18: 4 | O18: 4 | P18: 4 | T18: 4 | U18: 4 | V18: 4 | AB18: 4 | AC18: 4 | AG18: 4 | AH18: 4 | AI18: 4 | AJ18: 4 | AM18: 4 | AN18: 4 | AQ18: 4 | AR18: 4 | AS18: 4 | AV18: 4 | AW18: 12 | AZ18: 12 | BA18: 4 | BB18: 4 | BE18: 12 | BF18: 4 | BI18: 4 | BJ18: 4 | BK18: 4
A19: 11 | B19: OPEXMCH | C19: OPEXM | D19: CH | E19: CHANCADORA Y TRITURADORA | F19: BOMBA VERTICAL DE 2.5 ALTA EFICIENCIA DE CHANCADO PRIMARIO | G19: CAMBIO DE EJE 2 1/2" X 48 BOMBA VERTICAL ALTA EFICIENCIA NP 15 | H19: 4 | I19: Hra | J19: 1344 | K19: DIA | L19: F | N19: 4 | O19: 4 | P19: 4 | T19: 4 | U19: 4 | V19: 4 | AB19: 4 | AC19: 4 | AG19: 4 | AH19: 4 | AI19: 4 | AJ19: 4 | AM19: 4 | AN19: 4 | AQ19: 4 | AR19: 4 | AS19: 4 | AV19: 4 | AW19: 12 | AZ19: 12 | BA19: 4 | BB19: 4 | BE19: 12 | BF19: 4 | BI19: 4 | BJ19: 4 | BK19: 4
A20: 12 | B20: OPEXMCH | C20: OPEXM | D20: CH | E20: CHANCADORA Y TRITURADORA | F20: BOMBA VERTICAL DE 2.5 ALTA EFICIENCIA DE CHANCADO PRIMARIO | G20: CAMBIO DE IMPULSOR BOMBA 2.5 ALTA EFICIENCIA | H20: 4 | I20: Hra | J20: 168 | K20: DIA | L20: C | N20: 4 | O20: 4 | P20: 4 | T20: 4 | U20: 4 | V20: 4 | AB20: 4 | AC20: 4 | AG20: 4 | AH20: 4 | AI20: 4 | AJ20: 4 | AM20: 4 | AN20: 4 | AQ20: 4 | AR20: 4 | AS20: 4 | AV20: 4 | AW20: 12 | AZ20: 12 | BA20: 4 | BB20: 4 | BE20: 12 | BF20: 4 | BI20: 4 | BJ20: 4 | BK20: 4
A21: 13 | B21: OPEXMCH | C21: OPEXM | D21: CH | E21: CHANCADORA Y TRITURADORA | F21: BOMBA VERTICAL DE 2.5 ALTA EFICIENCIA DE CHANCADO PRIMARIO | G21: CAMBIO DE MANGUITO HA-2311 (1 5/16") | H21: 4 | I21: Hra | J21: 672 | K21: DIA | L21: D | N21: 4 | O21: 4 | P21: 4 | T21: 4 | U21: 4 | V21: 4 | AB21: 4 | AC21: 4 | AG21: 4 | AH21: 4 | AI21: 4 | AJ21: 4 | AM21: 4 | AN21: 4 | AQ21: 4 | AR21: 4 | AS21: 4 | AV21: 4 | AW21: 12 | AZ21: 12 | BA21: 4 | BB21: 4 | BE21: 12 | BF21: 4 | BI21: 4 | BJ21: 4 | BK21: 4
A22: 14 | B22: OPEXMCH | C22: OPEXM | D22: CH | E22: CHANCADORA Y TRITURADORA | F22: BOMBA VERTICAL DE 2.5 ALTA EFICIENCIA DE CHANCADO PRIMARIO | G22: CAMBIO DE MANGUITO HA-2313 (2 5/16") | H22: 4 | I22: Hra | J22: 672 | K22: DIA | L22: G | N22: 4 | O22: 4 | P22: 4 | T22: 4 | U22: 4 | V22: 4 | AB22: 4 | AC22: 4 | AG22: 4 | AH22: 4 | AI22: 4 | AJ22: 4 | AM22: 4 | AN22: 4 | AQ22: 4 | AR22: 4 | AS22: 4 | AV22: 4 | AW22: 12 | AZ22: 12 | BA22: 4 | BB22: 4 | BE22: 12 | BF22: 4 | BI22: 4 | BJ22: 4 | BK22: 4
A23: 15 | B23: OPEXMCH | C23: OPEXM | D23: CH | E23: CHANCADORA Y TRITURADORA | F23: BOMBA VERTICAL DE 2.5 ALTA EFICIENCIA DE CHANCADO PRIMARIO | G23: CAMBIO DE PUM CASING BOMBA 2.5 ALTA EFICIENCIA | H23: 4 | I23: Hra | J23: 168 | K23: DIA | L23: C | N23: 4 | O23: 4 | P23: 4 | T23: 4 | U23: 4 | V23: 4 | AB23: 4 | AC23: 4 | AG23: 4 | AH23: 4 | AI23: 4 | AJ23: 4 | AM23: 4 | AN23: 4 | AQ23: 4 | AR23: 4 | AS23: 4 | AV23: 4 | AW23: 12 | AZ23: 12 | BA23: 4 | BB23: 4 | BE23: 12 | BF23: 4 | BI23: 4 | BJ23: 4 | BK23: 4
A24: 16 | B24: OPEXMCH | C24: OPEXM | D24: CH | E24: CHANCADORA Y TRITURADORA | F24: BOMBA VERTICAL DE 2.5 ALTA EFICIENCIA DE CHANCADO PRIMARIO | G24: CAMBIO DE RETEN INFERIOR (55.56X82.55X11.11) | H24: 4 | I24: Hra | J24: 336 | K24: DIA | L24: C | N24: 4 | O24: 4 | P24: 4 | T24: 4 | U24: 4 | V24: 4 | AB24: 4 | AC24: 4 | AG24: 4 | AH24: 4 | AI24: 4 | AJ24: 4 | AM24: 4 | AN24: 4 | AQ24: 4 | AR24: 4 | AS24: 4 | AV24: 4 | AW24: 12 | AZ24: 12 | BA24: 4 | BB24: 4 | BE24: 12 | BF24: 4 | BI24: 4 | BJ24: 4 | BK24: 4
A25: 17 | B25: OPEXMCH | C25: OPEXM | D25: CH | E25: CHANCADORA Y TRITURADORA | F25: BOMBA VERTICAL DE 2.5 ALTA EFICIENCIA DE CHANCADO PRIMARIO | G25: CAMBIO DE RETEN SUPERIOR CR-19359 (2020220014 RETEN 19359 BV-2.5-022) | H25: 4 | I25: Hra | J25: 336 | K25: DIA | L25: D | N25: 4 | O25: 4 | P25: 4 | T25: 4 | U25: 4 | V25: 4 | AB25: 4 | AC25: 4 | AG25: 4 | AH25: 4 | AI25: 4 | AJ25: 4 | AM25: 4 | AN25: 4 | AQ25: 4 | AR25: 4 | AS25: 4 | AV25: 4 | AW25: 12 | AZ25: 12 | BA25: 4 | BB25: 4 | BE25: 12 | BF25: 4 | BI25: 4 | BJ25: 4 | BK25: 4
A26: 18 | B26: OPEXMCH | C26: OPEXM | D26: CH | E26: CHANCADORA Y TRITURADORA | F26: BOMBA VERTICAL DE 2.5 ALTA EFICIENCIA DE CHANCADO PRIMARIO | G26: CAMBIO DE RODAMIENTO 22311 KCJW | H26: 4 | I26: Hra | J26: 336 | K26: DIA | L26: D | N26: 4 | O26: 4 | P26: 4 | T26: 4 | U26: 4 | V26: 4 | AB26: 4 | AC26: 4 | AG26: 4 | AH26: 4 | AI26: 4 | AJ26: 4 | AM26: 4 | AN26: 4 | AQ26: 4 | AR26: 4 | AS26: 4 | AV26: 4 | AW26: 12 | AZ26: 12 | BA26: 4 | BB26: 4 | BE26: 12 | BF26: 4 | BI26: 4 | BJ26: 4 | BK26: 4
A27: 19 | B27: OPEXMCH | C27: OPEXM | D27: CH | E27: CHANCADORA Y TRITURADORA | F27: BOMBA VERTICAL DE 2.5 ALTA EFICIENCIA DE CHANCADO PRIMARIO | G27: CAMBIO DE RODAMIENTO 22313 KCJW | H27: 4 | I27: Hra | J27: 336 | K27: DIA | L27: C | N27: 4 | O27: 4 | P27: 4 | T27: 4 | U27: 4 | V27: 4 | AB27: 4 | AC27: 4 | AG27: 4 | AH27: 4 | AI27: 4 | AJ27: 4 | AM27: 4 | AN27: 4 | AQ27: 4 | AR27: 4 | AS27: 4 | AV27: 4 | AW27: 12 | AZ27: 12 | BA27: 4 | BB27: 4 | BE27: 12 | BF27: 4 | BI27: 4 | BJ27: 4 | BK27: 4
A28: 20 | B28: OPEXMCH | C28: OPEXM | D28: CH | E28: CHANCADORA Y TRITURADORA | F28: BOMBA VERTICAL DE 2.5 ALTA EFICIENCIA DE CHANCADO PRIMARIO | G28: CAMBIO DE RODAMIENTO 22313 KCJW | H28: 4 | I28: Hra | J28: 672 | K28: DIA | L28: C | N28: 4 | O28: 4 | P28: 4 | T28: 4 | U28: 4 | V28: 4 | AB28: 4 | AC28: 4 | AG28: 4 | AH28: 4 | AI28: 4 | AJ28: 4 | AM28: 4 | AN28: 4 | AQ28: 4 | AR28: 4 | AS28: 4 | AV28: 4 | AW28: 12 | AZ28: 12 | BA28: 4 | BB28: 4 | BE28: 12 | BF28: 4 | BI28: 4 | BJ28: 4 | BK28: 4
A29: 21 | B29: OPEXMCH | C29: OPEXM | D29: CH | E29: CHANCADORA Y TRITURADORA | F29: CADENA ALIMENTADORA ( APRON FEEDER) QA1548 | G29: MANTTO DE CADENA APRON FEEDER | H29: 5 | I29: Hra | J29: 1620 | K29: DIA | L29: D | N29: 5 | O29: 5 | P29: 5 | T29: 5 | U29: 5 | V29: 5 | AB29: 5 | AC29: 5 | AG29: 5 | AH29: 5 | AI29: 5 | AJ29: 5 | AM29: 5 | AN29: 5 | AQ29: 5 | AR29: 5 | AS29: 5 | AV29: 5 | AW29: 15 | AZ29: 15 | BA29: 5 | BB29: 5 | BE29: 15 | BF29: 5 | BI29: 5 | BJ29: 5 | BK29: 5
A30: 22 | B30: OPEXMCH | C30: OPEXM | D30: CH | E30: CHANCADORA Y TRITURADORA | F30: CADENA ALIMENTADORA ( APRON FEEDER) QA1548 | G30: MANTTO DE CADENA APRON FEEDER | H30: 5 | I30: Hra | J30: 2046.3125 | K30: DIA | L30: D | N30: 5 | O30: 5 | P30: 5 | T30: 5 | U30: 5 | V30: 5 | AB30: 5 | AC30: 5 | AG30: 5 | AH30: 5 | AI30: 5 | AJ30: 5 | AM30: 5 | AN30: 5 | AQ30: 5 | AR30: 5 | AS30: 5 | AV30: 5 | AW30: 15 | AZ30: 15 | BA30: 5 | BB30: 5 | BE30: 15 | BF30: 5 | BI30: 5 | BJ30: 5 | BK30: 5
A31: 23 | B31: OPEXMCH | C31: OPEXM | D31: CH | E31: CHANCADORA Y TRITURADORA | F31: CADENA ALIMENTADORA ( APRON FEEDER) QA1548 | G31: MANTTO DE CADENA APRON FEEDER | H31: 5 | I31: Hra | J31: 5400 | K31: DIA | L31: C | N31: 5 | O31: 5 | P31: 5 | T31: 5 | U31: 5 | V31: 5 | AB31: 5 | AC31: 5 | AG31: 5 | AH31: 5 | AI31: 5 | AJ31: 5 | AM31: 5 | AN31: 5 | AQ31: 5 | AR31: 5 | AS31: 5 | AV31: 5 | AW31: 15 | AZ31: 15 | BA31: 5 | BB31: 5 | BE31: 15 | BF31: 5 | BI31: 5 | BJ31: 5 | BK31: 5
A32: 24 | B32: OPEXMCH | C32: OPEXM | D32: CH | E32: CHANCADORA Y TRITURADORA | F32: Cedazo # 01 - Vibratorio de alta frecuencia YOKAYAMI | G32: CAMBIO DE MALLA | H32: 6 | I32: Hra | J32: 130.9090909 | K32: DIA | L32: C | N32: 6 | O32: 6 | P32: 6 | T32: 6 | U32: 6 | V32: 6 | AB32: 6 | AC32: 6 | AG32: 6 | AH32: 6 | AI32: 6 | AJ32: 6 | AM32: 6 | AN32: 6 | AQ32: 6 | AR32: 6 | AS32: 6 | AV32: 6 | AW32: 18 | AZ32: 18 | BA32: 6 | BB32: 6 | BE32: 18 | BF32: 6 | BI32: 6 | BJ32: 6 | BK32: 6
A33: 25 | B33: OPEXMCH | C33: OPEXM | D33: CH | E33: CHANCADORA Y TRITURADORA | F33: Cedazo # 02 - Vibratorio Simplicity 7x14 | G33: CAMBIO DE MALLA | H33: 6 | I33: Hra | J33: 65.45454545 | K33: DIA | L33: E | N33: 6 | O33: 6 | P33: 6 | T33: 6 | U33: 6 | V33: 6 | AB33: 6 | AC33: 6 | AG33: 6 | AH33: 6 | AI33: 6 | AJ33: 6 | AM33: 6 | AN33: 6 | AQ33: 6 | AR33: 6 | AS33: 6 | AV33: 6 | AW33: 18 | AZ33: 18 | BA33: 6 | BB33: 6 | BE33: 18 | BF33: 6 | BI33: 6 | BJ33: 6 | BK33: 6
A34: 26 | B34: OPEXMCH | C34: OPEXM | D34: CH | E34: CHANCADORA Y TRITURADORA | F34: Cedazo # 02 - Vibratorio Simplicity 7x14 | G34: CAMBIO DE MALLA | H34: 6 | I34: Hra | J34: 130.9090909 | K34: DIA | L34: E | N34: 6 | O34: 6 | P34: 6 | T34: 6 | U34: 6 | V34: 6 | AB34: 6 | AC34: 6 | AG34: 6 | AH34: 6 | AI34: 6 | AJ34: 6 | AM34: 6 | AN34: 6 | AQ34: 6 | AR34: 6 | AS34: 6 | AV34: 6 | AW34: 18 | AZ34: 18 | BA34: 6 | BB34: 6 | BE34: 18 | BF34: 6 | BI34: 6 | BJ34: 6 | BK34: 6
A35: 27 | B35: OPEXMCH | C35: OPEXM | D35: CH | E35: CHANCADORA Y TRITURADORA | F35: Cedazo # 02 - Vibratorio Simplicity 7x14 | G35: CAMBIO DE MALLA | H35: 6 | I35: Hra | J35: 261.8181818 | K35: DIA | L35: E | N35: 6 | O35: 6 | P35: 6 | T35: 6 | U35: 6 | V35: 6 | AB35: 6 | AC35: 6 | AG35: 6 | AH35: 6 | AI35: 6 | AJ35: 6 | AM35: 6 | AN35: 6 | AQ35: 6 | AR35: 6 | AS35: 6 | AV35: 6 | AW35: 18 | AZ35: 18 | BA35: 6 | BB35: 6 | BE35: 18 | BF35: 6 | BI35: 6 | BJ35: 6 | BK35: 6
A36: 28 | B36: OPEXMCH | C36: OPEXM | D36: CH | E36: CHANCADORA Y TRITURADORA | F36: Cedazo # 02 - Vibratorio Simplicity 7x14 | G36: CAMBIO DE MALLA | H36: 6 | I36: Hra | J36: 523.6363636 | K36: DIA | L36: C | N36: 6 | O36: 6 | P36: 6 | T36: 6 | U36: 6 | V36: 6 | AB36: 6 | AC36: 6 | AG36: 6 | AH36: 6 | AI36: 6 | AJ36: 6 | AM36: 6 | AN36: 6 | AQ36: 6 | AR36: 6 | AS36: 6 | AV36: 6 | AW36: 18 | AZ36: 18 | BA36: 6 | BB36: 6 | BE36: 18 | BF36: 6 | BI36: 6 | BJ36: 6 | BK36: 6
A37: 29 | B37: OPEXMCH | C37: OPEXM | D37: CH | E37: CHANCADORA Y TRITURADORA | F37: CHANCADORA PRIMARIA OTSUKA FS4840 | G37: CAMBIO DE 1151 FORRO LATERAL SUPER. DERE./IZQUI. (JGO X 02 PZAS) | H37: 4.5 | I37: Hra | J37: 1282.5 | K37: DIA | L37: C | N37: 4.5 | O37: 4.5 | P37: 4.5 | T37: 4.5 | U37: 4.5 | V37: 4.5 | AB37: 4.5 | AC37: 4.5 | AG37: 4.5 | AH37: 4.5 | AI37: 4.5 | AJ37: 4.5 | AM37: 4.5 | AN37: 4.5 | AQ37: 4.5 | AR37: 4.5 | AS37: 4.5 | AV37: 4.5 | AW37: 13.5 | AZ37: 13.5 | BA37: 4.5 | BB37: 4.5 | BE37: 13.5 | BF37: 4.5 | BI37: 4.5 | BJ37: 4.5 | BK37: 4.5
A38: 30 | B38: OPEXMCH | C38: OPEXM | D38: CH | E38: CHANCADORA Y TRITURADORA | F38: CHANCADORA PRIMARIA OTSUKA FS4840 | G38: CAMBIO DE 1161 FORRO LATERAL INFER. DERE./IZQUI. (JGO X 02 PZAS) | H38: 4.5 | I38: Hra | J38: 1282.5 | K38: DIA | L38: C | N38: 4.5 | O38: 4.5 | P38: 4.5 | T38: 4.5 | U38: 4.5 | V38: 4.5 | AB38: 4.5 | AC38: 4.5 | AG38: 4.5 | AH38: 4.5 | AI38: 4.5 | AJ38: 4.5 | AM38: 4.5 | AN38: 4.5 | AQ38: 4.5 | AR38: 4.5 | AS38: 4.5 | AV38: 4.5 | AW38: 13.5 | AZ38: 13.5 | BA38: 4.5 | BB38: 4.5 | BE38: 13.5 | BF38: 4.5 | BI38: 4.5 | BJ38: 4.5 | BK38: 4.5
A39: 31 | B39: OPEXMCH | C39: OPEXM | D39: CH | E39: CHANCADORA Y TRITURADORA | F39: CHANCADORA PRIMARIA OTSUKA FS4840 | G39: CAMBIO DE 1191 FIXED JAW PLATE (M-1796-01) | H39: 2.5 | I39: Hra | J39: 641.25 | K39: DIA | L39: C | N39: 2.5 | O39: 2.5 | P39: 2.5 | T39: 2.5 | U39: 2.5 | V39: 2.5 | AB39: 2.5 | AC39: 2.5 | AG39: 2.5 | AH39: 2.5 | AI39: 2.5 | AJ39: 2.5 | AM39: 2.5 | AN39: 2.5 | AQ39: 2.5 | AR39: 2.5 | AS39: 48 | AV39: 2.5 | AW39: 7.5 | AZ39: 7.5 | BA39: 2.5 | BB39: 2.5 | BE39: 7.5 | BF39: 2.5 | BI39: 2.5 | BJ39: 2.5 | BK39: 2.5
A40: 32 | B40: OPEXMCH | C40: OPEXM | D40: CH | E40: CHANCADORA Y TRITURADORA | F40: CHANCADORA PRIMARIA OTSUKA FS4840 | G40: CAMBIO DE 2059-1 SQUARE HEAD BOLT M48X650X130MM | H40: 2.5 | I40: Hra | J40: 1282.5 | K40: DIA | L40: C | N40: 2.5 | O40: 2.5 | P40: 2.5 | T40: 2.5 | U40: 2.5 | V40: 2.5 | AB40: 2.5 | AC40: 2.5 | AG40: 2.5 | AH40: 2.5 | AI40: 2.5 | AJ40: 2.5 | AM40: 2.5 | AN40: 2.5 | AQ40: 2.5 | AR40: 2.5 | AS40: 2.5 | AV40: 2.5 | AW40: 7.5 | AZ40: 7.5 | BA40: 2.5 | BB40: 2.5 | BE40: 7.5 | BF40: 2.5 | BI40: 2.5 | BJ40: 2.5 | BK40: 2.5
A41: 33 | B41: OPEXMCH | C41: OPEXM | D41: CH | E41: CHANCADORA Y TRITURADORA | F41: CHANCADORA PRIMARIA OTSUKA FS4840 | G41: CAMBIO DE 2059-2 SQUARE BOLTS M-48X700X130 | H41: 2.5 | I41: Hra | J41: 641.25 | K41: DIA | L41: C | N41: 2.5 | O41: 2.5 | P41: 2.5 | T41: 2.5 | U41: 2.5 | V41: 2.5 | AB41: 2.5 | AC41: 2.5 | AG41: 2.5 | AH41: 2.5 | AI41: 2.5 | AJ41: 2.5 | AM41: 2.5 | AN41: 2.5 | AQ41: 2.5 | AR41: 2.5 | AS41: 2.5 | AV41: 2.5 | AW41: 7.5 | AZ41: 7.5 | BA41: 2.5 | BB41: 2.5 | BE41: 7.5 | BF41: 2.5 | BI41: 2.5 | BJ41: 2.5 | BK41: 2.5
A42: 34 | B42: OPEXMCH | C42: OPEXM | D42: CH | E42: CHANCADORA Y TRITURADORA | F42: CHANCADORA PRIMARIA OTSUKA FS4840 | G42: CAMBIO DE 2059-3 SQUARE LOWER BOLT M48 X 940 X 130 CON DOBLE TUERCA | H42: 2.5 | I42: Hra | J42: 641.25 | K42: DIA | L42: C | N42: 2.5 | O42: 2.5 | P42: 2.5 | T42: 2.5 | U42: 2.5 | V42: 2.5 | AB42: 2.5 | AC42: 2.5 | AG42: 2.5 | AH42: 2.5 | AI42: 2.5 | AJ42: 2.5 | AM42: 2.5 | AN42: 2.5 | AQ42: 2.5 | AR42: 2.5 | AS42: 2.5 | AV42: 2.5 | AW42: 7.5 | AZ42: 7.5 | BA42: 2.5 | BB42: 2.5 | BE42: 7.5 | BF42: 2.5 | BI42: 2.5 | BJ42: 2.5 | BK42: 2.5
A43: 35 | B43: OPEXMCH | C43: OPEXM | D43: CH | E43: CHANCADORA Y TRITURADORA | F43: CHANCADORA PRIMARIA OTSUKA FS4840 | G43: CAMBIO DE 2059-3 SQUARE LOWER BOLT M48X940X130MM | H43: 2.5 | I43: Hra | J43: 641.25 | K43: DIA | L43: D | N43: 2.5 | O43: 2.5 | P43: 2.5 | T43: 2.5 | U43: 2.5 | V43: 2.5 | AB43: 2.5 | AC43: 2.5 | AG43: 2.5 | AH43: 2.5 | AI43: 2.5 | AJ43: 2.5 | AM43: 2.5 | AN43: 2.5 | AQ43: 2.5 | AR43: 2.5 | AS43: 2.5 | AV43: 2.5 | AW43: 7.5 | AZ43: 7.5 | BA43: 2.5 | BB43: 2.5 | BE43: 7.5 | BF43: 2.5 | BI43: 2.5 | BJ43: 2.5 | BK43: 2.5
A44: 36 | B44: OPEXMCH | C44: OPEXM | D44: CH | E44: CHANCADORA Y TRITURADORA | F44: CHANCADORA PRIMARIA OTSUKA FS4840 | G44: CAMBIO DE 2061 JAW PLATE STOPPER | H44: 6.5 | I44: Hra | J44: 2565 | K44: DIA | L44: C | N44: 6.5 | O44: 6.5 | P44: 6.5 | T44: 6.5 | U44: 6.5 | V44: 6.5 | AB44: 6.5 | AC44: 6.5 | AG44: 6.5 | AH44: 6.5 | AI44: 6.5 | AJ44: 6.5 | AM44: 6.5 | AN44: 6.5 | AQ44: 6.5 | AR44: 6.5 | AS44: 6.5 | AV44: 6.5 | AW44: 19.5 | AZ44: 19.5 | BA44: 6.5 | BB44: 6.5 | BE44: 19.5 | BF44: 6.5 | BI44: 6.5 | BJ44: 6.5 | BK44: 6.5
A45: 37 | B45: OPEXMCH | C45: OPEXM | D45: CH | E45: CHANCADORA Y TRITURADORA | F45: CHANCADORA PRIMARIA OTSUKA FS4840 | G45: CAMBIO DE 2081 MOVABLE JAW PLATE (M-1796-02) | H45: 2.5 | I45: Hra | J45: 641.25 | K45: DIA | L45: F | N45: 2.5 | O45: 2.5 | P45: 2.5 | T45: 2.5 | U45: 2.5 | V45: 2.5 | AB45: 2.5 | AC45: 2.5 | AG45: 2.5 | AH45: 2.5 | AI45: 2.5 | AJ45: 2.5 | AM45: 2.5 | AN45: 2.5 | AQ45: 2.5 | AR45: 2.5 | AS45: 48 | AV45: 2.5 | AW45: 7.5 | AZ45: 7.5 | BA45: 2.5 | BB45: 2.5 | BE45: 7.5 | BF45: 2.5 | BI45: 2.5 | BJ45: 2.5 | BK45: 2.5
A46: 38 | B46: OPEXMCH | C46: OPEXM | D46: CH | E46: CHANCADORA Y TRITURADORA | F46: CHANCADORA PRIMARIA OTSUKA FS4840 | G46: CAMBIO DE 3029 ROLLERBEARING SKF22356C3(FRAME) | H46: 12 | I46: Hra | J46: 20520 | K46: DIA | L46: C | N46: 12 | O46: 12 | P46: 12 | T46: 12 | U46: 12 | V46: 12 | AB46: 12 | AC46: 12 | AG46: 12 | AH46: 12 | AI46: 12 | AJ46: 12 | AM46: 12 | AN46: 12 | AQ46: 12 | AR46: 12 | AS46: 12 | AV46: 12 | AW46: 36 | AZ46: 36 | BA46: 12 | BB46: 12 | BE46: 36 | BF46: 12 | BI46: 12 | BJ46: 12 | BK46: 12
A47: 39 | B47: OPEXMCH | C47: OPEXM | D47: CH | E47: CHANCADORA Y TRITURADORA | F47: CHANCADORA PRIMARIA OTSUKA FS4840 | G47: CAMBIO DE 3061 LABYRINTH COLLAR | H47: 18 | I47: Hra | J47: 20520 | K47: DIA | L47: D | N47: 18 | O47: 18 | P47: 18 | T47: 18 | U47: 18 | V47: 18 | AB47: 18 | AC47: 18 | AG47: 18 | AH47: 18 | AI47: 18 | AJ47: 18 | AM47: 18 | AN47: 18 | AQ47: 18 | AR47: 18 | AS47: 18 | AV47: 18 | AW47: 54 | AZ47: 48 | BA47: 18 | BB47: 18 | BE47: 54 | BF47: 18 | BI47: 18 | BJ47: 18 | BK47: 18
A48: 40 | B48: OPEXMCH | C48: OPEXM | D48: CH | E48: CHANCADORA Y TRITURADORA | F48: CHANCADORA PRIMARIA OTSUKA FS4840 | G48: CAMBIO DE 3161 LABYRINTH COLLAR INNER SIDE | H48: 18 | I48: Hra | J48: 20520 | K48: DIA | L48: D | N48: 18 | O48: 18 | P48: 18 | T48: 18 | U48: 18 | V48: 18 | AB48: 18 | AC48: 18 | AG48: 18 | AH48: 18 | AI48: 18 | AJ48: 18 | AM48: 18 | AN48: 18 | AQ48: 18 | AR48: 18 | AS48: 18 | AV48: 18 | AW48: 54 | AZ48: 48 | BA48: 18 | BB48: 18 | BE48: 54 | BF48: 18 | BI48: 18 | BJ48: 18 | BK48: 18
A49: 41 | B49: OPEXMCH | C49: OPEXM | D49: CH | E49: CHANCADORA Y TRITURADORA | F49: CHANCADORA PRIMARIA OTSUKA FS4840 | G49: CAMBIO DE 4021 TOGGLE HEAD | H49: 12 | I49: Hra | J49: 1282.5 | K49: DIA | L49: C | N49: 12 | O49: 12 | P49: 12 | T49: 12 | U49: 12 | V49: 12 | AB49: 12 | AC49: 12 | AG49: 12 | AH49: 12 | AI49: 12 | AJ49: 12 | AM49: 12 | AN49: 12 | AQ49: 12 | AR49: 12 | AS49: 12 | AV49: 12 | AW49: 36 | AZ49: 36 | BA49: 12 | BB49: 12 | BE49: 36 | BF49: 12 | BI49: 12 | BJ49: 12 | BK49: 12
A50: 42 | B50: OPEXMCH | C50: OPEXM | D50: CH | E50: CHANCADORA Y TRITURADORA | F50: CHANCADORA PRIMARIA OTSUKA FS4840 | G50: CAMBIO DE 4021-2 TOGGLE SEAT | H50: 12 | I50: Hra | J50: 1282.5 | K50: DIA | L50: C | N50: 12 | O50: 12 | P50: 12 | T50: 12 | U50: 12 | V50: 12 | AB50: 12 | AC50: 12 | AG50: 12 | AH50: 12 | AI50: 12 | AJ50: 12 | AM50: 12 | AN50: 12 | AQ50: 12 | AR50: 12 | AS50: 12 | AV50: 12 | AW50: 36 | AZ50: 36 | BA50: 12 | BB50: 12 | BE50: 36 | BF50: 12 | BI50: 12 | BJ50: 12 | BK50: 12
A51: 43 | B51: OPEXMCH | C51: OPEXM | D51: CH | E51: CHANCADORA Y TRITURADORA | F51: CHANCADORA PRIMARIA OTSUKA FS4840 | G51: CAMBIO DE 4241 TENSION ROD. M-48X1040 | H51: 2.5 | I51: Hra | J51: 641.25 | K51: DIA | L51: D | N51: 2.5 | O51: 2.5 | P51: 2.5 | T51: 2.5 | U51: 2.5 | V51: 2.5 | AB51: 2.5 | AC51: 2.5 | AG51: 2.5 | AH51: 2.5 | AI51: 2.5 | AJ51: 2.5 | AM51: 2.5 | AN51: 2.5 | AQ51: 2.5 | AR51: 2.5 | AS51: 2.5 | AV51: 2.5 | AW51: 7.5 | AZ51: 7.5 | BA51: 2.5 | BB51: 2.5 | BE51: 7.5 | BF51: 2.5 | BI51: 2.5 | BJ51: 2.5 | BK51: 2.5
A52: 44 | B52: OPEXMCH | C52: OPEXM | D52: CH | E52: CHANCADORA Y TRITURADORA | F52: CHANCADORA PRIMARIA OTSUKA FS4840 | G52: CAMBIO DE 4251 SPRING F/TENSION ORD | H52: 2.5 | I52: Hra | J52: 641.25 | K52: DIA | L52: D | N52: 2.5 | O52: 2.5 | P52: 2.5 | T52: 2.5 | U52: 2.5 | V52: 2.5 | AB52: 2.5 | AC52: 2.5 | AG52: 2.5 | AH52: 2.5 | AI52: 2.5 | AJ52: 2.5 | AM52: 2.5 | AN52: 2.5 | AQ52: 2.5 | AR52: 2.5 | AS52: 2.5 | AV52: 2.5 | AW52: 7.5 | AZ52: 7.5 | BA52: 2.5 | BB52: 2.5 | BE52: 7.5 | BF52: 2.5 | BI52: 2.5 | BJ52: 2.5 | BK52: 2.5
A53: 45 | B53: OPEXMCH | C53: OPEXM | D53: CH | E53: CHANCADORA Y TRITURADORA | F53: CHANCADORA PRIMARIA OTSUKA FS4840 | G53: CAMBIO DE 4331 TOGGLE BLOCK SPRING | H53: 6.5 | I53: Hra | J53: 2565 | K53: DIA | L53: C | N53: 6.5 | O53: 6.5 | P53: 6.5 | T53: 6.5 | U53: 6.5 | V53: 6.5 | AB53: 6.5 | AC53: 6.5 | AG53: 6.5 | AH53: 6.5 | AI53: 6.5 | AJ53: 6.5 | AM53: 6.5 | AN53: 6.5 | AQ53: 6.5 | AR53: 6.5 | AS53: 6.5 | AV53: 6.5 | AW53: 19.5 | AZ53: 19.5 | BA53: 6.5 | BB53: 6.5 | BE53: 19.5 | BF53: 6.5 | BI53: 6.5 | BJ53: 6.5 | BK53: 6.5
A54: 46 | B54: OPEXMCH | C54: OPEXM | D54: CH | E54: CHANCADORA Y TRITURADORA | F54: CHANCADORA PRIMARIA OTSUKA FS4840 | G54: CAMBIO DE 442793201 RING | H54: 2.5 | I54: Hra | J54: 1282.5 | K54: DIA | L54: C | N54: 2.5 | O54: 2.5 | P54: 2.5 | T54: 2.5 | U54: 2.5 | V54: 2.5 | AB54: 2.5 | AC54: 2.5 | AG54: 2.5 | AH54: 2.5 | AI54: 2.5 | AJ54: 2.5 | AM54: 2.5 | AN54: 2.5 | AQ54: 2.5 | AR54: 2.5 | AS54: 2.5 | AV54: 2.5 | AW54: 7.5 | AZ54: 7.5 | BA54: 2.5 | BB54: 2.5 | BE54: 7.5 | BF54: 2.5 | BI54: 2.5 | BJ54: 2.5 | BK54: 2.5
A55: 47 | B55: OPEXMCH | C55: OPEXM | D55: CH | E55: CHANCADORA Y TRITURADORA | F55: CHANCADORA PRIMARIA OTSUKA FS4840 | G55: CAMBIO DE 900064800 ADAPTER G1BXG3/4B | H55: 3 | I55: Hra | J55: 1282.5 | K55: DIA | L55: D | N55: 3 | O55: 3 | P55: 3 | T55: 3 | U55: 3 | V55: 3 | AB55: 3 | AC55: 3 | AG55: 3 | AH55: 3 | AI55: 3 | AJ55: 3 | AM55: 3 | AN55: 3 | AQ55: 3 | AR55: 3 | AS55: 3 | AV55: 3 | AW55: 9 | AZ55: 9 | BA55: 3 | BB55: 3 | BE55: 9 | BF55: 3 | BI55: 3 | BJ55: 3 | BK55: 3
A56: 48 | B56: OPEXMCH | C56: OPEXM | D56: CH | E56: CHANCADORA Y TRITURADORA | F56: CHANCADORA PRIMARIA OTSUKA FS4840 | G56: CAMBIO DE 900065500 ADAPTER G3/4BXG3/4B | H56: 3 | I56: Hra | J56: 1282.5 | K56: DIA | L56: D | N56: 3 | O56: 3 | P56: 3 | T56: 3 | U56: 3 | V56: 3 | AB56: 3 | AC56: 3 | AG56: 3 | AH56: 3 | AI56: 3 | AJ56: 3 | AM56: 3 | AN56: 3 | AQ56: 3 | AR56: 3 | AS56: 3 | AV56: 3 | AW56: 9 | AZ56: 9 | BA56: 3 | BB56: 3 | BE56: 9 | BF56: 3 | BI56: 3 | BJ56: 3 | BK56: 3
A57: 49 | B57: OPEXMCH | C57: OPEXM | D57: CH | E57: CHANCADORA Y TRITURADORA | F57: CHANCADORA PRIMARIA OTSUKA FS4840 | G57: CAMBIO DE BOLT F/CHECK PLATE M42X170X100MM P1059 | H57: 2.5 | I57: Hra | J57: 641.25 | K57: DIA | L57: C | N57: 2.5 | O57: 2.5 | P57: 2.5 | T57: 2.5 | U57: 2.5 | V57: 2.5 | AB57: 2.5 | AC57: 2.5 | AG57: 2.5 | AH57: 2.5 | AI57: 2.5 | AJ57: 2.5 | AM57: 2.5 | AN57: 2.5 | AQ57: 2.5 | AR57: 2.5 | AS57: 2.5 | AV57: 2.5 | AW57: 7.5 | AZ57: 7.5 | BA57: 2.5 | BB57: 2.5 | BE57: 7.5 | BF57: 2.5 | BI57: 2.5 | BJ57: 2.5 | BK57: 2.5
A58: 50 | B58: OPEXMCH | C58: OPEXM | D58: CH | E58: CHANCADORA Y TRITURADORA | F58: CHANCADORA PRIMARIA OTSUKA FS4840 | G58: CAMBIO DE COIL SPRING F/BOLT JAW FIXED MOVABLE | H58: 2.5 | I58: Hra | J58: 1282.5 | K58: DIA | L58: C | N58: 2.5 | O58: 2.5 | P58: 2.5 | T58: 2.5 | U58: 2.5 | V58: 2.5 | AB58: 2.5 | AC58: 2.5 | AG58: 2.5 | AH58: 2.5 | AI58: 2.5 | AJ58: 2.5 | AM58: 2.5 | AN58: 2.5 | AQ58: 2.5 | AR58: 2.5 | AS58: 2.5 | AV58: 2.5 | AW58: 7.5 | AZ58: 7.5 | BA58: 2.5 | BB58: 2.5 | BE58: 7.5 | BF58: 2.5 | BI58: 2.5 | BJ58: 2.5 | BK58: 2.5
A59: 51 | B59: OPEXMCH | C59: OPEXM | D59: CH | E59: CHANCADORA Y TRITURADORA | F59: CHANCADORA PRIMARIA OTSUKA FS4840 | G59: CAMBIO DE E-405 V-BELTS | H59: 3.5 | I59: Hra | J59: 2565 | K59: DIA | L59: E | N59: 3.5 | O59: 3.5 | P59: 3.5 | T59: 3.5 | U59: 3.5 | V59: 3.5 | AB59: 3.5 | AC59: 3.5 | AG59: 3.5 | AH59: 3.5 | AI59: 3.5 | AJ59: 3.5 | AM59: 3.5 | AN59: 3.5 | AQ59: 3.5 | AR59: 3.5 | AS59: 3.5 | AV59: 3.5 | AW59: 10.5 | AZ59: 10.5 | BA59: 3.5 | BB59: 3.5 | BE59: 10.5 | BF59: 3.5 | BI59: 3.5 | BJ59: 3.5 | BK59: 3.5
A60: 52 | B60: OPEXMCH | C60: OPEXM | D60: CH | E60: CHANCADORA Y TRITURADORA | F60: CHANCADORA PRIMARIA OTSUKA FS4840 | G60: CAMBIO DE PIN DE TENSION ROD | H60: 4.5 | I60: Hra | J60: 1282.5 | K60: DIA | L60: E | N60: 4.5 | O60: 4.5 | P60: 4.5 | T60: 4.5 | U60: 4.5 | V60: 4.5 | AB60: 4.5 | AC60: 4.5 | AG60: 4.5 | AH60: 4.5 | AI60: 4.5 | AJ60: 4.5 | AM60: 4.5 | AN60: 4.5 | AQ60: 4.5 | AR60: 4.5 | AS60: 4.5 | AV60: 4.5 | AW60: 13.5 | AZ60: 13.5 | BA60: 4.5 | BB60: 4.5 | BE60: 13.5 | BF60: 4.5 | BI60: 4.5 | BJ60: 4.5 | BK60: 4.5
A61: 53 | B61: OPEXMCH | C61: OPEXM | D61: CH | E61: CHANCADORA Y TRITURADORA | F61: CHANCADORA SECUNDARIA SANDVIK CONE CRUSHER CH430 | G61: CAMBIO DE 442.8017-01 DUST SEAL RING | H61: 3.5 | I61: Hra | J61: 285 | K61: DIA | L61: E | N61: 3.5 | O61: 3.5 | P61: 3.5 | T61: 3.5 | U61: 3.5 | V61: 3.5 | AB61: 3.5 | AC61: 3.5 | AG61: 3.5 | AH61: 3.5 | AI61: 3.5 | AJ61: 3.5 | AM61: 3.5 | AN61: 3.5 | AQ61: 3.5 | AR61: 3.5 | AS61: 3.5 | AV61: 3.5 | AW61: 10.5 | AZ61: 10.5 | BA61: 3.5 | BB61: 3.5 | BE61: 10.5 | BF61: 3.5 | BI61: 3.5 | BJ61: 3.5 | BK61: 3.5
A62: 54 | B62: OPEXMCH | C62: OPEXM | D62: CH | E62: CHANCADORA Y TRITURADORA | F62: CHANCADORA SECUNDARIA SANDVIK CONE CRUSHER CH430 | G62: CAMBIO DE 442647001 SEAL RING (CHANCAD. SANDV) | H62: 2.5 | I62: Hra | J62: 142.5 | K62: DIA | L62: C | N62: 2.5 | O62: 2.5 | P62: 2.5 | T62: 2.5 | U62: 2.5 | V62: 2.5 | AB62: 2.5 | AC62: 2.5 | AG62: 2.5 | AH62: 2.5 | AI62: 2.5 | AJ62: 2.5 | AM62: 2.5 | AN62: 2.5 | AQ62: 2.5 | AR62: 2.5 | AS62: 2.5 | AV62: 2.5 | AW62: 7.5 | AZ62: 7.5 | BA62: 2.5 | BB62: 2.5 | BE62: 7.5 | BF62: 2.5 | BI62: 2.5 | BJ62: 2.5 | BK62: 2.5
A63: 55 | B63: OPEXMCH | C63: OPEXM | D63: CH | E63: CHANCADORA Y TRITURADORA | F63: CHANCADORA SECUNDARIA SANDVIK CONE CRUSHER CH430 | G63: CAMBIO DE 442647301 SPIDER BUSHING | H63: 12 | I63: Hra | J63: 285 | K63: DIA | L63: C | N63: 12 | O63: 12 | P63: 12 | T63: 12 | U63: 12 | V63: 12 | AB63: 12 | AC63: 12 | AG63: 12 | AH63: 12 | AI63: 12 | AJ63: 12 | AM63: 12 | AN63: 12 | AQ63: 12 | AR63: 12 | AS63: 12 | AV63: 12 | AW63: 36 | AZ63: 36 | BA63: 12 | BB63: 12 | BE63: 36 | BF63: 12 | BI63: 12 | BJ63: 12 | BK63: 12
A64: 56 | B64: OPEXMCH | C64: OPEXM | D64: CH | E64: CHANCADORA Y TRITURADORA | F64: CHANCADORA SECUNDARIA SANDVIK CONE CRUSHER CH430 | G64: CAMBIO DE 442789201 HYDR.CYL. BUSCHING | H64: 6 | I64: Hra | J64: 1140 | K64: DIA | L64: C | N64: 6 | O64: 6 | P64: 6 | T64: 6 | U64: 6 | V64: 6 | AB64: 6 | AC64: 6 | AG64: 6 | AH64: 6 | AI64: 6 | AJ64: 6 | AM64: 6 | AN64: 6 | AQ64: 6 | AR64: 6 | AS64: 6 | AV64: 6 | AW64: 18 | AZ64: 18 | BA64: 6 | BB64: 6 | BE64: 18 | BF64: 6 | BI64: 6 | BJ64: 6 | BK64: 6
A65: 57 | B65: OPEXMCH | C65: OPEXM | D65: CH | E65: CHANCADORA Y TRITURADORA | F65: CHANCADORA SECUNDARIA SANDVIK CONE CRUSHER CH430 | G65: CAMBIO DE 442789301 PISTON WEARING PL | H65: 6 | I65: Hra | J65: 285 | K65: DIA | L65: D | N65: 6 | O65: 6 | P65: 6 | T65: 6 | U65: 6 | V65: 6 | AB65: 6 | AC65: 6 | AG65: 6 | AH65: 6 | AI65: 6 | AJ65: 6 | AM65: 6 | AN65: 6 | AQ65: 6 | AR65: 6 | AS65: 6 | AV65: 6 | AW65: 18 | AZ65: 18 | BA65: 6 | BB65: 6 | BE65: 18 | BF65: 6 | BI65: 6 | BJ65: 6 | BK65: 6
A66: 58 | B66: OPEXMCH | C66: OPEXM | D66: CH | E66: CHANCADORA Y TRITURADORA | F66: CHANCADORA SECUNDARIA SANDVIK CONE CRUSHER CH430 | G66: CAMBIO DE 442789401 STEP WASHER | H66: 3.5 | I66: Hra | J66: 285 | K66: DIA | L66: C | N66: 3.5 | O66: 3.5 | P66: 3.5 | T66: 3.5 | U66: 3.5 | V66: 3.5 | AB66: 3.5 | AC66: 3.5 | AG66: 3.5 | AH66: 3.5 | AI66: 3.5 | AJ66: 3.5 | AM66: 3.5 | AN66: 3.5 | AQ66: 3.5 | AR66: 3.5 | AS66: 3.5 | AV66: 3.5 | AW66: 10.5 | AZ66: 10.5 | BA66: 3.5 | BB66: 3.5 | BE66: 10.5 | BF66: 3.5 | BI66: 3.5 | BJ66: 3.5 | BK66: 3.5
A67: 59 | B67: OPEXMCH | C67: OPEXM | D67: CH | E67: CHANCADORA Y TRITURADORA | F67: CHANCADORA SECUNDARIA SANDVIK CONE CRUSHER CH430 | G67: CAMBIO DE 442789501 MAIN SHAFT STEP | H67: 6 | I67: Hra | J67: 285 | K67: DIA | L67: C | N67: 6 | O67: 6 | P67: 6 | T67: 6 | U67: 6 | V67: 6 | AB67: 6 | AC67: 6 | AG67: 6 | AH67: 6 | AI67: 6 | AJ67: 6 | AM67: 6 | AN67: 6 | AQ67: 6 | AR67: 6 | AS67: 6 | AV67: 6 | AW67: 18 | AZ67: 18 | BA67: 6 | BB67: 6 | BE67: 18 | BF67: 6 | BI67: 6 | BJ67: 6 | BK67: 6
A68: 60 | B68: OPEXMCH | C68: OPEXM | D68: CH | E68: CHANCADORA Y TRITURADORA | F68: CHANCADORA SECUNDARIA SANDVIK CONE CRUSHER CH430 | G68: CAMBIO DE 442791101 BURNING RING | H68: 2 | I68: Hra | J68: 142.5 | K68: DIA | L68: C | N68: 2 | O68: 2 | P68: 2 | T68: 2 | U68: 2 | V68: 2 | AB68: 2 | AC68: 2 | AG68: 2 | AH68: 2 | AI68: 2 | AJ68: 2 | AM68: 2 | AN68: 2 | AQ68: 2 | AR68: 2 | AS68: 2 | AV68: 2 | AW68: 6 | AZ68: 6 | BA68: 2 | BB68: 2 | BE68: 6 | BF68: 2 | BI68: 2 | BJ68: 2 | BK68: 2
A69: 61 | B69: OPEXMCH | C69: OPEXM | D69: CH | E69: CHANCADORA Y TRITURADORA | F69: CHANCADORA SECUNDARIA SANDVIK CONE CRUSHER CH430 | G69: CAMBIO DE 442791200 HEAD NUT WITH BUR | H69: 3.5 | I69: Hra | J69: 570 | K69: DIA | L69: C | N69: 3.5 | O69: 3.5 | P69: 3.5 | T69: 3.5 | U69: 3.5 | V69: 3.5 | AB69: 3.5 | AC69: 3.5 | AG69: 3.5 | AH69: 3.5 | AI69: 3.5 | AJ69: 3.5 | AM69: 3.5 | AN69: 3.5 | AQ69: 3.5 | AR69: 3.5 | AS69: 3.5 | AV69: 3.5 | AW69: 10.5 | AZ69: 10.5 | BA69: 3.5 | BB69: 3.5 | BE69: 10.5 | BF69: 3.5 | BI69: 3.5 | BJ69: 3.5 | BK69: 3.5
A70: 62 | B70: OPEXMCH | C70: OPEXM | D70: CH | E70: CHANCADORA Y TRITURADORA | F70: CHANCADORA SECUNDARIA SANDVIK CONE CRUSHER CH430 | G70: CAMBIO DE 442791301 MAIN SHAFT SLEEVE | H70: 6 | I70: Hra | J70: 285 | K70: DIA | L70: C | N70: 6 | O70: 6 | P70: 6 | T70: 6 | U70: 6 | V70: 6 | AB70: 6 | AC70: 6 | AG70: 6 | AH70: 6 | AI70: 6 | AJ70: 6 | AM70: 6 | AN70: 6 | AQ70: 6 | AR70: 6 | AS70: 6 | AV70: 6 | AW70: 18 | AZ70: 18 | BA70: 6 | BB70: 6 | BE70: 18 | BF70: 6 | BI70: 6 | BJ70: 6 | BK70: 6
A71: 63 | B71: OPEXMCH | C71: OPEXM | D71: CH | E71: CHANCADORA Y TRITURADORA | F71: CHANCADORA SECUNDARIA SANDVIK CONE CRUSHER CH430 | G71: CAMBIO DE 442791401 PROTECTION OF WEARING DOWN FOR ARM | H71: 4.5 | I71: Hra | J71: 570 | K71: DIA | L71: C | N71: 4.5 | O71: 4.5 | P71: 4.5 | T71: 4.5 | U71: 4.5 | V71: 4.5 | AB71: 4.5 | AC71: 4.5 | AG71: 4.5 | AH71: 4.5 | AI71: 4.5 | AJ71: 4.5 | AM71: 4.5 | AN71: 4.5 | AQ71: 4.5 | AR71: 4.5 | AS71: 4.5 | AV71: 4.5 | AW71: 13.5 | AZ71: 13.5 | BA71: 4.5 | BB71: 4.5 | BE71: 13.5 | BF71: 4.5 | BI71: 4.5 | BJ71: 4.5 | BK71: 4.5
A72: 64 | B72: OPEXMCH | C72: OPEXM | D72: CH | E72: CHANCADORA Y TRITURADORA | F72: CHANCADORA SECUNDARIA SANDVIK CONE CRUSHER CH430 | G72: CAMBIO DE 442791501 PROTECTION OF WEARING DWN IN BOX OF NECKLACE | H72: 4.5 | I72: Hra | J72: 570 | K72: DIA | L72: C | N72: 4.5 | O72: 4.5 | P72: 4.5 | T72: 4.5 | U72: 4.5 | V72: 4.5 | AB72: 4.5 | AC72: 4.5 | AG72: 4.5 | AH72: 4.5 | AI72: 4.5 | AJ72: 4.5 | AM72: 4.5 | AN72: 4.5 | AQ72: 4.5 | AR72: 4.5 | AS72: 4.5 | AV72: 4.5 | AW72: 13.5 | AZ72: 13.5 | BA72: 4.5 | BB72: 4.5 | BE72: 13.5 | BF72: 4.5 | BI72: 4.5 | BJ72: 4.5 | BK72: 4.5
A73: 65 | B73: =CONCATENATE(C73,D73) -> OPEXMCH | C73: OPEXM | D73: CH | E73: CHANCADORA Y TRITURADORA | F73: CHANCADORA SECUNDARIA SANDVIK CONE CRUSHER CH430 | G73: CAMBIO DE 442793101 SEAL RING INNER | H73: 3 | I73: Hra | J73: 1140 | K73: DIA | L73: C | N73: 3 | O73: 3 | P73: 3 | T73: 3 | U73: 3 | V73: 3 | AB73: 3 | AC73: 3 | AG73: 3 | AH73: 3 | AI73: 3 | AJ73: 3 | AM73: 3 | AN73: 3 | AQ73: 3 | AR73: 3 | AS73: 3 | AV73: 3 | AW73: 9 | AZ73: 9 | BA73: 3 | BB73: 3 | BE73: 9 | BF73: 3 | BI73: 3 | BJ73: 3 | BK73: 3
A74: =+A73+1 -> 66 | B74: OPEXMCH | C74: OPEXM | D74: CH | E74: CHANCADORA Y TRITURADORA | F74: CHANCADORA SECUNDARIA SANDVIK CONE CRUSHER CH430 | G74: CAMBIO DE 442793401 GASKET | H74: 3 | I74: Hra | J74: 570 | K74: DIA | L74: C | N74: =+H74 -> 3 | O74: =H74 -> 3 | P74: =H74 -> 3 | T74: =H74 -> 3 | U74: =H74 -> 3 | V74: =H74 -> 3 | AB74: =H74 -> 3 | AC74: =H74 -> 3 | AG74: =H74 -> 3 | AH74: =H74 -> 3 | AI74: =H74 -> 3 | AJ74: 3 | AM74: 3 | AN74: 3 | AQ74: 3 | AR74: 3 | AS74: 3 | AV74: 3 | AW74: 9 | AZ74: 9 | BA74: 3 | BB74: 3 | BE74: 9 | BF74: 3 | BI74: 3 | BJ74: 3 | BK74: 3
A75: 67 | B75: OPEXMCH | C75: OPEXM | D75: CH | E75: CHANCADORA Y TRITURADORA | F75: CHANCADORA SECUNDARIA SANDVIK CONE CRUSHER CH430 | G75: CAMBIO DE 442797601 SPIDER CAP | H75: 6 | I75: Hra | J75: 1140 | K75: DIA | L75: C | N75: 6 | O75: 6 | P75: 6 | T75: 6 | U75: 6 | V75: 6 | AB75: 6 | AC75: 6 | AG75: 6 | AH75: 6 | AI75: 6 | AJ75: 6 | AM75: 6 | AN75: 6 | AQ75: 6 | AR75: 6 | AS75: 6 | AV75: 6 | AW75: 18 | AZ75: 18 | BA75: 6 | BB75: 6 | BE75: 18 | BF75: 6 | BI75: 6 | BJ75: 6 | BK75: 6
A76: 68 | B76: OPEXMCH | C76: OPEXM | D76: CH | E76: CHANCADORA Y TRITURADORA | F76: CHANCADORA SECUNDARIA SANDVIK CONE CRUSHER CH430 | G76: CAMBIO DE 442798600 FEED HOPPER CONE LH | H76: 4 | I76: Hra | J76: 570 | K76: DIA | L76: C | N76: 4 | O76: 4 | P76: 4 | T76: 4 | U76: 4 | V76: 4 | AB76: 4 | AC76: 4 | AG76: 4 | AH76: 4 | AI76: 4 | AJ76: 4 | AM76: 4 | AN76: 4 | AQ76: 4 | AR76: 4 | AS76: 4 | AV76: 4 | AW76: 12 | AZ76: 12 | BA76: 4 | BB76: 4 | BE76: 12 | BF76: 4 | BI76: 4 | BJ76: 4 | BK76: 4
A77: 69 | B77: OPEXMCH | C77: OPEXM | D77: CH | E77: CHANCADORA Y TRITURADORA | F77: CHANCADORA SECUNDARIA SANDVIK CONE CRUSHER CH430 | G77: CAMBIO DE 442798690 FEED HOPPER CONE RH | H77: 4 | I77: Hra | J77: 570 | K77: DIA | L77: G | N77: 4 | O77: 4 | P77: 4 | T77: 4 | U77: 4 | V77: 4 | AB77: 4 | AC77: 4 | AG77: 4 | AH77: 4 | AI77: 4 | AJ77: 4 | AM77: 4 | AN77: 4 | AQ77: 4 | AR77: 4 | AS77: 4 | AV77: 4 | AW77: 12 | AZ77: 12 | BA77: 4 | BB77: 4 | BE77: 12 | BF77: 4 | BI77: 4 | BJ77: 4 | BK77: 4
A78: 70 | B78: OPEXMCH | C78: OPEXM | D78: CH | E78: CHANCADORA Y TRITURADORA | F78: CHANCADORA SECUNDARIA SANDVIK CONE CRUSHER CH430 | G78: CAMBIO DE 442798901 MANTLE B (CHANCAD. SANDV) | H78: 6 | I78: Hra | J78: 142.5 | K78: DIA | L78: G | N78: 6 | O78: 6 | P78: 6 | T78: 6 | U78: 6 | V78: 6 | AB78: 6 | AC78: 6 | AG78: 6 | AH78: 6 | AI78: 6 | AJ78: 6 | AM78: 6 | AN78: 6 | AQ78: 6 | AR78: 6 | AS78: 6 | AV78: 6 | AW78: 18 | AZ78: 18 | BA78: 6 | BB78: 6 | BE78: 18 | BF78: 6 | BI78: 6 | BJ78: 6 | BK78: 6
A79: 71 | B79: OPEXMCH | C79: OPEXM | D79: CH | E79: CHANCADORA Y TRITURADORA | F79: CHANCADORA SECUNDARIA SANDVIK CONE CRUSHER CH430 | G79: CAMBIO DE 442802101 RETAINER | H79: 6 | I79: Hra | J79: 1140 | K79: DIA | L79: D | N79: 6 | O79: 6 | P79: 6 | T79: 6 | U79: 6 | V79: 6 | AB79: 6 | AC79: 6 | AG79: 6 | AH79: 6 | AI79: 6 | AJ79: 6 | AM79: 6 | AN79: 6 | AQ79: 6 | AR79: 6 | AS79: 6 | AV79: 6 | AW79: 18 | AZ79: 18 | BA79: 6 | BB79: 6 | BE79: 18 | BF79: 6 | BI79: 6 | BJ79: 6 | BK79: 6
A80: 72 | B80: OPEXMCH | C80: OPEXM | D80: CH | E80: CHANCADORA Y TRITURADORA | F80: CHANCADORA SECUNDARIA SANDVIK CONE CRUSHER CH430 | G80: CAMBIO DE 442802201 SCRAPER | H80: 5.5 | I80: Hra | J80: 1140 | K80: DIA | L80: C | N80: 5.5 | O80: 5.5 | P80: 5.5 | T80: 5.5 | U80: 5.5 | V80: 5.5 | AB80: 5.5 | AC80: 5.5 | AG80: 5.5 | AH80: 5.5 | AI80: 5.5 | AJ80: 5.5 | AM80: 5.5 | AN80: 5.5 | AQ80: 5.5 | AR80: 5.5 | AS80: 5.5 | AV80: 5.5 | AW80: 16.5 | AZ80: 16.5 | BA80: 5.5 | BB80: 5.5 | BE80: 16.5 | BF80: 5.5 | BI80: 5.5 | BJ80: 5.5 | BK80: 5.5
A81: 73 | B81: OPEXMCH | C81: OPEXM | D81: CH | E81: CHANCADORA Y TRITURADORA | F81: CHANCADORA SECUNDARIA SANDVIK CONE CRUSHER CH430 | G81: CAMBIO DE 442824901 CONCAVE EC-EC2 | H81: 8 | I81: Hra | J81: 142.5 | K81: DIA | L81: C | N81: 8 | O81: 8 | P81: 8 | T81: 8 | U81: 8 | V81: 8 | AB81: 8 | AC81: 8 | AG81: 8 | AH81: 8 | AI81: 8 | AJ81: 8 | AM81: 8 | AN81: 8 | AQ81: 8 | AR81: 8 | AS81: 8 | AV81: 8 | AW81: 24 | AZ81: 24 | BA81: 8 | BB81: 8 | BE81: 24 | BF81: 8 | BI81: 8 | BJ81: 8 | BK81: 8
A82: 74 | B82: OPEXMCH | C82: OPEXM | D82: CH | E82: CHANCADORA Y TRITURADORA | F82: CHANCADORA SECUNDARIA SANDVIK CONE CRUSHER CH430 | G82: CAMBIO DE 442886401 WEARING DOWN PLATE | H82: 3 | I82: Hra | J82: 570 | K82: DIA | L82: C | N82: 3 | O82: 3 | P82: 3 | T82: 3 | U82: 3 | V82: 3 | AB82: 3 | AC82: 3 | AG82: 3 | AH82: 3 | AI82: 3 | AJ82: 3 | AM82: 3 | AN82: 3 | AQ82: 3 | AR82: 3 | AS82: 3 | AV82: 3 | AW82: 9 | AZ82: 9 | BA82: 3 | BB82: 3 | BE82: 9 | BF82: 3 | BI82: 3 | BJ82: 3 | BK82: 3
A83: 75 | B83: OPEXMCH | C83: OPEXM | D83: CH | E83: CHANCADORA Y TRITURADORA | F83: CHANCADORA SECUNDARIA SANDVIK CONE CRUSHER CH430 | G83: CAMBIO DE 442886501 WEARING DOWN PLATE | H83: 3 | I83: Hra | J83: 570 | K83: DIA | L83: C | N83: 3 | O83: 3 | P83: 3 | T83: 3 | U83: 3 | V83: 3 | AB83: 3 | AC83: 3 | AG83: 3 | AH83: 3 | AI83: 3 | AJ83: 3 | AM83: 3 | AN83: 3 | AQ83: 3 | AR83: 3 | AS83: 3 | AV83: 3 | AW83: 9 | AZ83: 9 | BA83: 3 | BB83: 3 | BE83: 9 | BF83: 3 | BI83: 3 | BJ83: 3 | BK83: 3
A84: 76 | B84: OPEXMCH | C84: OPEXM | D84: CH | E84: CHANCADORA Y TRITURADORA | F84: CHANCADORA SECUNDARIA SANDVIK CONE CRUSHER CH430 | G84: CAMBIO DE 442886601 WEARING PLATE | H84: 3 | I84: Hra | J84: 570 | K84: DIA | L84: D | N84: 3 | O84: 3 | P84: 3 | T84: 3 | U84: 3 | V84: 3 | AB84: 3 | AC84: 3 | AG84: 3 | AH84: 3 | AI84: 3 | AJ84: 3 | AM84: 3 | AN84: 120 | AQ84: 3 | AR84: 3 | AS84: 3 | AV84: 3 | AW84: 9 | AZ84: 9 | BA84: 3 | BB84: 3 | BE84: 9 | BF84: 3 | BI84: 3 | BJ84: 3 | BK84: 3
A85: 77 | B85: OPEXMCH | C85: OPEXM | D85: CH | E85: CHANCADORA Y TRITURADORA | F85: CHANCADORA SECUNDARIA SANDVIK CONE CRUSHER CH430 | G85: CAMBIO DE 442886701 WEARING PLATE | H85: 3 | I85: Hra | J85: 570 | K85: DIA | L85: C | N85: 3 | O85: 3 | P85: 3 | T85: 3 | U85: 3 | V85: 3 | AB85: 3 | AC85: 3 | AG85: 3 | AH85: 3 | AI85: 3 | AJ85: 3 | AM85: 3 | AN85: 3 | AQ85: 3 | AR85: 3 | AS85: 3 | AV85: 3 | AW85: 9 | AZ85: 9 | BA85: 3 | BB85: 3 | BE85: 9 | BF85: 3 | BI85: 3 | BJ85: 3 | BK85: 3
A86: 78 | B86: OPEXMCH | C86: OPEXM | D86: CH | E86: CHANCADORA Y TRITURADORA | F86: CHANCADORA SECUNDARIA SANDVIK CONE CRUSHER CH430 | G86: CAMBIO DE 442886801 WEARING PLATE | H86: 3 | I86: Hra | J86: 570 | K86: DIA | L86: D | N86: 3 | O86: 3 | P86: 3 | T86: 3 | U86: 3 | V86: 3 | AB86: 3 | AC86: 3 | AG86: 3 | AH86: 3 | AI86: 3 | AJ86: 3 | AM86: 3 | AN86: 3 | AQ86: 3 | AR86: 3 | AS86: 3 | AV86: 3 | AW86: 9 | AZ86: 9 | BA86: 3 | BB86: 3 | BE86: 9 | BF86: 3 | BI86: 3 | BJ86: 3 | BK86: 3
A87: 79 | B87: OPEXMCH | C87: OPEXM | D87: CH | E87: CHANCADORA Y TRITURADORA | F87: CHANCADORA SECUNDARIA SANDVIK CONE CRUSHER CH430 | G87: CAMBIO DE 442886901 WEARING PLATE | H87: 3 | I87: Hra | J87: 570 | K87: DIA | L87: D | N87: 3 | O87: 3 | P87: 3 | T87: 3 | U87: 3 | V87: 3 | AB87: 3 | AC87: 3 | AG87: 3 | AH87: 3 | AI87: 3 | AJ87: 3 | AM87: 3 | AN87: 3 | AQ87: 3 | AR87: 3 | AS87: 3 | AV87: 3 | AW87: 9 | AZ87: 9 | BA87: 3 | BB87: 3 | BE87: 9 | BF87: 3 | BI87: 3 | BJ87: 3 | BK87: 3
A88: 80 | B88: OPEXMCH | C88: OPEXM | D88: CH | E88: CHANCADORA Y TRITURADORA | F88: CHANCADORA SECUNDARIA SANDVIK CONE CRUSHER CH430 | G88: CAMBIO DE 4428870 BOTTOM SHELL LINERS KIT PARENT NO | H88: 2 | I88: Hra | J88: 285 | K88: DIA | L88: C | N88: 2 | O88: 2 | P88: 2 | T88: 2 | U88: 2 | V88: 2 | AB88: 2 | AC88: 2 | AG88: 2 | AH88: 2 | AI88: 2 | AJ88: 2 | AM88: 2 | AN88: 2 | AQ88: 2 | AR88: 2 | AS88: 2 | AV88: 2 | AW88: 6 | AZ88: 6 | BA88: 2 | BB88: 2 | BE88: 6 | BF88: 2 | BI88: 2 | BJ88: 2 | BK88: 2
A89: 81 | B89: OPEXMCH | C89: OPEXM | D89: CH | E89: CHANCADORA Y TRITURADORA | F89: CHANCADORA SECUNDARIA SANDVIK CONE CRUSHER CH430 | G89: CAMBIO DE 442993601 PINION SHAFT | H89: 6 | I89: Hra | J89: 1140 | K89: DIA | L89: D | N89: 6 | O89: 6 | P89: 6 | T89: 6 | U89: 6 | V89: 6 | AB89: 6 | AC89: 6 | AG89: 6 | AH89: 6 | AI89: 6 | AJ89: 6 | AM89: 6 | AN89: 6 | AQ89: 6 | AR89: 6 | AS89: 6 | AV89: 6 | AW89: 18 | AZ89: 18 | BA89: 6 | BB89: 6 | BE89: 18 | BF89: 6 | BI89: 6 | BJ89: 6 | BK89: 6
A90: 82 | B90: OPEXMCH | C90: OPEXM | D90: CH | E90: CHANCADORA Y TRITURADORA | F90: CHANCADORA SECUNDARIA SANDVIK CONE CRUSHER CH430 | G90: CAMBIO DE 4524188001 ECCENTRIC WEARING PLATE | H90: 3 | I90: Hra | J90: 1140 | K90: DIA | L90: D | N90: 3 | O90: 3 | P90: 3 | T90: 3 | U90: 3 | V90: 3 | AB90: 3 | AC90: 3 | AG90: 3 | AH90: 3 | AI90: 3 | AJ90: 3 | AM90: 3 | AN90: 3 | AQ90: 3 | AR90: 3 | AS90: 3 | AV90: 3 | AW90: 9 | AZ90: 9 | BA90: 3 | BB90: 3 | BE90: 9 | BF90: 3 | BI90: 3 | BJ90: 3 | BK90: 3
A91: 83 | B91: OPEXMCH | C91: OPEXM | D91: CH | E91: CHANCADORA Y TRITURADORA | F91: CHANCADORA SECUNDARIA SANDVIK CONE CRUSHER CH430 | G91: CAMBIO DE 4524190001 BOTTOM SHELL BUSHING | H91: 4 | I91: Hra | J91: 1140 | K91: DIA | L91: C | N91: 4 | O91: 4 | P91: 4 | T91: 4 | U91: 4 | V91: 4 | AB91: 4 | AC91: 4 | AG91: 4 | AH91: 4 | AI91: 4 | AJ91: 4 | AM91: 4 | AN91: 4 | AQ91: 4 | AR91: 4 | AS91: 4 | AV91: 4 | AW91: 12 | AZ91: 12 | BA91: 4 | BB91: 4 | BE91: 12 | BF91: 4 | BI91: 4 | BJ91: 4 | BK91: 4
A92: 84 | B92: OPEXMCH | C92: OPEXM | D92: CH | E92: CHANCADORA Y TRITURADORA | F92: CHANCADORA SECUNDARIA SANDVIK CONE CRUSHER CH430 | G92: CAMBIO DE 4524191001 ECCENTRIC BUSCHING THROW 16+19+22 | H92: 7 | I92: Hra | J92: 1140 | K92: DIA | L92: C | N92: 7 | O92: 7 | P92: 7 | T92: 7 | U92: 7 | V92: 7 | AB92: 7 | AC92: 7 | AG92: 7 | AH92: 7 | AI92: 7 | AJ92: 7 | AM92: 7 | AN92: 7 | AQ92: 7 | AR92: 7 | AS92: 7 | AV92: 7 | AW92: 21 | AZ92: 21 | BA92: 7 | BB92: 7 | BE92: 21 | BF92: 7 | BI92: 7 | BJ92: 7 | BK92: 7
A93: 85 | B93: OPEXMCH | C93: OPEXM | D93: CH | E93: CHANCADORA Y TRITURADORA | F93: CHANCADORA SECUNDARIA SANDVIK CONE CRUSHER CH430 | G93: CAMBIO DE 4524193001 ECCENTRIC BUSHING THROW 29+32+34+36 | H93: 7 | I93: Hra | J93: 1140 | K93: DIA | L93: D | N93: 7 | O93: 7 | P93: 7 | T93: 7 | U93: 7 | V93: 7 | AB93: 7 | AC93: 7 | AG93: 7 | AH93: 7 | AI93: 7 | AJ93: 7 | AM93: 7 | AN93: 7 | AQ93: 7 | AR93: 7 | AS93: 7 | AV93: 7 | AW93: 21 | AZ93: 21 | BA93: 7 | BB93: 7 | BE93: 21 | BF93: 7 | BI93: 7 | BJ93: 7 | BK93: 7
A94: 86 | B94: OPEXMCH | C94: OPEXM | D94: CH | E94: CHANCADORA Y TRITURADORA | F94: CHANCADORA SECUNDARIA SANDVIK CONE CRUSHER CH430 | G94: CAMBIO DE 4525542901 FILTER KIT CH/CS420/CS430 | H94: 1.5 | I94: Hra | J94: 71.25 | K94: DIA | L94: D | N94: 1.5 | O94: 1.5 | P94: 1.5 | T94: 1.5 | U94: 1.5 | V94: 1.5 | AB94: 1.5 | AC94: 1.5 | AG94: 1.5 | AH94: 1.5 | AI94: 1.5 | AJ94: 1.5 | AM94: 1.5 | AN94: 1.5 | AQ94: 1.5 | AR94: 1.5 | AS94: 1.5 | AV94: 1.5 | AW94: 4.5 | AZ94: 4.5 | BA94: 1.5 | BB94: 1.5 | BE94: 4.5 | BF94: 1.5 | BI94: 1.5 | BJ94: 1.5 | BK94: 1.5
A95: 87 | B95: OPEXMCH | C95: OPEXM | D95: CH | E95: CHANCADORA Y TRITURADORA | F95: CHANCADORA SECUNDARIA SANDVIK CONE CRUSHER CH430 | G95: CAMBIO DE 4525574901 EA REPAIR KIT PINION SHAFT HOUSING | H95: 6 | I95: Hra | J95: 1140 | K95: DIA | L95: C | N95: 6 | O95: 6 | P95: 6 | T95: 6 | U95: 6 | V95: 6 | AB95: 6 | AC95: 6 | AG95: 6 | AH95: 6 | AI95: 6 | AJ95: 6 | AM95: 6 | AN95: 6 | AQ95: 6 | AR95: 6 | AS95: 6 | AV95: 6 | AW95: 18 | AZ95: 18 | BA95: 6 | BB95: 6 | BE95: 18 | BF95: 6 | BI95: 6 | BJ95: 6 | BK95: 6
A96: 88 | B96: OPEXMCH | C96: OPEXM | D96: CH | E96: CHANCADORA Y TRITURADORA | F96: CHANCADORA SECUNDARIA SANDVIK CONE CRUSHER CH430 | G96: CAMBIO DE 4525777901 BOTTOMSHELL ARM LINER KIT CH / CS 430 | H96: 5.5 | I96: Hra | J96: 285 | K96: DIA | L96: C | N96: 5.5 | O96: 5.5 | P96: 5.5 | T96: 5.5 | U96: 5.5 | V96: 5.5 | AB96: 5.5 | AC96: 5.5 | AG96: 5.5 | AH96: 5.5 | AI96: 5.5 | AJ96: 5.5 | AM96: 5.5 | AN96: 5.5 | AQ96: 5.5 | AR96: 5.5 | AS96: 5.5 | AV96: 5.5 | AW96: 16.5 | AZ96: 16.5 | BA96: 5.5 | BB96: 5.5 | BE96: 16.5 | BF96: 5.5 | BI96: 5.5 | BJ96: 5.5 | BK96: 5.5
A97: 89 | B97: OPEXMCH | C97: OPEXM | D97: CH | E97: CHANCADORA Y TRITURADORA | F97: CHANCADORA SECUNDARIA SANDVIK CONE CRUSHER CH430 | G97: CAMBIO DE 4525791901 FASTENER KIT CONCAVE CH430 | H97: 3 | I97: Hra | J97: 570 | K97: DIA | L97: D | N97: 3 | O97: 3 | P97: 3 | T97: 3 | U97: 3 | V97: 3 | AB97: 3 | AC97: 3 | AG97: 3 | AH97: 3 | AI97: 3 | AJ97: 3 | AM97: 3 | AN97: 3 | AQ97: 3 | AR97: 3 | AS97: 3 | AV97: 3 | AW97: 9 | AZ97: 9 | BA97: 3 | BB97: 3 | BE97: 9 | BF97: 3 | BI97: 3 | BJ97: 3 | BK97: 3
A98: 90 | B98: OPEXMCH | C98: OPEXM | D98: CH | E98: CHANCADORA Y TRITURADORA | F98: CHANCADORA SECUNDARIA SANDVIK CONE CRUSHER CH430 | G98: CAMBIO DE 4525797901 LOCATING BAR KIT CH/ CS430 | H98: 3.5 | I98: Hra | J98: 1140 | K98: DIA | L98: C | N98: 3.5 | O98: 3.5 | P98: 3.5 | T98: 3.5 | U98: 3.5 | V98: 3.5 | AB98: 3.5 | AC98: 3.5 | AG98: 3.5 | AH98: 3.5 | AI98: 3.5 | AJ98: 3.5 | AM98: 3.5 | AN98: 3.5 | AQ98: 3.5 | AR98: 3.5 | AS98: 3.5 | AV98: 3.5 | AW98: 10.5 | AZ98: 10.5 | BA98: 3.5 | BB98: 3.5 | BE98: 10.5 | BF98: 3.5 | BI98: 3.5 | BJ98: 3.5 | BK98: 3.5
A99: 91 | B99: OPEXMCH | C99: OPEXM | D99: CH | E99: CHANCADORA Y TRITURADORA | F99: CHANCADORA SECUNDARIA SANDVIK CONE CRUSHER CH430 | G99: CAMBIO DE 873.0833-00 O-RING 379, 3 X 5, 7 SMS 1586 | H99: 6 | I99: Hra | J99: 1140 | K99: DIA | L99: C | N99: 6 | O99: 6 | P99: 6 | T99: 6 | U99: 6 | V99: 6 | AB99: 6 | AC99: 6 | AG99: 6 | AH99: 6 | AI99: 6 | AJ99: 6 | AM99: 6 | AN99: 6 | AQ99: 6 | AR99: 6 | AS99: 6 | AV99: 6 | AW99: 18 | AZ99: 18 | BA99: 6 | BB99: 6 | BE99: 18 | BF99: 6 | BI99: 6 | BJ99: 6 | BK99: 6
A100: 92 | B100: OPEXMCH | C100: OPEXM | D100: CH | E100: CHANCADORA Y TRITURADORA | F100: CHANCADORA SECUNDARIA SANDVIK CONE CRUSHER CH430 | G100: CAMBIO DE 873111200 SEALING COMPOUND ( CHANCAD. SANDV) 2440450 | H100: 2.5 | I100: Hra | J100: 142.5 | K100: DIA | L100: C | N100: 2.5 | O100: 2.5 | P100: 2.5 | T100: 2.5 | U100: 2.5 | V100: 2.5 | AB100: 2.5 | AC100: 2.5 | AG100: 2.5 | AH100: 2.5 | AI100: 2.5 | AJ100: 2.5 | AM100: 2.5 | AN100: 2.5 | AQ100: 2.5 | AR100: 2.5 | AS100: 2.5 | AV100: 2.5 | AW100: 7.5 | AZ100: 7.5 | BA100: 2.5 | BB100: 2.5 | BE100: 7.5 | BF100: 2.5 | BI100: 2.5 | BJ100: 2.5 | BK100: 2.5
A101: 93 | B101: OPEXMCH | C101: OPEXM | D101: CH | E101: CHANCADORA Y TRITURADORA | F101: CHANCADORA SECUNDARIA SANDVIK CONE CRUSHER CH430 | G101: CAMBIO DE 906-0140-00 LUBRICATING OIL PUMP | H101: 6.5 | I101: Hra | J101: 570 | K101: DIA | L101: C | N101: 6.5 | O101: 6.5 | P101: 6.5 | T101: 6.5 | U101: 6.5 | V101: 6.5 | AB101: 6.5 | AC101: 6.5 | AG101: 6.5 | AH101: 6.5 | AI101: 6.5 | AJ101: 6.5 | AM101: 6.5 | AN101: 6.5 | AQ101: 6.5 | AR101: 6.5 | AS101: 6.5 | AV101: 6.5 | AW101: 19.5 | AZ101: 19.5 | BA101: 6.5 | BB101: 6.5 | BE101: 19.5 | BF101: 6.5 | BI101: 6.5 | BJ101: 6.5 | BK101: 6.5
A102: 94 | B102: OPEXMCH | C102: OPEXM | D102: CH | E102: CHANCADORA Y TRITURADORA | F102: CHANCADORA SECUNDARIA SANDVIK CONE CRUSHER CH430 | G102: CAMBIO DE 912.0139-00 FILTER CARTRIDGE | H102: 1.5 | I102: Hra | J102: 142.5 | K102: DIA | L102: D | N102: 1.5 | O102: 1.5 | P102: 1.5 | T102: 1.5 | U102: 1.5 | V102: 1.5 | AB102: 1.5 | AC102: 1.5 | AG102: 1.5 | AH102: 1.5 | AI102: 1.5 | AJ102: 1.5 | AM102: 1.5 | AN102: 1.5 | AQ102: 1.5 | AR102: 1.5 | AS102: 1.5 | AV102: 1.5 | AW102: 4.5 | AZ102: 4.5 | BA102: 1.5 | BB102: 1.5 | BE102: 4.5 | BF102: 1.5 | BI102: 1.5 | BJ102: 1.5 | BK102: 1.5
A103: 95 | B103: OPEXMCH | C103: OPEXM | D103: CH | E103: CHANCADORA Y TRITURADORA | F103: CHANCADORA SECUNDARIA SANDVIK CONE CRUSHER CH430 | G103: CAMBIO DE 912015500 FILTER CARTRIDGE | H103: 1.5 | I103: Hra | J103: 142.5 | K103: DIA | L103: D | N103: 1.5 | O103: 1.5 | P103: 1.5 | T103: 1.5 | U103: 1.5 | V103: 1.5 | AB103: 1.5 | AC103: 1.5 | AG103: 1.5 | AH103: 1.5 | AI103: 1.5 | AJ103: 1.5 | AM103: 1.5 | AN103: 1.5 | AQ103: 1.5 | AR103: 1.5 | AS103: 1.5 | AV103: 1.5 | AW103: 4.5 | AZ103: 4.5 | BA103: 1.5 | BB103: 1.5 | BE103: 4.5 | BF103: 1.5 | BI103: 1.5 | BJ103: 1.5 | BK103: 1.5
A104: 96 | B104: OPEXMCH | C104: OPEXM | D104: CH | E104: CHANCADORA Y TRITURADORA | F104: CHANCADORA SECUNDARIA SANDVIK CONE CRUSHER CH430 | G104: CAMBIO DE ARM SHIELD | H104: 5.5 | I104: Hra | J104: 285 | K104: DIA | L104: D | N104: 5.5 | O104: 5.5 | P104: 5.5 | T104: 5.5 | U104: 5.5 | V104: 5.5 | AB104: 5.5 | AC104: 5.5 | AG104: 5.5 | AH104: 5.5 | AI104: 5.5 | AJ104: 5.5 | AM104: 5.5 | AN104: 5.5 | AQ104: 5.5 | AR104: 5.5 | AS104: 5.5 | AV104: 5.5 | AW104: 16.5 | AZ104: 16.5 | BA104: 5.5 | BB104: 5.5 | BE104: 16.5 | BF104: 5.5 | BI104: 5.5 | BJ104: 5.5 | BK104: 5.5
A105: 97 | B105: OPEXMCH | C105: OPEXM | D105: CH | E105: CHANCADORA Y TRITURADORA | F105: CHANCADORA SECUNDARIA SANDVIK CONE CRUSHER CH430 | G105: CAMBIO DE DOWEL PIN | H105: 4 | I105: Hra | J105: 570 | K105: DIA | L105: C | N105: 4 | O105: 4 | P105: 4 | T105: 4 | U105: 4 | V105: 4 | AB105: 4 | AC105: 4 | AG105: 4 | AH105: 4 | AI105: 4 | AJ105: 4 | AM105: 4 | AN105: 4 | AQ105: 4 | AR105: 4 | AS105: 4 | AV105: 4 | AW105: 12 | AZ105: 12 | BA105: 4 | BB105: 4 | BE105: 12 | BF105: 4 | BI105: 4 | BJ105: 4 | BK105: 4
A106: 98 | B106: OPEXMCH | C106: OPEXM | D106: CH | E106: CHANCADORA Y TRITURADORA | F106: CHANCADORA SECUNDARIA SANDVIK CONE CRUSHER CH430 | G106: CAMBIO DE DUST SEAL RETAINING RING | H106: 3 | I106: Hra | J106: 1140 | K106: DIA | L106: C | N106: 3 | O106: 3 | P106: 3 | T106: 3 | U106: 3 | V106: 3 | AB106: 3 | AC106: 3 | AG106: 3 | AH106: 3 | AI106: 3 | AJ106: 3 | AM106: 3 | AN106: 3 | AQ106: 3 | AR106: 3 | AS106: 3 | AV106: 3 | AW106: 9 | AZ106: 9 | BA106: 3 | BB106: 3 | BE106: 9 | BF106: 3 | BI106: 3 | BJ106: 3 | BK106: 3
A107: 99 | B107: OPEXMCH | C107: OPEXM | D107: CH | E107: CHANCADORA Y TRITURADORA | F107: CHANCADORA SECUNDARIA SANDVIK CONE CRUSHER CH430 | G107: CAMBIO DE HYDROSET PUMP ASS. | H107: 6 | I107: Hra | J107: 570 | K107: DIA | L107: C | N107: 6 | O107: 6 | P107: 6 | T107: 6 | U107: 6 | V107: 6 | AB107: 6 | AC107: 6 | AG107: 6 | AH107: 6 | AI107: 6 | AJ107: 6 | AM107: 6 | AN107: 6 | AQ107: 6 | AR107: 6 | AS107: 6 | AV107: 6 | AW107: 18 | AZ107: 18 | BA107: 6 | BB107: 6 | BE107: 18 | BF107: 6 | BI107: 6 | BJ107: 6 | BK107: 6
A108: 100 | B108: OPEXMCH | C108: OPEXM | D108: CH | E108: CHANCADORA Y TRITURADORA | F108: CHANCADORA SECUNDARIA SANDVIK CONE CRUSHER CH430 | G108: CAMBIO DE INNER HEAD NUT | H108: 6 | I108: Hra | J108: 1140 | K108: DIA | L108: C | N108: 6 | O108: 6 | P108: 6 | T108: 6 | U108: 6 | V108: 6 | AB108: 6 | AC108: 6 | AG108: 6 | AH108: 6 | AI108: 6 | AJ108: 6 | AM108: 6 | AN108: 6 | AQ108: 6 | AR108: 6 | AS108: 6 | AV108: 6 | AW108: 18 | AZ108: 18 | BA108: 6 | BB108: 6 | BE108: 18 | BF108: 6 | BI108: 6 | BJ108: 6 | BK108: 6
A109: 101 | B109: OPEXMCH | C109: OPEXM | D109: CH | E109: CHANCADORA Y TRITURADORA | F109: CHANCADORA SECUNDARIA SANDVIK CONE CRUSHER CH430 | G109: CAMBIO DE LUBRICATION PUMP ASS. | H109: 6.5 | I109: Hra | J109: 570 | K109: DIA | L109: C | N109: 6.5 | O109: 6.5 | P109: 6.5 | T109: 6.5 | U109: 6.5 | V109: 6.5 | AB109: 6.5 | AC109: 6.5 | AG109: 6.5 | AH109: 6.5 | AI109: 6.5 | AJ109: 6.5 | AM109: 6.5 | AN109: 6.5 | AQ109: 6.5 | AR109: 6.5 | AS109: 6.5 | AV109: 6.5 | AW109: 19.5 | AZ109: 19.5 | BA109: 6.5 | BB109: 6.5 | BE109: 19.5 | BF109: 6.5 | BI109: 6.5 | BJ109: 6.5 | BK109: 6.5
A110: 102 | B110: OPEXMCH | C110: OPEXM | D110: CH | E110: CHANCADORA Y TRITURADORA | F110: CHANCADORA SECUNDARIA SANDVIK CONE CRUSHER CH430 | G110: CAMBIO DE MAINSHAFT ASS.EXCL. MANTLE | H110: 8 | I110: Hra | J110: 4560 | K110: DIA | L110: C | N110: 8 | O110: 8 | P110: 8 | T110: 8 | U110: 8 | V110: 8 | AB110: 8 | AC110: 8 | AG110: 8 | AH110: 8 | AI110: 8 | AJ110: 8 | AM110: 8 | AN110: 8 | AQ110: 8 | AR110: 8 | AS110: 8 | AV110: 8 | AW110: 24 | AZ110: 24 | BA110: 8 | BB110: 8 | BE110: 24 | BF110: 8 | BI110: 8 | BJ110: 8 | BK110: 8
A111: 103 | B111: OPEXMCH | C111: OPEXM | D111: CH | E111: CHANCADORA Y TRITURADORA | F111: CHANCADORA SECUNDARIA SANDVIK CONE CRUSHER CH430 | G111: CAMBIO DE PINIONSHAFT HOUSING ASS. EXCL.PULLEY | H111: 8 | I111: Hra | J111: 4560 | K111: DIA | L111: C | N111: 8 | O111: 8 | P111: 8 | T111: 8 | U111: 8 | V111: 8 | AB111: 8 | AC111: 8 | AG111: 8 | AH111: 8 | AI111: 8 | AJ111: 8 | AM111: 8 | AN111: 8 | AQ111: 8 | AR111: 8 | AS111: 8 | AV111: 8 | AW111: 24 | AZ111: 24 | BA111: 8 | BB111: 8 | BE111: 24 | BF111: 8 | BI111: 8 | BJ111: 8 | BK111: 8
A112: 104 | B112: OPEXMCH | C112: OPEXM | D112: CH | E112: CHANCADORA Y TRITURADORA | F112: CHANCADORA SECUNDARIA SANDVIK CONE CRUSHER CH430 | G112: CAMBIO DE RODAMIENTOS DELANTERO | H112: 5 | I112: Hra | J112: 250 | K112: DIA | L112: C | N112: 5 | O112: 5 | P112: 5 | T112: 5 | U112: 5 | V112: 5 | AB112: 5 | AC112: 5 | AG112: 5 | AH112: 5 | AI112: 5 | AJ112: 5 | AM112: 5 | AN112: 5 | AQ112: 5 | AR112: 5 | AS112: 5 | AV112: 5 | AW112: 15 | AZ112: 15 | BA112: 5 | BB112: 5 | BE112: 15 | BF112: 5 | BI112: 5 | BJ112: 5 | BK112: 5
A113: 105 | B113: OPEXMCH | C113: OPEXM | D113: CH | E113: CHANCADORA Y TRITURADORA | F113: CHANCADORA SECUNDARIA SANDVIK CONE CRUSHER CH430 | G113: CAMBIO DE RODAMIENTOS POSTERIOR | H113: 5 | I113: Hra | J113: 250 | K113: DIA | L113: C | N113: 5 | O113: 5 | P113: 5 | T113: 5 | U113: 5 | V113: 5 | AB113: 5 | AC113: 5 | AG113: 5 | AH113: 5 | AI113: 5 | AJ113: 5 | AM113: 5 | AN113: 5 | AQ113: 5 | AR113: 5 | AS113: 5 | AV113: 5 | AW113: 15 | AZ113: 15 | BA113: 5 | BB113: 5 | BE113: 15 | BF113: 5 | BI113: 5 | BJ113: 5 | BK113: 5
A114: 106 | B114: OPEXMCH | C114: OPEXM | D114: CH | E114: CHANCADORA Y TRITURADORA | F114: CHANCADORA SECUNDARIA SANDVIK CONE CRUSHER CH430 | G114: CAMBIO DE SPIDER BUSHING | H114: 3.5 | I114: Hra | J114: 570 | K114: DIA | L114: C | N114: 3.5 | O114: 3.5 | P114: 3.5 | T114: 3.5 | U114: 3.5 | V114: 3.5 | AB114: 3.5 | AC114: 3.5 | AG114: 3.5 | AH114: 3.5 | AI114: 3.5 | AJ114: 3.5 | AM114: 3.5 | AN114: 3.5 | AQ114: 3.5 | AR114: 3.5 | AS114: 3.5 | AV114: 3.5 | AW114: 10.5 | AZ114: 10.5 | BA114: 3.5 | BB114: 3.5 | BE114: 10.5 | BF114: 3.5 | BI114: 3.5 | BJ114: 3.5 | BK114: 3.5
A115: 107 | B115: OPEXMCH | C115: OPEXM | D115: CH | E115: CHANCADORA Y TRITURADORA | F115: CHANCADORA SECUNDARIA SANDVIK CONE CRUSHER CH430 | G115: CAMBIO DE STEP BEARING SET | H115: 5.5 | I115: Hra | J115: 1140 | K115: DIA | L115: C | N115: 5.5 | O115: 5.5 | P115: 5.5 | T115: 5.5 | U115: 5.5 | V115: 5.5 | AB115: 5.5 | AC115: 5.5 | AG115: 5.5 | AH115: 5.5 | AI115: 5.5 | AJ115: 5.5 | AM115: 5.5 | AN115: 5.5 | AQ115: 5.5 | AR115: 5.5 | AS115: 5.5 | AV115: 5.5 | AW115: 16.5 | AZ115: 16.5 | BA115: 5.5 | BB115: 5.5 | BE115: 16.5 | BF115: 5.5 | BI115: 5.5 | BJ115: 5.5 | BK115: 5.5
A116: 108 | B116: OPEXMCH | C116: OPEXM | D116: CH | E116: CHANCADORA Y TRITURADORA | F116: CHANCADORA SECUNDARIA SANDVIK CONE CRUSHER CH430 | G116: CAMBIO DE TOP SHELL ASS. EXCL. CONCAVE | H116: 4 | I116: Hra | J116: 4560 | K116: DIA | L116: D | N116: 4 | O116: 4 | P116: 4 | T116: 4 | U116: 4 | V116: 4 | AB116: 4 | AC116: 4 | AG116: 4 | AH116: 4 | AI116: 4 | AJ116: 4 | AM116: 4 | AN116: 4 | AQ116: 4 | AR116: 4 | AS116: 4 | AV116: 4 | AW116: 12 | AZ116: 12 | BA116: 4 | BB116: 4 | BE116: 12 | BF116: 4 | BI116: 4 | BJ116: 4 | BK116: 4
A117: 109 | B117: OPEXMCH | C117: OPEXM | D117: CH | E117: CHANCADORA Y TRITURADORA | F117: CHANCADORA SECUNDARIA SANDVIK CONE CRUSHER CH430 | G117: ENGRASE DE EQUIPOS | H117: 2 | I117: Hra | J117: 71.25 | K117: DIA | L117: D | N117: 2 | O117: 2 | P117: 2 | T117: 2 | U117: 2 | V117: 2 | AB117: 2 | AC117: 2 | AG117: 2 | AH117: 2 | AI117: 2 | AJ117: 2 | AM117: 2 | AN117: 2 | AQ117: 2 | AR117: 2 | AS117: 2 | AV117: 2 | AW117: 6 | AZ117: 6 | BA117: 2 | BB117: 2 | BE117: 6 | BF117: 2 | BI117: 2 | BJ117: 2 | BK117: 2
A118: 110 | B118: OPEXMCH | C118: OPEXM | D118: CH | E118: CHANCADORA Y TRITURADORA | F118: CHANCADORA SECUNDARIA SANDVIK CONE CRUSHER CH430 | G118: LIMPIEZA DE ARROLLAMIENTO | H118: 5 | I118: Hra | J118: 62.5 | K118: DIA | L118: C | N118: 5 | O118: 5 | P118: 5 | T118: 5 | U118: 5 | V118: 5 | AB118: 5 | AC118: 5 | AG118: 5 | AH118: 5 | AI118: 5 | AJ118: 5 | AM118: 5 | AN118: 5 | AQ118: 5 | AR118: 5 | AS118: 5 | AV118: 5 | AW118: 15 | AZ118: 15 | BA118: 5 | BB118: 5 | BE118: 15 | BF118: 5 | BI118: 5 | BJ118: 5 | BK118: 5
A119: 111 | B119: OPEXMCH | C119: OPEXM | D119: CH | E119: CHANCADORA Y TRITURADORA | F119: CHANCADORA TERCIARIA SANDVIK H3800 | G119: CAMBIO DE 3090-1 ESPACIADOR DE CONTRA EJE | H119: 1.5 | I119: Hra | J119: 2280 | K119: DIA | L119: C | N119: 1.5 | O119: 1.5 | P119: 1.5 | T119: 1.5 | U119: 1.5 | V119: 1.5 | AB119: 1.5 | AC119: 1.5 | AG119: 1.5 | AH119: 1.5 | AI119: 1.5 | AJ119: 1.5 | AM119: 1.5 | AN119: 1.5 | AQ119: 1.5 | AR119: 1.5 | AS119: 1.5 | AV119: 1.5 | AW119: 4.5 | AZ119: 4.5 | BA119: 1.5 | BB119: 1.5 | BE119: 4.5 | BF119: 1.5 | BI119: 1.5 | BJ119: 1.5 | BK119: 1.5
A120: 112 | B120: OPEXMCH | C120: OPEXM | D120: CH | E120: CHANCADORA Y TRITURADORA | F120: CHANCADORA TERCIARIA SANDVIK H3800 | G120: CAMBIO DE 442 7984 01 ARM SHIELD | H120: 5.5 | I120: Hra | J120: 285 | K120: DIA | L120: C | N120: 5.5 | O120: 5.5 | P120: 5.5 | T120: 5.5 | U120: 5.5 | V120: 5.5 | AB120: 5.5 | AC120: 5.5 | AG120: 5.5 | AH120: 5.5 | AI120: 5.5 | AJ120: 5.5 | AM120: 5.5 | AN120: 5.5 | AQ120: 5.5 | AR120: 5.5 | AS120: 5.5 | AV120: 5.5 | AW120: 16.5 | AZ120: 16.5 | BA120: 5.5 | BB120: 5.5 | BE120: 16.5 | BF120: 5.5 | BI120: 5.5 | BJ120: 5.5 | BK120: 5.5
A121: 113 | B121: OPEXMCH | C121: OPEXM | D121: CH | E121: CHANCADORA Y TRITURADORA | F121: CHANCADORA TERCIARIA SANDVIK H3800 | G121: CAMBIO DE 442.8017-01 DUST SEAL RING | H121: 3.5 | I121: Hra | J121: 285 | K121: DIA | L121: C | N121: 3.5 | O121: 3.5 | P121: 3.5 | T121: 3.5 | U121: 3.5 | V121: 3.5 | AB121: 3.5 | AC121: 3.5 | AG121: 3.5 | AH121: 3.5 | AI121: 3.5 | AJ121: 3.5 | AM121: 3.5 | AN121: 3.5 | AQ121: 3.5 | AR121: 3.5 | AS121: 3.5 | AV121: 3.5 | AW121: 10.5 | AZ121: 10.5 | BA121: 3.5 | BB121: 3.5 | BE121: 10.5 | BF121: 3.5 | BI121: 3.5 | BJ121: 3.5 | BK121: 3.5
A122: 114 | B122: OPEXMCH | C122: OPEXM | D122: CH | E122: CHANCADORA Y TRITURADORA | F122: CHANCADORA TERCIARIA SANDVIK H3800 | G122: CAMBIO DE 442647001 SEAL RING (CHANCAD. SANDV) | H122: 2.5 | I122: Hra | J122: 142.5 | K122: DIA | L122: C | N122: 2.5 | O122: 2.5 | P122: 2.5 | T122: 2.5 | U122: 2.5 | V122: 2.5 | AB122: 2.5 | AC122: 2.5 | AG122: 2.5 | AH122: 2.5 | AI122: 2.5 | AJ122: 2.5 | AM122: 2.5 | AN122: 2.5 | AQ122: 2.5 | AR122: 2.5 | AS122: 2.5 | AV122: 2.5 | AW122: 7.5 | AZ122: 7.5 | BA122: 2.5 | BB122: 2.5 | BE122: 7.5 | BF122: 2.5 | BI122: 2.5 | BJ122: 2.5 | BK122: 2.5
A123: 115 | B123: OPEXMCH | C123: OPEXM | D123: CH | E123: CHANCADORA Y TRITURADORA | F123: CHANCADORA TERCIARIA SANDVIK H3800 | G123: CAMBIO DE 442647301 SPIDER BUSHING | H123: 12 | I123: Hra | J123: 285 | K123: DIA | L123: D | N123: 12 | O123: 12 | P123: 12 | T123: 12 | U123: 12 | V123: 12 | AB123: 12 | AC123: 12 | AG123: 12 | AH123: 12 | AI123: 12 | AJ123: 12 | AM123: 12 | AN123: 12 | AQ123: 12 | AR123: 12 | AS123: 12 | AV123: 12 | AW123: 36 | AZ123: 36 | BA123: 12 | BB123: 12 | BE123: 36 | BF123: 12 | BI123: 12 | BJ123: 12 | BK123: 12
A124: 116 | B124: OPEXMCH | C124: OPEXM | D124: CH | E124: CHANCADORA Y TRITURADORA | F124: CHANCADORA TERCIARIA SANDVIK H3800 | G124: CAMBIO DE 442719301 OIL SEAL REING (CHANCAD. SANDV) | H124: 3.5 | I124: Hra | J124: 285 | K124: DIA | L124: D | N124: 3.5 | O124: 3.5 | P124: 3.5 | T124: 3.5 | U124: 3.5 | V124: 3.5 | AB124: 3.5 | AC124: 3.5 | AG124: 3.5 | AH124: 3.5 | AI124: 3.5 | AJ124: 3.5 | AM124: 3.5 | AN124: 3.5 | AQ124: 3.5 | AR124: 3.5 | AS124: 3.5 | AV124: 3.5 | AW124: 10.5 | AZ124: 10.5 | BA124: 3.5 | BB124: 3.5 | BE124: 10.5 | BF124: 3.5 | BI124: 3.5 | BJ124: 3.5 | BK124: 3.5
A125: 117 | B125: OPEXMCH | C125: OPEXM | D125: CH | E125: CHANCADORA Y TRITURADORA | F125: CHANCADORA TERCIARIA SANDVIK H3800 | G125: CAMBIO DE 442789301 PISTON WEARING PL | H125: 6 | I125: Hra | J125: 285 | K125: DIA | L125: D | N125: 6 | O125: 6 | P125: 6 | T125: 6 | U125: 6 | V125: 6 | AB125: 6 | AC125: 6 | AG125: 6 | AH125: 6 | AI125: 6 | AJ125: 6 | AM125: 6 | AN125: 6 | AQ125: 6 | AR125: 6 | AS125: 6 | AV125: 6 | AW125: 18 | AZ125: 18 | BA125: 6 | BB125: 6 | BE125: 18 | BF125: 6 | BI125: 6 | BJ125: 6 | BK125: 6
A126: 118 | B126: OPEXMCH | C126: OPEXM | D126: CH | E126: CHANCADORA Y TRITURADORA | F126: CHANCADORA TERCIARIA SANDVIK H3800 | G126: CAMBIO DE 442789401 STEP WASHER | H126: 3.5 | I126: Hra | J126: 285 | K126: DIA | L126: C | N126: 3.5 | O126: 3.5 | P126: 3.5 | T126: 3.5 | U126: 3.5 | V126: 3.5 | AB126: 3.5 | AC126: 3.5 | AG126: 3.5 | AH126: 3.5 | AI126: 3.5 | AJ126: 3.5 | AM126: 3.5 | AN126: 3.5 | AQ126: 3.5 | AR126: 3.5 | AS126: 3.5 | AV126: 3.5 | AW126: 10.5 | AZ126: 10.5 | BA126: 3.5 | BB126: 3.5 | BE126: 10.5 | BF126: 3.5 | BI126: 3.5 | BJ126: 3.5 | BK126: 3.5
A127: 119 | B127: OPEXMCH | C127: OPEXM | D127: CH | E127: CHANCADORA Y TRITURADORA | F127: CHANCADORA TERCIARIA SANDVIK H3800 | G127: CAMBIO DE 442789501 MAIN SHAFT STEP | H127: 6 | I127: Hra | J127: 285 | K127: DIA | L127: C | N127: 6 | O127: 6 | P127: 6 | T127: 6 | U127: 6 | V127: 6 | AB127: 6 | AC127: 6 | AG127: 6 | AH127: 6 | AI127: 6 | AJ127: 6 | AM127: 6 | AN127: 6 | AQ127: 6 | AR127: 6 | AS127: 6 | AV127: 6 | AW127: 18 | AZ127: 18 | BA127: 6 | BB127: 6 | BE127: 18 | BF127: 6 | BI127: 6 | BJ127: 6 | BK127: 6
A128: 120 | B128: OPEXMCH | C128: OPEXM | D128: CH | E128: CHANCADORA Y TRITURADORA | F128: CHANCADORA TERCIARIA SANDVIK H3800 | G128: CAMBIO DE 442791101 BURNING RING | H128: 2 | I128: Hra | J128: 142.5 | K128: DIA | L128: C | N128: 2 | O128: 2 | P128: 2 | T128: 2 | U128: 2 | V128: 2 | AB128: 2 | AC128: 2 | AG128: 2 | AH128: 2 | AI128: 2 | AJ128: 2 | AM128: 2 | AN128: 2 | AQ128: 2 | AR128: 2 | AS128: 2 | AV128: 2 | AW128: 6 | AZ128: 6 | BA128: 2 | BB128: 2 | BE128: 6 | BF128: 2 | BI128: 2 | BJ128: 2 | BK128: 2
A129: 121 | B129: OPEXMCH | C129: OPEXM | D129: CH | E129: CHANCADORA Y TRITURADORA | F129: CHANCADORA TERCIARIA SANDVIK H3800 | G129: CAMBIO DE 442791200 HEAD NUT WITH BUR | H129: 3.5 | I129: Hra | J129: 570 | K129: DIA | L129: F | N129: 3.5 | O129: 3.5 | P129: 3.5 | T129: 3.5 | U129: 3.5 | V129: 3.5 | AB129: 3.5 | AC129: 3.5 | AG129: 3.5 | AH129: 3.5 | AI129: 3.5 | AJ129: 3.5 | AM129: 3.5 | AN129: 3.5 | AQ129: 3.5 | AR129: 3.5 | AS129: 3.5 | AV129: 3.5 | AW129: 10.5 | AZ129: 10.5 | BA129: 3.5 | BB129: 3.5 | BE129: 10.5 | BF129: 3.5 | BI129: 3.5 | BJ129: 3.5 | BK129: 3.5
A130: 122 | B130: OPEXMCH | C130: OPEXM | D130: CH | E130: CHANCADORA Y TRITURADORA | F130: CHANCADORA TERCIARIA SANDVIK H3800 | G130: CAMBIO DE 442791301 MAIN SHAFT SLEEVE | H130: 6 | I130: Hra | J130: 285 | K130: DIA | L130: C | N130: 6 | O130: 6 | P130: 6 | T130: 6 | U130: 6 | V130: 6 | AB130: 6 | AC130: 6 | AG130: 6 | AH130: 6 | AI130: 6 | AJ130: 6 | AM130: 6 | AN130: 6 | AQ130: 6 | AR130: 6 | AS130: 6 | AV130: 6 | AW130: 18 | AZ130: 18 | BA130: 6 | BB130: 6 | BE130: 18 | BF130: 6 | BI130: 6 | BJ130: 6 | BK130: 6
A131: 123 | B131: OPEXMCH | C131: OPEXM | D131: CH | E131: CHANCADORA Y TRITURADORA | F131: CHANCADORA TERCIARIA SANDVIK H3800 | G131: CAMBIO DE 442791401 PROTECTION OF WEARING DOWN FOR ARM | H131: 4.5 | I131: Hra | J131: 570 | K131: DIA | L131: D | N131: 4.5 | O131: 4.5 | P131: 4.5 | T131: 4.5 | U131: 4.5 | V131: 4.5 | AB131: 4.5 | AC131: 4.5 | AG131: 4.5 | AH131: 4.5 | AI131: 4.5 | AJ131: 4.5 | AM131: 4.5 | AN131: 4.5 | AQ131: 4.5 | AR131: 4.5 | AS131: 4.5 | AV131: 4.5 | AW131: 13.5 | AZ131: 13.5 | BA131: 4.5 | BB131: 4.5 | BE131: 13.5 | BF131: 4.5 | BI131: 4.5 | BJ131: 4.5 | BK131: 4.5
A132: 124 | B132: OPEXMCH | C132: OPEXM | D132: CH | E132: CHANCADORA Y TRITURADORA | F132: CHANCADORA TERCIARIA SANDVIK H3800 | G132: CAMBIO DE 442791501 PROTECTION OF WEARING DWN IN BOX OF NECKLACE | H132: 4.5 | I132: Hra | J132: 570 | K132: DIA | L132: C | N132: 4.5 | O132: 4.5 | P132: 4.5 | T132: 4.5 | U132: 4.5 | V132: 4.5 | AB132: 4.5 | AC132: 4.5 | AG132: 4.5 | AH132: 4.5 | AI132: 4.5 | AJ132: 4.5 | AM132: 4.5 | AN132: 4.5 | AQ132: 4.5 | AR132: 4.5 | AS132: 4.5 | AV132: 4.5 | AW132: 13.5 | AZ132: 13.5 | BA132: 4.5 | BB132: 4.5 | BE132: 13.5 | BF132: 4.5 | BI132: 4.5 | BJ132: 4.5 | BK132: 4.5
A133: 125 | B133: OPEXMCH | C133: OPEXM | D133: CH | E133: CHANCADORA Y TRITURADORA | F133: CHANCADORA TERCIARIA SANDVIK H3800 | G133: CAMBIO DE 4427925-01 EXCENTRIC BUSHING 29+32+34+36 | H133: 6 | I133: Hra | J133: 1140 | K133: DIA | L133: C | N133: 6 | O133: 6 | P133: 6 | T133: 6 | U133: 6 | V133: 6 | AB133: 6 | AC133: 6 | AG133: 6 | AH133: 6 | AI133: 6 | AJ133: 6 | AM133: 6 | AN133: 6 | AQ133: 6 | AR133: 6 | AS133: 6 | AV133: 6 | AW133: 18 | AZ133: 18 | BA133: 6 | BB133: 6 | BE133: 18 | BF133: 6 | BI133: 6 | BJ133: 6 | BK133: 6
A134: 126 | B134: OPEXMCH | C134: OPEXM | D134: CH | E134: CHANCADORA Y TRITURADORA | F134: CHANCADORA TERCIARIA SANDVIK H3800 | G134: CAMBIO DE 442792901 DUST COLLAR | H134: 4 | I134: Hra | J134: 1140 | K134: DIA | L134: C | N134: 4 | O134: 4 | P134: 4 | T134: 4 | U134: 4 | V134: 4 | AB134: 4 | AC134: 4 | AG134: 4 | AH134: 4 | AI134: 4 | AJ134: 4 | AM134: 4 | AN134: 4 | AQ134: 4 | AR134: 4 | AS134: 4 | AV134: 4 | AW134: 12 | AZ134: 12 | BA134: 4 | BB134: 4 | BE134: 12 | BF134: 4 | BI134: 4 | BJ134: 4 | BK134: 4
A135: 127 | B135: OPEXMCH | C135: OPEXM | D135: CH | E135: CHANCADORA Y TRITURADORA | F135: CHANCADORA TERCIARIA SANDVIK H3800 | G135: CAMBIO DE 442793401 GASKET | H135: 3 | I135: Hra | J135: 570 | K135: DIA | L135: C | N135: 3 | O135: 3 | P135: 3 | T135: 3 | U135: 3 | V135: 3 | AB135: 3 | AC135: 3 | AG135: 3 | AH135: 3 | AI135: 3 | AJ135: 3 | AM135: 3 | AN135: 3 | AQ135: 3 | AR135: 3 | AS135: 3 | AV135: 3 | AW135: 9 | AZ135: 9 | BA135: 3 | BB135: 3 | BE135: 9 | BF135: 3 | BI135: 3 | BJ135: 3 | BK135: 3
A136: 128 | B136: OPEXMCH | C136: OPEXM | D136: CH | E136: CHANCADORA Y TRITURADORA | F136: CHANCADORA TERCIARIA SANDVIK H3800 | G136: CAMBIO DE 4427935-01 BOTTOM SHELL BUSHING | H136: 4 | I136: Hra | J136: 1140 | K136: DIA | L136: C | N136: 4 | O136: 4 | P136: 4 | T136: 4 | U136: 4 | V136: 4 | AB136: 4 | AC136: 4 | AG136: 4 | AH136: 4 | AI136: 4 | AJ136: 4 | AM136: 4 | AN136: 4 | AQ136: 4 | AR136: 4 | AS136: 4 | AV136: 4 | AW136: 12 | AZ136: 12 | BA136: 4 | BB136: 4 | BE136: 12 | BF136: 4 | BI136: 4 | BJ136: 4 | BK136: 4
A137: 129 | B137: =CONCATENATE(C137,D137) -> OPEXMCH | C137: OPEXM | D137: CH | E137: CHANCADORA Y TRITURADORA | F137: CHANCADORA TERCIARIA SANDVIK H3800 | G137: CAMBIO DE 442797601 SPIDER CAP | H137: 12 | I137: Hra | J137: 285 | K137: DIA | L137: C | N137: 12 | O137: 12 | P137: 12 | T137: 12 | U137: 12 | V137: 12 | AB137: 12 | AC137: 12 | AG137: 12 | AH137: 12 | AI137: 12 | AJ137: 12 | AM137: 12 | AN137: 12 | AQ137: 12 | AR137: 12 | AS137: 12 | AV137: 12 | AW137: 36 | AZ137: 36 | BA137: 12 | BB137: 12 | BE137: 36 | BF137: 12 | BI137: 12 | BJ137: 12 | BK137: 12
A138: =+A137+1 -> 130 | B138: OPEXMCH | C138: OPEXM | D138: CH | E138: CHANCADORA Y TRITURADORA | F138: CHANCADORA TERCIARIA SANDVIK H3800 | G138: CAMBIO DE 442798600 FEED HOPPER CONE LH | H138: 4 | I138: Hra | J138: 570 | K138: DIA | L138: D | N138: =+H138 -> 4 | O138: =H138 -> 4 | P138: =H138 -> 4 | T138: =H138 -> 4 | U138: =H138 -> 4 | V138: =H138 -> 4 | AB138: =H138 -> 4 | AC138: =H138 -> 4 | AG138: =H138 -> 4 | AH138: =H138 -> 4 | AI138: =H138 -> 4 | AJ138: 4 | AM138: 4 | AN138: 4 | AQ138: 4 | AR138: 4 | AS138: 4 | AV138: 4 | AW138: 12 | AZ138: 12 | BA138: 4 | BB138: 4 | BE138: 12 | BF138: 4 | BI138: 4 | BJ138: 4 | BK138: 4
A139: 131 | B139: OPEXMCH | C139: OPEXM | D139: CH | E139: CHANCADORA Y TRITURADORA | F139: CHANCADORA TERCIARIA SANDVIK H3800 | G139: CAMBIO DE 442798690 FEED HOPPER CONE RH | H139: 4 | I139: Hra | J139: 570 | K139: DIA | L139: D | N139: 4 | O139: 4 | P139: 4 | T139: 4 | U139: 4 | V139: 4 | AB139: 4 | AC139: 4 | AG139: 4 | AH139: 4 | AI139: 4 | AJ139: 4 | AM139: 4 | AN139: 4 | AQ139: 4 | AR139: 4 | AS139: 4 | AV139: 4 | AW139: 12 | AZ139: 12 | BA139: 4 | BB139: 4 | BE139: 12 | BF139: 4 | BI139: 4 | BJ139: 4 | BK139: 4
A140: 132 | B140: OPEXMCH | C140: OPEXM | D140: CH | E140: CHANCADORA Y TRITURADORA | F140: CHANCADORA TERCIARIA SANDVIK H3800 | G140: CAMBIO DE 442798901 MANTLE B (CHANCAD. SANDV) | H140: 6 | I140: Hra | J140: 142.5 | K140: DIA | L140: C | N140: 6 | O140: 6 | P140: 6 | T140: 6 | U140: 6 | V140: 6 | AB140: 6 | AC140: 6 | AG140: 6 | AH140: 6 | AI140: 6 | AJ140: 6 | AM140: 6 | AN140: 6 | AQ140: 6 | AR140: 6 | AS140: 6 | AV140: 6 | AW140: 18 | AZ140: 18 | BA140: 6 | BB140: 6 | BE140: 18 | BF140: 6 | BI140: 6 | BJ140: 6 | BK140: 6
A141: 133 | B141: OPEXMCH | C141: OPEXM | D141: CH | E141: CHANCADORA Y TRITURADORA | F141: CHANCADORA TERCIARIA SANDVIK H3800 | G141: CAMBIO DE 442802201 SCRAPER | H141: 5.5 | I141: Hra | J141: 1140 | K141: DIA | L141: D | N141: 5.5 | O141: 5.5 | P141: 5.5 | T141: 5.5 | U141: 5.5 | V141: 5.5 | AB141: 5.5 | AC141: 5.5 | AG141: 5.5 | AH141: 5.5 | AI141: 5.5 | AJ141: 5.5 | AM141: 5.5 | AN141: 5.5 | AQ141: 5.5 | AR141: 5.5 | AS141: 5.5 | AV141: 5.5 | AW141: 16.5 | AZ141: 16.5 | BA141: 5.5 | BB141: 5.5 | BE141: 16.5 | BF141: 5.5 | BI141: 5.5 | BJ141: 5.5 | BK141: 5.5
A142: 134 | B142: OPEXMCH | C142: OPEXM | D142: CH | E142: CHANCADORA Y TRITURADORA | F142: CHANCADORA TERCIARIA SANDVIK H3800 | G142: CAMBIO DE 442886401 WEARING DOWN PLATE | H142: 3 | I142: Hra | J142: 570 | K142: DIA | L142: C | N142: 3 | O142: 3 | P142: 3 | T142: 3 | U142: 3 | V142: 3 | AB142: 3 | AC142: 3 | AG142: 3 | AH142: 3 | AI142: 3 | AJ142: 3 | AM142: 3 | AN142: 3 | AQ142: 3 | AR142: 3 | AS142: 3 | AV142: 3 | AW142: 9 | AZ142: 9 | BA142: 3 | BB142: 3 | BE142: 9 | BF142: 3 | BI142: 3 | BJ142: 3 | BK142: 3
A143: 135 | B143: OPEXMCH | C143: OPEXM | D143: CH | E143: CHANCADORA Y TRITURADORA | F143: CHANCADORA TERCIARIA SANDVIK H3800 | G143: CAMBIO DE 442886501 WEARING DOWN PLATE | H143: 3 | I143: Hra | J143: 570 | K143: DIA | L143: D | N143: 3 | O143: 3 | P143: 3 | T143: 3 | U143: 3 | V143: 3 | AB143: 3 | AC143: 3 | AG143: 3 | AH143: 3 | AI143: 3 | AJ143: 3 | AM143: 3 | AN143: 3 | AQ143: 3 | AR143: 3 | AS143: 3 | AV143: 3 | AW143: 9 | AZ143: 9 | BA143: 3 | BB143: 3 | BE143: 9 | BF143: 3 | BI143: 3 | BJ143: 3 | BK143: 3
A144: 136 | B144: OPEXMCH | C144: OPEXM | D144: CH | E144: CHANCADORA Y TRITURADORA | F144: CHANCADORA TERCIARIA SANDVIK H3800 | G144: CAMBIO DE 442886601 WEARING PLATE | H144: 3 | I144: Hra | J144: 570 | K144: DIA | L144: C | N144: 3 | O144: 3 | P144: 3 | T144: 3 | U144: 3 | V144: 3 | AB144: 3 | AC144: 3 | AG144: 3 | AH144: 3 | AI144: 3 | AJ144: 3 | AM144: 3 | AN144: 3 | AQ144: 72 | AR144: 3 | AS144: 3 | AV144: 3 | AW144: 9 | AZ144: 9 | BA144: 3 | BB144: 3 | BE144: 9 | BF144: 3 | BI144: 3 | BJ144: 3 | BK144: 3
A145: 137 | B145: OPEXMCH | C145: OPEXM | D145: CH | E145: CHANCADORA Y TRITURADORA | F145: CHANCADORA TERCIARIA SANDVIK H3800 | G145: CAMBIO DE 442886701 WEARING PLATE | H145: 3 | I145: Hra | J145: 570 | K145: DIA | L145: G | N145: 3 | O145: 3 | P145: 3 | T145: 3 | U145: 3 | V145: 3 | AB145: 3 | AC145: 3 | AG145: 3 | AH145: 3 | AI145: 3 | AJ145: 3 | AM145: 3 | AN145: 3 | AQ145: 3 | AR145: 3 | AS145: 3 | AV145: 3 | AW145: 9 | AZ145: 9 | BA145: 3 | BB145: 3 | BE145: 9 | BF145: 3 | BI145: 3 | BJ145: 3 | BK145: 3
A146: 138 | B146: OPEXMCH | C146: OPEXM | D146: CH | E146: CHANCADORA Y TRITURADORA | F146: CHANCADORA TERCIARIA SANDVIK H3800 | G146: CAMBIO DE 442886801 WEARING PLATE | H146: 3 | I146: Hra | J146: 570 | K146: DIA | L146: C | N146: 3 | O146: 3 | P146: 3 | T146: 3 | U146: 3 | V146: 3 | AB146: 3 | AC146: 3 | AG146: 3 | AH146: 3 | AI146: 3 | AJ146: 3 | AM146: 3 | AN146: 3 | AQ146: 3 | AR146: 3 | AS146: 3 | AV146: 3 | AW146: 9 | AZ146: 9 | BA146: 3 | BB146: 3 | BE146: 9 | BF146: 3 | BI146: 3 | BJ146: 3 | BK146: 3
A147: 139 | B147: OPEXMCH | C147: OPEXM | D147: CH | E147: CHANCADORA Y TRITURADORA | F147: CHANCADORA TERCIARIA SANDVIK H3800 | G147: CAMBIO DE 442886901 WEARING PLATE | H147: 3 | I147: Hra | J147: 570 | K147: DIA | L147: C | N147: 3 | O147: 3 | P147: 3 | T147: 3 | U147: 3 | V147: 3 | AB147: 3 | AC147: 3 | AG147: 3 | AH147: 3 | AI147: 3 | AJ147: 3 | AM147: 3 | AN147: 3 | AQ147: 3 | AR147: 3 | AS147: 3 | AV147: 3 | AW147: 9 | AZ147: 9 | BA147: 3 | BB147: 3 | BE147: 9 | BF147: 3 | BI147: 3 | BJ147: 3 | BK147: 3
A148: 140 | B148: OPEXMCH | C148: OPEXM | D148: CH | E148: CHANCADORA Y TRITURADORA | F148: CHANCADORA TERCIARIA SANDVIK H3800 | G148: CAMBIO DE 4521216001 CONCAVE MF M1 | H148: 8 | I148: Hra | J148: 142.5 | K148: DIA | L148: D | N148: 8 | O148: 8 | P148: 8 | T148: 8 | U148: 8 | V148: 8 | AB148: 8 | AC148: 8 | AG148: 8 | AH148: 8 | AI148: 8 | AJ148: 8 | AM148: 8 | AN148: 8 | AQ148: 8 | AR148: 8 | AS148: 8 | AV148: 8 | AW148: 24 | AZ148: 24 | BA148: 8 | BB148: 8 | BE148: 24 | BF148: 8 | BI148: 8 | BJ148: 8 | BK148: 8
A149: 141 | B149: OPEXMCH | C149: OPEXM | D149: CH | E149: CHANCADORA Y TRITURADORA | F149: CHANCADORA TERCIARIA SANDVIK H3800 | G149: CAMBIO DE 840103400 SCREW | H149: 2.5 | I149: Hra | J149: 142.5 | K149: DIA | L149: D | N149: 2.5 | O149: 2.5 | P149: 2.5 | T149: 2.5 | U149: 2.5 | V149: 2.5 | AB149: 2.5 | AC149: 2.5 | AG149: 2.5 | AH149: 2.5 | AI149: 2.5 | AJ149: 2.5 | AM149: 2.5 | AN149: 2.5 | AQ149: 2.5 | AR149: 2.5 | AS149: 2.5 | AV149: 2.5 | AW149: 7.5 | AZ149: 7.5 | BA149: 2.5 | BB149: 2.5 | BE149: 7.5 | BF149: 2.5 | BI149: 2.5 | BJ149: 2.5 | BK149: 2.5
A150: 142 | B150: OPEXMCH | C150: OPEXM | D150: CH | E150: CHANCADORA Y TRITURADORA | F150: CHANCADORA TERCIARIA SANDVIK H3800 | G150: CAMBIO DE 847001600 WASHER | H150: 1.5 | I150: Hra | J150: 142.5 | K150: DIA | L150: D | N150: 1.5 | O150: 1.5 | P150: 1.5 | T150: 1.5 | U150: 1.5 | V150: 1.5 | AB150: 1.5 | AC150: 1.5 | AG150: 1.5 | AH150: 1.5 | AI150: 1.5 | AJ150: 1.5 | AM150: 1.5 | AN150: 1.5 | AQ150: 1.5 | AR150: 1.5 | AS150: 1.5 | AV150: 1.5 | AW150: 4.5 | AZ150: 4.5 | BA150: 1.5 | BB150: 1.5 | BE150: 4.5 | BF150: 1.5 | BI150: 1.5 | BJ150: 1.5 | BK150: 1.5
A151: 143 | B151: OPEXMCH | C151: OPEXM | D151: CH | E151: CHANCADORA Y TRITURADORA | F151: CHANCADORA TERCIARIA SANDVIK H3800 | G151: CAMBIO DE 863003200 DISC SPRING 71X36X4 | H151: 2 | I151: Hra | J151: 285 | K151: DIA | L151: D | N151: 2 | O151: 2 | P151: 2 | T151: 2 | U151: 2 | V151: 2 | AB151: 2 | AC151: 2 | AG151: 2 | AH151: 2 | AI151: 2 | AJ151: 2 | AM151: 2 | AN151: 2 | AQ151: 2 | AR151: 2 | AS151: 2 | AV151: 2 | AW151: 6 | AZ151: 6 | BA151: 2 | BB151: 2 | BE151: 6 | BF151: 2 | BI151: 2 | BJ151: 2 | BK151: 2
A152: 144 | B152: OPEXMCH | C152: OPEXM | D152: CH | E152: CHANCADORA Y TRITURADORA | F152: CHANCADORA TERCIARIA SANDVIK H3800 | G152: CAMBIO DE 868079000 RODAMIENTO 22219E/C3 | H152: 2.5 | I152: Hra | J152: 285 | K152: DIA | L152: C | N152: 2.5 | O152: 2.5 | P152: 2.5 | T152: 2.5 | U152: 2.5 | V152: 2.5 | AB152: 2.5 | AC152: 2.5 | AG152: 2.5 | AH152: 2.5 | AI152: 2.5 | AJ152: 2.5 | AM152: 2.5 | AN152: 2.5 | AQ152: 2.5 | AR152: 2.5 | AS152: 2.5 | AV152: 2.5 | AW152: 7.5 | AZ152: 7.5 | BA152: 2.5 | BB152: 2.5 | BE152: 7.5 | BF152: 2.5 | BI152: 2.5 | BJ152: 2.5 | BK152: 2.5
A153: 145 | B153: OPEXMCH | C153: OPEXM | D153: CH | E153: CHANCADORA Y TRITURADORA | F153: CHANCADORA TERCIARIA SANDVIK H3800 | G153: CAMBIO DE 873.0833-00 O-RING 379, 3 X 5, 7 SMS 1586 | H153: 6 | I153: Hra | J153: 1140 | K153: DIA | L153: C | N153: 6 | O153: 6 | P153: 6 | T153: 6 | U153: 6 | V153: 6 | AB153: 6 | AC153: 6 | AG153: 6 | AH153: 6 | AI153: 6 | AJ153: 6 | AM153: 6 | AN153: 6 | AQ153: 6 | AR153: 6 | AS153: 6 | AV153: 6 | AW153: 18 | AZ153: 18 | BA153: 6 | BB153: 6 | BE153: 18 | BF153: 6 | BI153: 6 | BJ153: 6 | BK153: 6
A154: 146 | B154: OPEXMCH | C154: OPEXM | D154: CH | E154: CHANCADORA Y TRITURADORA | F154: CHANCADORA TERCIARIA SANDVIK H3800 | G154: CAMBIO DE 873111200 SEALING COMPOUND ( CHANCAD. SANDV) 2440450 | H154: 2.5 | I154: Hra | J154: 142.5 | K154: DIA | L154: D | N154: 2.5 | O154: 2.5 | P154: 2.5 | T154: 2.5 | U154: 2.5 | V154: 2.5 | AB154: 2.5 | AC154: 2.5 | AG154: 2.5 | AH154: 2.5 | AI154: 2.5 | AJ154: 2.5 | AM154: 2.5 | AN154: 2.5 | AQ154: 2.5 | AR154: 2.5 | AS154: 2.5 | AV154: 2.5 | AW154: 7.5 | AZ154: 7.5 | BA154: 2.5 | BB154: 2.5 | BE154: 7.5 | BF154: 2.5 | BI154: 2.5 | BJ154: 2.5 | BK154: 2.5
A155: 147 | B155: OPEXMCH | C155: OPEXM | D155: CH | E155: CHANCADORA Y TRITURADORA | F155: CHANCADORA TERCIARIA SANDVIK H3800 | G155: CAMBIO DE 906-0140-00 LUBRICATING OIL PUMP | H155: 6.5 | I155: Hra | J155: 570 | K155: DIA | L155: C | N155: 6.5 | O155: 6.5 | P155: 6.5 | T155: 6.5 | U155: 6.5 | V155: 6.5 | AB155: 6.5 | AC155: 6.5 | AG155: 6.5 | AH155: 6.5 | AI155: 6.5 | AJ155: 6.5 | AM155: 6.5 | AN155: 6.5 | AQ155: 6.5 | AR155: 6.5 | AS155: 6.5 | AV155: 6.5 | AW155: 19.5 | AZ155: 19.5 | BA155: 6.5 | BB155: 6.5 | BE155: 19.5 | BF155: 6.5 | BI155: 6.5 | BJ155: 6.5 | BK155: 6.5
A156: 148 | B156: OPEXMCH | C156: OPEXM | D156: CH | E156: CHANCADORA Y TRITURADORA | F156: CHANCADORA TERCIARIA SANDVIK H3800 | G156: CAMBIO DE 912.0139-00 FILTER CARTRIDGE | H156: 1.5 | I156: Hra | J156: 142.5 | K156: DIA | L156: F | N156: 1.5 | O156: 1.5 | P156: 1.5 | T156: 1.5 | U156: 1.5 | V156: 1.5 | AB156: 1.5 | AC156: 1.5 | AG156: 1.5 | AH156: 1.5 | AI156: 1.5 | AJ156: 1.5 | AM156: 1.5 | AN156: 1.5 | AQ156: 1.5 | AR156: 1.5 | AS156: 1.5 | AV156: 1.5 | AW156: 4.5 | AZ156: 4.5 | BA156: 1.5 | BB156: 1.5 | BE156: 4.5 | BF156: 1.5 | BI156: 1.5 | BJ156: 1.5 | BK156: 1.5
A157: 149 | B157: OPEXMCH | C157: OPEXM | D157: CH | E157: CHANCADORA Y TRITURADORA | F157: CHANCADORA TERCIARIA SANDVIK H3800 | G157: CAMBIO DE 912015500 FILTER CARTRIDGE | H157: 1.5 | I157: Hra | J157: 142.5 | K157: DIA | L157: C | N157: 1.5 | O157: 1.5 | P157: 1.5 | T157: 1.5 | U157: 1.5 | V157: 1.5 | AB157: 1.5 | AC157: 1.5 | AG157: 1.5 | AH157: 1.5 | AI157: 1.5 | AJ157: 1.5 | AM157: 1.5 | AN157: 1.5 | AQ157: 1.5 | AR157: 1.5 | AS157: 1.5 | AV157: 1.5 | AW157: 4.5 | AZ157: 4.5 | BA157: 1.5 | BB157: 1.5 | BE157: 4.5 | BF157: 1.5 | BI157: 1.5 | BJ157: 1.5 | BK157: 1.5
A158: 150 | B158: OPEXMCH | C158: OPEXM | D158: CH | E158: CHANCADORA Y TRITURADORA | F158: CHANCADORA TERCIARIA SANDVIK H3800 | G158: CAMBIO DE CFW-F2 BAF SF SLO.5 DRWX7 18-30-6/4.5 RETEN | H158: 3.5 | I158: Hra | J158: 570 | K158: DIA | L158: C | N158: 3.5 | O158: 3.5 | P158: 3.5 | T158: 3.5 | U158: 3.5 | V158: 3.5 | AB158: 3.5 | AC158: 3.5 | AG158: 3.5 | AH158: 3.5 | AI158: 3.5 | AJ158: 3.5 | AM158: 3.5 | AN158: 3.5 | AQ158: 3.5 | AR158: 3.5 | AS158: 3.5 | AV158: 3.5 | AW158: 10.5 | AZ158: 10.5 | BA158: 3.5 | BB158: 3.5 | BE158: 10.5 | BF158: 3.5 | BI158: 3.5 | BJ158: 3.5 | BK158: 3.5
A159: 151 | B159: OPEXMCH | C159: OPEXM | D159: CH | E159: CHANCADORA Y TRITURADORA | F159: CHANCADORA TERCIARIA SANDVIK H3800 | G159: CAMBIO DE FILTRO | H159: 4 | I159: Hra | J159: 142.5 | K159: DIA | L159: D | N159: 4 | O159: 4 | P159: 4 | T159: 4 | U159: 4 | V159: 4 | AB159: 4 | AC159: 4 | AG159: 4 | AH159: 4 | AI159: 4 | AJ159: 4 | AM159: 4 | AN159: 4 | AQ159: 4 | AR159: 4 | AS159: 4 | AV159: 4 | AW159: 12 | AZ159: 12 | BA159: 4 | BB159: 4 | BE159: 12 | BF159: 4 | BI159: 4 | BJ159: 4 | BK159: 4
A160: 152 | B160: OPEXMCH | C160: OPEXM | D160: CH | E160: CHANCADORA Y TRITURADORA | F160: CHANCADORA TERCIARIA SANDVIK H3800 | G160: CAMBIO DE FILTRO DEL HIDROSET | H160: 4 | I160: Hra | J160: 142.5 | K160: DIA | L160: C | N160: 4 | O160: 4 | P160: 4 | T160: 4 | U160: 4 | V160: 4 | AB160: 4 | AC160: 4 | AG160: 4 | AH160: 4 | AI160: 4 | AJ160: 4 | AM160: 4 | AN160: 4 | AQ160: 4 | AR160: 4 | AS160: 4 | AV160: 4 | AW160: 12 | AZ160: 12 | BA160: 4 | BB160: 4 | BE160: 12 | BF160: 4 | BI160: 4 | BJ160: 4 | BK160: 4
A161: 153 | B161: OPEXMCH | C161: OPEXM | D161: CH | E161: CHANCADORA Y TRITURADORA | F161: CHANCADORA TERCIARIA SANDVIK H3800 | G161: CAMBIO DE FILTRO DEL LUBRICADOR | H161: 4 | I161: Hra | J161: 142.5 | K161: DIA | L161: C | N161: 4 | O161: 4 | P161: 4 | T161: 4 | U161: 4 | V161: 4 | AB161: 4 | AC161: 4 | AG161: 4 | AH161: 4 | AI161: 4 | AJ161: 4 | AM161: 4 | AN161: 4 | AQ161: 4 | AR161: 4 | AS161: 4 | AV161: 4 | AW161: 12 | AZ161: 12 | BA161: 4 | BB161: 4 | BE161: 12 | BF161: 4 | BI161: 4 | BJ161: 4 | BK161: 4
A162: 154 | B162: OPEXMCH | C162: OPEXM | D162: CH | E162: CHANCADORA Y TRITURADORA | F162: CHANCADORA TERCIARIA SANDVIK H3800 | G162: CAMBIO DE RODAMIENTOS DELANTERO | H162: 5 | I162: Hra | J162: 250 | K162: DIA | L162: C | N162: 5 | O162: 5 | P162: 5 | T162: 5 | U162: 5 | V162: 5 | AB162: 5 | AC162: 5 | AG162: 5 | AH162: 5 | AI162: 5 | AJ162: 5 | AM162: 5 | AN162: 5 | AQ162: 5 | AR162: 5 | AS162: 5 | AV162: 5 | AW162: 15 | AZ162: 15 | BA162: 5 | BB162: 5 | BE162: 15 | BF162: 5 | BI162: 5 | BJ162: 5 | BK162: 5
A163: 155 | B163: OPEXMCH | C163: OPEXM | D163: CH | E163: CHANCADORA Y TRITURADORA | F163: CHANCADORA TERCIARIA SANDVIK H3800 | G163: CAMBIO DE RODAMIENTOS POSTERIOR | H163: 5 | I163: Hra | J163: 250 | K163: DIA | L163: C | N163: 5 | O163: 5 | P163: 5 | T163: 5 | U163: 5 | V163: 5 | AB163: 5 | AC163: 5 | AG163: 5 | AH163: 5 | AI163: 5 | AJ163: 5 | AM163: 5 | AN163: 5 | AQ163: 5 | AR163: 5 | AS163: 5 | AV163: 5 | AW163: 15 | AZ163: 15 | BA163: 5 | BB163: 5 | BE163: 15 | BF163: 5 | BI163: 5 | BJ163: 5 | BK163: 5
A164: 156 | B164: OPEXMCH | C164: OPEXM | D164: CH | E164: CHANCADORA Y TRITURADORA | F164: CHANCADORA TERCIARIA SANDVIK H3800 | G164: ENGRASE DE EQUIPOS | H164: 2 | I164: Hra | J164: 71.25 | K164: DIA | L164: D | N164: 2 | O164: 2 | P164: 2 | T164: 2 | U164: 2 | V164: 2 | AB164: 2 | AC164: 2 | AG164: 2 | AH164: 2 | AI164: 2 | AJ164: 2 | AM164: 2 | AN164: 2 | AQ164: 2 | AR164: 2 | AS164: 2 | AV164: 2 | AW164: 6 | AZ164: 6 | BA164: 2 | BB164: 2 | BE164: 6 | BF164: 2 | BI164: 2 | BJ164: 2 | BK164: 2
A165: 157 | B165: OPEXMCH | C165: OPEXM | D165: CH | E165: CHANCADORA Y TRITURADORA | F165: CHANCADORA TERCIARIA SANDVIK H3800 | G165: LIMPIEZA DE ARROLLAMIENTO | H165: 5 | I165: Hra | J165: 31.25 | K165: DIA | L165: D | N165: 5 | O165: 5 | P165: 5 | T165: 5 | U165: 5 | V165: 5 | AB165: 5 | AC165: 5 | AG165: 5 | AH165: 5 | AI165: 5 | AJ165: 5 | AM165: 5 | AN165: 5 | AQ165: 5 | AR165: 5 | AS165: 5 | AV165: 5 | AW165: 15 | AZ165: 15 | BA165: 5 | BB165: 5 | BE165: 15 | BF165: 5 | BI165: 5 | BJ165: 5 | BK165: 5
A166: 158 | B166: OPEXMCH | C166: OPEXM | D166: CH | E166: CHANCADORA Y TRITURADORA | F166: COMPRENSORA SULLAIR LS12-60H/A/SUL y tanque de aire comprimido | G166: CAMBIO DE RODAMIENTOS DELANTERO | H166: 5 | I166: Hra | J166: 500 | K166: DIA | L166: C | N166: 5 | O166: 5 | P166: 5 | T166: 5 | U166: 5 | V166: 5 | AB166: 5 | AC166: 5 | AG166: 5 | AH166: 5 | AI166: 5 | AJ166: 5 | AM166: 5 | AN166: 5 | AQ166: 5 | AR166: 5 | AS166: 5 | AV166: 5 | AW166: 15 | AZ166: 15 | BA166: 5 | BB166: 5 | BE166: 15 | BF166: 5 | BI166: 5 | BJ166: 5 | BK166: 5
A167: 159 | B167: OPEXMCH | C167: OPEXM | D167: CH | E167: CHANCADORA Y TRITURADORA | F167: COMPRENSORA SULLAIR LS12-60H/A/SUL y tanque de aire comprimido | G167: CAMBIO DE RODAMIENTOS POSTERIOR | H167: 5 | I167: Hra | J167: 500 | K167: DIA | L167: C | N167: 5 | O167: 5 | P167: 5 | T167: 5 | U167: 5 | V167: 5 | AB167: 5 | AC167: 5 | AG167: 5 | AH167: 5 | AI167: 5 | AJ167: 5 | AM167: 5 | AN167: 5 | AQ167: 5 | AR167: 5 | AS167: 5 | AV167: 5 | AW167: 15 | AZ167: 15 | BA167: 5 | BB167: 5 | BE167: 15 | BF167: 5 | BI167: 5 | BJ167: 5 | BK167: 5
A168: 160 | B168: OPEXMCH | C168: OPEXM | D168: CH | E168: CHANCADORA Y TRITURADORA | F168: COMPRENSORA SULLAIR LS12-60H/A/SUL y tanque de aire comprimido | G168: LIMPIEZA DE ARROLLAMIENTO | H168: 5 | I168: Hra | J168: 200 | K168: DIA | L168: C | N168: 5 | O168: 5 | P168: 5 | T168: 5 | U168: 5 | V168: 5 | AB168: 5 | AC168: 5 | AG168: 5 | AH168: 5 | AI168: 5 | AJ168: 5 | AM168: 5 | AN168: 5 | AQ168: 5 | AR168: 5 | AS168: 5 | AV168: 5 | AW168: 15 | AZ168: 15 | BA168: 5 | BB168: 5 | BE168: 15 | BF168: 5 | BI168: 5 | BJ168: 5 | BK168: 5
A169: 161 | B169: OPEXMCH | C169: OPEXM | D169: CH | E169: CHANCADORA Y TRITURADORA | F169: COMPRESORA GARDEN DENVER EXTRACTOR DE POLVO PRIMARIO | G169: CAMBIO DE FILTRO DE ACEITE | H169: 4 | I169: Hra | J169: 228 | K169: DIA | L169: D | N169: 4 | O169: 4 | P169: 4 | T169: 4 | U169: 4 | V169: 4 | AB169: 4 | AC169: 4 | AG169: 4 | AH169: 4 | AI169: 4 | AJ169: 4 | AM169: 4 | AN169: 4 | AQ169: 4 | AR169: 4 | AS169: 4 | AV169: 4 | AW169: 12 | AZ169: 12 | BA169: 4 | BB169: 4 | BE169: 12 | BF169: 4 | BI169: 4 | BJ169: 4 | BK169: 4
A170: 162 | B170: OPEXMCH | C170: OPEXM | D170: CH | E170: CHANCADORA Y TRITURADORA | F170: COMPRESORA GARDEN DENVER EXTRACTOR DE POLVO PRIMARIO | G170: CAMBIO DE FILTRO DE AIRE | H170: 4 | I170: Hra | J170: 228 | K170: DIA | L170: D | N170: 4 | O170: 4 | P170: 4 | T170: 4 | U170: 4 | V170: 4 | AB170: 4 | AC170: 4 | AG170: 4 | AH170: 4 | AI170: 4 | AJ170: 4 | AM170: 4 | AN170: 4 | AQ170: 4 | AR170: 4 | AS170: 4 | AV170: 4 | AW170: 12 | AZ170: 12 | BA170: 4 | BB170: 4 | BE170: 12 | BF170: 4 | BI170: 4 | BJ170: 4 | BK170: 4
A171: 163 | B171: OPEXMCH | C171: OPEXM | D171: CH | E171: CHANCADORA Y TRITURADORA | F171: COMPRESORA GARDEN DENVER EXTRACTOR DE POLVO PRIMARIO | G171: CAMBIO DE SEPARADOR DE KIT | H171: 2 | I171: Hra | J171: 228 | K171: DIA | L171: C | N171: 2 | O171: 2 | P171: 2 | T171: 2 | U171: 2 | V171: 2 | AB171: 2 | AC171: 2 | AG171: 2 | AH171: 2 | AI171: 2 | AJ171: 2 | AM171: 2 | AN171: 2 | AQ171: 2 | AR171: 2 | AS171: 2 | AV171: 2 | AW171: 6 | AZ171: 6 | BA171: 2 | BB171: 2 | BE171: 6 | BF171: 2 | BI171: 2 | BJ171: 2 | BK171: 2
A172: 164 | B172: OPEXMCH | C172: OPEXM | D172: CH | E172: CHANCADORA Y TRITURADORA | F172: COMPRESORA SULLAIR 10B-40HP/AC/STD CELDAS WENCO | G172: CAMBIO DE FILTRO DE ACEITE | H172: 4 | I172: Hra | J172: 288 | K172: DIA | L172: C | N172: 4 | O172: 4 | P172: 4 | T172: 4 | U172: 4 | V172: 4 | AB172: 4 | AC172: 4 | AG172: 4 | AH172: 4 | AI172: 4 | AJ172: 4 | AM172: 4 | AN172: 4 | AQ172: 4 | AR172: 4 | AS172: 4 | AV172: 4 | AW172: 12 | AZ172: 12 | BA172: 4 | BB172: 4 | BE172: 12 | BF172: 4 | BI172: 4 | BJ172: 4 | BK172: 4
A173: 165 | B173: OPEXMCH | C173: OPEXM | D173: CH | E173: CHANCADORA Y TRITURADORA | F173: COMPRESORA SULLAIR 10B-40HP/AC/STD CELDAS WENCO | G173: CAMBIO DE FILTRO DE AGUA | H173: 4 | I173: Hra | J173: 288 | K173: DIA | L173: C | N173: 4 | O173: 4 | P173: 4 | T173: 4 | U173: 4 | V173: 4 | AB173: 4 | AC173: 4 | AG173: 4 | AH173: 4 | AI173: 4 | AJ173: 4 | AM173: 4 | AN173: 4 | AQ173: 4 | AR173: 4 | AS173: 4 | AV173: 4 | AW173: 12 | AZ173: 12 | BA173: 4 | BB173: 4 | BE173: 12 | BF173: 4 | BI173: 4 | BJ173: 4 | BK173: 4
A174: 166 | B174: OPEXMCH | C174: OPEXM | D174: CH | E174: CHANCADORA Y TRITURADORA | F174: COMPRESORA SULLAIR 10B-40HP/AC/STD CELDAS WENCO | G174: CAMBIO DE FILTRO DE AIRE | H174: 4 | I174: Hra | J174: 288 | K174: DIA | L174: C | N174: 4 | O174: 4 | P174: 4 | T174: 4 | U174: 4 | V174: 4 | AB174: 4 | AC174: 4 | AG174: 4 | AH174: 4 | AI174: 4 | AJ174: 4 | AM174: 4 | AN174: 4 | AQ174: 4 | AR174: 4 | AS174: 4 | AV174: 4 | AW174: 12 | AZ174: 12 | BA174: 4 | BB174: 4 | BE174: 12 | BF174: 4 | BI174: 4 | BJ174: 4 | BK174: 4
A175: 167 | B175: OPEXMCH | C175: OPEXM | D175: CH | E175: CHANCADORA Y TRITURADORA | F175: COMPRESORA SULLAIR 10B-40HP/AC/STD CELDAS WENCO | G175: CAMBIO DE FILTRO DE ELEMENTO | H175: 4 | I175: Hra | J175: 288 | K175: DIA | L175: D | N175: 4 | O175: 4 | P175: 4 | T175: 4 | U175: 4 | V175: 4 | AB175: 4 | AC175: 4 | AG175: 4 | AH175: 4 | AI175: 4 | AJ175: 4 | AM175: 4 | AN175: 4 | AQ175: 4 | AR175: 4 | AS175: 4 | AV175: 4 | AW175: 12 | AZ175: 12 | BA175: 4 | BB175: 4 | BE175: 12 | BF175: 4 | BI175: 4 | BJ175: 4 | BK175: 4
A176: 168 | B176: OPEXMCH | C176: OPEXM | D176: CH | E176: CHANCADORA Y TRITURADORA | F176: COMPRESORA SULLAIR 10B-40HP/AC/STD CELDAS WENCO | G176: CAMBIO DE FILTRO ELEMENTO SEPARADOR | H176: 4 | I176: Hra | J176: 288 | K176: DIA | L176: D | N176: 4 | O176: 4 | P176: 4 | T176: 4 | U176: 4 | V176: 4 | AB176: 4 | AC176: 4 | AG176: 4 | AH176: 4 | AI176: 4 | AJ176: 4 | AM176: 4 | AN176: 4 | AQ176: 4 | AR176: 4 | AS176: 4 | AV176: 4 | AW176: 12 | AZ176: 12 | BA176: 4 | BB176: 4 | BE176: 12 | BF176: 4 | BI176: 4 | BJ176: 4 | BK176: 4
A177: 169 | B177: OPEXMCH | C177: OPEXM | D177: CH | E177: CHANCADORA Y TRITURADORA | F177: COMPRESORA SULLAIR LS12 -60H/A/SUL | G177: CAMBIO DE ELEMENTO DE FILTRO | H177: 4 | I177: Hra | J177: 201.6 | K177: DIA | L177: C | N177: 4 | O177: 4 | P177: 4 | T177: 4 | U177: 4 | V177: 4 | AB177: 4 | AC177: 4 | AG177: 4 | AH177: 4 | AI177: 4 | AJ177: 4 | AM177: 4 | AN177: 4 | AQ177: 4 | AR177: 4 | AS177: 4 | AV177: 4 | AW177: 12 | AZ177: 12 | BA177: 4 | BB177: 4 | BE177: 12 | BF177: 4 | BI177: 4 | BJ177: 4 | BK177: 4
A178: 170 | B178: OPEXMCH | C178: OPEXM | D178: CH | E178: CHANCADORA Y TRITURADORA | F178: COMPRESORA SULLAIR LS12 -60H/A/SUL | G178: CAMBIO DE FILTRO DE AIRE | H178: 4 | I178: Hra | J178: 201.6 | K178: DIA | L178: C | N178: 4 | O178: 4 | P178: 4 | T178: 4 | U178: 4 | V178: 4 | AB178: 4 | AC178: 4 | AG178: 4 | AH178: 4 | AI178: 4 | AJ178: 4 | AM178: 4 | AN178: 4 | AQ178: 4 | AR178: 4 | AS178: 4 | AV178: 4 | AW178: 12 | AZ178: 12 | BA178: 4 | BB178: 4 | BE178: 12 | BF178: 4 | BI178: 4 | BJ178: 4 | BK178: 4
A179: 171 | B179: OPEXMCH | C179: OPEXM | D179: CH | E179: CHANCADORA Y TRITURADORA | F179: COMPRESORA SULLAIR LS12 -60H/A/SUL | G179: CAMBIO DE FILTRO SEPARADOR DE AGUA | H179: 4 | I179: Hra | J179: 201.6 | K179: DIA | L179: C | N179: 4 | O179: 4 | P179: 4 | T179: 4 | U179: 4 | V179: 4 | AB179: 4 | AC179: 4 | AG179: 4 | AH179: 4 | AI179: 4 | AJ179: 4 | AM179: 4 | AN179: 4 | AQ179: 4 | AR179: 4 | AS179: 4 | AV179: 4 | AW179: 12 | AZ179: 12 | BA179: 4 | BB179: 4 | BE179: 12 | BF179: 4 | BI179: 4 | BJ179: 4 | BK179: 4
A180: 172 | B180: OPEXMCH | C180: OPEXM | D180: CH | E180: CHANCADORA Y TRITURADORA | F180: COMPRESORA SULLAIR LS12 -60H/A/SUL | G180: CAMBIO DE FILTRO SEPARADOR PRIMARIO | H180: 4 | I180: Hra | J180: 201.6 | K180: DIA | L180: C | N180: 4 | O180: 4 | P180: 4 | T180: 4 | U180: 4 | V180: 4 | AB180: 4 | AC180: 4 | AG180: 4 | AH180: 4 | AI180: 4 | AJ180: 4 | AM180: 4 | AN180: 4 | AQ180: 4 | AR180: 4 | AS180: 4 | AV180: 4 | AW180: 12 | AZ180: 12 | BA180: 4 | BB180: 4 | BE180: 12 | BF180: 4 | BI180: 4 | BJ180: 4 | BK180: 4
A181: 173 | B181: OPEXMCH | C181: OPEXM | D181: CH | E181: CHANCADORA Y TRITURADORA | F181: COMPRESORA SULLAIR LS12 -60H/A/SUL | G181: CAMBIO DE FILTRO SEPARADOR SECUNDARIO | H181: 4 | I181: Hra | J181: 201.6 | K181: DIA | L181: D | N181: 4 | O181: 4 | P181: 4 | T181: 4 | U181: 4 | V181: 4 | AB181: 4 | AC181: 4 | AG181: 4 | AH181: 4 | AI181: 4 | AJ181: 4 | AM181: 4 | AN181: 4 | AQ181: 4 | AR181: 4 | AS181: 4 | AV181: 4 | AW181: 12 | AZ181: 12 | BA181: 4 | BB181: 4 | BE181: 12 | BF181: 4 | BI181: 4 | BJ181: 4 | BK181: 4
A182: 174 | B182: OPEXMCH | C182: OPEXM | D182: CH | E182: CHANCADORA Y TRITURADORA | F182: estractor de polvo zona chancado secundario | G182: CAMBIO DE RODAMIENTOS DELANTERO | H182: 5 | I182: Hra | J182: 62.5 | K182: DIA | L182: D | N182: 5 | O182: 5 | P182: 5 | T182: 5 | U182: 5 | V182: 5 | AB182: 5 | AC182: 5 | AG182: 5 | AH182: 5 | AI182: 5 | AJ182: 5 | AM182: 5 | AN182: 5 | AQ182: 5 | AR182: 5 | AS182: 5 | AV182: 5 | AW182: 15 | AZ182: 15 | BA182: 5 | BB182: 5 | BE182: 15 | BF182: 5 | BI182: 5 | BJ182: 5 | BK182: 5
A183: 175 | B183: OPEXMCH | C183: OPEXM | D183: CH | E183: CHANCADORA Y TRITURADORA | F183: estractor de polvo zona chancado secundario | G183: CAMBIO DE RODAMIENTOS POSTERIOR | H183: 5 | I183: Hra | J183: 62.5 | K183: DIA | L183: D | N183: 5 | O183: 5 | P183: 5 | T183: 5 | U183: 5 | V183: 5 | AB183: 5 | AC183: 5 | AG183: 5 | AH183: 5 | AI183: 5 | AJ183: 5 | AM183: 5 | AN183: 5 | AQ183: 5 | AR183: 5 | AS183: 5 | AV183: 5 | AW183: 15 | AZ183: 15 | BA183: 5 | BB183: 5 | BE183: 15 | BF183: 5 | BI183: 5 | BJ183: 5 | BK183: 5
A184: 176 | B184: OPEXMCH | C184: OPEXM | D184: CH | E184: CHANCADORA Y TRITURADORA | F184: estractor de polvo zona chancado secundario | G184: ENGRASE DE EQUIPOS | H184: 5 | I184: Hra | J184: 15.625 | K184: DIA | L184: D | N184: 5 | O184: 5 | P184: 5 | T184: 5 | U184: 5 | V184: 5 | AB184: 5 | AC184: 5 | AG184: 5 | AH184: 5 | AI184: 5 | AJ184: 5 | AM184: 5 | AN184: 5 | AQ184: 5 | AR184: 5 | AS184: 5 | AV184: 5 | AW184: 15 | AZ184: 15 | BA184: 5 | BB184: 5 | BE184: 15 | BF184: 5 | BI184: 5 | BJ184: 5 | BK184: 5
A185: 177 | B185: OPEXMCH | C185: OPEXM | D185: CH | E185: CHANCADORA Y TRITURADORA | F185: estractor de polvo zona chancado secundario | G185: LIMPIEZA DE ARROLLAMIENTO | H185: 5 | I185: Hra | J185: 62.5 | K185: DIA | L185: D | N185: 5 | O185: 5 | P185: 5 | T185: 5 | U185: 5 | V185: 5 | AB185: 5 | AC185: 5 | AG185: 5 | AH185: 5 | AI185: 5 | AJ185: 5 | AM185: 5 | AN185: 5 | AQ185: 5 | AR185: 5 | AS185: 5 | AV185: 5 | AW185: 15 | AZ185: 15 | BA185: 5 | BB185: 5 | BE185: 15 | BF185: 5 | BI185: 5 | BJ185: 5 | BK185: 5
A186: 178 | B186: OPEXMCH | C186: OPEXM | D186: CH | E186: CHANCADORA Y TRITURADORA | F186: Extractor de polvo Zona Chancado secundario(BOMBA) | G186: CAMBIO DE RODAMIENTOS DELANTERO | H186: 5 | I186: Hra | J186: 62.5 | K186: DIA | L186: D | N186: 5 | O186: 5 | P186: 5 | T186: 5 | U186: 5 | V186: 5 | AB186: 5 | AC186: 5 | AG186: 5 | AH186: 5 | AI186: 5 | AJ186: 5 | AM186: 5 | AN186: 5 | AQ186: 5 | AR186: 5 | AS186: 5 | AV186: 5 | AW186: 15 | AZ186: 15 | BA186: 5 | BB186: 5 | BE186: 15 | BF186: 5 | BI186: 5 | BJ186: 5 | BK186: 5
A187: 179 | B187: OPEXMCH | C187: OPEXM | D187: CH | E187: CHANCADORA Y TRITURADORA | F187: Extractor de polvo Zona Chancado secundario(BOMBA) | G187: CAMBIO DE RODAMIENTOS POSTERIOR | H187: 5 | I187: Hra | J187: 62.5 | K187: DIA | L187: D | N187: 5 | O187: 5 | P187: 5 | T187: 5 | U187: 5 | V187: 5 | AB187: 5 | AC187: 5 | AG187: 5 | AH187: 5 | AI187: 5 | AJ187: 5 | AM187: 5 | AN187: 5 | AQ187: 5 | AR187: 5 | AS187: 5 | AV187: 5 | AW187: 15 | AZ187: 15 | BA187: 5 | BB187: 5 | BE187: 15 | BF187: 5 | BI187: 5 | BJ187: 5 | BK187: 5
A188: 180 | B188: OPEXMCH | C188: OPEXM | D188: CH | E188: CHANCADORA Y TRITURADORA | F188: Extractor de polvo Zona Chancado secundario(BOMBA) | G188: LIMPIEZA DE ARROLLAMIENTO | H188: 5 | I188: Hra | J188: 62.5 | K188: DIA | L188: D | N188: 5 | O188: 5 | P188: 5 | T188: 5 | U188: 5 | V188: 5 | AB188: 5 | AC188: 5 | AG188: 5 | AH188: 5 | AI188: 5 | AJ188: 5 | AM188: 5 | AN188: 5 | AQ188: 5 | AR188: 5 | AS188: 5 | AV188: 5 | AW188: 15 | AZ188: 15 | BA188: 5 | BB188: 5 | BE188: 15 | BF188: 5 | BI188: 5 | BJ188: 5 | BK188: 5
A189: 181 | B189: OPEXMCH | C189: OPEXM | D189: CH | E189: CHANCADORA Y TRITURADORA | F189: Extractor de polvo Zona Chancado secundario(BOMBA) | G189: MANTENIMIENTO EXTRACTOR | H189: 12 | I189: Hra | J189: 90 | K189: DIA | L189: C | N189: 12 | O189: 12 | P189: 12 | T189: 12 | U189: 12 | V189: 12 | AB189: 12 | AC189: 12 | AG189: 12 | AH189: 12 | AI189: 12 | AJ189: 12 | AM189: 12 | AN189: 12 | AQ189: 12 | AR189: 12 | AS189: 12 | AV189: 12 | AW189: 36 | AZ189: 36 | BA189: 12 | BB189: 12 | BE189: 36 | BF189: 12 | BI189: 12 | BJ189: 12 | BK189: 12
A190: 182 | B190: OPEXMCH | C190: OPEXM | D190: CH | E190: CHANCADORA Y TRITURADORA | F190: Extractor de polvo Zona Chancado secundario(BOMBA) | G190: MANTENIMIENTO EXTRACTOR | H190: 12 | I190: Hra | J190: 180 | K190: DIA | L190: C | N190: 12 | O190: 12 | P190: 12 | T190: 12 | U190: 12 | V190: 12 | AB190: 12 | AC190: 12 | AG190: 12 | AH190: 12 | AI190: 12 | AJ190: 12 | AM190: 12 | AN190: 12 | AQ190: 12 | AR190: 12 | AS190: 12 | AV190: 12 | AW190: 36 | AZ190: 36 | BA190: 12 | BB190: 12 | BE190: 36 | BF190: 12 | BI190: 12 | BJ190: 12 | BK190: 12
A191: 183 | B191: OPEXMCH | C191: OPEXM | D191: CH | E191: CHANCADORA Y TRITURADORA | F191: Extractor de polvo Zona Chancado secundario(BOMBA) | G191: MANTENIMIENTO EXTRACTOR | H191: 12 | I191: Hra | J191: 360 | K191: DIA | L191: C | N191: 12 | O191: 12 | P191: 12 | T191: 12 | U191: 12 | V191: 12 | AB191: 12 | AC191: 12 | AG191: 12 | AH191: 12 | AI191: 12 | AJ191: 12 | AM191: 12 | AN191: 12 | AQ191: 12 | AR191: 12 | AS191: 12 | AV191: 12 | AW191: 36 | AZ191: 36 | BA191: 12 | BB191: 12 | BE191: 36 | BF191: 12 | BI191: 12 | BJ191: 12 | BK191: 12
A192: 184 | B192: OPEXMCH | C192: OPEXM | D192: CH | E192: CHANCADORA Y TRITURADORA | F192: Faja Transportadora 4A de 30" x longitud de 14m | G192: CAMBIO DE 30-2 POLINES SIMPLE C/DISCO DE JEBE | H192: 1.5 | I192: Hra | J192: 168 | K192: DIA | L192: G | N192: 1.5 | O192: 1.5 | P192: 1.5 | T192: 1.5 | U192: 1.5 | V192: 1.5 | AB192: 1.5 | AC192: 1.5 | AG192: 1.5 | AH192: 1.5 | AI192: 1.5 | AJ192: 1.5 | AM192: 1.5 | AN192: 1.5 | AQ192: 1.5 | AR192: 1.5 | AS192: 1.5 | AV192: 1.5 | AW192: 4.5 | AZ192: 4.5 | BA192: 1.5 | BB192: 1.5 | BE192: 4.5 | BF192: 1.5 | BI192: 1.5 | BJ192: 1.5 | BK192: 1.5
A193: 185 | B193: OPEXMCH | C193: OPEXM | D193: CH | E193: CHANCADORA Y TRITURADORA | F193: Faja Transportadora 4A de 30" x longitud de 14m | G193: CAMBIO DE BALL BEARING FYH-UK-313-K | H193: 2 | I193: Hra | J193: 672 | K193: DIA | L193: C | N193: 2 | O193: 2 | P193: 2 | T193: 2 | U193: 2 | V193: 2 | AB193: 2 | AC193: 2 | AG193: 2 | AH193: 2 | AI193: 2 | AJ193: 2 | AM193: 2 | AN193: 2 | AQ193: 2 | AR193: 2 | AS193: 2 | AV193: 2 | AW193: 6 | AZ193: 6 | BA193: 2 | BB193: 2 | BE193: 6 | BF193: 2 | BI193: 2 | BJ193: 2 | BK193: 2
A194: 186 | B194: OPEXMCH | C194: OPEXM | D194: CH | E194: CHANCADORA Y TRITURADORA | F194: Faja Transportadora 4A de 30" x longitud de 14m | G194: CAMBIO DE BANDA TRANSPORTADORA DE 30 | H194: 12 | I194: Hra | J194: 336 | K194: DIA | L194: C | N194: 12 | O194: 12 | P194: 12 | T194: 12 | U194: 12 | V194: 12 | AB194: 12 | AC194: 12 | AG194: 12 | AH194: 12 | AI194: 12 | AJ194: 12 | AM194: 12 | AN194: 12 | AQ194: 12 | AR194: 12 | AS194: 12 | AV194: 12 | AW194: 36 | AZ194: 36 | BA194: 12 | BB194: 12 | BE194: 36 | BF194: 12 | BI194: 12 | BJ194: 12 | BK194: 12
A195: 187 | B195: OPEXMCH | C195: OPEXM | D195: CH | E195: CHANCADORA Y TRITURADORA | F195: Faja Transportadora 4A de 30" x longitud de 14m | G195: CAMBIO DE CHAIN WHEEL RS 100 CNT 17 X 45MM | H195: 3 | I195: Hra | J195: 672 | K195: DIA | L195: D | N195: 3 | O195: 3 | P195: 3 | T195: 3 | U195: 3 | V195: 3 | AB195: 3 | AC195: 3 | AG195: 3 | AH195: 3 | AI195: 3 | AJ195: 3 | AM195: 3 | AN195: 3 | AQ195: 3 | AR195: 3 | AS195: 3 | AV195: 3 | AW195: 9 | AZ195: 9 | BA195: 3 | BB195: 3 | BE195: 9 | BF195: 3 | BI195: 3 | BJ195: 3 | BK195: 3
A196: 188 | B196: OPEXMCH | C196: OPEXM | D196: CH | E196: CHANCADORA Y TRITURADORA | F196: Faja Transportadora 4A de 30" x longitud de 14m | G196: CAMBIO DE CHAIN WHEEL RS-100-1C-NT-24X60MM. | H196: 3 | I196: Hra | J196: 672 | K196: DIA | L196: G | N196: 3 | O196: 3 | P196: 3 | T196: 3 | U196: 3 | V196: 3 | AB196: 3 | AC196: 3 | AG196: 3 | AH196: 3 | AI196: 3 | AJ196: 3 | AM196: 3 | AN196: 3 | AQ196: 3 | AR196: 3 | AS196: 3 | AV196: 3 | AW196: 9 | AZ196: 9 | BA196: 3 | BB196: 3 | BE196: 9 | BF196: 3 | BI196: 3 | BJ196: 3 | BK196: 3
A197: 189 | B197: OPEXMCH | C197: OPEXM | D197: CH | E197: CHANCADORA Y TRITURADORA | F197: Faja Transportadora 4A de 30" x longitud de 14m | G197: CAMBIO DE MANGUITO H2313 (EJE 60 MM) | H197: 2 | I197: Hra | J197: 672 | K197: DIA | L197: C | N197: 2 | O197: 2 | P197: 2 | T197: 2 | U197: 2 | V197: 2 | AB197: 2 | AC197: 2 | AG197: 2 | AH197: 2 | AI197: 2 | AJ197: 2 | AM197: 2 | AN197: 2 | AQ197: 2 | AR197: 2 | AS197: 2 | AV197: 2 | AW197: 6 | AZ197: 6 | BA197: 2 | BB197: 2 | BE197: 6 | BF197: 2 | BI197: 2 | BJ197: 2 | BK197: 2
A198: 190 | B198: OPEXMCH | C198: OPEXM | D198: CH | E198: CHANCADORA Y TRITURADORA | F198: Faja Transportadora 4A de 30" x longitud de 14m | G198: CAMBIO DE PILLOW BLOCK UKP 313 | H198: 4.5 | I198: Hra | J198: 672 | K198: DIA | L198: C | N198: 4.5 | O198: 4.5 | P198: 4.5 | T198: 4.5 | U198: 4.5 | V198: 4.5 | AB198: 4.5 | AC198: 4.5 | AG198: 4.5 | AH198: 4.5 | AI198: 4.5 | AJ198: 4.5 | AM198: 4.5 | AN198: 4.5 | AQ198: 4.5 | AR198: 4.5 | AS198: 4.5 | AV198: 4.5 | AW198: 13.5 | AZ198: 13.5 | BA198: 4.5 | BB198: 4.5 | BE198: 13.5 | BF198: 4.5 | BI198: 4.5 | BJ198: 4.5 | BK198: 4.5
A199: 191 | B199: OPEXMCH | C199: OPEXM | D199: CH | E199: CHANCADORA Y TRITURADORA | F199: Faja Transportadora 4A de 30" x longitud de 14m | G199: CAMBIO DE POLEA MATRIZ ENJEBADO 420X660X60X1280MM | H199: 8 | I199: Hra | J199: 1344 | K199: DIA | L199: C | N199: 8 | O199: 8 | P199: 8 | T199: 8 | U199: 8 | V199: 8 | AB199: 8 | AC199: 8 | AG199: 8 | AH199: 8 | AI199: 8 | AJ199: 8 | AM199: 8 | AN199: 8 | AQ199: 8 | AR199: 8 | AS199: 8 | AV199: 8 | AW199: 24 | AZ199: 24 | BA199: 8 | BB199: 8 | BE199: 24 | BF199: 8 | BI199: 8 | BJ199: 8 | BK199: 8
A200: 192 | B200: OPEXMCH | C200: OPEXM | D200: CH | E200: CHANCADORA Y TRITURADORA | F200: Faja Transportadora 4A de 30" x longitud de 14m | G200: CAMBIO DE POLINES D/CARGA TRIPLE IMPACTO D/JEBE 30 | H200: 1.5 | I200: Hra | J200: 168 | K200: DIA | L200: C | N200: 1.5 | O200: 1.5 | P200: 1.5 | T200: 1.5 | U200: 1.5 | V200: 1.5 | AB200: 1.5 | AC200: 1.5 | AG200: 1.5 | AH200: 1.5 | AI200: 1.5 | AJ200: 1.5 | AM200: 1.5 | AN200: 1.5 | AQ200: 1.5 | AR200: 1.5 | AS200: 1.5 | AV200: 1.5 | AW200: 4.5 | AZ200: 4.5 | BA200: 1.5 | BB200: 1.5 | BE200: 4.5 | BF200: 1.5 | BI200: 1.5 | BJ200: 1.5 | BK200: 1.5
... 925 more rows

Sheet HORAS PARADAS
A1: HORAS PARADAS | D1: =+'PLAN ACTIVIDADES PARADAS'!M7 -> 0
A2: =+'PLAN ACTIVIDADES PARADAS'!A6 -> PLANTA BENEFICIO HUANZALA | D2: =+'PLAN ACTIVIDADES PARADAS'!M3 -> 2024
A3: PLAN | C3: MES | D3: ENERO | H3: FEBRERO | L3: MARZO | Q3: ABRIL | U3: MAYO | Z3: JUNIO | AD3: JULIO | AH3: AGOSTO | AM3: SEPTIEMBRE | AQ3: OCTUBRE | AU3: NOVIEMBRE | AZ3: DICIEMBRE
C4: SEMANA | D4: 1 | E4: =D4+1 -> 2 | F4: =E4+1 -> 3 | G4: =F4+1 -> 4 | H4: =G4+1 -> 5 | I4: 6 | J4: 7 | K4: 8 | L4: 9 | M4: 10 | N4: 11 | O4: =N4+1 -> 12 | P4: =O4+1 -> 13 | Q4: 14 | R4: 15 | S4: 16 | T4: =S4+1 -> 17 | U4: =T4+1 -> 18 | V4: 19 | W4: 20 | X4: =W4+1 -> 21 | Y4: =X4+1 -> 22 | Z4: =Y4+1 -> 23 | AA4: 24 | AB4: =AA4+1 -> 25 | AC4: =AB4+1 -> 26 | AD4: 27 | AE4: 28 | AF4: 29 | AG4: 30 | AH4: =AG4+1 -> 31 | AI4: 32 | AJ4: 33 | AK4: =AJ4+1 -> 34 | AL4: =AK4+1 -> 35 | AM4: 36 | AN4: 37 | AO4: 38 | AP4: 39 | AQ4: 40 | AR4: 41 | AS4: 42 | AT4: 43 | AU4: =AT4+1 -> 44 | AV4: 45 | AW4: 46 | AX4: =AW4+1 -> 47 | AY4: =AX4+1 -> 48 | AZ4: 49 | BA4: 50 | BB4: 51 | BC4: =BB4+1 -> 52
C5: FECHA | D5: 01ENE24 - 28ENE24 | H5: 29ENE24 - 25FEB24 | L5: 26FEB24 - 31MAR24 | Q5: 01ABR24 - 28ABR24 | U5: 29ABR24 - 26MAY24 | Z5: 27MAY24 - 30JUN24 | AD5: 01JUL24 - 28JUL23 | AH5: 29JUL24 - 25AGO24 | AM5: 26AGO24 - 29SET24 | AQ5: 30SET24 - 27OCT24 | AU5: 28OCT24 - 24NOV24 | AZ5: 24NOV24 - 29DIC24
C6: TOTAL | D6: 72 | H6: 48 | I6: 48 | L6: 24 | M6: 48 | Q6: 120 | U6: 120 | V6: 0 | W6: 0 | X6: 0 | Y6: 0 | Z6: 48 | AA6: 72 | AC6: 0 | AD6: 120 | AG6: 0 | AH6: 96 | AI6: 24 | AJ6: 0 | AK6: 0 | AL6: 24 | AM6: 96 | AP6: 0 | AQ6: 120 | AU6: 72 | AV6: 48 | AY6: 24 | AZ6: 48
B7: 1 | C7: CHANCADO PRIMARIO | D7: =+D$6*0.07 -> 5.04 | E7: 0 | F7: 0 | G7: 0 | H7: 3.36 | I7: 3.36 | J7: 0 | K7: 0 | L7: 1.68 | M7: 3.36 | N7: 0 | O7: 0 | P7: 0 | Q7: 8.4 | R7: 0 | S7: 0 | T7: =+T$6*0.07 -> 0 | U7: 8.4 | V7: 0 | W7: 0 | X7: 0 | Y7: 0 | Z7: 3.36 | AA7: 5.04 | AB7: 0 | AC7: 0 | AD7: 8.4 | AE7: 0 | AF7: 0 | AG7: 0 | AH7: 6.72 | AI7: 1.68 | AJ7: 0 | AK7: 0 | AL7: 1.68 | AM7: 6.72 | AN7: 0 | AO7: 0 | AP7: 0 | AQ7: 8.4 | AR7: 0 | AS7: 0 | AT7: 0 | AU7: 5.04 | AV7: 3.36 | AW7: 0 | AX7: 0 | AY7: 1.68 | AZ7: 3.36 | BA7: 0 | BB7: 0 | BC7: 0
B8: 2 | C8: CHANCADO SECUNDARIO | D8: =+D$6*0.07 -> 5.04 | E8: =+E$6*0.07 -> 0 | F8: 0 | G8: 0 | H8: 3.36 | I8: 3.36 | J8: 0 | K8: 0 | L8: 1.68 | M8: 3.36 | N8: 0 | O8: 0 | P8: 0 | Q8: 8.4 | R8: 0 | S8: 0 | T8: 0 | U8: 8.4 | V8: 0 | W8: 0 | X8: 0 | Y8: 0 | Z8: 3.36 | AA8: 5.04 | AB8: 0 | AC8: 0 | AD8: 8.4 | AE8: 0 | AF8: 0 | AG8: 0 | AH8: 6.72 | AI8: 1.68 | AJ8: 0 | AK8: 0 | AL8: 1.68 | AM8: 6.72 | AN8: 0 | AO8: 0 | AP8: 0 | AQ8: 8.4 | AR8: 0 | AS8: 0 | AT8: 0 | AU8: 5.04 | AV8: 3.36 | AW8: 0 | AX8: 0 | AY8: 1.68 | AZ8: 3.36 | BA8: 0 | BB8: 0 | BC8: 0
B9: 3 | C9: CHANCADO TERCIARIO | D9: =+D$6*0.07 -> 5.04 | E9: =+E$6*0.07 -> 0 | F9: 0 | G9: 0 | H9: 3.36 | I9: 3.36 | J9: 0 | K9: 0 | L9: 1.68 | M9: 3.36 | N9: 0 | O9: 0 | P9: 0 | Q9: 8.4 | R9: 0 | S9: 0 | T9: 0 | U9: 8.4 | V9: 0 | W9: 0 | X9: 0 | Y9: 0 | Z9: 3.36 | AA9: 5.04 | AB9: 0 | AC9: 0 | AD9: 8.4 | AE9: 0 | AF9: 0 | AG9: 0 | AH9: 6.72 | AI9: 1.68 | AJ9: 0 | AK9: 0 | AL9: 1.68 | AM9: 6.72 | AN9: 0 | AO9: 0 | AP9: 0 | AQ9: 8.4 | AR9: 0 | AS9: 0 | AT9: 0 | AU9: 5.04 | AV9: 3.36 | AW9: 0 | AX9: 0 | AY9: 1.68 | AZ9: 3.36 | BA9: 0 | BB9: 0 | BC9: 0
B10: 4 | C10: MOLIENDA | D10: =+D$6*0.06 -> 4.32 | E10: =+E$6*0.06 -> 0 | F10: =+F$6*0.06 -> 0 | G10: 0 | H10: 2.88 | I10: 2.88 | J10: =+J$6*0.06 -> 0 | K10: 0 | L10: 1.44 | M10: 2.88 | N10: 0 | O10: 0 | P10: 0 | Q10: 7.2 | R10: 0 | S10: 0 | T10: 0 | U10: 7.2 | V10: 0 | W10: 0 | X10: 0 | Y10: 0 | Z10: 2.88 | AA10: 4.32 | AB10: 0 | AC10: 0 | AD10: 7.2 | AE10: 0 | AF10: 0 | AG10: 0 | AH10: 5.76 | AI10: 1.44 | AJ10: 0 | AK10: 0 | AL10: 1.44 | AM10: 5.76 | AN10: 0 | AO10: 0 | AP10: 0 | AQ10: 7.2 | AR10: 0 | AS10: 0 | AT10: 0 | AU10: 4.32 | AV10: 2.88 | AW10: 0 | AX10: 0 | AY10: 1.44 | AZ10: 2.88 | BA10: 0 | BB10: 0 | BC10: 0
B11: 5 | C11: PLANTA DE CAL | D11: =+D$6*0.025 -> 1.8 | E11: =+E$6*0.025 -> 0 | F11: =+F$6*0.025 -> 0 | G11: 0 | H11: 1.2 | I11: 1.2 | J11: 0 | K11: 0 | L11: 0.6 | M11: 1.2 | N11: 0 | O11: 0 | P11: 0 | Q11: 3 | R11: 0 | S11: 0 | T11: 0 | U11: 3 | V11: 0 | W11: 0 | X11: 0 | Y11: 0 | Z11: 1.2 | AA11: 1.8 | AB11: 0 | AC11: 0 | AD11: 3 | AE11: 0 | AF11: 0 | AG11: 0 | AH11: 2.4 | AI11: 0.6 | AJ11: 0 | AK11: 0 | AL11: 0.6 | AM11: 2.4 | AN11: 0 | AO11: 0 | AP11: 0 | AQ11: 3 | AR11: 0 | AS11: 0 | AT11: 0 | AU11: 1.8 | AV11: 1.2 | AW11: 0 | AX11: 0 | AY11: 0.6 | AZ11: 1.2 | BA11: 0 | BB11: 0 | BC11: 0
B12: 6 | C12: ABASTECIMIENTO DE AGUA | D12: =+D$6*0.07 -> 5.04 | E12: =+E$6*0.07 -> 0 | F12: =+F$6*0.07 -> 0 | G12: 0 | H12: 3.36 | I12: 3.36 | J12: 0 | K12: 0 | L12: 1.68 | M12: 3.36 | N12: 0 | O12: 0 | P12: 0 | Q12: 8.4 | R12: 0 | S12: 0 | T12: 0 | U12: 8.4 | V12: 0 | W12: 0 | X12: 0 | Y12: 0 | Z12: 3.36 | AA12: 5.04 | AB12: 0 | AC12: 0 | AD12: 8.4 | AE12: 0 | AF12: 0 | AG12: 0 | AH12: 6.72 | AI12: 1.68 | AJ12: 0 | AK12: 0 | AL12: 1.68 | AM12: 6.72 | AN12: 0 | AO12: 0 | AP12: 0 | AQ12: 8.4 | AR12: 0 | AS12: 0 | AT12: 0 | AU12: 5.04 | AV12: 3.36 | AW12: 0 | AX12: 0 | AY12: 1.68 | AZ12: 3.36 | BA12: 0 | BB12: 0 | BC12: 0
B13: 7 | C13: REACTIVOS | D13: =+D$6*0.025 -> 1.8 | E13: =+E$6*0.025 -> 0 | F13: =+F$6*0.025 -> 0 | G13: 0 | H13: 1.2 | I13: 1.2 | J13: 0 | K13: 0 | L13: 0.6 | M13: 1.2 | N13: 0 | O13: 0 | P13: 0 | Q13: 3 | R13: 0 | S13: 0 | T13: 0 | U13: 3 | V13: 0 | W13: 0 | X13: 0 | Y13: 0 | Z13: 1.2 | AA13: 1.8 | AB13: 0 | AC13: 0 | AD13: 3 | AE13: 0 | AF13: 0 | AG13: 0 | AH13: 2.4 | AI13: 0.6 | AJ13: 0 | AK13: 0 | AL13: 0.6 | AM13: 2.4 | AN13: 0 | AO13: 0 | AP13: 0 | AQ13: 3 | AR13: 0 | AS13: 0 | AT13: 0 | AU13: 1.8 | AV13: 1.2 | AW13: 0 | AX13: 0 | AY13: 0.6 | AZ13: 1.2 | BA13: 0 | BB13: 0 | BC13: 0
B14: 8 | C14: FLOTACION Pb | D14: =+D$6*0.05 -> 3.6 | E14: 0 | F14: 0 | G14: 0 | H14: 2.4 | I14: 2.4 | J14: 0 | K14: 0 | L14: 1.2 | M14: 2.4 | N14: 0 | O14: 0 | P14: 0 | Q14: 6 | R14: 0 | S14: 0 | T14: =+T$6*0.05 -> 0 | U14: 6 | V14: 0 | W14: 0 | X14: 0 | Y14: 0 | Z14: 2.4 | AA14: 3.6 | AB14: 0 | AC14: 0 | AD14: 6 | AE14: 0 | AF14: 0 | AG14: 0 | AH14: 4.8 | AI14: 1.2 | AJ14: 0 | AK14: 0 | AL14: 1.2 | AM14: 4.8 | AN14: 0 | AO14: 0 | AP14: 0 | AQ14: 6 | AR14: 0 | AS14: 0 | AT14: 0 | AU14: 3.6 | AV14: 2.4 | AW14: 0 | AX14: 0 | AY14: 1.2 | AZ14: 2.4 | BA14: 0 | BB14: 0 | BC14: 0
B15: 9 | C15: FLOTACION Cu | D15: =+D$6*0.05 -> 3.6 | E15: 0 | F15: 0 | G15: 0 | H15: 2.4 | I15: 2.4 | J15: 0 | K15: 0 | L15: 1.2 | M15: 2.4 | N15: 0 | O15: 0 | P15: 0 | Q15: 6 | R15: 0 | S15: 0 | T15: 0 | U15: 6 | V15: 0 | W15: 0 | X15: 0 | Y15: 0 | Z15: 2.4 | AA15: 3.6 | AB15: 0 | AC15: 0 | AD15: 6 | AE15: 0 | AF15: 0 | AG15: 0 | AH15: 4.8 | AI15: 1.2 | AJ15: 0 | AK15: 0 | AL15: 1.2 | AM15: 4.8 | AN15: 0 | AO15: 0 | AP15: 0 | AQ15: 6 | AR15: 0 | AS15: 0 | AT15: 0 | AU15: 3.6 | AV15: 2.4 | AW15: 0 | AX15: 0 | AY15: 1.2 | AZ15: 2.4 | BA15: 0 | BB15: 0 | BC15: 0
B16: 10 | C16: FLOTACION Zn | D16: =+D$6*0.05 -> 3.6 | E16: 0 | F16: 0 | G16: 0 | H16: 2.4 | I16: 2.4 | J16: 0 | K16: 0 | L16: 1.2 | M16: 2.4 | N16: 0 | O16: 0 | P16: 0 | Q16: 6 | R16: 0 | S16: 0 | T16: 0 | U16: 6 | V16: 0 | W16: 0 | X16: 0 | Y16: 0 | Z16: 2.4 | AA16: 3.6 | AB16: 0 | AC16: 0 | AD16: 6 | AE16: 0 | AF16: 0 | AG16: 0 | AH16: 4.8 | AI16: 1.2 | AJ16: 0 | AK16: 0 | AL16: 1.2 | AM16: 4.8 | AN16: 0 | AO16: 0 | AP16: 0 | AQ16: 6 | AR16: 0 | AS16: 0 | AT16: 0 | AU16: 3.6 | AV16: 2.4 | AW16: 0 | AX16: 0 | AY16: 1.2 | AZ16: 2.4 | BA16: 0 | BB16: 0 | BC16: 0
B17: 11 | C17: FLOTACION Bulk | D17: =+D$6*0.05 -> 3.6 | E17: =+E$6*0.05 -> 0 | F17: 0 | G17: 0 | H17: 2.4 | I17: 2.4 | J17: 0 | K17: 0 | L17: 1.2 | M17: 2.4 | N17: 0 | O17: 0 | P17: 0 | Q17: 6 | R17: 0 | S17: 0 | T17: 0 | U17: 6 | V17: 0 | W17: 0 | X17: 0 | Y17: 0 | Z17: 2.4 | AA17: 3.6 | AB17: 0 | AC17: 0 | AD17: 6 | AE17: 0 | AF17: 0 | AG17: 0 | AH17: 4.8 | AI17: 1.2 | AJ17: 0 | AK17: 0 | AL17: 1.2 | AM17: 4.8 | AN17: 0 | AO17: 0 | AP17: 0 | AQ17: 6 | AR17: 0 | AS17: 0 | AT17: 0 | AU17: 3.6 | AV17: 2.4 | AW17: 0 | AX17: 0 | AY17: 1.2 | AZ17: 2.4 | BA17: 0 | BB17: 0 | BC17: 0
B18: 12 | C18: ESPESADORES | D18: =+D$6*0.07 -> 5.04 | E18: =+E$6*0.07 -> 0 | F18: =+F$6*0.07 -> 0 | G18: 0 | H18: 3.36 | I18: 3.36 | J18: 0 | K18: 0 | L18: 1.68 | M18: 3.36 | N18: 0 | O18: 0 | P18: 0 | Q18: 8.4 | R18: 0 | S18: 0 | T18: 0 | U18: 8.4 | V18: 0 | W18: 0 | X18: 0 | Y18: 0 | Z18: 3.36 | AA18: 5.04 | AB18: 0 | AC18: 0 | AD18: 8.4 | AE18: 0 | AF18: 0 | AG18: 0 | AH18: 6.72 | AI18: 1.68 | AJ18: 0 | AK18: 0 | AL18: 1.68 | AM18: 6.72 | AN18: 0 | AO18: 0 | AP18: 0 | AQ18: 8.4 | AR18: 0 | AS18: 0 | AT18: 0 | AU18: 5.04 | AV18: 3.36 | AW18: 0 | AX18: 0 | AY18: 1.68 | AZ18: 3.36 | BA18: 0 | BB18: 0 | BC18: 0
B19: 13 | C19: FILTRADO Pb | D19: =+D$6*0.04 -> 2.88 | E19: =+E$6*0.04 -> 0 | F19: =+F$6*0.04 -> 0 | G19: 0 | H19: 1.92 | I19: 1.92 | J19: 0 | K19: 0 | L19: 0.96 | M19: 1.92 | N19: 0 | O19: 0 | P19: 0 | Q19: 4.8 | R19: 0 | S19: 0 | T19: 0 | U19: 4.8 | V19: 0 | W19: 0 | X19: 0 | Y19: 0 | Z19: 1.92 | AA19: 2.88 | AB19: 0 | AC19: 0 | AD19: 4.8 | AE19: 0 | AF19: 0 | AG19: 0 | AH19: 3.84 | AI19: 0.96 | AJ19: 0 | AK19: 0 | AL19: 0.96 | AM19: 3.84 | AN19: 0 | AO19: 0 | AP19: 0 | AQ19: 4.8 | AR19: 0 | AS19: 0 | AT19: 0 | AU19: 2.88 | AV19: 1.92 | AW19: 0 | AX19: 0 | AY19: 0.96 | AZ19: 1.92 | BA19: 0 | BB19: 0 | BC19: 0
B20: 14 | C20: FILTRADO Cu | D20: =+D$6*0.05 -> 3.6 | E20: 0 | F20: 0 | G20: 0 | H20: 2.4 | I20: 2.4 | J20: 0 | K20: 0 | L20: 1.2 | M20: 2.4 | N20: 0 | O20: 0 | P20: 0 | Q20: 6 | R20: 0 | S20: 0 | T20: =+T$6*0.05 -> 0 | U20: 6 | V20: 0 | W20: 0 | X20: 0 | Y20: 0 | Z20: 2.4 | AA20: 3.6 | AB20: 0 | AC20: 0 | AD20: 6 | AE20: 0 | AF20: 0 | AG20: 0 | AH20: 4.8 | AI20: 1.2 | AJ20: 0 | AK20: 0 | AL20: 1.2 | AM20: 4.8 | AN20: 0 | AO20: 0 | AP20: 0 | AQ20: 6 | AR20: 0 | AS20: 0 | AT20: 0 | AU20: 3.6 | AV20: 2.4 | AW20: 0 | AX20: 0 | AY20: 1.2 | AZ20: 2.4 | BA20: 0 | BB20: 0 | BC20: 0
B21: 15 | C21: FILTRADO Zn | D21: =+D$6*0.05 -> 3.6 | E21: 0 | F21: 0 | G21: 0 | H21: 2.4 | I21: 2.4 | J21: 0 | K21: 0 | L21: 1.2 | M21: 2.4 | N21: 0 | O21: 0 | P21: 0 | Q21: 6 | R21: 0 | S21: 0 | T21: 0 | U21: 6 | V21: 0 | W21: 0 | X21: 0 | Y21: 0 | Z21: 2.4 | AA21: 3.6 | AB21: 0 | AC21: 0 | AD21: 6 | AE21: 0 | AF21: 0 | AG21: 0 | AH21: 4.8 | AI21: 1.2 | AJ21: 0 | AK21: 0 | AL21: 1.2 | AM21: 4.8 | AN21: 0 | AO21: 0 | AP21: 0 | AQ21: 6 | AR21: 0 | AS21: 0 | AT21: 0 | AU21: 3.6 | AV21: 2.4 | AW21: 0 | AX21: 0 | AY21: 1.2 | AZ21: 2.4 | BA21: 0 | BB21: 0 | BC21: 0
B22: 16 | C22: FILTRADO Bulk | D22: =+D$6*0.05 -> 3.6 | E22: =+E$6*0.05 -> 0 | F22: 0 | G22: 0 | H22: 2.4 | I22: 2.4 | J22: 0 | K22: 0 | L22: 1.2 | M22: 2.4 | N22: 0 | O22: 0 | P22: 0 | Q22: 6 | R22: 0 | S22: 0 | T22: 0 | U22: 6 | V22: 0 | W22: 0 | X22: 0 | Y22: 0 | Z22: 2.4 | AA22: 3.6 | AB22: 0 | AC22: 0 | AD22: 6 | AE22: 0 | AF22: 0 | AG22: 0 | AH22: 4.8 | AI22: 1.2 | AJ22: 0 | AK22: 0 | AL22: 1.2 | AM22: 4.8 | AN22: 0 | AO22: 0 | AP22: 0 | AQ22: 6 | AR22: 0 | AS22: 0 | AT22: 0 | AU22: 3.6 | AV22: 2.4 | AW22: 0 | AX22: 0 | AY22: 1.2 | AZ22: 2.4 | BA22: 0 | BB22: 0 | BC22: 0
B23: 17 | C23: PLANTA DE NEUTRALIZACION | D23: =+D$6*0.06 -> 4.32 | E23: =+E$6*0.06 -> 0 | F23: 0 | G23: 0 | H23: 2.88 | I23: 2.88 | J23: 0 | K23: 0 | L23: 1.44 | M23: 2.88 | N23: 0 | O23: 0 | P23: 0 | Q23: 7.2 | R23: 0 | S23: 0 | T23: 0 | U23: 7.2 | V23: 0 | W23: 0 | X23: 0 | Y23: 0 | Z23: 2.88 | AA23: 4.32 | AB23: 0 | AC23: 0 | AD23: 7.2 | AE23: 0 | AF23: 0 | AG23: 0 | AH23: 5.76 | AI23: 1.44 | AJ23: 0 | AK23: 0 | AL23: 1.44 | AM23: 5.76 | AN23: 0 | AO23: 0 | AP23: 0 | AQ23: 7.2 | AR23: 0 | AS23: 0 | AT23: 0 | AU23: 4.32 | AV23: 2.88 | AW23: 0 | AX23: 0 | AY23: 1.44 | AZ23: 2.88 | BA23: 0 | BB23: 0 | BC23: 0
B24: 18 | C24: BOMBAS DE RELAVE | D24: =+D$6*0.09 -> 6.48 | E24: =+E$6*0.09 -> 0 | F24: =+F$6*0.09 -> 0 | G24: 0 | H24: 4.32 | I24: 4.32 | J24: 0 | K24: 0 | L24: 2.16 | M24: 4.32 | N24: 0 | O24: 0 | P24: 0 | Q24: 10.8 | R24: 0 | S24: 0 | T24: 0 | U24: 10.8 | V24: 0 | W24: 0 | X24: 0 | Y24: 0 | Z24: 4.32 | AA24: 6.48 | AB24: 0 | AC24: 0 | AD24: 10.8 | AE24: 0 | AF24: 0 | AG24: 0 | AH24: 8.64 | AI24: 2.16 | AJ24: 0 | AK24: 0 | AL24: 2.16 | AM24: 8.64 | AN24: 0 | AO24: 0 | AP24: 0 | AQ24: 10.8 | AR24: 0 | AS24: 0 | AT24: 0 | AU24: 6.48 | AV24: 4.32 | AW24: 0 | AX24: 0 | AY24: 2.16 | AZ24: 4.32 | BA24: 0 | BB24: 0 | BC24: 0
C25: HORAS POR SEMANA | D25: =SUM(D7:D24) -> 72 | E25: =SUM(E7:E24) -> 0 | F25: 0 | G25: 0 | H25: 48 | I25: 48 | J25: =SUM(J7:J24) -> 0 | K25: 0 | L25: 24 | M25: 48 | N25: 0 | P25: 0 | Q25: 120 | R25: 0 | S25: 0 | T25: 0 | U25: 120 | V25: 0 | W25: 0 | X25: 0 | Y25: 0 | Z25: 48 | AA25: 72 | AC25: 0 | AD25: 120 | AE25: 0 | AF25: 0 | AG25: 0 | AH25: 96 | AI25: =SUM(AI7:AI24) -> 24 | AJ25: 0 | AK25: 0 | AL25: 24 | AM25: 96 | AN25: 0 | AO25: 0 | AP25: 0 | AQ25: 120 | AR25: 0 | AS25: 0 | AT25: 0 | AU25: 72 | AV25: 48 | AW25: 0 | AX25: 0 | AY25: 24 | AZ25: 48 | BA25: 0 | BB25: 0 | BC25: =SUM(BC7:BC24) -> 0
C26: HORAS POR MES | D26: =+SUM(D25:G25) -> 72 | H26: =+SUM(H25:K25) -> 96 | L26: =SUM(L25:O25) -> 72 | P26: =+SUM(P25:S25) -> 120 | T26: =SUM(T25:X25) -> 120 | Y26: =SUM(Y25:AB25) -> 120 | AC26: =+SUM(AC25:AF25) -> 120 | AG26: =SUM(AG25:AK25) -> 120 | AL26: =+SUM(AL25:AO25) -> 120 | AP26: =+SUM(AP25:AT25) -> 120 | AU26: =SUM(AU25:AX25) -> 120 | AY26: =+SUM(AY25:BC25) -> 72
C27: HORAS ACUMULADAS | D27: =+D26 -> 72 | H27: =H26+D27 -> 168 | L27: =+L26+H27 -> 240 | P27: =+P26+L27 -> 360 | T27: =T26+P27 -> 480 | Y27: =Y26+T27 -> 600 | AC27: =AC26+Y27 -> 720 | AG27: =AG26+AC27 -> 840 | AL27: =AL26+AG27 -> 960 | AP27: =+AP26+AL27 -> 1080 | AU27: =AU26+AP27 -> 1200 | AY27: =+AY26+AU27 -> 1272
D28: =+'PROYECCION ACTIVIDADES PARADAS'!M7 -> 0
A29: PROYECCION | C29: FECHA | D29: 01ENE24 - 28ENE24 | H29: 29ENE24 - 25FEB24 | L29: 26FEB24 - 31MAR24 | Q29: 01ABR24 - 28ABR24 | U29: 29ABR24 - 26MAY24 | Z29: 27MAY24 - 30JUN24 | AD29: 01JUL24 - 28JUL23 | AH29: 29JUL24 - 25AGO24 | AM29: 26AGO24 - 29SET24 | AQ29: 30SET24 - 27OCT24 | AU29: 28OCT24 - 24NOV24 | AZ29: 24NOV24 - 29DIC24
C30: TOTAL | D30: 96 | H30: 48 | I30: 48 | L30: 72 | O30: 0 | P30: 0 | T30: 0 | W30: 0 | X30: 0 | AG30: 0 | AJ30: 0 | AK30: 0 | AO30: 0 | AR30: 0 | AS30: 0 | AT30: 0 | BA30: 0
B31: 1 | C31: =+C7 -> CHANCADO PRIMARIO | D31: =+D$30*0.07 -> 6.72 | E31: =+E$30*0.07 -> 0 | F31: 0 | G31: 0 | H31: 3.36 | I31: 3.36 | J31: 0 | K31: 0 | L31: 5.04 | M31: 0 | N31: 0 | O31: 0 | P31: 0 | Q31: 0 | R31: 0 | S31: 0 | T31: 0 | U31: 0 | V31: 0 | W31: 0 | X31: 0 | Y31: 0 | Z31: 0 | AA31: 0 | AB31: 0 | AC31: 0 | AD31: 0 | AE31: 0 | AF31: 0 | AG31: 0 | AH31: 0 | AI31: 0 | AJ31: 0 | AK31: 0 | AL31: 0 | AM31: 0 | AN31: 0 | AO31: 0 | AP31: 0 | AQ31: 0 | AR31: 0 | AS31: 0 | AT31: 0 | AU31: 0 | AV31: 0 | AW31: 0 | AX31: 0 | AY31: 0 | AZ31: 0 | BA31: 0 | BB31: 0 | BC31: 0
B32: 2 | C32: =+C8 -> CHANCADO SECUNDARIO | D32: =+D$30*0.07 -> 6.72 | E32: 0 | F32: 0 | G32: 0 | H32: 3.36 | I32: 3.36 | J32: 0 | K32: 0 | L32: 5.04 | M32: 0 | N32: 0 | O32: 0 | P32: 0 | Q32: 0 | R32: 0 | S32: 0 | T32: 0 | U32: 0 | V32: 0 | W32: 0 | X32: 0 | Y32: 0 | Z32: 0 | AA32: 0 | AB32: 0 | AC32: 0 | AD32: 0 | AE32: 0 | AF32: 0 | AG32: 0 | AH32: 0 | AI32: 0 | AJ32: 0 | AK32: 0 | AL32: 0 | AM32: 0 | AN32: 0 | AO32: 0 | AP32: 0 | AQ32: 0 | AR32: 0 | AS32: 0 | AT32: 0 | AU32: 0 | AV32: 0 | AW32: 0 | AX32: 0 | AY32: 0 | AZ32: 0 | BA32: 0 | BB32: 0 | BC32: 0
B33: 3 | C33: CHANCADO TERCIARIO | D33: =+D$30*0.07 -> 6.72 | E33: 0 | F33: 0 | G33: 0 | H33: 3.36 | I33: 3.36 | J33: 0 | K33: 0 | L33: 5.04 | M33: 0 | N33: 0 | O33: 0 | P33: 0 | Q33: 0 | R33: 0 | S33: 0 | T33: 0 | U33: 0 | V33: 0 | W33: 0 | X33: 0 | Y33: 0 | Z33: 0 | AA33: 0 | AB33: 0 | AC33: 0 | AD33: 0 | AE33: 0 | AF33: 0 | AG33: 0 | AH33: 0 | AI33: 0 | AJ33: 0 | AK33: 0 | AL33: 0 | AM33: 0 | AN33: 0 | AO33: 0 | AP33: 0 | AQ33: 0 | AR33: 0 | AS33: 0 | AT33: 0 | AU33: 0 | AV33: 0 | AW33: 0 | AX33: 0 | AY33: 0 | AZ33: 0 | BA33: 0 | BB33: 0 | BC33: 0
B34: 4 | C34: MOLIENDA | D34: =+D$30*0.06 -> 5.76 | E34: =+E$30*0.06 -> 0 | F34: 0 | G34: 0 | H34: 2.88 | I34: 2.88 | J34: 0 | K34: 0 | L34: 4.32 | M34: 0 | N34: 0 | O34: 0 | P34: 0 | Q34: 0 | R34: 0 | S34: 0 | T34: 0 | U34: 0 | V34: 0 | W34: 0 | X34: 0 | Y34: 0 | Z34: 0 | AA34: 0 | AB34: 0 | AC34: 0 | AD34: 0 | AE34: 0 | AF34: 0 | AG34: 0 | AH34: 0 | AI34: 0 | AJ34: 0 | AK34: 0 | AL34: 0 | AM34: 0 | AN34: 0 | AO34: 0 | AP34: 0 | AQ34: 0 | AR34: 0 | AS34: 0 | AT34: 0 | AU34: 0 | AV34: 0 | AW34: 0 | AX34: 0 | AY34: 0 | AZ34: 0 | BA34: 0 | BB34: 0 | BC34: 0
B35: 5 | C35: PLANTA DE CAL | D35: =+D$30*0.025 -> 2.4 | E35: =+E$30*0.025 -> 0 | F35: 0 | G35: 0 | H35: 1.2 | I35: 1.2 | J35: 0 | K35: 0 | L35: 1.8 | M35: 0 | N35: 0 | O35: 0 | P35: 0 | Q35: 0 | R35: 0 | S35: 0 | T35: 0 | U35: 0 | V35: 0 | W35: 0 | X35: 0 | Y35: 0 | Z35: 0 | AA35: 0 | AB35: 0 | AC35: 0 | AD35: 0 | AE35: 0 | AF35: 0 | AG35: 0 | AH35: 0 | AI35: 0 | AJ35: 0 | AK35: 0 | AL35: 0 | AM35: 0 | AN35: 0 | AO35: 0 | AP35: 0 | AQ35: 0 | AR35: 0 | AS35: 0 | AT35: 0 | AU35: 0 | AV35: 0 | AW35: 0 | AX35: 0 | AY35: 0 | AZ35: 0 | BA35: 0 | BB35: 0 | BC35: 0
B36: 6 | C36: ABASTECIMIENTO DE AGUA | D36: =+D$30*0.07 -> 6.72 | E36: =+E$30*0.07 -> 0 | F36: 0 | G36: 0 | H36: 3.36 | I36: 3.36 | J36: 0 | K36: 0 | L36: 5.04 | M36: 0 | N36: 0 | O36: 0 | P36: 0 | Q36: 0 | R36: 0 | S36: 0 | T36: 0 | U36: 0 | V36: 0 | W36: 0 | X36: 0 | Y36: 0 | Z36: 0 | AA36: 0 | AB36: 0 | AC36: 0 | AD36: 0 | AE36: 0 | AF36: 0 | AG36: 0 | AH36: 0 | AI36: 0 | AJ36: 0 | AK36: 0 | AL36: 0 | AM36: 0 | AN36: 0 | AO36: 0 | AP36: 0 | AQ36: 0 | AR36: 0 | AS36: 0 | AT36: 0 | AU36: 0 | AV36: 0 | AW36: 0 | AX36: 0 | AY36: 0 | AZ36: 0 | BA36: 0 | BB36: 0 | BC36: 0
B37: 7 | C37: REACTIVOS | D37: =+D$30*0.025 -> 2.4 | E37: =+E$30*0.025 -> 0 | F37: 0 | G37: 0 | H37: 1.2 | I37: 1.2 | J37: 0 | K37: 0 | L37: 1.8 | M37: 0 | N37: 0 | O37: 0 | P37: 0 | Q37: 0 | R37: 0 | S37: 0 | T37: 0 | U37: 0 | V37: 0 | W37: 0 | X37: 0 | Y37: 0 | Z37: 0 | AA37: 0 | AB37: 0 | AC37: 0 | AD37: 0 | AE37: 0 | AF37: 0 | AG37: 0 | AH37: 0 | AI37: 0 | AJ37: 0 | AK37: 0 | AL37: 0 | AM37: 0 | AN37: 0 | AO37: 0 | AP37: 0 | AQ37: 0 | AR37: 0 | AS37: 0 | AT37: 0 | AU37: 0 | AV37: 0 | AW37: 0 | AX37: 0 | AY37: 0 | AZ37: 0 | BA37: 0 | BB37: 0 | BC37: 0
B38: 8 | C38: FLOTACION Pb | D38: =+D$30*0.05 -> 4.8 | E38: =+E$30*0.05 -> 0 | F38: 0 | G38: 0 | H38: 2.4 | I38: 2.4 | J38: 0 | K38: 0 | L38: 3.6 | M38: 0 | N38: 0 | O38: 0 | P38: 0 | Q38: 0 | R38: 0 | S38: 0 | T38: 0 | U38: 0 | V38: 0 | W38: 0 | X38: 0 | Y38: 0 | Z38: 0 | AA38: 0 | AB38: 0 | AC38: 0 | AD38: 0 | AE38: 0 | AF38: 0 | AG38: 0 | AH38: 0 | AI38: 0 | AJ38: 0 | AK38: 0 | AL38: 0 | AM38: 0 | AN38: 0 | AO38: 0 | AP38: 0 | AQ38: 0 | AR38: 0 | AS38: 0 | AT38: 0 | AU38: 0 | AV38: 0 | AW38: 0 | AX38: 0 | AY38: 0 | AZ38: 0 | BA38: 0 | BB38: 0 | BC38: 0
B39: 9 | C39: FLOTACION Cu | D39: =+D$30*0.05 -> 4.8 | E39: 0 | F39: 0 | G39: 0 | H39: 2.4 | I39: 2.4 | J39: 0 | K39: 0 | L39: 3.6 | M39: 0 | N39: 0 | O39: 0 | P39: 0 | Q39: 0 | R39: 0 | S39: 0 | T39: 0 | U39: 0 | V39: 0 | W39: 0 | X39: 0 | Y39: 0 | Z39: 0 | AA39: 0 | AB39: 0 | AC39: 0 | AD39: 0 | AE39: 0 | AF39: 0 | AG39: 0 | AH39: 0 | AI39: 0 | AJ39: 0 | AK39: 0 | AL39: 0 | AM39: 0 | AN39: 0 | AO39: 0 | AP39: 0 | AQ39: 0 | AR39: 0 | AS39: 0 | AT39: 0 | AU39: 0 | AV39: 0 | AW39: 0 | AX39: 0 | AY39: 0 | AZ39: 0 | BA39: 0 | BB39: 0 | BC39: 0
